Workbook

Sheet Liste (hidden)
A1: Période arrêté | B1: 202106 | F1: Agences supprimées automatiquement des requêtes du reporting ce mois-ci. Liste ci-contre mise à jour. | P1: =+LEFT(RIGHT(RIGHT(LEFT(CELL("nomfichier",A1),FIND("]",CELL("nomfichier",A1),1)-1),FIND("]",CELL("nomfichier",A1),1)-FIND("[",CELL("nomfichier",A1),1)-1),11),6) -> 202107
B4: AIX EN OTHE | C4: 10583 | F4: 5705 | G4: EXPERTS CREDIT IMMO | J4: 61 | K4: HAGUENAU MARXENHOUSE | N4: A voir avec Guillaume
B5: ALTKIRCH | C5: 189 | F5: 51390 | G5: FERE CHAMPENOISE | J5: 36 | K5: HOENHEIM RIED
B6: ARCIS SUR AUBE | C6: 10530 | F6: 57613 | G6: SARRALBE | J6: 151 | K6: TURCKHEIM
B7: ARS SUR MOSELLE | C7: 57105
B8: AUDUN LE TICHE | C8: 57113 | F8: ATTENTION :
B9: AY CHAMPAGNE | C9: 51367 | F9: 1/ Revoir la requête en excluant ces agences
B10: BACCARAT | C10: 54116 | F10: 2/ Revoir les liaisons dans l'onglet "Rapport 5" car des lignes ont été supprimées à la main.
B11: BAR LE DUC | C11: 55151
B12: BAR SUR AUBE | C12: 10550
B13: BAR SUR SEINE | C13: 10556
B14: BARR | C14: 113 | F14: Agences supprimées en 202102
B15: BAYON | C15: 54161 | F15: EDS | G15: PDV | H15: Agence Multisite | I15: Territoire | J15: Région | K15: Type de site | L15: Situation au 31/12/20
B16: BEHREN LES FORBACH | C16: 57163 | F16: 65 | G16: WEITBRUCH | I16: HAGUENAU | J16: BAS RHIN | K16: Rattaché | L16: Fermée | M16: Ok Fb remises commerciales
B17: BENFELD | C17: 111 | F17: 8814 | G17: VRIGNE AUX BOIS | I17: CHARLEVILLE MEZIERES | J17: MARNE ARDENNES | K17: Autonome | L17: Fermée | M17: Ok Fb remises commerciales
B18: BETHENY | C18: 51340 | F18: 54431 | G18: LUNEVILLE CHATEAU | I18: NANCY | J18: MEURTHE ET MOSELLE MEUSE | K18: Autonome | L18: Fermée | M18: Ok Fb remises commerciales
B19: BETSCHDORF | C19: 76 | F19: 93 | G19: MARMOUTIER | I19: HAGUENAU | J19: BAS RHIN | K19: Rattaché | L19: Fermée | M19: Ok Fb remises commerciales
B20: BISCHHEIM | C20: 28 | F20: 187 | G20: HUNINGUE | I20: MULHOUSE | J20: HAUT RHIN | K20: Rattaché | L20: Fermée | M20: Ok Fb remises commerciales
B21: BISCHWILLER | C21: 57 | F21: 88346 | G21: GRANGES AUMONTZEY | I21: SAINT DIE | J21: VOSGES | K21: Autonome | L21: Fermée | M21: Ok Fb remises commerciales
B22: BITCHE | C22: 57165 | F22: 57345 | G22: GROSBLIEDERSTROFF | I22: MOSELLE EST | J22: MOSELLE | K22: Autonome | L22: Fermée | M22: Ok Fb remises commerciales
B23: BLAINVILLE | C23: 54166 | F23: 110 | G23: SELESTAT OUEST | I23: SELESTAT | J23: BAS RHIN | K23: Autonome | L23: Fermée | M23: Ok Fb remises commerciales
B24: BLAMONT | C24: 54171 | F24: 57353 | G24: HOMBOURG HAUT | I24: MOSELLE EST | J24: MOSELLE | K24: Autonome | L24: Fermée | M24: Ok Fb remises commerciales
B25: BOULAY | C25: 57178 | F25: 59 | G25: HERRLISHEIM | I25: HAGUENAU | J25: BAS RHIN | K25: Rattaché | L25: Fermée | M25: Ok Fb remises commerciales
B26: BOURBONNE LES BAINS | C26: 10560 | F26: 134 | G26: COLMAR SAINT JOSEPH | I26: COLMAR | J26: HAUT RHIN | K26: Autonome | L26: Fermée | M26: Ok Fb remises commerciales
B27: BOUSSE | C27: 57180 | F27: 133 | G27: COLMAR VAUBAN | I27: COLMAR | J27: HAUT RHIN | K27: Autonome | L27: Fermée | M27: Ok Fb remises commerciales
B28: BOUXWILLER | C28: 82 | F28: 169 | G28: MULHOUSE ROOSEVELT | I28: MULHOUSE | J28: HAUT RHIN | K28: Autonome | L28: Fermée | M28: Ok Fb remises commerciales
B29: BOUZONVILLE | C29: 57182 | F29: 86 | G29: WINGEN SUR MODER | I29: HAGUENAU | J29: BAS RHIN | K29: Rattaché | L29: Fermée | M29: Ok Fb remises commerciales
B30: BRIENNE LE CHATEAU | C30: 10551 | F30: 167 | G30: LIEPVRE | I30: COLMAR | J30: HAUT RHIN | K30: Rattaché | L30: Fermée | M30: Ok Fb remises commerciales
B31: BRIEY | C31: 54184 | F31: 57634 | G31: THIONVILLE LA MILLIAIRE | I31: MOSELLE NORD | J31: MOSELLE | K31: Autonome | L31: Fermée | M31: Ok Fb remises commerciales
B32: BRUMATH | C32: 30 | F32: 154 | G32: LAPOUTROIE | I32: COLMAR | J32: HAUT RHIN | K32: Rattaché | L32: Fermée | M32: Ok Fb remises commerciales
B33: BRUNSTATT | C33: 186 | F33: 89 | G33: DIEMERINGEN | I33: HAGUENAU | J33: BAS RHIN | K33: Rattaché | L33: Fermée | M33: Ok Fb remises commerciales
B34: BRUYERES | C34: 88186 | F34: 78 | G34: LAUTERBOURG | I34: HAGUENAU | J34: BAS RHIN | K34: Rattaché | L34: Fermée | M34: Ok Fb remises commerciales
B35: CARIGNAN | C35: 8815 | F35: 13 | G35: ILLKIRCH NORD | I35: SELESTAT | J35: BAS RHIN | K35: Rattaché | L35: Fermée | M35: Ok Fb remises commerciales
B36: CATTENOM | C36: 57192 | F36: 14 | G36: OSTWALD | I36: SELESTAT | J36: BAS RHIN | K36: Rattaché | L36: Fermée | M36: Ok Fb remises commerciales
B37: CERNAY | C37: 195
B38: CHALIGNY NEUVES MAISONS | C38: 54506
B39: CHALINDREY | C39: 10558
B40: CHALONS ROOSEVELT | C40: 51110 | F40: 2021-05-17
B41: CHALONS VIVIERS | C41: 51101 | F41: Supression manuelle eds 171 Mulhouse Sauvage
B42: CHAMPIGNEULLES | C42: 54196 | F42: Ressorti dans la requête, pour une raison inconnu car tout à zéro.
B43: CHANTRAINE | C43: 88201
B44: CHARLEVILLE JEAN JAURES | C44: 8801
B45: CHARLEVILLE MEZIERES | C45: 8822 | F45: 2021-06-21
B46: CHARLEVILLE MOHON | C46: 8817 | F46: Supression manuelle eds 171 Mulhouse Sauvage
B47: CHARLEVILLE NEVERS | C47: 8802 | F47: Ressorti dans la requête, pour une raison inconnu car tout à zéro.
B48: CHARMES | C48: 88206
B49: CHATEAU SALINS | C49: 57210
B50: CHATENOIS | C50: 108 | F50: Agences supprimées en 202102
B51: CHAUMONT HOTEL DE VILLE | C51: 10566 | F51: EDS | G51: PDV | H51: Agence Multisite | I51: Territoire | J51: Région
B52: CHAUMONT REPUBLIQUE | C52: 10590 | F52: 50 | G52: STRASBOURG GARE | H52: STRASBOURG HALLES | I52: STRASBOURG | J52: BAS RHIN
B53: CLOUANGE | C53: 57224 | F53: 64 | G53: HAGUENAU MUSAU | H53: HAGUENAU HOUBLON | I53: HAGUENAU | J53: BAS RHIN
B54: COLMAR MARAICHERS | C54: 132 | F54: 10539 | G54: CHATEAUVILLAIN | H54: CHAUMONT HOTEL DE VILLE | I54: CHAUMONT | J54: AUBE HAUTE MARNE
B55: COLMAR REPUBLIQUE | C55: 130 | F55: 54466 | G55: NANCY PLATEAU DE HAYE | H55: NANCY PLATEAU DE HAYE | I55: PONT A MOUSSON | J55: MEURTHE ET MOSELLE MEUSE
B56: COLMAR SAINTE MARIE | C56: 135 | F56: 88216 | G56: CHATENOIS VOSGES | H56: CHATENOIS VOSGES | I56: EPINAL | J56: VOSGES
B57: COMMERCY | C57: 55231
B58: CORNIMONT LA BRESSE | C58: 88246
B59: CREUTZWALD | C59: 57250
B60: DAMERY | C60: 51369
B61: DANNEMARIE | C61: 193
B62: DARNEY | C62: 88256
B63: DIEULOUARD | C63: 54257
B64: DIEUZE | C64: 57258
B65: DOCELLES | C65: 88261
B66: DOMBASLE SUR MEURTHE | C66: 54266
B67: DORMANS | C67: 51365
B68: DRUSENHEIM | C68: 58
B69: ECKBOLSHEIM | C69: 40
B70: ELOYES | C70: 88281
B71: ENSISHEIM | C71: 162
B72: EPERNAY | C72: 51370
B73: EPINAL ARISTIDE BRIAND | C73: 88286
B74: EPINAL AVRINSART | C74: 88291
B75: EPINAL LEOPOLD BOURG | C75: 88288
B76: ERSTEIN | C76: 104
B77: ESPACE MESANGE | C77: 18
B78: ESSEY LES NANCY | C78: 54296
B79: ETAIN | C79: 55298
B80: EXPERTS DIRECT | C80: 5800
B81: FAGNIERES LECLERC | C81: 51103
B82: FAMECK | C82: 57303
B83: FAULQUEMONT | C83: 57305
B84: FEGERSHEIM | C84: 8
B85: FERRETTE | C85: 191
B86: FISMES | C86: 51314
B87: FLORANGE | C87: 57306
B88: FONTOY | C88: 57307
B89: FORBACH CENTRALE | C89: 57308
B90: FRAIZE | C90: 88316
B91: FROUARD | C91: 54321
B92: GERARDMER | C92: 88326
B93: GIVET | C93: 8839
B94: GOLBEY | C94: 88336
B95: GUEBWILLER | C95: 147
B96: GUENANGE | C96: 57347
B97: GUNDERSHOFFEN | C97: 70
B98: HAGONDANGE | C98: 57348
B99: HAGUENAU HOUBLON | C99: 60
B100: HAYANGE | C100: 57350
B101: HETTANGE GRANDE | C101: 57352
B102: HOCHFELDEN | C102: 92
B103: HOERDT | C103: 41
B104: HORBOURG WIHR | C104: 141
B105: ILLKIRCH CENTRE | C105: 7
B106: ILLZACH | C106: 184
B107: INGERSHEIM | C107: 139
B108: INGWILLER | C108: 85
B109: JARNY | C109: 54355
B110: JARVILLE LA MALGRANGE | C110: 54356
B111: JOEUF | C111: 54357
B112: JOINVILLE | C112: 51154
B113: KAYSERSBERG | C113: 152
B114: LA CHAPELLE ST LUC | C114: 10523
B115: LA WANTZENAU | C115: 33
B116: LANGRES | C116: 10541
B117: LAXOU ARISTIDE BRIAND | C117: 54381
B118: LAXOU SAPINIERE | C118: 54376
B119: LE THILLOT | C119: 88386
B120: LE VAL D AJOL | C120: 88396
B121: LIGNY EN BARROIS | C121: 55406
B122: LINGOLSHEIM | C122: 15
B123: LONGUYON | C123: 54412
B124: LONGWY BAS | C124: 54413
B125: LONGWY HAUT | C125: 54414
B126: LUDRES | C126: 54416
B127: LUNEVILLE CARNOT | C127: 54426
B128: MAIZIERES LES METZ | C128: 57432
B129: MARANGE SILVANGE | C129: 57433
B130: MARCKOLSHEIM | C130: 109
B131: MARLENHEIM | C131: 129
B132: MARLY | C132: 57434
B133: MASEVAUX | C133: 196
B134: MERLEBACH | C134: 57435
B135: METZ CATHEDRALE | C135: 57436
B136: METZ MOZART | C136: 57440
B137: METZ PLAPPEVILLE | C137: 57441
B138: METZ POMPIDOU | C138: 57439
B139: METZ REPUBLIQUE | C139: 57443
B140: METZ SAINT LIVIER | C140: 57445
B141: METZ SAINT LOUIS | C141: 57446
B142: METZ SAINT MAXIMIN | C142: 57447
B143: METZ SARRE | C143: 57437
B144: METZERVISSE | C144: 57449
B145: MIRECOURT | C145: 88451
B146: MOLSHEIM | C146: 116
B147: MON AGENCE | C147: 17
B148: MON BANQUIER EN LIGNE | C148: 57880
B149: MONTIGNY LES METZ | C149: 57453
B150: MONTMEDY | C150: 55456
B151: MONTMIRAIL | C151: 51330
B152: MORHANGE | C152: 57458
B153: MOULINS LES METZ | C153: 57459
B154: MOURMELON LE GRAND | C154: 51115
B155: MOUZON | C155: 8819
B156: MOYENMOUTIER | C156: 88461
B157: MULHOUSE DORNACH | C157: 174
B158: MULHOUSE REUNION | C158: 170
B159: MUNDOLSHEIM | C159: 37
B160: MUNSTER | C160: 143
B161: MUNTZENHEIM | C161: 159
B162: MUTZIG | C162: 126
B163: NANCY ARTEM | C163: 54476
B164: NANCY JEAN JAURES | C164: 54471
B165: NANCY PLACE DOMBASLE | C165: 54481
B166: NANCY POINT CENTRAL | C166: 54486
B167: NANCY SAINT SEBASTIEN | C167: 54491
B168: NANCY TROIS MAISONS | C168: 54496
B169: NEUF BRISACH | C169: 157
B170: NEUFCHATEAU | C170: 88501
B171: NEUNKIRCH | C171: 57503
B172: NIEDERBRONN LES BAINS | C172: 66
B173: NILVANGE | C173: 57508
B174: NOGENT | C174: 10582
B175: NOGENT SUR SEINE | C175: 10570
B176: NOMEXY | C176: 88511
B177: OBERHAUSBERGEN | C177: 38
B178: OBERNAI | C178: 119
B179: ORBEY | C179: 148
B180: PAGNY SUR MOSELLE | C180: 54516
B181: PFAFFENHOFFEN | C181: 67
B182: PFASTATT | C182: 188
B183: PHALSBOURG | C183: 57523
B184: PIENNES | C184: 54525
B185: PIERRY LECLERC | C185: 51361
B186: POMPEY | C186: 54531
B187: PONT A MOUSSON BREUIL | C187: 54533
B188: PONT A MOUSSON CENTRALE | C188: 54535
B189: PULVERSHEIM | C189: 163
B190: PUTTELANGE AUX LACS | C190: 57543
B191: RAMBERVILLERS | C191: 88551
B192: RAON L ETAPE | C192: 88556
B193: REICHSHOFFEN | C193: 68
B194: REICHSTETT | C194: 39
B195: REIMS CENTRE VILLE | C195: 51350
B196: REIMS CHATILLONS | C196: 51310
B197: REIMS EUROPE | C197: 51309
B198: REIMS HIPPODROME | C198: 51305
B199: REIMS HOTEL DE VILLE | C199: 51301
B200: REIMS JEAN JAURES | C200: 51341
B201: REIMS SAINT MARCEAUX | C201: 51306
B202: REIMS SAINT REMI | C202: 51349
... 112 more rows

Sheet Remises libres (hidden)
A2: ='[1]Remises libres'!A2 -> Code Structure Domiciliation | B2: ='[1]Remises libres'!B2 -> DOM Desg Cour Eds | C2: ='[1]Remises libres'!C2 -> DOM Idnt Extr Eds Niv5 | D2: ='[1]Remises libres'!D2 -> DOM Desg Cour Eds Niv5 | E2: ='[1]Remises libres'!E2 -> DOM Idnt Extr Eds Niv6 | F2: ='[1]Remises libres'!F2 -> DOM Desg Cour Eds Niv6 | G2: ='[1]Remises libres'!G2 -> DOM Idnt Extr Eds Niv7 | H2: ='[1]Remises libres'!H2 -> DOM Desg Cour Eds Niv7 | I2: ='[1]Remises libres'!I2 -> Mt Remises
A3: ='[1]Remises libres'!A3 -> 6 | B3: ='[1]Remises libres'!B3 -> STRASBOURG NEUDORF | C3: ='[1]Remises libres'!C3 -> 4006 | D3: ='[1]Remises libres'!D3 -> STRASBOURG NEUDORF | E3: ='[1]Remises libres'!E3 -> 5006 | F3: ='[1]Remises libres'!F3 -> STRASBOURG | G3: ='[1]Remises libres'!G3 -> 262 | H3: ='[1]Remises libres'!H3 -> BAS RHIN | I3: ='[1]Remises libres'!I3 -> 2342.17
A4: ='[1]Remises libres'!A4 -> 7 | B4: ='[1]Remises libres'!B4 -> ILLKIRCH CENTRE | C4: ='[1]Remises libres'!C4 -> 4007 | D4: ='[1]Remises libres'!D4 -> ILLKIRCH CENTRE | E4: ='[1]Remises libres'!E4 -> 5101 | F4: ='[1]Remises libres'!F4 -> SELESTAT | G4: ='[1]Remises libres'!G4 -> 262 | H4: ='[1]Remises libres'!H4 -> BAS RHIN | I4: ='[1]Remises libres'!I4 -> 1366.31
A5: ='[1]Remises libres'!A5 -> 8 | B5: ='[1]Remises libres'!B5 -> FEGERSHEIM | C5: ='[1]Remises libres'!C5 -> 4008 | D5: ='[1]Remises libres'!D5 -> FEGERSHEIM | E5: ='[1]Remises libres'!E5 -> 5101 | F5: ='[1]Remises libres'!F5 -> SELESTAT | G5: ='[1]Remises libres'!G5 -> 262 | H5: ='[1]Remises libres'!H5 -> BAS RHIN | I5: ='[1]Remises libres'!I5 -> 810.23
A6: ='[1]Remises libres'!A6 -> 10 | B6: ='[1]Remises libres'!B6 -> STRASBOURG MEINAU | C6: ='[1]Remises libres'!C6 -> 4010 | D6: ='[1]Remises libres'!D6 -> STRASBOURG MEINAU | E6: ='[1]Remises libres'!E6 -> 5006 | F6: ='[1]Remises libres'!F6 -> STRASBOURG | G6: ='[1]Remises libres'!G6 -> 262 | H6: ='[1]Remises libres'!H6 -> BAS RHIN | I6: ='[1]Remises libres'!I6 -> 1439.32
A7: ='[1]Remises libres'!A7 -> 12 | B7: ='[1]Remises libres'!B7 -> STRASBOURG STOCKFELD | C7: ='[1]Remises libres'!C7 -> 4006 | D7: ='[1]Remises libres'!D7 -> STRASBOURG NEUDORF | E7: ='[1]Remises libres'!E7 -> 5006 | F7: ='[1]Remises libres'!F7 -> STRASBOURG | G7: ='[1]Remises libres'!G7 -> 262 | H7: ='[1]Remises libres'!H7 -> BAS RHIN | I7: ='[1]Remises libres'!I7 -> 730.34
A8: ='[1]Remises libres'!A8 -> 14 | B8: ='[1]Remises libres'!B8 -> OSTWALD | C8: ='[1]Remises libres'!C8 -> 4015 | D8: ='[1]Remises libres'!D8 -> LINGOLSHEIM | E8: ='[1]Remises libres'!E8 -> 5101 | F8: ='[1]Remises libres'!F8 -> SELESTAT | G8: ='[1]Remises libres'!G8 -> 262 | H8: ='[1]Remises libres'!H8 -> BAS RHIN | I8: ='[1]Remises libres'!I8 -> 0
A9: ='[1]Remises libres'!A9 -> 15 | B9: ='[1]Remises libres'!B9 -> LINGOLSHEIM | C9: ='[1]Remises libres'!C9 -> 4015 | D9: ='[1]Remises libres'!D9 -> LINGOLSHEIM | E9: ='[1]Remises libres'!E9 -> 5101 | F9: ='[1]Remises libres'!F9 -> SELESTAT | G9: ='[1]Remises libres'!G9 -> 262 | H9: ='[1]Remises libres'!H9 -> BAS RHIN | I9: ='[1]Remises libres'!I9 -> 223.27
A10: ='[1]Remises libres'!A10 -> 17 | B10: ='[1]Remises libres'!B10 -> MON AGENCE | C10: ='[1]Remises libres'!C10 -> 4017 | D10: ='[1]Remises libres'!D10 -> MON AGENCE | E10: ='[1]Remises libres'!E10 -> 5017 | F10: ='[1]Remises libres'!F10 -> MON AGENCE | G10: ='[1]Remises libres'!G10 -> 269 | H10: ='[1]Remises libres'!H10 -> BANQUE DIGITALE | I10: ='[1]Remises libres'!I10 -> 1880.22
A11: ='[1]Remises libres'!A11 -> 18 | B11: ='[1]Remises libres'!B11 -> ESPACE MESANGE | C11: ='[1]Remises libres'!C11 -> 4043 | D11: ='[1]Remises libres'!D11 -> STRASBOURG HALLES | E11: ='[1]Remises libres'!E11 -> 5006 | F11: ='[1]Remises libres'!F11 -> STRASBOURG | G11: ='[1]Remises libres'!G11 -> 262 | H11: ='[1]Remises libres'!H11 -> BAS RHIN | I11: ='[1]Remises libres'!I11 -> 2780.57
A12: ='[1]Remises libres'!A12 -> 19 | B12: ='[1]Remises libres'!B12 -> STRASBOURG ANVERS | C12: ='[1]Remises libres'!C12 -> 4019 | D12: ='[1]Remises libres'!D12 -> STRASBOURG ANVERS | E12: ='[1]Remises libres'!E12 -> 5006 | F12: ='[1]Remises libres'!F12 -> STRASBOURG | G12: ='[1]Remises libres'!G12 -> 262 | H12: ='[1]Remises libres'!H12 -> BAS RHIN | I12: ='[1]Remises libres'!I12 -> 4678.15
A13: ='[1]Remises libres'!A13 -> 20 | B13: ='[1]Remises libres'!B13 -> STRASBOURG ROBERTSAU | C13: ='[1]Remises libres'!C13 -> 4020 | D13: ='[1]Remises libres'!D13 -> STRASBOURG ROBERTSAU | E13: ='[1]Remises libres'!E13 -> 5006 | F13: ='[1]Remises libres'!F13 -> STRASBOURG | G13: ='[1]Remises libres'!G13 -> 262 | H13: ='[1]Remises libres'!H13 -> BAS RHIN | I13: ='[1]Remises libres'!I13 -> 3347.57
A14: ='[1]Remises libres'!A14 -> 23 | B14: ='[1]Remises libres'!B14 -> STRASBOURG VOSGES | C14: ='[1]Remises libres'!C14 -> 4023 | D14: ='[1]Remises libres'!D14 -> STRASBOURG VOSGES | E14: ='[1]Remises libres'!E14 -> 5006 | F14: ='[1]Remises libres'!F14 -> STRASBOURG | G14: ='[1]Remises libres'!G14 -> 262 | H14: ='[1]Remises libres'!H14 -> BAS RHIN | I14: ='[1]Remises libres'!I14 -> 601.09
A15: ='[1]Remises libres'!A15 -> 24 | B15: ='[1]Remises libres'!B15 -> STRASBOURG AUSTERLITZ | C15: ='[1]Remises libres'!C15 -> 4024 | D15: ='[1]Remises libres'!D15 -> STRASBOURG AUSTERLITZ | E15: ='[1]Remises libres'!E15 -> 5006 | F15: ='[1]Remises libres'!F15 -> STRASBOURG | G15: ='[1]Remises libres'!G15 -> 262 | H15: ='[1]Remises libres'!H15 -> BAS RHIN | I15: ='[1]Remises libres'!I15 -> 2103.89
A16: ='[1]Remises libres'!A16 -> 25 | B16: ='[1]Remises libres'!B16 -> STRASBOURG ESPLANADE | C16: ='[1]Remises libres'!C16 -> 4026 | D16: ='[1]Remises libres'!D16 -> STRASBOURG DANUBE | E16: ='[1]Remises libres'!E16 -> 5006 | F16: ='[1]Remises libres'!F16 -> STRASBOURG | G16: ='[1]Remises libres'!G16 -> 262 | H16: ='[1]Remises libres'!H16 -> BAS RHIN | I16: ='[1]Remises libres'!I16 -> 2004.74
A17: ='[1]Remises libres'!A17 -> 26 | B17: ='[1]Remises libres'!B17 -> STRASBOURG DANUBE | C17: ='[1]Remises libres'!C17 -> 4026 | D17: ='[1]Remises libres'!D17 -> STRASBOURG DANUBE | E17: ='[1]Remises libres'!E17 -> 5006 | F17: ='[1]Remises libres'!F17 -> STRASBOURG | G17: ='[1]Remises libres'!G17 -> 262 | H17: ='[1]Remises libres'!H17 -> BAS RHIN | I17: ='[1]Remises libres'!I17 -> 2277.89
A18: ='[1]Remises libres'!A18 -> 27 | B18: ='[1]Remises libres'!B18 -> SCHILTIGHEIM CENTRE | C18: ='[1]Remises libres'!C18 -> 4027 | D18: ='[1]Remises libres'!D18 -> SCHILTIGHEIM CENTRE | E18: ='[1]Remises libres'!E18 -> 5006 | F18: ='[1]Remises libres'!F18 -> STRASBOURG | G18: ='[1]Remises libres'!G18 -> 262 | H18: ='[1]Remises libres'!H18 -> BAS RHIN | I18: ='[1]Remises libres'!I18 -> 1616.66
A19: ='[1]Remises libres'!A19 -> 28 | B19: ='[1]Remises libres'!B19 -> BISCHHEIM | C19: ='[1]Remises libres'!C19 -> 4028 | D19: ='[1]Remises libres'!D19 -> BISCHHEIM | E19: ='[1]Remises libres'!E19 -> 5006 | F19: ='[1]Remises libres'!F19 -> STRASBOURG | G19: ='[1]Remises libres'!G19 -> 262 | H19: ='[1]Remises libres'!H19 -> BAS RHIN | I19: ='[1]Remises libres'!I19 -> 1536.18
A20: ='[1]Remises libres'!A20 -> 29 | B20: ='[1]Remises libres'!B20 -> SCHILTIGHEIM KLEBER | C20: ='[1]Remises libres'!C20 -> 4029 | D20: ='[1]Remises libres'!D20 -> SCHILTIGHEIM KLEBER | E20: ='[1]Remises libres'!E20 -> 5006 | F20: ='[1]Remises libres'!F20 -> STRASBOURG | G20: ='[1]Remises libres'!G20 -> 262 | H20: ='[1]Remises libres'!H20 -> BAS RHIN | I20: ='[1]Remises libres'!I20 -> 2642.62
A21: ='[1]Remises libres'!A21 -> 30 | B21: ='[1]Remises libres'!B21 -> BRUMATH | C21: ='[1]Remises libres'!C21 -> 4030 | D21: ='[1]Remises libres'!D21 -> BRUMATH | E21: ='[1]Remises libres'!E21 -> 5060 | F21: ='[1]Remises libres'!F21 -> HAGUENAU | G21: ='[1]Remises libres'!G21 -> 262 | H21: ='[1]Remises libres'!H21 -> BAS RHIN | I21: ='[1]Remises libres'!I21 -> 2441.05
A22: ='[1]Remises libres'!A22 -> 31 | B22: ='[1]Remises libres'!B22 -> TRUCHTERSHEIM | C22: ='[1]Remises libres'!C22 -> 4031 | D22: ='[1]Remises libres'!D22 -> TRUCHTERSHEIM | E22: ='[1]Remises libres'!E22 -> 5060 | F22: ='[1]Remises libres'!F22 -> HAGUENAU | G22: ='[1]Remises libres'!G22 -> 262 | H22: ='[1]Remises libres'!H22 -> BAS RHIN | I22: ='[1]Remises libres'!I22 -> 815
A23: ='[1]Remises libres'!A23 -> 33 | B23: ='[1]Remises libres'!B23 -> LA WANTZENAU | C23: ='[1]Remises libres'!C23 -> 4020 | D23: ='[1]Remises libres'!D23 -> STRASBOURG ROBERTSAU | E23: ='[1]Remises libres'!E23 -> 5006 | F23: ='[1]Remises libres'!F23 -> STRASBOURG | G23: ='[1]Remises libres'!G23 -> 262 | H23: ='[1]Remises libres'!H23 -> BAS RHIN | I23: ='[1]Remises libres'!I23 -> 936.17
A24: ='[1]Remises libres'!A24 -> 34 | B24: ='[1]Remises libres'!B24 -> VENDENHEIM | C24: ='[1]Remises libres'!C24 -> 4037 | D24: ='[1]Remises libres'!D24 -> MUNDOLSHEIM | E24: ='[1]Remises libres'!E24 -> 5006 | F24: ='[1]Remises libres'!F24 -> STRASBOURG | G24: ='[1]Remises libres'!G24 -> 262 | H24: ='[1]Remises libres'!H24 -> BAS RHIN | I24: ='[1]Remises libres'!I24 -> 2129.14
A25: ='[1]Remises libres'!A25 -> 37 | B25: ='[1]Remises libres'!B25 -> MUNDOLSHEIM | C25: ='[1]Remises libres'!C25 -> 4037 | D25: ='[1]Remises libres'!D25 -> MUNDOLSHEIM | E25: ='[1]Remises libres'!E25 -> 5006 | F25: ='[1]Remises libres'!F25 -> STRASBOURG | G25: ='[1]Remises libres'!G25 -> 262 | H25: ='[1]Remises libres'!H25 -> BAS RHIN | I25: ='[1]Remises libres'!I25 -> 910.37
A26: ='[1]Remises libres'!A26 -> 38 | B26: ='[1]Remises libres'!B26 -> OBERHAUSBERGEN | C26: ='[1]Remises libres'!C26 -> 4038 | D26: ='[1]Remises libres'!D26 -> OBERHAUSBERGEN | E26: ='[1]Remises libres'!E26 -> 5006 | F26: ='[1]Remises libres'!F26 -> STRASBOURG | G26: ='[1]Remises libres'!G26 -> 262 | H26: ='[1]Remises libres'!H26 -> BAS RHIN | I26: ='[1]Remises libres'!I26 -> 1031
A27: ='[1]Remises libres'!A27 -> 39 | B27: ='[1]Remises libres'!B27 -> REICHSTETT | C27: ='[1]Remises libres'!C27 -> 4039 | D27: ='[1]Remises libres'!D27 -> REICHSTETT | E27: ='[1]Remises libres'!E27 -> 5006 | F27: ='[1]Remises libres'!F27 -> STRASBOURG | G27: ='[1]Remises libres'!G27 -> 262 | H27: ='[1]Remises libres'!H27 -> BAS RHIN | I27: ='[1]Remises libres'!I27 -> 638.27
A28: ='[1]Remises libres'!A28 -> 40 | B28: ='[1]Remises libres'!B28 -> ECKBOLSHEIM | C28: ='[1]Remises libres'!C28 -> 4038 | D28: ='[1]Remises libres'!D28 -> OBERHAUSBERGEN | E28: ='[1]Remises libres'!E28 -> 5006 | F28: ='[1]Remises libres'!F28 -> STRASBOURG | G28: ='[1]Remises libres'!G28 -> 262 | H28: ='[1]Remises libres'!H28 -> BAS RHIN | I28: ='[1]Remises libres'!I28 -> 584.87
A29: ='[1]Remises libres'!A29 -> 41 | B29: ='[1]Remises libres'!B29 -> HOERDT | C29: ='[1]Remises libres'!C29 -> 4041 | D29: ='[1]Remises libres'!D29 -> HOERDT | E29: ='[1]Remises libres'!E29 -> 5060 | F29: ='[1]Remises libres'!F29 -> HAGUENAU | G29: ='[1]Remises libres'!G29 -> 262 | H29: ='[1]Remises libres'!H29 -> BAS RHIN | I29: ='[1]Remises libres'!I29 -> 1401.68
A30: ='[1]Remises libres'!A30 -> 43 | B30: ='[1]Remises libres'!B30 -> STRASBOURG HALLES | C30: ='[1]Remises libres'!C30 -> 4043 | D30: ='[1]Remises libres'!D30 -> STRASBOURG HALLES | E30: ='[1]Remises libres'!E30 -> 5006 | F30: ='[1]Remises libres'!F30 -> STRASBOURG | G30: ='[1]Remises libres'!G30 -> 262 | H30: ='[1]Remises libres'!H30 -> BAS RHIN | I30: ='[1]Remises libres'!I30 -> 6090.23
A31: ='[1]Remises libres'!A31 -> 45 | B31: ='[1]Remises libres'!B31 -> STRASBOURG FRANCS BOURGEOIS | C31: ='[1]Remises libres'!C31 -> 4045 | D31: ='[1]Remises libres'!D31 -> STRASBOURG FRANCS BOURGEOIS | E31: ='[1]Remises libres'!E31 -> 5006 | F31: ='[1]Remises libres'!F31 -> STRASBOURG | G31: ='[1]Remises libres'!G31 -> 262 | H31: ='[1]Remises libres'!H31 -> BAS RHIN | I31: ='[1]Remises libres'!I31 -> 3526.03
A32: ='[1]Remises libres'!A32 -> 47 | B32: ='[1]Remises libres'!B32 -> STRASBOURG CRONENBOURG | C32: ='[1]Remises libres'!C32 -> 4047 | D32: ='[1]Remises libres'!D32 -> STRASBOURG CRONENBOURG | E32: ='[1]Remises libres'!E32 -> 5006 | F32: ='[1]Remises libres'!F32 -> STRASBOURG | G32: ='[1]Remises libres'!G32 -> 262 | H32: ='[1]Remises libres'!H32 -> BAS RHIN | I32: ='[1]Remises libres'!I32 -> 3293.82
A33: ='[1]Remises libres'!A33 -> 48 | B33: ='[1]Remises libres'!B33 -> STRASBOURG KOENIGSHOFFEN | C33: ='[1]Remises libres'!C33 -> 4048 | D33: ='[1]Remises libres'!D33 -> STRASBOURG KOENIGSHOFFEN | E33: ='[1]Remises libres'!E33 -> 5006 | F33: ='[1]Remises libres'!F33 -> STRASBOURG | G33: ='[1]Remises libres'!G33 -> 262 | H33: ='[1]Remises libres'!H33 -> BAS RHIN | I33: ='[1]Remises libres'!I33 -> 2304.9
A34: ='[1]Remises libres'!A34 -> 50 | B34: ='[1]Remises libres'!B34 -> STRASBOURG GARE | C34: ='[1]Remises libres'!C34 -> 4043 | D34: ='[1]Remises libres'!D34 -> STRASBOURG HALLES | E34: ='[1]Remises libres'!E34 -> 5006 | F34: ='[1]Remises libres'!F34 -> STRASBOURG | G34: ='[1]Remises libres'!G34 -> 262 | H34: ='[1]Remises libres'!H34 -> BAS RHIN | I34: ='[1]Remises libres'!I34 -> 390
A35: ='[1]Remises libres'!A35 -> 54 | B35: ='[1]Remises libres'!B35 -> STRASBOURG MONTAGNE VERTE | C35: ='[1]Remises libres'!C35 -> 4054 | D35: ='[1]Remises libres'!D35 -> STRASBOURG MONTAGNE VERTE | E35: ='[1]Remises libres'!E35 -> 5006 | F35: ='[1]Remises libres'!F35 -> STRASBOURG | G35: ='[1]Remises libres'!G35 -> 262 | H35: ='[1]Remises libres'!H35 -> BAS RHIN | I35: ='[1]Remises libres'!I35 -> 2056.06
A36: ='[1]Remises libres'!A36 -> 57 | B36: ='[1]Remises libres'!B36 -> BISCHWILLER | C36: ='[1]Remises libres'!C36 -> 4057 | D36: ='[1]Remises libres'!D36 -> BISCHWILLER | E36: ='[1]Remises libres'!E36 -> 5060 | F36: ='[1]Remises libres'!F36 -> HAGUENAU | G36: ='[1]Remises libres'!G36 -> 262 | H36: ='[1]Remises libres'!H36 -> BAS RHIN | I36: ='[1]Remises libres'!I36 -> 1913.58
A37: ='[1]Remises libres'!A37 -> 58 | B37: ='[1]Remises libres'!B37 -> DRUSENHEIM | C37: ='[1]Remises libres'!C37 -> 4057 | D37: ='[1]Remises libres'!D37 -> BISCHWILLER | E37: ='[1]Remises libres'!E37 -> 5060 | F37: ='[1]Remises libres'!F37 -> HAGUENAU | G37: ='[1]Remises libres'!G37 -> 262 | H37: ='[1]Remises libres'!H37 -> BAS RHIN | I37: ='[1]Remises libres'!I37 -> 596.24
A38: ='[1]Remises libres'!A38 -> 60 | B38: ='[1]Remises libres'!B38 -> HAGUENAU HOUBLON | C38: ='[1]Remises libres'!C38 -> 4060 | D38: ='[1]Remises libres'!D38 -> HAGUENAU HOUBLON | E38: ='[1]Remises libres'!E38 -> 5060 | F38: ='[1]Remises libres'!F38 -> HAGUENAU | G38: ='[1]Remises libres'!G38 -> 262 | H38: ='[1]Remises libres'!H38 -> BAS RHIN | I38: ='[1]Remises libres'!I38 -> 3295.08
A39: ='[1]Remises libres'!A39 -> 64 | B39: ='[1]Remises libres'!B39 -> HAGUENAU MUSAU | C39: ='[1]Remises libres'!C39 -> 4060 | D39: ='[1]Remises libres'!D39 -> HAGUENAU HOUBLON | E39: ='[1]Remises libres'!E39 -> 5060 | F39: ='[1]Remises libres'!F39 -> HAGUENAU | G39: ='[1]Remises libres'!G39 -> 262 | H39: ='[1]Remises libres'!H39 -> BAS RHIN | I39: ='[1]Remises libres'!I39 -> 499.24
A40: ='[1]Remises libres'!A40 -> 66 | B40: ='[1]Remises libres'!B40 -> NIEDERBRONN LES BAINS | C40: ='[1]Remises libres'!C40 -> 4066 | D40: ='[1]Remises libres'!D40 -> NIEDERBRONN LES BAINS | E40: ='[1]Remises libres'!E40 -> 5060 | F40: ='[1]Remises libres'!F40 -> HAGUENAU | G40: ='[1]Remises libres'!G40 -> 262 | H40: ='[1]Remises libres'!H40 -> BAS RHIN | I40: ='[1]Remises libres'!I40 -> 500.63
A41: ='[1]Remises libres'!A41 -> 67 | B41: ='[1]Remises libres'!B41 -> PFAFFENHOFFEN | C41: ='[1]Remises libres'!C41 -> 4067 | D41: ='[1]Remises libres'!D41 -> PFAFFENHOFFEN | E41: ='[1]Remises libres'!E41 -> 5060 | F41: ='[1]Remises libres'!F41 -> HAGUENAU | G41: ='[1]Remises libres'!G41 -> 262 | H41: ='[1]Remises libres'!H41 -> BAS RHIN | I41: ='[1]Remises libres'!I41 -> 1908.9
A42: ='[1]Remises libres'!A42 -> 68 | B42: ='[1]Remises libres'!B42 -> REICHSHOFFEN | C42: ='[1]Remises libres'!C42 -> 4066 | D42: ='[1]Remises libres'!D42 -> NIEDERBRONN LES BAINS | E42: ='[1]Remises libres'!E42 -> 5060 | F42: ='[1]Remises libres'!F42 -> HAGUENAU | G42: ='[1]Remises libres'!G42 -> 262 | H42: ='[1]Remises libres'!H42 -> BAS RHIN | I42: ='[1]Remises libres'!I42 -> 523.15
A43: ='[1]Remises libres'!A43 -> 70 | B43: ='[1]Remises libres'!B43 -> GUNDERSHOFFEN | C43: ='[1]Remises libres'!C43 -> 4066 | D43: ='[1]Remises libres'!D43 -> NIEDERBRONN LES BAINS | E43: ='[1]Remises libres'!E43 -> 5060 | F43: ='[1]Remises libres'!F43 -> HAGUENAU | G43: ='[1]Remises libres'!G43 -> 262 | H43: ='[1]Remises libres'!H43 -> BAS RHIN | I43: ='[1]Remises libres'!I43 -> 341.5
A44: ='[1]Remises libres'!A44 -> 71 | B44: ='[1]Remises libres'!B44 -> WISSEMBOURG | C44: ='[1]Remises libres'!C44 -> 4071 | D44: ='[1]Remises libres'!D44 -> WISSEMBOURG | E44: ='[1]Remises libres'!E44 -> 5060 | F44: ='[1]Remises libres'!F44 -> HAGUENAU | G44: ='[1]Remises libres'!G44 -> 262 | H44: ='[1]Remises libres'!H44 -> BAS RHIN | I44: ='[1]Remises libres'!I44 -> 2170.65
A45: ='[1]Remises libres'!A45 -> 73 | B45: ='[1]Remises libres'!B45 -> SCHWEIGHOUSE SUR MODER | C45: ='[1]Remises libres'!C45 -> 4060 | D45: ='[1]Remises libres'!D45 -> HAGUENAU HOUBLON | E45: ='[1]Remises libres'!E45 -> 5060 | F45: ='[1]Remises libres'!F45 -> HAGUENAU | G45: ='[1]Remises libres'!G45 -> 262 | H45: ='[1]Remises libres'!H45 -> BAS RHIN | I45: ='[1]Remises libres'!I45 -> 1268.11
A46: ='[1]Remises libres'!A46 -> 74 | B46: ='[1]Remises libres'!B46 -> SOUFFLENHEIM | C46: ='[1]Remises libres'!C46 -> 4057 | D46: ='[1]Remises libres'!D46 -> BISCHWILLER | E46: ='[1]Remises libres'!E46 -> 5060 | F46: ='[1]Remises libres'!F46 -> HAGUENAU | G46: ='[1]Remises libres'!G46 -> 262 | H46: ='[1]Remises libres'!H46 -> BAS RHIN | I46: ='[1]Remises libres'!I46 -> 224.24
A47: ='[1]Remises libres'!A47 -> 76 | B47: ='[1]Remises libres'!B47 -> BETSCHDORF | C47: ='[1]Remises libres'!C47 -> 4071 | D47: ='[1]Remises libres'!D47 -> WISSEMBOURG | E47: ='[1]Remises libres'!E47 -> 5060 | F47: ='[1]Remises libres'!F47 -> HAGUENAU | G47: ='[1]Remises libres'!G47 -> 262 | H47: ='[1]Remises libres'!H47 -> BAS RHIN | I47: ='[1]Remises libres'!I47 -> 222.26
A48: ='[1]Remises libres'!A48 -> 77 | B48: ='[1]Remises libres'!B48 -> SELTZ | C48: ='[1]Remises libres'!C48 -> 4071 | D48: ='[1]Remises libres'!D48 -> WISSEMBOURG | E48: ='[1]Remises libres'!E48 -> 5060 | F48: ='[1]Remises libres'!F48 -> HAGUENAU | G48: ='[1]Remises libres'!G48 -> 262 | H48: ='[1]Remises libres'!H48 -> BAS RHIN | I48: ='[1]Remises libres'!I48 -> 1722.4
A49: ='[1]Remises libres'!A49 -> 79 | B49: ='[1]Remises libres'!B49 -> SOULTZ SOUS FORETS | C49: ='[1]Remises libres'!C49 -> 4079 | D49: ='[1]Remises libres'!D49 -> SOULTZ SOUS FORETS | E49: ='[1]Remises libres'!E49 -> 5060 | F49: ='[1]Remises libres'!F49 -> HAGUENAU | G49: ='[1]Remises libres'!G49 -> 262 | H49: ='[1]Remises libres'!H49 -> BAS RHIN | I49: ='[1]Remises libres'!I49 -> 1197.68
A50: ='[1]Remises libres'!A50 -> 80 | B50: ='[1]Remises libres'!B50 -> WOERTH | C50: ='[1]Remises libres'!C50 -> 4066 | D50: ='[1]Remises libres'!D50 -> NIEDERBRONN LES BAINS | E50: ='[1]Remises libres'!E50 -> 5060 | F50: ='[1]Remises libres'!F50 -> HAGUENAU | G50: ='[1]Remises libres'!G50 -> 262 | H50: ='[1]Remises libres'!H50 -> BAS RHIN | I50: ='[1]Remises libres'!I50 -> 491.22
A51: ='[1]Remises libres'!A51 -> 82 | B51: ='[1]Remises libres'!B51 -> BOUXWILLER | C51: ='[1]Remises libres'!C51 -> 4082 | D51: ='[1]Remises libres'!D51 -> BOUXWILLER | E51: ='[1]Remises libres'!E51 -> 5060 | F51: ='[1]Remises libres'!F51 -> HAGUENAU | G51: ='[1]Remises libres'!G51 -> 262 | H51: ='[1]Remises libres'!H51 -> BAS RHIN | I51: ='[1]Remises libres'!I51 -> 2609.22
A52: ='[1]Remises libres'!A52 -> 85 | B52: ='[1]Remises libres'!B52 -> INGWILLER | C52: ='[1]Remises libres'!C52 -> 4085 | D52: ='[1]Remises libres'!D52 -> INGWILLER | E52: ='[1]Remises libres'!E52 -> 5060 | F52: ='[1]Remises libres'!F52 -> HAGUENAU | G52: ='[1]Remises libres'!G52 -> 262 | H52: ='[1]Remises libres'!H52 -> BAS RHIN | I52: ='[1]Remises libres'!I52 -> 2443.94
A53: ='[1]Remises libres'!A53 -> 86 | B53: ='[1]Remises libres'!B53 -> WINGEN SUR MODER | C53: ='[1]Remises libres'!C53 -> 4085 | D53: ='[1]Remises libres'!D53 -> INGWILLER | E53: ='[1]Remises libres'!E53 -> 5060 | F53: ='[1]Remises libres'!F53 -> HAGUENAU | G53: ='[1]Remises libres'!G53 -> 262 | H53: ='[1]Remises libres'!H53 -> BAS RHIN | I53: ='[1]Remises libres'!I53 -> 0
A54: ='[1]Remises libres'!A54 -> 87 | B54: ='[1]Remises libres'!B54 -> SAVERNE | C54: ='[1]Remises libres'!C54 -> 4087 | D54: ='[1]Remises libres'!D54 -> SAVERNE | E54: ='[1]Remises libres'!E54 -> 5060 | F54: ='[1]Remises libres'!F54 -> HAGUENAU | G54: ='[1]Remises libres'!G54 -> 262 | H54: ='[1]Remises libres'!H54 -> BAS RHIN | I54: ='[1]Remises libres'!I54 -> 10998.71
A55: ='[1]Remises libres'!A55 -> 92 | B55: ='[1]Remises libres'!B55 -> HOCHFELDEN | C55: ='[1]Remises libres'!C55 -> 4092 | D55: ='[1]Remises libres'!D55 -> HOCHFELDEN | E55: ='[1]Remises libres'!E55 -> 5060 | F55: ='[1]Remises libres'!F55 -> HAGUENAU | G55: ='[1]Remises libres'!G55 -> 262 | H55: ='[1]Remises libres'!H55 -> BAS RHIN | I55: ='[1]Remises libres'!I55 -> 1304.99
A56: ='[1]Remises libres'!A56 -> 93 | B56: ='[1]Remises libres'!B56 -> MARMOUTIER | C56: ='[1]Remises libres'!C56 -> 4087 | D56: ='[1]Remises libres'!D56 -> SAVERNE | E56: ='[1]Remises libres'!E56 -> 5060 | F56: ='[1]Remises libres'!F56 -> HAGUENAU | G56: ='[1]Remises libres'!G56 -> 262 | H56: ='[1]Remises libres'!H56 -> BAS RHIN | I56: ='[1]Remises libres'!I56 -> 0
A57: ='[1]Remises libres'!A57 -> 95 | B57: ='[1]Remises libres'!B57 -> SARRE UNION | C57: ='[1]Remises libres'!C57 -> 4095 | D57: ='[1]Remises libres'!D57 -> SARRE UNION | E57: ='[1]Remises libres'!E57 -> 5060 | F57: ='[1]Remises libres'!F57 -> HAGUENAU | G57: ='[1]Remises libres'!G57 -> 262 | H57: ='[1]Remises libres'!H57 -> BAS RHIN | I57: ='[1]Remises libres'!I57 -> 698.63
A58: ='[1]Remises libres'!A58 -> 101 | B58: ='[1]Remises libres'!B58 -> SELESTAT CENTRE | C58: ='[1]Remises libres'!C58 -> 4101 | D58: ='[1]Remises libres'!D58 -> SELESTAT CENTRE | E58: ='[1]Remises libres'!E58 -> 5101 | F58: ='[1]Remises libres'!F58 -> SELESTAT | G58: ='[1]Remises libres'!G58 -> 262 | H58: ='[1]Remises libres'!H58 -> BAS RHIN | I58: ='[1]Remises libres'!I58 -> 1332.04
A59: ='[1]Remises libres'!A59 -> 104 | B59: ='[1]Remises libres'!B59 -> ERSTEIN | C59: ='[1]Remises libres'!C59 -> 4104 | D59: ='[1]Remises libres'!D59 -> ERSTEIN | E59: ='[1]Remises libres'!E59 -> 5101 | F59: ='[1]Remises libres'!F59 -> SELESTAT | G59: ='[1]Remises libres'!G59 -> 262 | H59: ='[1]Remises libres'!H59 -> BAS RHIN | I59: ='[1]Remises libres'!I59 -> 2917.65
A60: ='[1]Remises libres'!A60 -> 107 | B60: ='[1]Remises libres'!B60 -> VILLE | C60: ='[1]Remises libres'!C60 -> 4107 | D60: ='[1]Remises libres'!D60 -> VILLE | E60: ='[1]Remises libres'!E60 -> 5101 | F60: ='[1]Remises libres'!F60 -> SELESTAT | G60: ='[1]Remises libres'!G60 -> 262 | H60: ='[1]Remises libres'!H60 -> BAS RHIN | I60: ='[1]Remises libres'!I60 -> 583.6
A61: ='[1]Remises libres'!A61 -> 108 | B61: ='[1]Remises libres'!B61 -> CHATENOIS | C61: ='[1]Remises libres'!C61 -> 4101 | D61: ='[1]Remises libres'!D61 -> SELESTAT CENTRE | E61: ='[1]Remises libres'!E61 -> 5101 | F61: ='[1]Remises libres'!F61 -> SELESTAT | G61: ='[1]Remises libres'!G61 -> 262 | H61: ='[1]Remises libres'!H61 -> BAS RHIN | I61: ='[1]Remises libres'!I61 -> 266.53
A62: ='[1]Remises libres'!A62 -> 109 | B62: ='[1]Remises libres'!B62 -> MARCKOLSHEIM | C62: ='[1]Remises libres'!C62 -> 4109 | D62: ='[1]Remises libres'!D62 -> MARCKOLSHEIM | E62: ='[1]Remises libres'!E62 -> 5101 | F62: ='[1]Remises libres'!F62 -> SELESTAT | G62: ='[1]Remises libres'!G62 -> 262 | H62: ='[1]Remises libres'!H62 -> BAS RHIN | I62: ='[1]Remises libres'!I62 -> 5939.36
A63: ='[1]Remises libres'!A63 -> 111 | B63: ='[1]Remises libres'!B63 -> BENFELD | C63: ='[1]Remises libres'!C63 -> 4111 | D63: ='[1]Remises libres'!D63 -> BENFELD | E63: ='[1]Remises libres'!E63 -> 5101 | F63: ='[1]Remises libres'!F63 -> SELESTAT | G63: ='[1]Remises libres'!G63 -> 262 | H63: ='[1]Remises libres'!H63 -> BAS RHIN | I63: ='[1]Remises libres'!I63 -> 1954.86
A64: ='[1]Remises libres'!A64 -> 113 | B64: ='[1]Remises libres'!B64 -> BARR | C64: ='[1]Remises libres'!C64 -> 4113 | D64: ='[1]Remises libres'!D64 -> BARR | E64: ='[1]Remises libres'!E64 -> 5101 | F64: ='[1]Remises libres'!F64 -> SELESTAT | G64: ='[1]Remises libres'!G64 -> 262 | H64: ='[1]Remises libres'!H64 -> BAS RHIN | I64: ='[1]Remises libres'!I64 -> 50
A65: ='[1]Remises libres'!A65 -> 116 | B65: ='[1]Remises libres'!B65 -> MOLSHEIM | C65: ='[1]Remises libres'!C65 -> 4116 | D65: ='[1]Remises libres'!D65 -> MOLSHEIM | E65: ='[1]Remises libres'!E65 -> 5101 | F65: ='[1]Remises libres'!F65 -> SELESTAT | G65: ='[1]Remises libres'!G65 -> 262 | H65: ='[1]Remises libres'!H65 -> BAS RHIN | I65: ='[1]Remises libres'!I65 -> 3085.29
A66: ='[1]Remises libres'!A66 -> 119 | B66: ='[1]Remises libres'!B66 -> OBERNAI | C66: ='[1]Remises libres'!C66 -> 4119 | D66: ='[1]Remises libres'!D66 -> OBERNAI | E66: ='[1]Remises libres'!E66 -> 5101 | F66: ='[1]Remises libres'!F66 -> SELESTAT | G66: ='[1]Remises libres'!G66 -> 262 | H66: ='[1]Remises libres'!H66 -> BAS RHIN | I66: ='[1]Remises libres'!I66 -> 944.74
A67: ='[1]Remises libres'!A67 -> 120 | B67: ='[1]Remises libres'!B67 -> WASSELONNE | C67: ='[1]Remises libres'!C67 -> 4120 | D67: ='[1]Remises libres'!D67 -> WASSELONNE | E67: ='[1]Remises libres'!E67 -> 5101 | F67: ='[1]Remises libres'!F67 -> SELESTAT | G67: ='[1]Remises libres'!G67 -> 262 | H67: ='[1]Remises libres'!H67 -> BAS RHIN | I67: ='[1]Remises libres'!I67 -> 1759.66
A68: ='[1]Remises libres'!A68 -> 121 | B68: ='[1]Remises libres'!B68 -> SCHIRMECK | C68: ='[1]Remises libres'!C68 -> 4121 | D68: ='[1]Remises libres'!D68 -> SCHIRMECK | E68: ='[1]Remises libres'!E68 -> 5101 | F68: ='[1]Remises libres'!F68 -> SELESTAT | G68: ='[1]Remises libres'!G68 -> 262 | H68: ='[1]Remises libres'!H68 -> BAS RHIN | I68: ='[1]Remises libres'!I68 -> 585.67
A69: ='[1]Remises libres'!A69 -> 126 | B69: ='[1]Remises libres'!B69 -> MUTZIG | C69: ='[1]Remises libres'!C69 -> 4126 | D69: ='[1]Remises libres'!D69 -> MUTZIG | E69: ='[1]Remises libres'!E69 -> 5101 | F69: ='[1]Remises libres'!F69 -> SELESTAT | G69: ='[1]Remises libres'!G69 -> 262 | H69: ='[1]Remises libres'!H69 -> BAS RHIN | I69: ='[1]Remises libres'!I69 -> 704.97
A70: ='[1]Remises libres'!A70 -> 127 | B70: ='[1]Remises libres'!B70 -> ROSHEIM | C70: ='[1]Remises libres'!C70 -> 4127 | D70: ='[1]Remises libres'!D70 -> ROSHEIM | E70: ='[1]Remises libres'!E70 -> 5101 | F70: ='[1]Remises libres'!F70 -> SELESTAT | G70: ='[1]Remises libres'!G70 -> 262 | H70: ='[1]Remises libres'!H70 -> BAS RHIN | I70: ='[1]Remises libres'!I70 -> 707.55
A71: ='[1]Remises libres'!A71 -> 129 | B71: ='[1]Remises libres'!B71 -> MARLENHEIM | C71: ='[1]Remises libres'!C71 -> 4120 | D71: ='[1]Remises libres'!D71 -> WASSELONNE | E71: ='[1]Remises libres'!E71 -> 5101 | F71: ='[1]Remises libres'!F71 -> SELESTAT | G71: ='[1]Remises libres'!G71 -> 262 | H71: ='[1]Remises libres'!H71 -> BAS RHIN | I71: ='[1]Remises libres'!I71 -> 207.19
A72: ='[1]Remises libres'!A72 -> 130 | B72: ='[1]Remises libres'!B72 -> COLMAR REPUBLIQUE | C72: ='[1]Remises libres'!C72 -> 4130 | D72: ='[1]Remises libres'!D72 -> COLMAR REPUBLIQUE | E72: ='[1]Remises libres'!E72 -> 5130 | F72: ='[1]Remises libres'!F72 -> COLMAR | G72: ='[1]Remises libres'!G72 -> 264 | H72: ='[1]Remises libres'!H72 -> HAUT RHIN | I72: ='[1]Remises libres'!I72 -> 4661.57
A73: ='[1]Remises libres'!A73 -> 132 | B73: ='[1]Remises libres'!B73 -> COLMAR MARAICHERS | C73: ='[1]Remises libres'!C73 -> 4132 | D73: ='[1]Remises libres'!D73 -> COLMAR MARAICHERS | E73: ='[1]Remises libres'!E73 -> 5130 | F73: ='[1]Remises libres'!F73 -> COLMAR | G73: ='[1]Remises libres'!G73 -> 264 | H73: ='[1]Remises libres'!H73 -> HAUT RHIN | I73: ='[1]Remises libres'!I73 -> 1131.13
A74: ='[1]Remises libres'!A74 -> 133 | B74: ='[1]Remises libres'!B74 -> COLMAR VAUBAN | C74: ='[1]Remises libres'!C74 -> 4133 | D74: ='[1]Remises libres'!D74 -> COLMAR VAUBAN | E74: ='[1]Remises libres'!E74 -> 5130 | F74: ='[1]Remises libres'!F74 -> COLMAR | G74: ='[1]Remises libres'!G74 -> 264 | H74: ='[1]Remises libres'!H74 -> HAUT RHIN | I74: ='[1]Remises libres'!I74 -> 0
A75: ='[1]Remises libres'!A75 -> 134 | B75: ='[1]Remises libres'!B75 -> COLMAR SAINT JOSEPH | C75: ='[1]Remises libres'!C75 -> 4134 | D75: ='[1]Remises libres'!D75 -> COLMAR SAINT JOSEPH | E75: ='[1]Remises libres'!E75 -> 5130 | F75: ='[1]Remises libres'!F75 -> COLMAR | G75: ='[1]Remises libres'!G75 -> 264 | H75: ='[1]Remises libres'!H75 -> HAUT RHIN | I75: ='[1]Remises libres'!I75 -> 0
A76: ='[1]Remises libres'!A76 -> 135 | B76: ='[1]Remises libres'!B76 -> COLMAR SAINTE MARIE | C76: ='[1]Remises libres'!C76 -> 4135 | D76: ='[1]Remises libres'!D76 -> COLMAR SAINTE MARIE | E76: ='[1]Remises libres'!E76 -> 5130 | F76: ='[1]Remises libres'!F76 -> COLMAR | G76: ='[1]Remises libres'!G76 -> 264 | H76: ='[1]Remises libres'!H76 -> HAUT RHIN | I76: ='[1]Remises libres'!I76 -> 2498.88
A77: ='[1]Remises libres'!A77 -> 139 | B77: ='[1]Remises libres'!B77 -> INGERSHEIM | C77: ='[1]Remises libres'!C77 -> 4139 | D77: ='[1]Remises libres'!D77 -> INGERSHEIM | E77: ='[1]Remises libres'!E77 -> 5130 | F77: ='[1]Remises libres'!F77 -> COLMAR | G77: ='[1]Remises libres'!G77 -> 264 | H77: ='[1]Remises libres'!H77 -> HAUT RHIN | I77: ='[1]Remises libres'!I77 -> 2597.38
A78: ='[1]Remises libres'!A78 -> 140 | B78: ='[1]Remises libres'!B78 -> WINTZENHEIM | C78: ='[1]Remises libres'!C78 -> 4139 | D78: ='[1]Remises libres'!D78 -> INGERSHEIM | E78: ='[1]Remises libres'!E78 -> 5130 | F78: ='[1]Remises libres'!F78 -> COLMAR | G78: ='[1]Remises libres'!G78 -> 264 | H78: ='[1]Remises libres'!H78 -> HAUT RHIN | I78: ='[1]Remises libres'!I78 -> 489.63
A79: ='[1]Remises libres'!A79 -> 141 | B79: ='[1]Remises libres'!B79 -> HORBOURG WIHR | C79: ='[1]Remises libres'!C79 -> 4141 | D79: ='[1]Remises libres'!D79 -> HORBOURG WIHR | E79: ='[1]Remises libres'!E79 -> 5130 | F79: ='[1]Remises libres'!F79 -> COLMAR | G79: ='[1]Remises libres'!G79 -> 264 | H79: ='[1]Remises libres'!H79 -> HAUT RHIN | I79: ='[1]Remises libres'!I79 -> 6565.12
A80: ='[1]Remises libres'!A80 -> 143 | B80: ='[1]Remises libres'!B80 -> MUNSTER | C80: ='[1]Remises libres'!C80 -> 4143 | D80: ='[1]Remises libres'!D80 -> MUNSTER | E80: ='[1]Remises libres'!E80 -> 5130 | F80: ='[1]Remises libres'!F80 -> COLMAR | G80: ='[1]Remises libres'!G80 -> 264 | H80: ='[1]Remises libres'!H80 -> HAUT RHIN | I80: ='[1]Remises libres'!I80 -> 2742.01
A81: ='[1]Remises libres'!A81 -> 144 | B81: ='[1]Remises libres'!B81 -> RIBEAUVILLE | C81: ='[1]Remises libres'!C81 -> 4144 | D81: ='[1]Remises libres'!D81 -> RIBEAUVILLE | E81: ='[1]Remises libres'!E81 -> 5130 | F81: ='[1]Remises libres'!F81 -> COLMAR | G81: ='[1]Remises libres'!G81 -> 264 | H81: ='[1]Remises libres'!H81 -> HAUT RHIN | I81: ='[1]Remises libres'!I81 -> 327.86
A82: ='[1]Remises libres'!A82 -> 147 | B82: ='[1]Remises libres'!B82 -> GUEBWILLER | C82: ='[1]Remises libres'!C82 -> 4147 | D82: ='[1]Remises libres'!D82 -> GUEBWILLER | E82: ='[1]Remises libres'!E82 -> 5130 | F82: ='[1]Remises libres'!F82 -> COLMAR | G82: ='[1]Remises libres'!G82 -> 264 | H82: ='[1]Remises libres'!H82 -> HAUT RHIN | I82: ='[1]Remises libres'!I82 -> 1384.29
A83: ='[1]Remises libres'!A83 -> 148 | B83: ='[1]Remises libres'!B83 -> ORBEY | C83: ='[1]Remises libres'!C83 -> 4148 | D83: ='[1]Remises libres'!D83 -> ORBEY | E83: ='[1]Remises libres'!E83 -> 5130 | F83: ='[1]Remises libres'!F83 -> COLMAR | G83: ='[1]Remises libres'!G83 -> 264 | H83: ='[1]Remises libres'!H83 -> HAUT RHIN | I83: ='[1]Remises libres'!I83 -> 1529.29
A84: ='[1]Remises libres'!A84 -> 152 | B84: ='[1]Remises libres'!B84 -> KAYSERSBERG | C84: ='[1]Remises libres'!C84 -> 4148 | D84: ='[1]Remises libres'!D84 -> ORBEY | E84: ='[1]Remises libres'!E84 -> 5130 | F84: ='[1]Remises libres'!F84 -> COLMAR | G84: ='[1]Remises libres'!G84 -> 264 | H84: ='[1]Remises libres'!H84 -> HAUT RHIN | I84: ='[1]Remises libres'!I84 -> 948.01
A85: ='[1]Remises libres'!A85 -> 153 | B85: ='[1]Remises libres'!B85 -> ROUFFACH | C85: ='[1]Remises libres'!C85 -> 4153 | D85: ='[1]Remises libres'!D85 -> ROUFFACH | E85: ='[1]Remises libres'!E85 -> 5130 | F85: ='[1]Remises libres'!F85 -> COLMAR | G85: ='[1]Remises libres'!G85 -> 264 | H85: ='[1]Remises libres'!H85 -> HAUT RHIN | I85: ='[1]Remises libres'!I85 -> 1158.18
A86: ='[1]Remises libres'!A86 -> 156 | B86: ='[1]Remises libres'!B86 -> SOULTZMATT | C86: ='[1]Remises libres'!C86 -> 4153 | D86: ='[1]Remises libres'!D86 -> ROUFFACH | E86: ='[1]Remises libres'!E86 -> 5130 | F86: ='[1]Remises libres'!F86 -> COLMAR | G86: ='[1]Remises libres'!G86 -> 264 | H86: ='[1]Remises libres'!H86 -> HAUT RHIN | I86: ='[1]Remises libres'!I86 -> 133
A87: ='[1]Remises libres'!A87 -> 157 | B87: ='[1]Remises libres'!B87 -> NEUF BRISACH | C87: ='[1]Remises libres'!C87 -> 4157 | D87: ='[1]Remises libres'!D87 -> NEUF BRISACH | E87: ='[1]Remises libres'!E87 -> 5130 | F87: ='[1]Remises libres'!F87 -> COLMAR | G87: ='[1]Remises libres'!G87 -> 264 | H87: ='[1]Remises libres'!H87 -> HAUT RHIN | I87: ='[1]Remises libres'!I87 -> 1328.51
A88: ='[1]Remises libres'!A88 -> 159 | B88: ='[1]Remises libres'!B88 -> MUNTZENHEIM | C88: ='[1]Remises libres'!C88 -> 4141 | D88: ='[1]Remises libres'!D88 -> HORBOURG WIHR | E88: ='[1]Remises libres'!E88 -> 5130 | F88: ='[1]Remises libres'!F88 -> COLMAR | G88: ='[1]Remises libres'!G88 -> 264 | H88: ='[1]Remises libres'!H88 -> HAUT RHIN | I88: ='[1]Remises libres'!I88 -> 3445.18
A89: ='[1]Remises libres'!A89 -> 160 | B89: ='[1]Remises libres'!B89 -> SOULTZ | C89: ='[1]Remises libres'!C89 -> 4147 | D89: ='[1]Remises libres'!D89 -> GUEBWILLER | E89: ='[1]Remises libres'!E89 -> 5130 | F89: ='[1]Remises libres'!F89 -> COLMAR | G89: ='[1]Remises libres'!G89 -> 264 | H89: ='[1]Remises libres'!H89 -> HAUT RHIN | I89: ='[1]Remises libres'!I89 -> 986.22
A90: ='[1]Remises libres'!A90 -> 162 | B90: ='[1]Remises libres'!B90 -> ENSISHEIM | C90: ='[1]Remises libres'!C90 -> 4162 | D90: ='[1]Remises libres'!D90 -> ENSISHEIM | E90: ='[1]Remises libres'!E90 -> 5130 | F90: ='[1]Remises libres'!F90 -> COLMAR | G90: ='[1]Remises libres'!G90 -> 264 | H90: ='[1]Remises libres'!H90 -> HAUT RHIN | I90: ='[1]Remises libres'!I90 -> 1922.98
A91: ='[1]Remises libres'!A91 -> 163 | B91: ='[1]Remises libres'!B91 -> PULVERSHEIM | C91: ='[1]Remises libres'!C91 -> 4162 | D91: ='[1]Remises libres'!D91 -> ENSISHEIM | E91: ='[1]Remises libres'!E91 -> 5130 | F91: ='[1]Remises libres'!F91 -> COLMAR | G91: ='[1]Remises libres'!G91 -> 264 | H91: ='[1]Remises libres'!H91 -> HAUT RHIN | I91: ='[1]Remises libres'!I91 -> 0.14
A92: ='[1]Remises libres'!A93 -> 170 | B92: ='[1]Remises libres'!B93 -> MULHOUSE REUNION | C92: ='[1]Remises libres'!C93 -> 4170 | D92: ='[1]Remises libres'!D93 -> MULHOUSE REUNION | E92: ='[1]Remises libres'!E93 -> 5169 | F92: ='[1]Remises libres'!F93 -> MULHOUSE | G92: ='[1]Remises libres'!G93 -> 264 | H92: ='[1]Remises libres'!H93 -> HAUT RHIN | I92: ='[1]Remises libres'!I93 -> 4064.36
A93: ='[1]Remises libres'!A94 -> 171 | B93: ='[1]Remises libres'!B94 -> MULHOUSE SAUVAGE | C93: ='[1]Remises libres'!C94 -> 0 | D93: ='[1]Remises libres'!D94 -> 0 | E93: ='[1]Remises libres'!E94 -> 0 | F93: ='[1]Remises libres'!F94 -> 0 | G93: ='[1]Remises libres'!G94 -> 199 | H93: ='[1]Remises libres'!H94 -> HORS GROUPE | I93: ='[1]Remises libres'!I94 -> 0
A94: ='[1]Remises libres'!A96 -> 178 | B94: ='[1]Remises libres'!B96 -> SAINT LOUIS | C94: ='[1]Remises libres'!C96 -> 4178 | D94: ='[1]Remises libres'!D96 -> SAINT LOUIS | E94: ='[1]Remises libres'!E96 -> 5169 | F94: ='[1]Remises libres'!F96 -> MULHOUSE | G94: ='[1]Remises libres'!G96 -> 264 | H94: ='[1]Remises libres'!H96 -> HAUT RHIN | I94: ='[1]Remises libres'!I96 -> 1757.7
A95: ='[1]Remises libres'!A97 -> 179 | B95: ='[1]Remises libres'!B97 -> SIERENTZ | C95: ='[1]Remises libres'!C97 -> 4178 | D95: ='[1]Remises libres'!D97 -> SAINT LOUIS | E95: ='[1]Remises libres'!E97 -> 5169 | F95: ='[1]Remises libres'!F97 -> MULHOUSE | G95: ='[1]Remises libres'!G97 -> 264 | H95: ='[1]Remises libres'!H97 -> HAUT RHIN | I95: ='[1]Remises libres'!I97 -> 917.29
A96: ='[1]Remises libres'!A98 -> 180 | B96: ='[1]Remises libres'!B98 -> RIEDISHEIM | C96: ='[1]Remises libres'!C98 -> 4180 | D96: ='[1]Remises libres'!D98 -> RIEDISHEIM | E96: ='[1]Remises libres'!E98 -> 5169 | F96: ='[1]Remises libres'!F98 -> MULHOUSE | G96: ='[1]Remises libres'!G98 -> 264 | H96: ='[1]Remises libres'!H98 -> HAUT RHIN | I96: ='[1]Remises libres'!I98 -> 1798.46
A97: ='[1]Remises libres'!A99 -> 181 | B97: ='[1]Remises libres'!B99 -> WITTELSHEIM | C97: ='[1]Remises libres'!C99 -> 4181 | D97: ='[1]Remises libres'!D99 -> WITTELSHEIM | E97: ='[1]Remises libres'!E99 -> 5169 | F97: ='[1]Remises libres'!F99 -> MULHOUSE | G97: ='[1]Remises libres'!G99 -> 264 | H97: ='[1]Remises libres'!H99 -> HAUT RHIN | I97: ='[1]Remises libres'!I99 -> 262.02
A98: ='[1]Remises libres'!A100 -> 183 | B98: ='[1]Remises libres'!B100 -> WITTENHEIM | C98: ='[1]Remises libres'!C100 -> 4183 | D98: ='[1]Remises libres'!D100 -> WITTENHEIM | E98: ='[1]Remises libres'!E100 -> 5169 | F98: ='[1]Remises libres'!F100 -> MULHOUSE | G98: ='[1]Remises libres'!G100 -> 264 | H98: ='[1]Remises libres'!H100 -> HAUT RHIN | I98: ='[1]Remises libres'!I100 -> 717.35
A99: ='[1]Remises libres'!A101 -> 184 | B99: ='[1]Remises libres'!B101 -> ILLZACH | C99: ='[1]Remises libres'!C101 -> 4183 | D99: ='[1]Remises libres'!D101 -> WITTENHEIM | E99: ='[1]Remises libres'!E101 -> 5169 | F99: ='[1]Remises libres'!F101 -> MULHOUSE | G99: ='[1]Remises libres'!G101 -> 264 | H99: ='[1]Remises libres'!H101 -> HAUT RHIN | I99: ='[1]Remises libres'!I101 -> 173.74
A100: ='[1]Remises libres'!A102 -> 185 | B100: ='[1]Remises libres'!B102 -> RIXHEIM | C100: ='[1]Remises libres'!C102 -> 4185 | D100: ='[1]Remises libres'!D102 -> RIXHEIM | E100: ='[1]Remises libres'!E102 -> 5169 | F100: ='[1]Remises libres'!F102 -> MULHOUSE | G100: ='[1]Remises libres'!G102 -> 264 | H100: ='[1]Remises libres'!H102 -> HAUT RHIN | I100: ='[1]Remises libres'!I102 -> 5475.83
A101: ='[1]Remises libres'!A103 -> 186 | B101: ='[1]Remises libres'!B103 -> BRUNSTATT | C101: ='[1]Remises libres'!C103 -> 4174 | D101: ='[1]Remises libres'!D103 -> MULHOUSE DORNACH | E101: ='[1]Remises libres'!E103 -> 5169 | F101: ='[1]Remises libres'!F103 -> MULHOUSE | G101: ='[1]Remises libres'!G103 -> 264 | H101: ='[1]Remises libres'!H103 -> HAUT RHIN | I101: ='[1]Remises libres'!I103 -> 868.5
A102: ='[1]Remises libres'!A104 -> 188 | B102: ='[1]Remises libres'!B104 -> PFASTATT | C102: ='[1]Remises libres'!C104 -> 4188 | D102: ='[1]Remises libres'!D104 -> PFASTATT | E102: ='[1]Remises libres'!E104 -> 5169 | F102: ='[1]Remises libres'!F104 -> MULHOUSE | G102: ='[1]Remises libres'!G104 -> 264 | H102: ='[1]Remises libres'!H104 -> HAUT RHIN | I102: ='[1]Remises libres'!I104 -> 3471.72
A103: ='[1]Remises libres'!A105 -> 189 | B103: ='[1]Remises libres'!B105 -> ALTKIRCH | C103: ='[1]Remises libres'!C105 -> 4189 | D103: ='[1]Remises libres'!D105 -> ALTKIRCH | E103: ='[1]Remises libres'!E105 -> 5169 | F103: ='[1]Remises libres'!F105 -> MULHOUSE | G103: ='[1]Remises libres'!G105 -> 264 | H103: ='[1]Remises libres'!H105 -> HAUT RHIN | I103: ='[1]Remises libres'!I105 -> 2413.85
A104: ='[1]Remises libres'!A106 -> 191 | B104: ='[1]Remises libres'!B106 -> FERRETTE | C104: ='[1]Remises libres'!C106 -> 4189 | D104: ='[1]Remises libres'!D106 -> ALTKIRCH | E104: ='[1]Remises libres'!E106 -> 5169 | F104: ='[1]Remises libres'!F106 -> MULHOUSE | G104: ='[1]Remises libres'!G106 -> 264 | H104: ='[1]Remises libres'!H106 -> HAUT RHIN | I104: ='[1]Remises libres'!I106 -> 57.26
A105: ='[1]Remises libres'!A107 -> 192 | B105: ='[1]Remises libres'!B107 -> SEPPOIS LE BAS | C105: ='[1]Remises libres'!C107 -> 4189 | D105: ='[1]Remises libres'!D107 -> ALTKIRCH | E105: ='[1]Remises libres'!E107 -> 5169 | F105: ='[1]Remises libres'!F107 -> MULHOUSE | G105: ='[1]Remises libres'!G107 -> 264 | H105: ='[1]Remises libres'!H107 -> HAUT RHIN | I105: ='[1]Remises libres'!I107 -> 20.4
A106: ='[1]Remises libres'!A108 -> 193 | B106: ='[1]Remises libres'!B108 -> DANNEMARIE | C106: ='[1]Remises libres'!C108 -> 4189 | D106: ='[1]Remises libres'!D108 -> ALTKIRCH | E106: ='[1]Remises libres'!E108 -> 5169 | F106: ='[1]Remises libres'!F108 -> MULHOUSE | G106: ='[1]Remises libres'!G108 -> 264 | H106: ='[1]Remises libres'!H108 -> HAUT RHIN | I106: ='[1]Remises libres'!I108 -> 1933.35
A107: ='[1]Remises libres'!A109 -> 194 | B107: ='[1]Remises libres'!B109 -> THANN | C107: ='[1]Remises libres'!C109 -> 4194 | D107: ='[1]Remises libres'!D109 -> THANN | E107: ='[1]Remises libres'!E109 -> 5169 | F107: ='[1]Remises libres'!F109 -> MULHOUSE | G107: ='[1]Remises libres'!G109 -> 264 | H107: ='[1]Remises libres'!H109 -> HAUT RHIN | I107: ='[1]Remises libres'!I109 -> 1559.8
A108: ='[1]Remises libres'!A110 -> 195 | B108: ='[1]Remises libres'!B110 -> CERNAY | C108: ='[1]Remises libres'!C110 -> 4194 | D108: ='[1]Remises libres'!D110 -> THANN | E108: ='[1]Remises libres'!E110 -> 5169 | F108: ='[1]Remises libres'!F110 -> MULHOUSE | G108: ='[1]Remises libres'!G110 -> 264 | H108: ='[1]Remises libres'!H110 -> HAUT RHIN | I108: ='[1]Remises libres'!I110 -> 601.07
A109: ='[1]Remises libres'!A111 -> 196 | B109: ='[1]Remises libres'!B111 -> MASEVAUX | C109: ='[1]Remises libres'!C111 -> 4194 | D109: ='[1]Remises libres'!D111 -> THANN | E109: ='[1]Remises libres'!E111 -> 5169 | F109: ='[1]Remises libres'!F111 -> MULHOUSE | G109: ='[1]Remises libres'!G111 -> 264 | H109: ='[1]Remises libres'!H111 -> HAUT RHIN | I109: ='[1]Remises libres'!I111 -> 586
A110: ='[1]Remises libres'!A112 -> 198 | B110: ='[1]Remises libres'!B112 -> SAINT AMARIN | C110: ='[1]Remises libres'!C112 -> 4194 | D110: ='[1]Remises libres'!D112 -> THANN | E110: ='[1]Remises libres'!E112 -> 5169 | F110: ='[1]Remises libres'!F112 -> MULHOUSE | G110: ='[1]Remises libres'!G112 -> 264 | H110: ='[1]Remises libres'!H112 -> HAUT RHIN | I110: ='[1]Remises libres'!I112 -> 296.02
A111: ='[1]Remises libres'!A113 -> 5800 | B111: ='[1]Remises libres'!B113 -> EXPERTS DIRECT | C111: ='[1]Remises libres'!C113 -> 405800 | D111: ='[1]Remises libres'!D113 -> EXPERTS DIRECT | E111: ='[1]Remises libres'!E113 -> 5800 | F111: ='[1]Remises libres'!F113 -> EXPERTS DIRECT | G111: ='[1]Remises libres'!G113 -> 269 | H111: ='[1]Remises libres'!H113 -> BANQUE DIGITALE | I111: ='[1]Remises libres'!I113 -> 477.82
A112: ='[1]Remises libres'!A114 -> 8801 | B112: ='[1]Remises libres'!B114 -> CHARLEVILLE JEAN JAURES | C112: ='[1]Remises libres'!C114 -> 408801 | D112: ='[1]Remises libres'!D114 -> CHARLEVILLE JEAN JAURES | E112: ='[1]Remises libres'!E114 -> 2 | F112: ='[1]Remises libres'!F114 -> CHARLEVILLE MEZIERES | G112: ='[1]Remises libres'!G114 -> 30 | H112: ='[1]Remises libres'!H114 -> MARNE ARDENNES | I112: ='[1]Remises libres'!I114 -> 4004.5
A113: ='[1]Remises libres'!A115 -> 8802 | B113: ='[1]Remises libres'!B115 -> CHARLEVILLE NEVERS | C113: ='[1]Remises libres'!C115 -> 508802 | D113: ='[1]Remises libres'!D115 -> CHARLEVILLE NEVERS | E113: ='[1]Remises libres'!E115 -> 2 | F113: ='[1]Remises libres'!F115 -> CHARLEVILLE MEZIERES | G113: ='[1]Remises libres'!G115 -> 30 | H113: ='[1]Remises libres'!H115 -> MARNE ARDENNES | I113: ='[1]Remises libres'!I115 -> 282.5
A114: ='[1]Remises libres'!A116 -> 8806 | B114: ='[1]Remises libres'!B116 -> SEDAN | C114: ='[1]Remises libres'!C116 -> 408806 | D114: ='[1]Remises libres'!D116 -> SEDAN | E114: ='[1]Remises libres'!E116 -> 2 | F114: ='[1]Remises libres'!F116 -> CHARLEVILLE MEZIERES | G114: ='[1]Remises libres'!G116 -> 30 | H114: ='[1]Remises libres'!H116 -> MARNE ARDENNES | I114: ='[1]Remises libres'!I116 -> 3288.57
A115: ='[1]Remises libres'!A117 -> 8815 | B115: ='[1]Remises libres'!B117 -> CARIGNAN | C115: ='[1]Remises libres'!C117 -> 508815 | D115: ='[1]Remises libres'!D117 -> CARIGNAN | E115: ='[1]Remises libres'!E117 -> 2 | F115: ='[1]Remises libres'!F117 -> CHARLEVILLE MEZIERES | G115: ='[1]Remises libres'!G117 -> 30 | H115: ='[1]Remises libres'!H117 -> MARNE ARDENNES | I115: ='[1]Remises libres'!I117 -> 720
A116: ='[1]Remises libres'!A118 -> 8817 | B116: ='[1]Remises libres'!B118 -> CHARLEVILLE MOHON | C116: ='[1]Remises libres'!C118 -> 508817 | D116: ='[1]Remises libres'!D118 -> CHARLEVILLE MOHON | E116: ='[1]Remises libres'!E118 -> 2 | F116: ='[1]Remises libres'!F118 -> CHARLEVILLE MEZIERES | G116: ='[1]Remises libres'!G118 -> 30 | H116: ='[1]Remises libres'!H118 -> MARNE ARDENNES | I116: ='[1]Remises libres'!I118 -> 1082.92
A117: ='[1]Remises libres'!A119 -> 8819 | B117: ='[1]Remises libres'!B119 -> MOUZON | C117: ='[1]Remises libres'!C119 -> 508819 | D117: ='[1]Remises libres'!D119 -> MOUZON | E117: ='[1]Remises libres'!E119 -> 2 | F117: ='[1]Remises libres'!F119 -> CHARLEVILLE MEZIERES | G117: ='[1]Remises libres'!G119 -> 30 | H117: ='[1]Remises libres'!H119 -> MARNE ARDENNES | I117: ='[1]Remises libres'!I119 -> 891.24
A118: ='[1]Remises libres'!A120 -> 8820 | B118: ='[1]Remises libres'!B120 -> VOUZIERS | C118: ='[1]Remises libres'!C120 -> 508820 | D118: ='[1]Remises libres'!D120 -> VOUZIERS | E118: ='[1]Remises libres'!E120 -> 2 | F118: ='[1]Remises libres'!F120 -> CHARLEVILLE MEZIERES | G118: ='[1]Remises libres'!G120 -> 30 | H118: ='[1]Remises libres'!H120 -> MARNE ARDENNES | I118: ='[1]Remises libres'!I120 -> 972.21
A119: ='[1]Remises libres'!A121 -> 8822 | B119: ='[1]Remises libres'!B121 -> CHARLEVILLE MEZIERES | C119: ='[1]Remises libres'!C121 -> 408822 | D119: ='[1]Remises libres'!D121 -> CHARLEVILLE MEZIERES | E119: ='[1]Remises libres'!E121 -> 2 | F119: ='[1]Remises libres'!F121 -> CHARLEVILLE MEZIERES | G119: ='[1]Remises libres'!G121 -> 30 | H119: ='[1]Remises libres'!H121 -> MARNE ARDENNES | I119: ='[1]Remises libres'!I121 -> 1559.26
A120: ='[1]Remises libres'!A122 -> 8833 | B120: ='[1]Remises libres'!B122 -> VILLERS SEMEUSE CORA | C120: ='[1]Remises libres'!C122 -> 508833 | D120: ='[1]Remises libres'!D122 -> VILLERS SEMEUSE CORA | E120: ='[1]Remises libres'!E122 -> 2 | F120: ='[1]Remises libres'!F122 -> CHARLEVILLE MEZIERES | G120: ='[1]Remises libres'!G122 -> 30 | H120: ='[1]Remises libres'!H122 -> MARNE ARDENNES | I120: ='[1]Remises libres'!I122 -> 407.65
A121: ='[1]Remises libres'!A123 -> 8839 | B121: ='[1]Remises libres'!B123 -> GIVET | C121: ='[1]Remises libres'!C123 -> 508839 | D121: ='[1]Remises libres'!D123 -> GIVET | E121: ='[1]Remises libres'!E123 -> 2 | F121: ='[1]Remises libres'!F123 -> CHARLEVILLE MEZIERES | G121: ='[1]Remises libres'!G123 -> 30 | H121: ='[1]Remises libres'!H123 -> MARNE ARDENNES | I121: ='[1]Remises libres'!I123 -> 0
A122: ='[1]Remises libres'!A124 -> 8840 | B122: ='[1]Remises libres'!B124 -> RETHEL | C122: ='[1]Remises libres'!C124 -> 408840 | D122: ='[1]Remises libres'!D124 -> RETHEL | E122: ='[1]Remises libres'!E124 -> 2 | F122: ='[1]Remises libres'!F124 -> CHARLEVILLE MEZIERES | G122: ='[1]Remises libres'!G124 -> 30 | H122: ='[1]Remises libres'!H124 -> MARNE ARDENNES | I122: ='[1]Remises libres'!I124 -> 1022.16
A123: ='[1]Remises libres'!A125 -> 8860 | B123: ='[1]Remises libres'!B125 -> ROCROI | C123: ='[1]Remises libres'!C125 -> 508860 | D123: ='[1]Remises libres'!D125 -> ROCROI | E123: ='[1]Remises libres'!E125 -> 2 | F123: ='[1]Remises libres'!F125 -> CHARLEVILLE MEZIERES | G123: ='[1]Remises libres'!G125 -> 30 | H123: ='[1]Remises libres'!H125 -> MARNE ARDENNES | I123: ='[1]Remises libres'!I125 -> 74.79
A124: ='[1]Remises libres'!A126 -> 8862 | B124: ='[1]Remises libres'!B126 -> REVIN | C124: ='[1]Remises libres'!C126 -> 408862 | D124: ='[1]Remises libres'!D126 -> REVIN | E124: ='[1]Remises libres'!E126 -> 2 | F124: ='[1]Remises libres'!F126 -> CHARLEVILLE MEZIERES | G124: ='[1]Remises libres'!G126 -> 30 | H124: ='[1]Remises libres'!H126 -> MARNE ARDENNES | I124: ='[1]Remises libres'!I126 -> 1764.76
A125: ='[1]Remises libres'!A127 -> 10510 | B125: ='[1]Remises libres'!B127 -> TROYES GAMBETTA | C125: ='[1]Remises libres'!C127 -> 410510 | D125: ='[1]Remises libres'!D127 -> TROYES GAMBETTA | E125: ='[1]Remises libres'!E127 -> 14 | F125: ='[1]Remises libres'!F127 -> TROYES | G125: ='[1]Remises libres'!G127 -> 50 | H125: ='[1]Remises libres'!H127 -> AUBE HAUTE MARNE | I125: ='[1]Remises libres'!I127 -> 3772.2
A126: ='[1]Remises libres'!A128 -> 10511 | B126: ='[1]Remises libres'!B128 -> TROYES BROSSOLETTE | C126: ='[1]Remises libres'!C128 -> 510511 | D126: ='[1]Remises libres'!D128 -> TROYES BROSSOLETTE | E126: ='[1]Remises libres'!E128 -> 14 | F126: ='[1]Remises libres'!F128 -> TROYES | G126: ='[1]Remises libres'!G128 -> 50 | H126: ='[1]Remises libres'!H128 -> AUBE HAUTE MARNE | I126: ='[1]Remises libres'!I128 -> 145.5
A127: ='[1]Remises libres'!A129 -> 10512 | B127: ='[1]Remises libres'!B129 -> TROYES ZOLA | C127: ='[1]Remises libres'!C129 -> 410512 | D127: ='[1]Remises libres'!D129 -> TROYES ZOLA | E127: ='[1]Remises libres'!E129 -> 14 | F127: ='[1]Remises libres'!F129 -> TROYES | G127: ='[1]Remises libres'!G129 -> 50 | H127: ='[1]Remises libres'!H129 -> AUBE HAUTE MARNE | I127: ='[1]Remises libres'!I129 -> 220.07
A128: ='[1]Remises libres'!A130 -> 10513 | B128: ='[1]Remises libres'!B130 -> TROYES 1ER MAI | C128: ='[1]Remises libres'!C130 -> 510513 | D128: ='[1]Remises libres'!D130 -> TROYES 1ER MAI | E128: ='[1]Remises libres'!E130 -> 14 | F128: ='[1]Remises libres'!F130 -> TROYES | G128: ='[1]Remises libres'!G130 -> 50 | H128: ='[1]Remises libres'!H130 -> AUBE HAUTE MARNE | I128: ='[1]Remises libres'!I130 -> 349.66
A129: ='[1]Remises libres'!A131 -> 10520 | B129: ='[1]Remises libres'!B131 -> SAINT ANDRE LES VERGERS | C129: ='[1]Remises libres'!C131 -> 510520 | D129: ='[1]Remises libres'!D131 -> SAINT ANDRE LES VERGERS | E129: ='[1]Remises libres'!E131 -> 14 | F129: ='[1]Remises libres'!F131 -> TROYES | G129: ='[1]Remises libres'!G131 -> 50 | H129: ='[1]Remises libres'!H131 -> AUBE HAUTE MARNE | I129: ='[1]Remises libres'!I131 -> 1107.62
A130: ='[1]Remises libres'!A132 -> 10521 | B130: ='[1]Remises libres'!B132 -> SAINTE SAVINE | C130: ='[1]Remises libres'!C132 -> 410521 | D130: ='[1]Remises libres'!D132 -> SAINTE SAVINE | E130: ='[1]Remises libres'!E132 -> 14 | F130: ='[1]Remises libres'!F132 -> TROYES | G130: ='[1]Remises libres'!G132 -> 50 | H130: ='[1]Remises libres'!H132 -> AUBE HAUTE MARNE | I130: ='[1]Remises libres'!I132 -> 848.03
A131: ='[1]Remises libres'!A133 -> 10522 | B131: ='[1]Remises libres'!B133 -> TROYES CHARTREUX | C131: ='[1]Remises libres'!C133 -> 510522 | D131: ='[1]Remises libres'!D133 -> TROYES CHARTREUX | E131: ='[1]Remises libres'!E133 -> 14 | F131: ='[1]Remises libres'!F133 -> TROYES | G131: ='[1]Remises libres'!G133 -> 50 | H131: ='[1]Remises libres'!H133 -> AUBE HAUTE MARNE | I131: ='[1]Remises libres'!I133 -> 355
A132: ='[1]Remises libres'!A134 -> 10523 | B132: ='[1]Remises libres'!B134 -> LA CHAPELLE ST LUC | C132: ='[1]Remises libres'!C134 -> 510523 | D132: ='[1]Remises libres'!D134 -> LA CHAPELLE ST LUC | E132: ='[1]Remises libres'!E134 -> 14 | F132: ='[1]Remises libres'!F134 -> TROYES | G132: ='[1]Remises libres'!G134 -> 50 | H132: ='[1]Remises libres'!H134 -> AUBE HAUTE MARNE | I132: ='[1]Remises libres'!I134 -> 530.5
A133: ='[1]Remises libres'!A135 -> 10524 | B133: ='[1]Remises libres'!B135 -> SAINT JULIEN LES VILLAS | C133: ='[1]Remises libres'!C135 -> 410524 | D133: ='[1]Remises libres'!D135 -> SAINT JULIEN LES VILLAS | E133: ='[1]Remises libres'!E135 -> 14 | F133: ='[1]Remises libres'!F135 -> TROYES | G133: ='[1]Remises libres'!G135 -> 50 | H133: ='[1]Remises libres'!H135 -> AUBE HAUTE MARNE | I133: ='[1]Remises libres'!I135 -> 3943.87
A134: ='[1]Remises libres'!A136 -> 10530 | B134: ='[1]Remises libres'!B136 -> ARCIS SUR AUBE | C134: ='[1]Remises libres'!C136 -> 510530 | D134: ='[1]Remises libres'!D136 -> ARCIS SUR AUBE | E134: ='[1]Remises libres'!E136 -> 14 | F134: ='[1]Remises libres'!F136 -> TROYES | G134: ='[1]Remises libres'!G136 -> 50 | H134: ='[1]Remises libres'!H136 -> AUBE HAUTE MARNE | I134: ='[1]Remises libres'!I136 -> 474.26
A135: ='[1]Remises libres'!A137 -> 10539 | B135: ='[1]Remises libres'!B137 -> CHATEAUVILLAIN | C135: ='[1]Remises libres'!C137 -> 410566 | D135: ='[1]Remises libres'!D137 -> CHAUMONT HOTEL DE VILLE | E135: ='[1]Remises libres'!E137 -> 21 | F135: ='[1]Remises libres'!F137 -> CHAUMONT | G135: ='[1]Remises libres'!G137 -> 50 | H135: ='[1]Remises libres'!H137 -> AUBE HAUTE MARNE | I135: ='[1]Remises libres'!I137 -> 240
A136: ='[1]Remises libres'!A138 -> 10541 | B136: ='[1]Remises libres'!B138 -> LANGRES | C136: ='[1]Remises libres'!C138 -> 410541 | D136: ='[1]Remises libres'!D138 -> LANGRES | E136: ='[1]Remises libres'!E138 -> 21 | F136: ='[1]Remises libres'!F138 -> CHAUMONT | G136: ='[1]Remises libres'!G138 -> 50 | H136: ='[1]Remises libres'!H138 -> AUBE HAUTE MARNE | I136: ='[1]Remises libres'!I138 -> 1024.75
A137: ='[1]Remises libres'!A139 -> 10550 | B137: ='[1]Remises libres'!B139 -> BAR SUR AUBE | C137: ='[1]Remises libres'!C139 -> 410550 | D137: ='[1]Remises libres'!D139 -> BAR SUR AUBE | E137: ='[1]Remises libres'!E139 -> 14 | F137: ='[1]Remises libres'!F139 -> TROYES | G137: ='[1]Remises libres'!G139 -> 50 | H137: ='[1]Remises libres'!H139 -> AUBE HAUTE MARNE | I137: ='[1]Remises libres'!I139 -> 932
A138: ='[1]Remises libres'!A140 -> 10551 | B138: ='[1]Remises libres'!B140 -> BRIENNE LE CHATEAU | C138: ='[1]Remises libres'!C140 -> 410550 | D138: ='[1]Remises libres'!D140 -> BAR SUR AUBE | E138: ='[1]Remises libres'!E140 -> 14 | F138: ='[1]Remises libres'!F140 -> TROYES | G138: ='[1]Remises libres'!G140 -> 50 | H138: ='[1]Remises libres'!H140 -> AUBE HAUTE MARNE | I138: ='[1]Remises libres'!I140 -> 321.01
A139: ='[1]Remises libres'!A141 -> 10556 | B139: ='[1]Remises libres'!B141 -> BAR SUR SEINE | C139: ='[1]Remises libres'!C141 -> 510556 | D139: ='[1]Remises libres'!D141 -> BAR SUR SEINE | E139: ='[1]Remises libres'!E141 -> 14 | F139: ='[1]Remises libres'!F141 -> TROYES | G139: ='[1]Remises libres'!G141 -> 50 | H139: ='[1]Remises libres'!H141 -> AUBE HAUTE MARNE | I139: ='[1]Remises libres'!I141 -> 1020.33
A140: ='[1]Remises libres'!A142 -> 10558 | B140: ='[1]Remises libres'!B142 -> CHALINDREY | C140: ='[1]Remises libres'!C142 -> 410541 | D140: ='[1]Remises libres'!D142 -> LANGRES | E140: ='[1]Remises libres'!E142 -> 21 | F140: ='[1]Remises libres'!F142 -> CHAUMONT | G140: ='[1]Remises libres'!G142 -> 50 | H140: ='[1]Remises libres'!H142 -> AUBE HAUTE MARNE | I140: ='[1]Remises libres'!I142 -> 350.06
A141: ='[1]Remises libres'!A143 -> 10560 | B141: ='[1]Remises libres'!B143 -> BOURBONNE LES BAINS | C141: ='[1]Remises libres'!C143 -> 410541 | D141: ='[1]Remises libres'!D143 -> LANGRES | E141: ='[1]Remises libres'!E143 -> 21 | F141: ='[1]Remises libres'!F143 -> CHAUMONT | G141: ='[1]Remises libres'!G143 -> 50 | H141: ='[1]Remises libres'!H143 -> AUBE HAUTE MARNE | I141: ='[1]Remises libres'!I143 -> 591.39
A142: ='[1]Remises libres'!A144 -> 10566 | B142: ='[1]Remises libres'!B144 -> CHAUMONT HOTEL DE VILLE | C142: ='[1]Remises libres'!C144 -> 410566 | D142: ='[1]Remises libres'!D144 -> CHAUMONT HOTEL DE VILLE | E142: ='[1]Remises libres'!E144 -> 21 | F142: ='[1]Remises libres'!F144 -> CHAUMONT | G142: ='[1]Remises libres'!G144 -> 50 | H142: ='[1]Remises libres'!H144 -> AUBE HAUTE MARNE | I142: ='[1]Remises libres'!I144 -> 1585.47
A143: ='[1]Remises libres'!A145 -> 10570 | B143: ='[1]Remises libres'!B145 -> NOGENT SUR SEINE | C143: ='[1]Remises libres'!C145 -> 510570 | D143: ='[1]Remises libres'!D145 -> NOGENT SUR SEINE | E143: ='[1]Remises libres'!E145 -> 14 | F143: ='[1]Remises libres'!F145 -> TROYES | G143: ='[1]Remises libres'!G145 -> 50 | H143: ='[1]Remises libres'!H145 -> AUBE HAUTE MARNE | I143: ='[1]Remises libres'!I145 -> 245
A144: ='[1]Remises libres'!A146 -> 10571 | B144: ='[1]Remises libres'!B146 -> ROMILLY SUR SEINE | C144: ='[1]Remises libres'!C146 -> 410571 | D144: ='[1]Remises libres'!D146 -> ROMILLY SUR SEINE | E144: ='[1]Remises libres'!E146 -> 14 | F144: ='[1]Remises libres'!F146 -> TROYES | G144: ='[1]Remises libres'!G146 -> 50 | H144: ='[1]Remises libres'!H146 -> AUBE HAUTE MARNE | I144: ='[1]Remises libres'!I146 -> 703.71
A145: ='[1]Remises libres'!A147 -> 10582 | B145: ='[1]Remises libres'!B147 -> NOGENT | C145: ='[1]Remises libres'!C147 -> 510590 | D145: ='[1]Remises libres'!D147 -> CHAUMONT REPUBLIQUE | E145: ='[1]Remises libres'!E147 -> 21 | F145: ='[1]Remises libres'!F147 -> CHAUMONT | G145: ='[1]Remises libres'!G147 -> 50 | H145: ='[1]Remises libres'!H147 -> AUBE HAUTE MARNE | I145: ='[1]Remises libres'!I147 -> 187.15
A146: ='[1]Remises libres'!A148 -> 10583 | B146: ='[1]Remises libres'!B148 -> AIX EN OTHE | C146: ='[1]Remises libres'!C148 -> 510523 | D146: ='[1]Remises libres'!D148 -> LA CHAPELLE ST LUC | E146: ='[1]Remises libres'!E148 -> 14 | F146: ='[1]Remises libres'!F148 -> TROYES | G146: ='[1]Remises libres'!G148 -> 50 | H146: ='[1]Remises libres'!H148 -> AUBE HAUTE MARNE | I146: ='[1]Remises libres'!I148 -> 90
A147: ='[1]Remises libres'!A149 -> 10590 | B147: ='[1]Remises libres'!B149 -> CHAUMONT REPUBLIQUE | C147: ='[1]Remises libres'!C149 -> 510590 | D147: ='[1]Remises libres'!D149 -> CHAUMONT REPUBLIQUE | E147: ='[1]Remises libres'!E149 -> 21 | F147: ='[1]Remises libres'!F149 -> CHAUMONT | G147: ='[1]Remises libres'!G149 -> 50 | H147: ='[1]Remises libres'!H149 -> AUBE HAUTE MARNE | I147: ='[1]Remises libres'!I149 -> 1974.61
A148: ='[1]Remises libres'!A150 -> 51101 | B148: ='[1]Remises libres'!B150 -> CHALONS VIVIERS | C148: ='[1]Remises libres'!C150 -> 451101 | D148: ='[1]Remises libres'!D150 -> CHALONS VIVIERS | E148: ='[1]Remises libres'!E150 -> 6 | F148: ='[1]Remises libres'!F150 -> CHALONS EN CHAMPAGNE | G148: ='[1]Remises libres'!G150 -> 30 | H148: ='[1]Remises libres'!H150 -> MARNE ARDENNES | I148: ='[1]Remises libres'!I150 -> 1494.04
A149: ='[1]Remises libres'!A151 -> 51103 | B149: ='[1]Remises libres'!B151 -> FAGNIERES LECLERC | C149: ='[1]Remises libres'!C151 -> 551103 | D149: ='[1]Remises libres'!D151 -> FAGNIERES LECLERC | E149: ='[1]Remises libres'!E151 -> 6 | F149: ='[1]Remises libres'!F151 -> CHALONS EN CHAMPAGNE | G149: ='[1]Remises libres'!G151 -> 30 | H149: ='[1]Remises libres'!H151 -> MARNE ARDENNES | I149: ='[1]Remises libres'!I151 -> 2268.36
A150: ='[1]Remises libres'!A152 -> 51110 | B150: ='[1]Remises libres'!B152 -> CHALONS ROOSEVELT | C150: ='[1]Remises libres'!C152 -> 551110 | D150: ='[1]Remises libres'!D152 -> CHALONS ROOSEVELT | E150: ='[1]Remises libres'!E152 -> 6 | F150: ='[1]Remises libres'!F152 -> CHALONS EN CHAMPAGNE | G150: ='[1]Remises libres'!G152 -> 30 | H150: ='[1]Remises libres'!H152 -> MARNE ARDENNES | I150: ='[1]Remises libres'!I152 -> 155
A151: ='[1]Remises libres'!A153 -> 51114 | B151: ='[1]Remises libres'!B153 -> SUIPPES | C151: ='[1]Remises libres'!C153 -> 451115 | D151: ='[1]Remises libres'!D153 -> MOURMELON LE GRAND | E151: ='[1]Remises libres'!E153 -> 6 | F151: ='[1]Remises libres'!F153 -> CHALONS EN CHAMPAGNE | G151: ='[1]Remises libres'!G153 -> 30 | H151: ='[1]Remises libres'!H153 -> MARNE ARDENNES | I151: ='[1]Remises libres'!I153 -> 545.25
A152: ='[1]Remises libres'!A154 -> 51115 | B152: ='[1]Remises libres'!B154 -> MOURMELON LE GRAND | C152: ='[1]Remises libres'!C154 -> 451115 | D152: ='[1]Remises libres'!D154 -> MOURMELON LE GRAND | E152: ='[1]Remises libres'!E154 -> 6 | F152: ='[1]Remises libres'!F154 -> CHALONS EN CHAMPAGNE | G152: ='[1]Remises libres'!G154 -> 30 | H152: ='[1]Remises libres'!H154 -> MARNE ARDENNES | I152: ='[1]Remises libres'!I154 -> 150
A153: ='[1]Remises libres'!A155 -> 51120 | B153: ='[1]Remises libres'!B155 -> SARRY | C153: ='[1]Remises libres'!C155 -> 451120 | D153: ='[1]Remises libres'!D155 -> SARRY | E153: ='[1]Remises libres'!E155 -> 6 | F153: ='[1]Remises libres'!F155 -> CHALONS EN CHAMPAGNE | G153: ='[1]Remises libres'!G155 -> 30 | H153: ='[1]Remises libres'!H155 -> MARNE ARDENNES | I153: ='[1]Remises libres'!I155 -> 315
A154: ='[1]Remises libres'!A156 -> 51128 | B154: ='[1]Remises libres'!B156 -> SAINTE MENEHOULD | C154: ='[1]Remises libres'!C156 -> 551128 | D154: ='[1]Remises libres'!D156 -> SAINTE MENEHOULD | E154: ='[1]Remises libres'!E156 -> 6 | F154: ='[1]Remises libres'!F156 -> CHALONS EN CHAMPAGNE | G154: ='[1]Remises libres'!G156 -> 30 | H154: ='[1]Remises libres'!H156 -> MARNE ARDENNES | I154: ='[1]Remises libres'!I156 -> 220.37
A155: ='[1]Remises libres'!A157 -> 51151 | B155: ='[1]Remises libres'!B157 -> WASSY | C155: ='[1]Remises libres'!C157 -> 451151 | D155: ='[1]Remises libres'!D157 -> WASSY | E155: ='[1]Remises libres'!E157 -> 21 | F155: ='[1]Remises libres'!F157 -> CHAUMONT | G155: ='[1]Remises libres'!G157 -> 50 | H155: ='[1]Remises libres'!H157 -> AUBE HAUTE MARNE | I155: ='[1]Remises libres'!I157 -> 849.88
A156: ='[1]Remises libres'!A158 -> 51154 | B156: ='[1]Remises libres'!B158 -> JOINVILLE | C156: ='[1]Remises libres'!C158 -> 451154 | D156: ='[1]Remises libres'!D158 -> JOINVILLE | E156: ='[1]Remises libres'!E158 -> 21 | F156: ='[1]Remises libres'!F158 -> CHAUMONT | G156: ='[1]Remises libres'!G158 -> 50 | H156: ='[1]Remises libres'!H158 -> AUBE HAUTE MARNE | I156: ='[1]Remises libres'!I158 -> 244.9
A157: ='[1]Remises libres'!A159 -> 51156 | B157: ='[1]Remises libres'!B159 -> SAINT DIZIER CENTRE | C157: ='[1]Remises libres'!C159 -> 451156 | D157: ='[1]Remises libres'!D159 -> SAINT DIZIER CENTRE | E157: ='[1]Remises libres'!E159 -> 21 | F157: ='[1]Remises libres'!F159 -> CHAUMONT | G157: ='[1]Remises libres'!G159 -> 50 | H157: ='[1]Remises libres'!H159 -> AUBE HAUTE MARNE | I157: ='[1]Remises libres'!I159 -> 2135.15
A158: ='[1]Remises libres'!A160 -> 51157 | B158: ='[1]Remises libres'!B160 -> SAINT DIZIER EUROPE | C158: ='[1]Remises libres'!C160 -> 451156 | D158: ='[1]Remises libres'!D160 -> SAINT DIZIER CENTRE | E158: ='[1]Remises libres'!E160 -> 21 | F158: ='[1]Remises libres'!F160 -> CHAUMONT | G158: ='[1]Remises libres'!G160 -> 50 | H158: ='[1]Remises libres'!H160 -> AUBE HAUTE MARNE | I158: ='[1]Remises libres'!I160 -> 1178.76
A159: ='[1]Remises libres'!A161 -> 51166 | B159: ='[1]Remises libres'!B161 -> VITRY LE FRANCOIS | C159: ='[1]Remises libres'!C161 -> 451166 | D159: ='[1]Remises libres'!D161 -> VITRY LE FRANCOIS | E159: ='[1]Remises libres'!E161 -> 6 | F159: ='[1]Remises libres'!F161 -> CHALONS EN CHAMPAGNE | G159: ='[1]Remises libres'!G161 -> 30 | H159: ='[1]Remises libres'!H161 -> MARNE ARDENNES | I159: ='[1]Remises libres'!I161 -> 638.9
A160: ='[1]Remises libres'!A162 -> 51301 | B160: ='[1]Remises libres'!B162 -> REIMS HOTEL DE VILLE | C160: ='[1]Remises libres'!C162 -> 451301 | D160: ='[1]Remises libres'!D162 -> REIMS HOTEL DE VILLE | E160: ='[1]Remises libres'!E162 -> 11 | F160: ='[1]Remises libres'!F162 -> REIMS | G160: ='[1]Remises libres'!G162 -> 30 | H160: ='[1]Remises libres'!H162 -> MARNE ARDENNES | I160: ='[1]Remises libres'!I162 -> 1729.19
A161: ='[1]Remises libres'!A163 -> 51305 | B161: ='[1]Remises libres'!B163 -> REIMS HIPPODROME | C161: ='[1]Remises libres'!C163 -> 551305 | D161: ='[1]Remises libres'!D163 -> REIMS HIPPODROME | E161: ='[1]Remises libres'!E163 -> 11 | F161: ='[1]Remises libres'!F163 -> REIMS | G161: ='[1]Remises libres'!G163 -> 30 | H161: ='[1]Remises libres'!H163 -> MARNE ARDENNES | I161: ='[1]Remises libres'!I163 -> 4739.4
A162: ='[1]Remises libres'!A164 -> 51306 | B162: ='[1]Remises libres'!B164 -> REIMS SAINT MARCEAUX | C162: ='[1]Remises libres'!C164 -> 551306 | D162: ='[1]Remises libres'!D164 -> REIMS SAINT MARCEAUX | E162: ='[1]Remises libres'!E164 -> 11 | F162: ='[1]Remises libres'!F164 -> REIMS | G162: ='[1]Remises libres'!G164 -> 30 | H162: ='[1]Remises libres'!H164 -> MARNE ARDENNES | I162: ='[1]Remises libres'!I164 -> 3495.94
A163: ='[1]Remises libres'!A165 -> 51307 | B163: ='[1]Remises libres'!B165 -> REIMS SAINTE ANNE | C163: ='[1]Remises libres'!C165 -> 551307 | D163: ='[1]Remises libres'!D165 -> REIMS SAINTE ANNE | E163: ='[1]Remises libres'!E165 -> 11 | F163: ='[1]Remises libres'!F165 -> REIMS | G163: ='[1]Remises libres'!G165 -> 30 | H163: ='[1]Remises libres'!H165 -> MARNE ARDENNES | I163: ='[1]Remises libres'!I165 -> 101.85
A164: ='[1]Remises libres'!A166 -> 51308 | B164: ='[1]Remises libres'!B166 -> REIMS SAINT THOMAS | C164: ='[1]Remises libres'!C166 -> 451308 | D164: ='[1]Remises libres'!D166 -> REIMS SAINT THOMAS | E164: ='[1]Remises libres'!E166 -> 11 | F164: ='[1]Remises libres'!F166 -> REIMS | G164: ='[1]Remises libres'!G166 -> 30 | H164: ='[1]Remises libres'!H166 -> MARNE ARDENNES | I164: ='[1]Remises libres'!I166 -> 1834.45
A165: ='[1]Remises libres'!A167 -> 51309 | B165: ='[1]Remises libres'!B167 -> REIMS EUROPE | C165: ='[1]Remises libres'!C167 -> 551309 | D165: ='[1]Remises libres'!D167 -> REIMS EUROPE | E165: ='[1]Remises libres'!E167 -> 11 | F165: ='[1]Remises libres'!F167 -> REIMS | G165: ='[1]Remises libres'!G167 -> 30 | H165: ='[1]Remises libres'!H167 -> MARNE ARDENNES | I165: ='[1]Remises libres'!I167 -> 1147.03
A166: ='[1]Remises libres'!A168 -> 51310 | B166: ='[1]Remises libres'!B168 -> REIMS CHATILLONS | C166: ='[1]Remises libres'!C168 -> 551310 | D166: ='[1]Remises libres'!D168 -> REIMS CHATILLONS | E166: ='[1]Remises libres'!E168 -> 11 | F166: ='[1]Remises libres'!F168 -> REIMS | G166: ='[1]Remises libres'!G168 -> 30 | H166: ='[1]Remises libres'!H168 -> MARNE ARDENNES | I166: ='[1]Remises libres'!I168 -> 468.14
A167: ='[1]Remises libres'!A169 -> 51314 | B167: ='[1]Remises libres'!B169 -> FISMES | C167: ='[1]Remises libres'!C169 -> 551314 | D167: ='[1]Remises libres'!D169 -> FISMES | E167: ='[1]Remises libres'!E169 -> 11 | F167: ='[1]Remises libres'!F169 -> REIMS | G167: ='[1]Remises libres'!G169 -> 30 | H167: ='[1]Remises libres'!H169 -> MARNE ARDENNES | I167: ='[1]Remises libres'!I169 -> 90
A168: ='[1]Remises libres'!A170 -> 51318 | B168: ='[1]Remises libres'!B170 -> VERZY | C168: ='[1]Remises libres'!C170 -> 451370 | D168: ='[1]Remises libres'!D170 -> EPERNAY | E168: ='[1]Remises libres'!E170 -> 11 | F168: ='[1]Remises libres'!F170 -> REIMS | G168: ='[1]Remises libres'!G170 -> 30 | H168: ='[1]Remises libres'!H170 -> MARNE ARDENNES | I168: ='[1]Remises libres'!I170 -> 13.33
A169: ='[1]Remises libres'!A171 -> 51330 | B169: ='[1]Remises libres'!B171 -> MONTMIRAIL | C169: ='[1]Remises libres'!C171 -> 551330 | D169: ='[1]Remises libres'!D171 -> MONTMIRAIL | E169: ='[1]Remises libres'!E171 -> 6 | F169: ='[1]Remises libres'!F171 -> CHALONS EN CHAMPAGNE | G169: ='[1]Remises libres'!G171 -> 30 | H169: ='[1]Remises libres'!H171 -> MARNE ARDENNES | I169: ='[1]Remises libres'!I171 -> 54.97
A170: ='[1]Remises libres'!A172 -> 51336 | B170: ='[1]Remises libres'!B172 -> TINQUEUX | C170: ='[1]Remises libres'!C172 -> 451336 | D170: ='[1]Remises libres'!D172 -> TINQUEUX | E170: ='[1]Remises libres'!E172 -> 11 | F170: ='[1]Remises libres'!F172 -> REIMS | G170: ='[1]Remises libres'!G172 -> 30 | H170: ='[1]Remises libres'!H172 -> MARNE ARDENNES | I170: ='[1]Remises libres'!I172 -> 1049.14
A171: ='[1]Remises libres'!A173 -> 51340 | B171: ='[1]Remises libres'!B173 -> BETHENY | C171: ='[1]Remises libres'!C173 -> 551340 | D171: ='[1]Remises libres'!D173 -> BETHENY | E171: ='[1]Remises libres'!E173 -> 11 | F171: ='[1]Remises libres'!F173 -> REIMS | G171: ='[1]Remises libres'!G173 -> 30 | H171: ='[1]Remises libres'!H173 -> MARNE ARDENNES | I171: ='[1]Remises libres'!I173 -> 1084.75
A172: ='[1]Remises libres'!A174 -> 51341 | B172: ='[1]Remises libres'!B174 -> REIMS JEAN JAURES | C172: ='[1]Remises libres'!C174 -> 551341 | D172: ='[1]Remises libres'!D174 -> REIMS JEAN JAURES | E172: ='[1]Remises libres'!E174 -> 11 | F172: ='[1]Remises libres'!F174 -> REIMS | G172: ='[1]Remises libres'!G174 -> 30 | H172: ='[1]Remises libres'!H174 -> MARNE ARDENNES | I172: ='[1]Remises libres'!I174 -> 257.48
A173: ='[1]Remises libres'!A175 -> 51349 | B173: ='[1]Remises libres'!B175 -> REIMS SAINT REMI | C173: ='[1]Remises libres'!C175 -> 551349 | D173: ='[1]Remises libres'!D175 -> REIMS SAINT REMI | E173: ='[1]Remises libres'!E175 -> 11 | F173: ='[1]Remises libres'!F175 -> REIMS | G173: ='[1]Remises libres'!G175 -> 30 | H173: ='[1]Remises libres'!H175 -> MARNE ARDENNES | I173: ='[1]Remises libres'!I175 -> 485.67
A174: ='[1]Remises libres'!A176 -> 51350 | B174: ='[1]Remises libres'!B176 -> REIMS CENTRE VILLE | C174: ='[1]Remises libres'!C176 -> 451350 | D174: ='[1]Remises libres'!D176 -> REIMS CENTRE VILLE | E174: ='[1]Remises libres'!E176 -> 11 | F174: ='[1]Remises libres'!F176 -> REIMS | G174: ='[1]Remises libres'!G176 -> 30 | H174: ='[1]Remises libres'!H176 -> MARNE ARDENNES | I174: ='[1]Remises libres'!I176 -> 1693.12
A175: ='[1]Remises libres'!A177 -> 51354 | B175: ='[1]Remises libres'!B177 -> VERTUS | C175: ='[1]Remises libres'!C177 -> 551354 | D175: ='[1]Remises libres'!D177 -> VERTUS | E175: ='[1]Remises libres'!E177 -> 6 | F175: ='[1]Remises libres'!F177 -> CHALONS EN CHAMPAGNE | G175: ='[1]Remises libres'!G177 -> 30 | H175: ='[1]Remises libres'!H177 -> MARNE ARDENNES | I175: ='[1]Remises libres'!I177 -> 1151.23
A176: ='[1]Remises libres'!A178 -> 51361 | B176: ='[1]Remises libres'!B178 -> PIERRY LECLERC | C176: ='[1]Remises libres'!C178 -> 451361 | D176: ='[1]Remises libres'!D178 -> PIERRY LECLERC | E176: ='[1]Remises libres'!E178 -> 11 | F176: ='[1]Remises libres'!F178 -> REIMS | G176: ='[1]Remises libres'!G178 -> 30 | H176: ='[1]Remises libres'!H178 -> MARNE ARDENNES | I176: ='[1]Remises libres'!I178 -> 351.3
A177: ='[1]Remises libres'!A179 -> 51365 | B177: ='[1]Remises libres'!B179 -> DORMANS | C177: ='[1]Remises libres'!C179 -> 551365 | D177: ='[1]Remises libres'!D179 -> DORMANS | E177: ='[1]Remises libres'!E179 -> 11 | F177: ='[1]Remises libres'!F179 -> REIMS | G177: ='[1]Remises libres'!G179 -> 30 | H177: ='[1]Remises libres'!H179 -> MARNE ARDENNES | I177: ='[1]Remises libres'!I179 -> 0
A178: ='[1]Remises libres'!A180 -> 51367 | B178: ='[1]Remises libres'!B180 -> AY CHAMPAGNE | C178: ='[1]Remises libres'!C180 -> 551367 | D178: ='[1]Remises libres'!D180 -> AY CHAMPAGNE | E178: ='[1]Remises libres'!E180 -> 11 | F178: ='[1]Remises libres'!F180 -> REIMS | G178: ='[1]Remises libres'!G180 -> 30 | H178: ='[1]Remises libres'!H180 -> MARNE ARDENNES | I178: ='[1]Remises libres'!I180 -> 0
A179: ='[1]Remises libres'!A181 -> 51369 | B179: ='[1]Remises libres'!B181 -> DAMERY | C179: ='[1]Remises libres'!C181 -> 551369 | D179: ='[1]Remises libres'!D181 -> DAMERY | E179: ='[1]Remises libres'!E181 -> 11 | F179: ='[1]Remises libres'!F181 -> REIMS | G179: ='[1]Remises libres'!G181 -> 30 | H179: ='[1]Remises libres'!H181 -> MARNE ARDENNES | I179: ='[1]Remises libres'!I181 -> 852.82
A180: ='[1]Remises libres'!A182 -> 51370 | B180: ='[1]Remises libres'!B182 -> EPERNAY | C180: ='[1]Remises libres'!C182 -> 451370 | D180: ='[1]Remises libres'!D182 -> EPERNAY | E180: ='[1]Remises libres'!E182 -> 11 | F180: ='[1]Remises libres'!F182 -> REIMS | G180: ='[1]Remises libres'!G182 -> 30 | H180: ='[1]Remises libres'!H182 -> MARNE ARDENNES | I180: ='[1]Remises libres'!I182 -> 1457.6
A181: ='[1]Remises libres'!A183 -> 51381 | B181: ='[1]Remises libres'!B183 -> SEZANNE | C181: ='[1]Remises libres'!C183 -> 451381 | D181: ='[1]Remises libres'!D183 -> SEZANNE | E181: ='[1]Remises libres'!E183 -> 6 | F181: ='[1]Remises libres'!F183 -> CHALONS EN CHAMPAGNE | G181: ='[1]Remises libres'!G183 -> 30 | H181: ='[1]Remises libres'!H183 -> MARNE ARDENNES | I181: ='[1]Remises libres'!I183 -> 1255.74
A182: ='[1]Remises libres'!A184 -> 54116 | B182: ='[1]Remises libres'!B184 -> BACCARAT | C182: ='[1]Remises libres'!C184 -> 554116 | D182: ='[1]Remises libres'!D184 -> BACCARAT | E182: ='[1]Remises libres'!E184 -> 26 | F182: ='[1]Remises libres'!F184 -> NANCY | G182: ='[1]Remises libres'!G184 -> 110 | H182: ='[1]Remises libres'!H184 -> MEURTHE ET MOSELLE MEUSE | I182: ='[1]Remises libres'!I184 -> 378
A183: ='[1]Remises libres'!A185 -> 54161 | B183: ='[1]Remises libres'!B185 -> BAYON | C183: ='[1]Remises libres'!C185 -> 554166 | D183: ='[1]Remises libres'!D185 -> BLAINVILLE | E183: ='[1]Remises libres'!E185 -> 26 | F183: ='[1]Remises libres'!F185 -> NANCY | G183: ='[1]Remises libres'!G185 -> 110 | H183: ='[1]Remises libres'!H185 -> MEURTHE ET MOSELLE MEUSE | I183: ='[1]Remises libres'!I185 -> 10.51
A184: ='[1]Remises libres'!A186 -> 54166 | B184: ='[1]Remises libres'!B186 -> BLAINVILLE | C184: ='[1]Remises libres'!C186 -> 554166 | D184: ='[1]Remises libres'!D186 -> BLAINVILLE | E184: ='[1]Remises libres'!E186 -> 26 | F184: ='[1]Remises libres'!F186 -> NANCY | G184: ='[1]Remises libres'!G186 -> 110 | H184: ='[1]Remises libres'!H186 -> MEURTHE ET MOSELLE MEUSE | I184: ='[1]Remises libres'!I186 -> 1002.98
A185: ='[1]Remises libres'!A187 -> 54171 | B185: ='[1]Remises libres'!B187 -> BLAMONT | C185: ='[1]Remises libres'!C187 -> 454171 | D185: ='[1]Remises libres'!D187 -> BLAMONT | E185: ='[1]Remises libres'!E187 -> 26 | F185: ='[1]Remises libres'!F187 -> NANCY | G185: ='[1]Remises libres'!G187 -> 110 | H185: ='[1]Remises libres'!H187 -> MEURTHE ET MOSELLE MEUSE | I185: ='[1]Remises libres'!I187 -> 100
A186: ='[1]Remises libres'!A188 -> 54184 | B186: ='[1]Remises libres'!B188 -> BRIEY | C186: ='[1]Remises libres'!C188 -> 554184 | D186: ='[1]Remises libres'!D188 -> BRIEY | E186: ='[1]Remises libres'!E188 -> 27 | F186: ='[1]Remises libres'!F188 -> PONT A MOUSSON | G186: ='[1]Remises libres'!G188 -> 110 | H186: ='[1]Remises libres'!H188 -> MEURTHE ET MOSELLE MEUSE | I186: ='[1]Remises libres'!I188 -> 185.64
A187: ='[1]Remises libres'!A189 -> 54196 | B187: ='[1]Remises libres'!B189 -> CHAMPIGNEULLES | C187: ='[1]Remises libres'!C189 -> 554196 | D187: ='[1]Remises libres'!D189 -> CHAMPIGNEULLES | E187: ='[1]Remises libres'!E189 -> 27 | F187: ='[1]Remises libres'!F189 -> PONT A MOUSSON | G187: ='[1]Remises libres'!G189 -> 110 | H187: ='[1]Remises libres'!H189 -> MEURTHE ET MOSELLE MEUSE | I187: ='[1]Remises libres'!I189 -> 181.75
A188: ='[1]Remises libres'!A190 -> 54257 | B188: ='[1]Remises libres'!B190 -> DIEULOUARD | C188: ='[1]Remises libres'!C190 -> 554257 | D188: ='[1]Remises libres'!D190 -> DIEULOUARD | E188: ='[1]Remises libres'!E190 -> 27 | F188: ='[1]Remises libres'!F190 -> PONT A MOUSSON | G188: ='[1]Remises libres'!G190 -> 110 | H188: ='[1]Remises libres'!H190 -> MEURTHE ET MOSELLE MEUSE | I188: ='[1]Remises libres'!I190 -> 300
A189: ='[1]Remises libres'!A191 -> 54266 | B189: ='[1]Remises libres'!B191 -> DOMBASLE SUR MEURTHE | C189: ='[1]Remises libres'!C191 -> 554266 | D189: ='[1]Remises libres'!D191 -> DOMBASLE SUR MEURTHE | E189: ='[1]Remises libres'!E191 -> 26 | F189: ='[1]Remises libres'!F191 -> NANCY | G189: ='[1]Remises libres'!G191 -> 110 | H189: ='[1]Remises libres'!H191 -> MEURTHE ET MOSELLE MEUSE | I189: ='[1]Remises libres'!I191 -> 161.96
A190: ='[1]Remises libres'!A192 -> 54296 | B190: ='[1]Remises libres'!B192 -> ESSEY LES NANCY | C190: ='[1]Remises libres'!C192 -> 554296 | D190: ='[1]Remises libres'!D192 -> ESSEY LES NANCY | E190: ='[1]Remises libres'!E192 -> 26 | F190: ='[1]Remises libres'!F192 -> NANCY | G190: ='[1]Remises libres'!G192 -> 110 | H190: ='[1]Remises libres'!H192 -> MEURTHE ET MOSELLE MEUSE | I190: ='[1]Remises libres'!I192 -> 350.77
A191: ='[1]Remises libres'!A193 -> 54321 | B191: ='[1]Remises libres'!B193 -> FROUARD | C191: ='[1]Remises libres'!C193 -> 554321 | D191: ='[1]Remises libres'!D193 -> FROUARD | E191: ='[1]Remises libres'!E193 -> 27 | F191: ='[1]Remises libres'!F193 -> PONT A MOUSSON | G191: ='[1]Remises libres'!G193 -> 110 | H191: ='[1]Remises libres'!H193 -> MEURTHE ET MOSELLE MEUSE | I191: ='[1]Remises libres'!I193 -> 0
A192: ='[1]Remises libres'!A194 -> 54355 | B192: ='[1]Remises libres'!B194 -> JARNY | C192: ='[1]Remises libres'!C194 -> 454355 | D192: ='[1]Remises libres'!D194 -> JARNY | E192: ='[1]Remises libres'!E194 -> 27 | F192: ='[1]Remises libres'!F194 -> PONT A MOUSSON | G192: ='[1]Remises libres'!G194 -> 110 | H192: ='[1]Remises libres'!H194 -> MEURTHE ET MOSELLE MEUSE | I192: ='[1]Remises libres'!I194 -> 2306.9
A193: ='[1]Remises libres'!A195 -> 54356 | B193: ='[1]Remises libres'!B195 -> JARVILLE LA MALGRANGE | C193: ='[1]Remises libres'!C195 -> 554356 | D193: ='[1]Remises libres'!D195 -> JARVILLE LA MALGRANGE | E193: ='[1]Remises libres'!E195 -> 26 | F193: ='[1]Remises libres'!F195 -> NANCY | G193: ='[1]Remises libres'!G195 -> 110 | H193: ='[1]Remises libres'!H195 -> MEURTHE ET MOSELLE MEUSE | I193: ='[1]Remises libres'!I195 -> 207.58
A194: ='[1]Remises libres'!A196 -> 54357 | B194: ='[1]Remises libres'!B196 -> JOEUF | C194: ='[1]Remises libres'!C196 -> 554357 | D194: ='[1]Remises libres'!D196 -> JOEUF | E194: ='[1]Remises libres'!E196 -> 27 | F194: ='[1]Remises libres'!F196 -> PONT A MOUSSON | G194: ='[1]Remises libres'!G196 -> 110 | H194: ='[1]Remises libres'!H196 -> MEURTHE ET MOSELLE MEUSE | I194: ='[1]Remises libres'!I196 -> 985.28
A195: ='[1]Remises libres'!A197 -> 54376 | B195: ='[1]Remises libres'!B197 -> LAXOU BOUFFLERS | C195: ='[1]Remises libres'!C197 -> 554376 | D195: ='[1]Remises libres'!D197 -> LAXOU BOUFFLERS | E195: ='[1]Remises libres'!E197 -> 27 | F195: ='[1]Remises libres'!F197 -> PONT A MOUSSON | G195: ='[1]Remises libres'!G197 -> 110 | H195: ='[1]Remises libres'!H197 -> MEURTHE ET MOSELLE MEUSE | I195: ='[1]Remises libres'!I197 -> 300
A196: ='[1]Remises libres'!A198 -> 54381 | B196: ='[1]Remises libres'!B198 -> LAXOU ARISTIDE BRIAND | C196: ='[1]Remises libres'!C198 -> 554381 | D196: ='[1]Remises libres'!D198 -> LAXOU ARISTIDE BRIAND | E196: ='[1]Remises libres'!E198 -> 27 | F196: ='[1]Remises libres'!F198 -> PONT A MOUSSON | G196: ='[1]Remises libres'!G198 -> 110 | H196: ='[1]Remises libres'!H198 -> MEURTHE ET MOSELLE MEUSE | I196: ='[1]Remises libres'!I198 -> 891.96
A197: ='[1]Remises libres'!A199 -> 54412 | B197: ='[1]Remises libres'!B199 -> LONGUYON | C197: ='[1]Remises libres'!C199 -> 554412 | D197: ='[1]Remises libres'!D199 -> LONGUYON | E197: ='[1]Remises libres'!E199 -> 31 | F197: ='[1]Remises libres'!F199 -> VERDUN | G197: ='[1]Remises libres'!G199 -> 110 | H197: ='[1]Remises libres'!H199 -> MEURTHE ET MOSELLE MEUSE | I197: ='[1]Remises libres'!I199 -> 50
A198: ='[1]Remises libres'!A200 -> 54413 | B198: ='[1]Remises libres'!B200 -> LONGWY BAS | C198: ='[1]Remises libres'!C200 -> 554413 | D198: ='[1]Remises libres'!D200 -> LONGWY BAS | E198: ='[1]Remises libres'!E200 -> 31 | F198: ='[1]Remises libres'!F200 -> VERDUN | G198: ='[1]Remises libres'!G200 -> 110 | H198: ='[1]Remises libres'!H200 -> MEURTHE ET MOSELLE MEUSE | I198: ='[1]Remises libres'!I200 -> 258.46
A199: ='[1]Remises libres'!A201 -> 54414 | B199: ='[1]Remises libres'!B201 -> LONGWY HAUT | C199: ='[1]Remises libres'!C201 -> 454414 | D199: ='[1]Remises libres'!D201 -> LONGWY HAUT | E199: ='[1]Remises libres'!E201 -> 31 | F199: ='[1]Remises libres'!F201 -> VERDUN | G199: ='[1]Remises libres'!G201 -> 110 | H199: ='[1]Remises libres'!H201 -> MEURTHE ET MOSELLE MEUSE | I199: ='[1]Remises libres'!I201 -> 829.2
A200: ='[1]Remises libres'!A202 -> 54416 | B200: ='[1]Remises libres'!B202 -> LUDRES | C200: ='[1]Remises libres'!C202 -> 554416 | D200: ='[1]Remises libres'!D202 -> LUDRES | E200: ='[1]Remises libres'!E202 -> 27 | F200: ='[1]Remises libres'!F202 -> PONT A MOUSSON | G200: ='[1]Remises libres'!G202 -> 110 | H200: ='[1]Remises libres'!H202 -> MEURTHE ET MOSELLE MEUSE | I200: ='[1]Remises libres'!I202 -> 996.26
A201: ='[1]Remises libres'!A203 -> 54426 | B201: ='[1]Remises libres'!B203 -> LUNEVILLE CARNOT | C201: ='[1]Remises libres'!C203 -> 454426 | D201: ='[1]Remises libres'!D203 -> LUNEVILLE CARNOT | E201: ='[1]Remises libres'!E203 -> 26 | F201: ='[1]Remises libres'!F203 -> NANCY | G201: ='[1]Remises libres'!G203 -> 110 | H201: ='[1]Remises libres'!H203 -> MEURTHE ET MOSELLE MEUSE | I201: ='[1]Remises libres'!I203 -> 3214.61
... 124 more rows

Sheet Rapport 5 (hidden)
AD1: 30 | AI1: 35 | AN1: 40 | AS1: 45 | AX1: 50 | BC1: 55 | BH1: 60 | BM1: 65 | BR1: 70
I2: ='[1]Rapport 5'!I2 -> AGIOS | K2: ='[1]Rapport 5'!K2 -> ASSURANCE RISQUES | M2: ='[1]Rapport 5'!M2 -> BANCARISATION ET GESTION COURANTE | O2: ='[1]Rapport 5'!O2 -> CREDITS | Q2: ='[1]Rapport 5'!Q2 -> INTERETS CREDITS CT ET MLT | S2: ='[1]Rapport 5'!S2 -> OPERATIONS INTERNATIONALES | U2: ='[1]Rapport 5'!U2 -> SERVICES CLIENTELES DIVERS | W2: ='[1]Rapport 5'!W2 -> TITRES | Y2: Total facturé | Z2: Total remisé | AA2: Taux de remise total | AB2: Classt Taux total | AC2: Calcul Décile total | AD2: Décile total | AE2: Agios remisés | AF2: Taux de remise Agios | AG2: Classt Taux Agios | AH2: Calcul Décile Agios | AI2: Décile Agios | AJ2: Assurances remisées | AK2: Taux de remise Assurances | AL2: Classt Taux Assurances | AM2: Calcul Décile Assurances | AN2: Décile Assurances | AO2: Banca et gestion courante remisées | AP2: Taux de remise Banca et gestion courante | AQ2: Classt Taux Banca et gestion courante | AR2: Calcul Décile Banca et gestion courante | AS2: Décile Banca et gestion courante | AT2: Crédits remisées | AU2: Taux de remise Crédits | AV2: Classt Taux Crédits | AW2: Calcul Décile Crédits | AX2: Décile Crédits | AY2: Intérets crédits remisées | AZ2: Taux de remise Intérets crédits | BA2: Classt Taux Intérets crédits | BB2: Calcul Décile Intérets crédits | BC2: Décile Intérets crédits | BD2: Opérations internationales remisées | BE2: Taux de remise Opérations internationales | BF2: Classt Taux Opérations internationales | BG2: Calcul Décile Opérations internationales | BH2: Décile Opérations internationales | BI2: Services clientèles divers remisées | BJ2: Taux de remise Services clientèles divers | BK2: Classt Taux Services clientèles divers | BL2: Calcul Décile Services clientèles divers | BM2: Décile Services clientèles divers | BN2: Titres remisées | BO2: Taux de remise Titres | BP2: Classt Taux Titres | BQ2: Calcul Décile Titres | BR2: Décile Titres
A3: ='[1]Rapport 5'!A3 -> 6 | B3: ='[1]Rapport 5'!B3 -> STRASBOURG NEUDORF | C3: ='[1]Rapport 5'!C3 -> 4006 | D3: ='[1]Rapport 5'!D3 -> STRASBOURG NEUDORF | E3: ='[1]Rapport 5'!E3 -> 5006 | F3: ='[1]Rapport 5'!F3 -> STRASBOURG | G3: ='[1]Rapport 5'!G3 -> 262 | H3: ='[1]Rapport 5'!H3 -> BAS RHIN | I3: ='[1]Rapport 5'!I3 -> 11159.44 | J3: ='[1]Rapport 5'!J3 -> 761.54 | K3: ='[1]Rapport 5'!K3 -> 0 | L3: ='[1]Rapport 5'!L3 -> 0 | M3: ='[1]Rapport 5'!M3 -> 312984.13 | N3: ='[1]Rapport 5'!N3 -> 10617.31 | O3: ='[1]Rapport 5'!O3 -> 5108.5 | P3: ='[1]Rapport 5'!P3 -> 241 | Q3: ='[1]Rapport 5'!Q3 -> 0 | R3: ='[1]Rapport 5'!R3 -> 0 | S3: ='[1]Rapport 5'!S3 -> 1179.9 | T3: ='[1]Rapport 5'!T3 -> 0 | U3: ='[1]Rapport 5'!U3 -> 30858.92 | V3: ='[1]Rapport 5'!V3 -> 2214.43 | W3: ='[1]Rapport 5'!W3 -> 9939.21 | X3: ='[1]Rapport 5'!X3 -> 219.68 | Y3: =+I3+K3+M3+O3+Q3+S3+U3+W3 -> 371,230 | Z3: =+J3+L3+N3+P3+R3+T3+V3+X3 -> 14,054 | AA3: =+Z3/Y3 -> 3.8% | AB3: =RANK(AA3,$AA$3:$AA$319,1) -> 179 | AC3: =1+(AB3/COUNT($AB$3:AB$319)*10) -> 6.646687697 | AD3: =+IF(INT(AC3)=11,10,INT(AC3)) -> 6 | AE3: =+J3 -> 762 | AF3: =+IF(ISERROR(AE3/I3),0,AE3/I3) -> 6.8% | AG3: =RANK(AF3,$AF$3:$AF$319,1) -> 251 | AH3: =1+(AG3/COUNT($AG$3:$AG$319)*10) -> 8.917981073 | AI3: =+IF(INT(AH3)=11,10,INT(AH3)) -> 8 | AJ3: =+L3 -> 0 | AK3: =+IF(ISERROR(IF(AJ3=0,0,AJ3/K3)),1,IF(AJ3=0,0,AJ3/K3)) -> 0.0% | AL3: =RANK(AK3,$AK$3:$AK$319,1) -> 1 | AM3: =1+(AL3/COUNT($AL$3:$AL$319)*10) -> 1.031545741 | AN3: =+IF(INT(AM3)=11,10,INT(AM3)) -> 1 | AO3: =+N3 -> 10,617 | AP3: =+IF(ISERROR(IF(AO3=0,0,AO3/M3)),1,IF(AO3=0,0,AO3/M3)) -> 3.4% | AQ3: =RANK(AP3,$AP$3:$AP$319,1) -> 215 | AR3: =1+(AQ3/COUNT($AQ$3:$AQ$319)*10) -> 7.782334385 | AS3: =+IF(INT(AR3)=11,10,INT(AR3)) -> 7 | AT3: =+P3 -> 241 | AU3: =+IF(ISERROR(IF(AT3=0,0,AT3/O3)),1,IF(AT3=0,0,AT3/O3)) -> 4.7% | AV3: =RANK(AU3,$AU$3:$AU$319,1) -> 174 | AW3: =1+(AV3/COUNT($AV$3:$AV$319)*10) -> 6.488958991 | AX3: =+IF(INT(AW3)=11,10,INT(AW3)) -> 6 | AY3: =+R3 -> 0 | AZ3: =+IF(ISERROR(IF(AY3=0,0,AY3/T3)),1,IF(AY3=0,0,AY3/T3)) -> 0.0% | BA3: =RANK(AZ3,$AZ$3:$AZ$319,1) -> 1 | BB3: =1+(BA3/COUNT($BA$3:$BA$319)*10) -> 1.031545741 | BC3: =+IF(INT(BB3)=11,10,INT(BB3)) -> 1 | BD3: =+T3 -> 0 | BE3: =+IF(ISERROR(IF(BD3=0,0,BD3/S3)),1,IF(BD3=0,0,BD3/S3)) -> 0.0% | BF3: =RANK(BE3,$BE$3:$BE$319,1) -> 1 | BG3: =1+(BF3/COUNT($BF$3:$BF$319)*10) -> 1.031545741 | BH3: =+IF(INT(BG3)=11,10,INT(BG3)) -> 1 | BI3: =+V3 -> 2,214 | BJ3: =+IF(ISERROR(IF(BI3=0,0,BI3/U3)),1,IF(BI3=0,0,BI3/U3)) -> 7.2% | BK3: =RANK(BJ3,$BJ$3:$BJ$319,1) -> 102 | BL3: =1+(BK3/COUNT($BK$3:$BK$319)*10) -> 4.217665615 | BM3: =+IF(INT(BL3)=11,10,INT(BL3)) -> 4 | BN3: =+X3 -> 220 | BO3: =+IF(ISERROR(IF(BN3=0,0,BN3/W3)),1,IF(BN3=0,0,BN3/W3)) -> 2.2% | BP3: =RANK(BO3,$BO$3:$BO$319,1) -> 105 | BQ3: =1+(BP3/COUNT($BP$3:$BP$319)*10) -> 4.312302839 | BR3: =+IF(INT(BQ3)=11,10,INT(BQ3)) -> 4 | BT3: 6 | BU3: =+BT3-A3 -> 0
A4: ='[1]Rapport 5'!A4 -> 7 | B4: ='[1]Rapport 5'!B4 -> ILLKIRCH CENTRE | C4: ='[1]Rapport 5'!C4 -> 4007 | D4: ='[1]Rapport 5'!D4 -> ILLKIRCH CENTRE | E4: ='[1]Rapport 5'!E4 -> 5101 | F4: ='[1]Rapport 5'!F4 -> SELESTAT | G4: ='[1]Rapport 5'!G4 -> 262 | H4: ='[1]Rapport 5'!H4 -> BAS RHIN | I4: ='[1]Rapport 5'!I4 -> 10611.09 | J4: ='[1]Rapport 5'!J4 -> 1125.17 | K4: ='[1]Rapport 5'!K4 -> 0 | L4: ='[1]Rapport 5'!L4 -> 0 | M4: ='[1]Rapport 5'!M4 -> 365665.3 | N4: ='[1]Rapport 5'!N4 -> 14903.35 | O4: ='[1]Rapport 5'!O4 -> 19917 | P4: ='[1]Rapport 5'!P4 -> 1266 | Q4: ='[1]Rapport 5'!Q4 -> 1724.39 | R4: ='[1]Rapport 5'!R4 -> 0 | S4: ='[1]Rapport 5'!S4 -> 942.6 | T4: ='[1]Rapport 5'!T4 -> 39 | U4: ='[1]Rapport 5'!U4 -> 30211.97 | V4: ='[1]Rapport 5'!V4 -> 1894.57 | W4: ='[1]Rapport 5'!W4 -> 18817.45 | X4: ='[1]Rapport 5'!X4 -> 1368.07 | Y4: =+I4+K4+M4+O4+Q4+S4+U4+W4 -> 447,890 | Z4: =+J4+L4+N4+P4+R4+T4+V4+X4 -> 20,596 | AA4: =+Z4/Y4 -> 4.6% | AB4: 250 | AC4: =1+(AB4/COUNT($AB$3:AB$319)*10) -> 8.886435331 | AD4: =+IF(INT(AC4)=11,10,INT(AC4)) -> 8 | AE4: =+J4 -> 1,125 | AF4: =+IF(ISERROR(AE4/I4),0,AE4/I4) -> 10.6% | AG4: 291 | AH4: 10.17981073 | AI4: =+IF(INT(AH4)=11,10,INT(AH4)) -> 10 | AJ4: =+L4 -> 0 | AK4: =+IF(ISERROR(IF(AJ4=0,0,AJ4/K4)),1,IF(AJ4=0,0,AJ4/K4)) -> 0.0% | AL4: 1 | AM4: 1.031545741 | AN4: =+IF(INT(AM4)=11,10,INT(AM4)) -> 1 | AO4: =+N4 -> 14,903 | AP4: =+IF(ISERROR(IF(AO4=0,0,AO4/M4)),1,IF(AO4=0,0,AO4/M4)) -> 4.1% | AQ4: 269 | AR4: 9.485804416 | AS4: =+IF(INT(AR4)=11,10,INT(AR4)) -> 9 | AT4: =+P4 -> 1,266 | AU4: =+IF(ISERROR(IF(AT4=0,0,AT4/O4)),1,IF(AT4=0,0,AT4/O4)) -> 6.4% | AV4: 209 | AW4: 7.593059937 | AX4: =+IF(INT(AW4)=11,10,INT(AW4)) -> 7 | AY4: =+R4 -> 0 | AZ4: =+IF(ISERROR(IF(AY4=0,0,AY4/T4)),1,IF(AY4=0,0,AY4/T4)) -> 0.0% | BA4: 1 | BB4: 1.031545741 | BC4: =+IF(INT(BB4)=11,10,INT(BB4)) -> 1 | BD4: =+T4 -> 39 | BE4: =+IF(ISERROR(IF(BD4=0,0,BD4/S4)),1,IF(BD4=0,0,BD4/S4)) -> 4.1% | BF4: 237 | BG4: 8.476340694 | BH4: =+IF(INT(BG4)=11,10,INT(BG4)) -> 8 | BI4: =+V4 -> 1,895 | BJ4: =+IF(ISERROR(IF(BI4=0,0,BI4/U4)),1,IF(BI4=0,0,BI4/U4)) -> 6.3% | BK4: 86 | BL4: 3.712933754 | BM4: =+IF(INT(BL4)=11,10,INT(BL4)) -> 3 | BN4: =+X4 -> 1,368 | BO4: =+IF(ISERROR(IF(BN4=0,0,BN4/W4)),1,IF(BN4=0,0,BN4/W4)) -> 7.3% | BP4: 256 | BQ4: 9.075709779 | BR4: =+IF(INT(BQ4)=11,10,INT(BQ4)) -> 9 | BT4: 7 | BU4: =+BT4-A4 -> 0
A5: ='[1]Rapport 5'!A5 -> 8 | B5: ='[1]Rapport 5'!B5 -> FEGERSHEIM | C5: ='[1]Rapport 5'!C5 -> 4008 | D5: ='[1]Rapport 5'!D5 -> FEGERSHEIM | E5: ='[1]Rapport 5'!E5 -> 5101 | F5: ='[1]Rapport 5'!F5 -> SELESTAT | G5: ='[1]Rapport 5'!G5 -> 262 | H5: ='[1]Rapport 5'!H5 -> BAS RHIN | I5: ='[1]Rapport 5'!I5 -> 4382.39 | J5: ='[1]Rapport 5'!J5 -> 346.2 | K5: ='[1]Rapport 5'!K5 -> 0 | L5: ='[1]Rapport 5'!L5 -> 0 | M5: ='[1]Rapport 5'!M5 -> 138405.74 | N5: ='[1]Rapport 5'!N5 -> 5037.27 | O5: ='[1]Rapport 5'!O5 -> 4743 | P5: ='[1]Rapport 5'!P5 -> 42.5 | Q5: ='[1]Rapport 5'!Q5 -> 0 | R5: ='[1]Rapport 5'!R5 -> 0 | S5: ='[1]Rapport 5'!S5 -> 300 | T5: ='[1]Rapport 5'!T5 -> 31 | U5: ='[1]Rapport 5'!U5 -> 6518.58 | V5: ='[1]Rapport 5'!V5 -> 1111.99 | W5: ='[1]Rapport 5'!W5 -> 5401.29 | X5: ='[1]Rapport 5'!X5 -> 215.65 | Y5: 159,751 | Z5: 6,785 | AA5: 4.2% | AB5: 232 | AC5: =1+(AB5/COUNT($AB$3:AB$319)*10) -> 8.318611987 | AD5: 8 | AE5: =+J5 -> 346 | AF5: 7.9% | AG5: 270 | AH5: 9.517350158 | AI5: =+IF(INT(AH5)=11,10,INT(AH5)) -> 9 | AJ5: 0 | AK5: 0.0% | AL5: 1 | AM5: 1.031545741 | AN5: 1 | AO5: 5,037 | AP5: 3.6% | AQ5: 241 | AR5: 8.602523659 | AS5: 8 | AT5: =+P5 -> 43 | AU5: =+IF(ISERROR(IF(AT5=0,0,AT5/O5)),1,IF(AT5=0,0,AT5/O5)) -> 0.9% | AV5: 74 | AW5: 3.334384858 | AX5: =+IF(INT(AW5)=11,10,INT(AW5)) -> 3 | AY5: =+R5 -> 0 | AZ5: =+IF(ISERROR(IF(AY5=0,0,AY5/T5)),1,IF(AY5=0,0,AY5/T5)) -> 0.0% | BA5: 1 | BB5: 1.031545741 | BC5: =+IF(INT(BB5)=11,10,INT(BB5)) -> 1 | BD5: =+T5 -> 31 | BE5: =+IF(ISERROR(IF(BD5=0,0,BD5/S5)),1,IF(BD5=0,0,BD5/S5)) -> 10.3% | BF5: 276 | BG5: 9.706624606 | BH5: =+IF(INT(BG5)=11,10,INT(BG5)) -> 9 | BI5: =+V5 -> 1,112 | BJ5: =+IF(ISERROR(IF(BI5=0,0,BI5/U5)),1,IF(BI5=0,0,BI5/U5)) -> 17.1% | BK5: 251 | BL5: 8.917981073 | BM5: =+IF(INT(BL5)=11,10,INT(BL5)) -> 8 | BN5: =+X5 -> 216 | BO5: =+IF(ISERROR(IF(BN5=0,0,BN5/W5)),1,IF(BN5=0,0,BN5/W5)) -> 4.0% | BP5: 185 | BQ5: 6.835962145 | BR5: =+IF(INT(BQ5)=11,10,INT(BQ5)) -> 6 | BT5: 8 | BU5: 0
A6: ='[1]Rapport 5'!A6 -> 10 | B6: ='[1]Rapport 5'!B6 -> STRASBOURG MEINAU | C6: ='[1]Rapport 5'!C6 -> 4010 | D6: ='[1]Rapport 5'!D6 -> STRASBOURG MEINAU | E6: ='[1]Rapport 5'!E6 -> 5006 | F6: ='[1]Rapport 5'!F6 -> STRASBOURG | G6: ='[1]Rapport 5'!G6 -> 262 | H6: ='[1]Rapport 5'!H6 -> BAS RHIN | I6: ='[1]Rapport 5'!I6 -> 6040.94 | J6: ='[1]Rapport 5'!J6 -> 272.45 | K6: ='[1]Rapport 5'!K6 -> 0 | L6: ='[1]Rapport 5'!L6 -> 0 | M6: ='[1]Rapport 5'!M6 -> 166182.14 | N6: ='[1]Rapport 5'!N6 -> 6265.82 | O6: ='[1]Rapport 5'!O6 -> 4827 | P6: ='[1]Rapport 5'!P6 -> 397.8 | Q6: ='[1]Rapport 5'!Q6 -> 0 | R6: ='[1]Rapport 5'!R6 -> 0 | S6: ='[1]Rapport 5'!S6 -> 439.41 | T6: ='[1]Rapport 5'!T6 -> 0 | U6: ='[1]Rapport 5'!U6 -> 13947.71 | V6: ='[1]Rapport 5'!V6 -> 1055.65 | W6: ='[1]Rapport 5'!W6 -> 4513.69 | X6: ='[1]Rapport 5'!X6 -> 56 | Y6: 195,951 | Z6: 8,048 | AA6: 4.1% | AB6: 216 | AC6: =1+(AB6/COUNT($AB$3:AB$319)*10) -> 7.813880126 | AD6: 7 | AE6: 272 | AF6: 4.5% | AG6: 204 | AH6: 7.43533123 | AI6: 7 | AJ6: 0 | AK6: 0.0% | AL6: 1 | AM6: 1.031545741 | AN6: 1 | AO6: 6,266 | AP6: 3.8% | AQ6: 250 | AR6: 8.886435331 | AS6: 8 | AT6: 398 | AU6: 8.2% | AV6: 234 | AW6: 8.38170347 | AX6: 8 | AY6: 0 | AZ6: 0.0% | BA6: 1 | BB6: 1.031545741 | BC6: 1 | BD6: 0 | BE6: 0.0% | BF6: 1 | BG6: 1.031545741 | BH6: 1 | BI6: 1,056 | BJ6: 7.6% | BK6: 114 | BL6: 4.596214511 | BM6: 4 | BN6: 56 | BO6: 1.2% | BP6: 59 | BQ6: 2.861198738 | BR6: 2 | BT6: 10 | BU6: 0
A7: ='[1]Rapport 5'!A7 -> 12 | B7: ='[1]Rapport 5'!B7 -> STRASBOURG STOCKFELD | C7: ='[1]Rapport 5'!C7 -> 4006 | D7: ='[1]Rapport 5'!D7 -> STRASBOURG NEUDORF | E7: ='[1]Rapport 5'!E7 -> 5006 | F7: ='[1]Rapport 5'!F7 -> STRASBOURG | G7: ='[1]Rapport 5'!G7 -> 262 | H7: ='[1]Rapport 5'!H7 -> BAS RHIN | I7: ='[1]Rapport 5'!I7 -> 3485.02 | J7: ='[1]Rapport 5'!J7 -> 107.98 | K7: ='[1]Rapport 5'!K7 -> 0 | L7: ='[1]Rapport 5'!L7 -> 0 | M7: ='[1]Rapport 5'!M7 -> 121721 | N7: ='[1]Rapport 5'!N7 -> 3330.44 | O7: ='[1]Rapport 5'!O7 -> 1806.5 | P7: ='[1]Rapport 5'!P7 -> 275 | Q7: ='[1]Rapport 5'!Q7 -> 0 | R7: ='[1]Rapport 5'!R7 -> 0 | S7: ='[1]Rapport 5'!S7 -> 311 | T7: ='[1]Rapport 5'!T7 -> 0 | U7: ='[1]Rapport 5'!U7 -> 5871.41 | V7: ='[1]Rapport 5'!V7 -> 758.14 | W7: ='[1]Rapport 5'!W7 -> 2482.11 | X7: ='[1]Rapport 5'!X7 -> 41 | Y7: 135,677 | Z7: 4,513 | AA7: 3.3% | AB7: 123 | AC7: =1+(AB7/COUNT($AB$3:AB$319)*10) -> 4.880126183 | AD7: 4 | AE7: 108 | AF7: 3.1% | AG7: 135 | AH7: 5.258675079 | AI7: 5 | AJ7: 0 | AK7: 0.0% | AL7: 1 | AM7: 1.031545741 | AN7: 1 | AO7: 3,330 | AP7: 2.7% | AQ7: 136 | AR7: 5.29022082 | AS7: 5 | AT7: 275 | AU7: 15.2% | AV7: 284 | AW7: 9.958990536 | AX7: 9 | AY7: 0 | AZ7: 0.0% | BA7: 1 | BB7: 1.031545741 | BC7: 1 | BD7: 0 | BE7: 0.0% | BF7: 1 | BG7: 1.031545741 | BH7: 1 | BI7: 758 | BJ7: 12.9% | BK7: 209 | BL7: 7.593059937 | BM7: 7 | BN7: 41 | BO7: 1.7% | BP7: 80 | BQ7: 3.523659306 | BR7: 3 | BT7: 12 | BU7: 0
A8: ='[1]Rapport 5'!A9 -> 15 | B8: ='[1]Rapport 5'!B9 -> LINGOLSHEIM | C8: ='[1]Rapport 5'!C9 -> 4015 | D8: ='[1]Rapport 5'!D9 -> LINGOLSHEIM | E8: ='[1]Rapport 5'!E9 -> 5101 | F8: ='[1]Rapport 5'!F9 -> SELESTAT | G8: ='[1]Rapport 5'!G9 -> 262 | H8: ='[1]Rapport 5'!H9 -> BAS RHIN | I8: ='[1]Rapport 5'!I9 -> 7835.71 | J8: ='[1]Rapport 5'!J9 -> 343.3 | K8: ='[1]Rapport 5'!K9 -> 0 | L8: ='[1]Rapport 5'!L9 -> 72.88 | M8: ='[1]Rapport 5'!M9 -> 216861.22 | N8: ='[1]Rapport 5'!N9 -> 7434.52 | O8: ='[1]Rapport 5'!O9 -> 7849.5 | P8: ='[1]Rapport 5'!P9 -> 307 | Q8: ='[1]Rapport 5'!Q9 -> 0 | R8: ='[1]Rapport 5'!R9 -> 0 | S8: ='[1]Rapport 5'!S9 -> 1114.59 | T8: ='[1]Rapport 5'!T9 -> 80 | U8: ='[1]Rapport 5'!U9 -> 15295.17 | V8: ='[1]Rapport 5'!V9 -> 913.34 | W8: ='[1]Rapport 5'!W9 -> 6152.41 | X8: ='[1]Rapport 5'!X9 -> 318.71 | Y8: 255,109 | Z8: 9,470 | AA8: 3.7% | AB8: 169 | AC8: =1+(AB8/COUNT($AB$3:AB$319)*10) -> 6.331230284 | AD8: 6 | AE8: 343 | AF8: 4.4% | AG8: 198 | AH8: 7.246056782 | AI8: 7 | AJ8: 73 | AK8: 100.0% | AL8: 285 | AM8: 9.990536278 | AN8: 9 | AO8: 7,435 | AP8: 3.4% | AQ8: 222 | AR8: 8.003154574 | AS8: 8 | AT8: 307 | AU8: 3.9% | AV8: 154 | AW8: 5.858044164 | AX8: 5 | AY8: 0 | AZ8: 0.0% | BA8: 1 | BB8: 1.031545741 | BC8: 1 | BD8: 80 | BE8: 7.2% | BF8: 264 | BG8: 9.32807571 | BH8: 9 | BI8: 913 | BJ8: 6.0% | BK8: 79 | BL8: 3.492113565 | BM8: 3 | BN8: 319 | BO8: 5.2% | BP8: 214 | BQ8: 7.750788644 | BR8: 7 | BT8: 14 | BU8: -1
A9: ='[1]Rapport 5'!A10 -> 17 | B9: ='[1]Rapport 5'!B10 -> MON AGENCE | C9: ='[1]Rapport 5'!C10 -> 4017 | D9: ='[1]Rapport 5'!D10 -> MON AGENCE | E9: ='[1]Rapport 5'!E10 -> 5017 | F9: ='[1]Rapport 5'!F10 -> MON AGENCE | G9: ='[1]Rapport 5'!G10 -> 269 | H9: ='[1]Rapport 5'!H10 -> BANQUE DIGITALE | I9: ='[1]Rapport 5'!I10 -> 32928.71 | J9: ='[1]Rapport 5'!J10 -> 189.05 | K9: ='[1]Rapport 5'!K10 -> 0 | L9: ='[1]Rapport 5'!L10 -> 0 | M9: ='[1]Rapport 5'!M10 -> 269657.27 | N9: ='[1]Rapport 5'!N10 -> 5093.71 | O9: ='[1]Rapport 5'!O10 -> 63.3 | P9: ='[1]Rapport 5'!P10 -> 765.5 | Q9: ='[1]Rapport 5'!Q10 -> 0 | R9: ='[1]Rapport 5'!R10 -> 0 | S9: ='[1]Rapport 5'!S10 -> 326 | T9: ='[1]Rapport 5'!T10 -> 53.3 | U9: ='[1]Rapport 5'!U10 -> 10171.31 | V9: ='[1]Rapport 5'!V10 -> 796.78 | W9: ='[1]Rapport 5'!W10 -> 20044.84 | X9: ='[1]Rapport 5'!X10 -> 365.56 | Y9: 333,191 | Z9: 7,264 | AA9: 2.2% | AB9: 28 | AC9: =1+(AB9/COUNT($AB$3:AB$319)*10) -> 1.883280757 | AD9: 1 | AE9: 189 | AF9: 0.6% | AG9: 4 | AH9: 1.126182965 | AI9: 1 | AJ9: 0 | AK9: 0.0% | AL9: 1 | AM9: 1.031545741 | AN9: 1 | AO9: 5,094 | AP9: 1.9% | AQ9: 47 | AR9: 2.482649842 | AS9: 2 | AT9: 766 | AU9: 1209.3% | AV9: 317 | AW9: 11 | AX9: 10 | AY9: 0 | AZ9: 0.0% | BA9: 1 | BB9: 1.031545741 | BC9: 1 | BD9: 53 | BE9: 16.3% | BF9: 295 | BG9: 10.30599369 | BH9: 10 | BI9: 797 | BJ9: 7.8% | BK9: 122 | BL9: 4.848580442 | BM9: 4 | BN9: 366 | BO9: 1.8% | BP9: 86 | BQ9: 3.712933754 | BR9: 3 | BT9: 15 | BU9: -2
A10: ='[1]Rapport 5'!A11 -> 18 | B10: ='[1]Rapport 5'!B11 -> ESPACE MESANGE | C10: ='[1]Rapport 5'!C11 -> 4043 | D10: ='[1]Rapport 5'!D11 -> STRASBOURG HALLES | E10: ='[1]Rapport 5'!E11 -> 5006 | F10: ='[1]Rapport 5'!F11 -> STRASBOURG | G10: ='[1]Rapport 5'!G11 -> 262 | H10: ='[1]Rapport 5'!H11 -> BAS RHIN | I10: ='[1]Rapport 5'!I11 -> 23785.31 | J10: ='[1]Rapport 5'!J11 -> 1859.22 | K10: ='[1]Rapport 5'!K11 -> 0 | L10: ='[1]Rapport 5'!L11 -> 0 | M10: ='[1]Rapport 5'!M11 -> 147497.22 | N10: ='[1]Rapport 5'!N11 -> 4773.5 | O10: ='[1]Rapport 5'!O11 -> 11204.5 | P10: ='[1]Rapport 5'!P11 -> 1399 | Q10: ='[1]Rapport 5'!Q11 -> 996 | R10: ='[1]Rapport 5'!R11 -> 0 | S10: ='[1]Rapport 5'!S11 -> 1065.49 | T10: ='[1]Rapport 5'!T11 -> 0 | U10: ='[1]Rapport 5'!U11 -> 5026.47 | V10: ='[1]Rapport 5'!V11 -> 4.04 | W10: ='[1]Rapport 5'!W11 -> 3947.06 | X10: ='[1]Rapport 5'!X11 -> 0 | Y10: 193,522 | Z10: 8,036 | AA10: 4.2% | AB10: 221 | AC10: =1+(AB10/COUNT($AB$3:AB$319)*10) -> 7.971608833 | AD10: 7 | AE10: =+J10 -> 1,859 | AF10: 7.8% | AG10: 268 | AH10: 9.454258675 | AI10: 9 | AJ10: 0 | AK10: 0.0% | AL10: 1 | AM10: 1.031545741 | AN10: 1 | AO10: 0 | AP10: 0.0% | AQ10: 1 | AR10: 1.031545741 | AS10: 1 | AT10: 1,399 | AU10: 12.5% | AV10: 274 | AW10: 9.643533123 | AX10: 9 | AY10: 0 | AZ10: 0.0% | BA10: 1 | BB10: 1.031545741 | BC10: 1 | BD10: 0 | BE10: 0.0% | BF10: 1 | BG10: 1.031545741 | BH10: 1 | BI10: 4 | BJ10: 0.1% | BK10: 5 | BL10: 1.157728707 | BM10: 1 | BN10: 0 | BO10: 0.0% | BP10: 1 | BQ10: 1.031545741 | BR10: 1 | BT10: 17 | BU10: -1
A11: ='[1]Rapport 5'!A12 -> 19 | B11: ='[1]Rapport 5'!B12 -> STRASBOURG ANVERS | C11: ='[1]Rapport 5'!C12 -> 4019 | D11: ='[1]Rapport 5'!D12 -> STRASBOURG ANVERS | E11: ='[1]Rapport 5'!E12 -> 5006 | F11: ='[1]Rapport 5'!F12 -> STRASBOURG | G11: ='[1]Rapport 5'!G12 -> 262 | H11: ='[1]Rapport 5'!H12 -> BAS RHIN | I11: ='[1]Rapport 5'!I12 -> 5518.74 | J11: ='[1]Rapport 5'!J12 -> 1033.57 | K11: ='[1]Rapport 5'!K12 -> 0 | L11: ='[1]Rapport 5'!L12 -> 0 | M11: ='[1]Rapport 5'!M12 -> 248289.62 | N11: ='[1]Rapport 5'!N12 -> 13023.45 | O11: ='[1]Rapport 5'!O12 -> 9082 | P11: ='[1]Rapport 5'!P12 -> 2255.44 | Q11: ='[1]Rapport 5'!Q12 -> 0 | R11: ='[1]Rapport 5'!R12 -> 0 | S11: ='[1]Rapport 5'!S12 -> 1728 | T11: ='[1]Rapport 5'!T12 -> 83 | U11: ='[1]Rapport 5'!U12 -> 17715.22 | V11: ='[1]Rapport 5'!V12 -> 831.14 | W11: ='[1]Rapport 5'!W12 -> 12146.58 | X11: ='[1]Rapport 5'!X12 -> 678.1 | Y11: 294,480 | Z11: 17,905 | AA11: 6.1% | AB11: 302 | AC11: =1+(AB11/COUNT($AB$3:AB$319)*10) -> 10.52681388 | AD11: 10 | AE11: 1,034 | AF11: 18.7% | AG11: 307 | AH11: 10.68454259 | AI11: 10 | AJ11: 0 | AK11: 0.0% | AL11: 1 | AM11: 1.031545741 | AN11: 1 | AO11: 13,023 | AP11: 5.2% | AQ11: 306 | AR11: 10.65299685 | AS11: 10 | AT11: 2,255 | AU11: 24.8% | AV11: 306 | AW11: 10.65299685 | AX11: 10 | AY11: 0 | AZ11: 0.0% | BA11: 1 | BB11: 1.031545741 | BC11: 1 | BD11: 83 | BE11: 4.8% | BF11: 243 | BG11: 8.665615142 | BH11: 8 | BI11: 831 | BJ11: 4.7% | BK11: 50 | BL11: 2.577287066 | BM11: 2 | BN11: 678 | BO11: 5.6% | BP11: 230 | BQ11: 8.255520505 | BR11: 8 | BT11: 18 | BU11: -1
A12: ='[1]Rapport 5'!A13 -> 20 | B12: ='[1]Rapport 5'!B13 -> STRASBOURG ROBERTSAU | C12: ='[1]Rapport 5'!C13 -> 4020 | D12: ='[1]Rapport 5'!D13 -> STRASBOURG ROBERTSAU | E12: ='[1]Rapport 5'!E13 -> 5006 | F12: ='[1]Rapport 5'!F13 -> STRASBOURG | G12: ='[1]Rapport 5'!G13 -> 262 | H12: ='[1]Rapport 5'!H13 -> BAS RHIN | I12: ='[1]Rapport 5'!I13 -> 5538.24 | J12: ='[1]Rapport 5'!J13 -> 464.95 | K12: ='[1]Rapport 5'!K13 -> 0 | L12: ='[1]Rapport 5'!L13 -> 0 | M12: ='[1]Rapport 5'!M13 -> 221176.74 | N12: ='[1]Rapport 5'!N13 -> 7182.94 | O12: ='[1]Rapport 5'!O13 -> 3761 | P12: ='[1]Rapport 5'!P13 -> 1060.78 | Q12: ='[1]Rapport 5'!Q13 -> 0 | R12: ='[1]Rapport 5'!R13 -> 0 | S12: ='[1]Rapport 5'!S13 -> 3746.7 | T12: ='[1]Rapport 5'!T13 -> 31 | U12: ='[1]Rapport 5'!U13 -> 16059.63 | V12: ='[1]Rapport 5'!V13 -> 2849.55 | W12: ='[1]Rapport 5'!W13 -> 8583.35 | X12: ='[1]Rapport 5'!X13 -> 686.21 | Y12: 258,866 | Z12: 12,275 | AA12: 4.7% | AB12: 260 | AC12: =1+(AB12/COUNT($AB$3:AB$319)*10) -> 9.201892744 | AD12: 9 | AE12: 465 | AF12: 8.4% | AG12: 276 | AH12: 9.706624606 | AI12: 9 | AJ12: 0 | AK12: 0.0% | AL12: 1 | AM12: 1.031545741 | AN12: 1 | AO12: 7,183 | AP12: 3.2% | AQ12: 198 | AR12: 7.246056782 | AS12: 7 | AT12: 1,061 | AU12: 28.2% | AV12: 308 | AW12: 10.71608833 | AX12: 10 | AY12: 0 | AZ12: 0.0% | BA12: 1 | BB12: 1.031545741 | BC12: 1 | BD12: 31 | BE12: 0.8% | BF12: 211 | BG12: 7.65615142 | BH12: 7 | BI12: 2,850 | BJ12: 17.7% | BK12: 256 | BL12: 9.075709779 | BM12: 9 | BN12: 686 | BO12: 8.0% | BP12: 266 | BQ12: 9.391167192 | BR12: 9 | BT12: 19 | BU12: -1
A13: ='[1]Rapport 5'!A14 -> 23 | B13: ='[1]Rapport 5'!B14 -> STRASBOURG VOSGES | C13: ='[1]Rapport 5'!C14 -> 4023 | D13: ='[1]Rapport 5'!D14 -> STRASBOURG VOSGES | E13: ='[1]Rapport 5'!E14 -> 5006 | F13: ='[1]Rapport 5'!F14 -> STRASBOURG | G13: ='[1]Rapport 5'!G14 -> 262 | H13: ='[1]Rapport 5'!H14 -> BAS RHIN | I13: ='[1]Rapport 5'!I14 -> 3147.34 | J13: ='[1]Rapport 5'!J14 -> 271.78 | K13: ='[1]Rapport 5'!K14 -> 0 | L13: ='[1]Rapport 5'!L14 -> 0 | M13: ='[1]Rapport 5'!M14 -> 144715.95 | N13: ='[1]Rapport 5'!N14 -> 5135.41 | O13: ='[1]Rapport 5'!O14 -> 3171 | P13: ='[1]Rapport 5'!P14 -> 380 | Q13: ='[1]Rapport 5'!Q14 -> 0 | R13: ='[1]Rapport 5'!R14 -> 0 | S13: ='[1]Rapport 5'!S14 -> 842 | T13: ='[1]Rapport 5'!T14 -> 0 | U13: ='[1]Rapport 5'!U14 -> 10864.32 | V13: ='[1]Rapport 5'!V14 -> 957.71 | W13: ='[1]Rapport 5'!W14 -> 7639.63 | X13: ='[1]Rapport 5'!X14 -> 449.9 | Y13: 170,380 | Z13: 7,195 | AA13: 4.2% | AB13: 229 | AC13: =1+(AB13/COUNT($AB$3:AB$319)*10) -> 8.223974763 | AD13: 8 | AE13: 272 | AF13: 8.6% | AG13: 279 | AH13: 9.80126183 | AI13: 9 | AJ13: 0 | AK13: 0.0% | AL13: 1 | AM13: 1.031545741 | AN13: 1 | AO13: 5,135 | AP13: 3.5% | AQ13: 233 | AR13: 8.350157729 | AS13: 8 | AT13: 380 | AU13: 12.0% | AV13: 271 | AW13: 9.548895899 | AX13: 9 | AY13: 0 | AZ13: 0.0% | BA13: 1 | BB13: 1.031545741 | BC13: 1 | BD13: 0 | BE13: 0.0% | BF13: 1 | BG13: 1.031545741 | BH13: 1 | BI13: 958 | BJ13: 8.8% | BK13: 144 | BL13: 5.542586751 | BM13: 5 | BN13: 450 | BO13: 5.9% | BP13: 233 | BQ13: 8.350157729 | BR13: 8 | BT13: 20 | BU13: -3
A14: ='[1]Rapport 5'!A15 -> 24 | B14: ='[1]Rapport 5'!B15 -> STRASBOURG AUSTERLITZ | C14: ='[1]Rapport 5'!C15 -> 4024 | D14: ='[1]Rapport 5'!D15 -> STRASBOURG AUSTERLITZ | E14: ='[1]Rapport 5'!E15 -> 5006 | F14: ='[1]Rapport 5'!F15 -> STRASBOURG | G14: ='[1]Rapport 5'!G15 -> 262 | H14: ='[1]Rapport 5'!H15 -> BAS RHIN | I14: ='[1]Rapport 5'!I15 -> 4154.82 | J14: ='[1]Rapport 5'!J15 -> 1084.41 | K14: ='[1]Rapport 5'!K15 -> 0 | L14: ='[1]Rapport 5'!L15 -> 86.69 | M14: ='[1]Rapport 5'!M15 -> 143650.97 | N14: ='[1]Rapport 5'!N15 -> 2959.83 | O14: ='[1]Rapport 5'!O15 -> 5276 | P14: ='[1]Rapport 5'!P15 -> 255 | Q14: ='[1]Rapport 5'!Q15 -> 0 | R14: ='[1]Rapport 5'!R15 -> 0 | S14: ='[1]Rapport 5'!S15 -> 295.45 | T14: ='[1]Rapport 5'!T15 -> 26 | U14: ='[1]Rapport 5'!U15 -> 7703.81 | V14: ='[1]Rapport 5'!V15 -> 871.79 | W14: ='[1]Rapport 5'!W15 -> 3553.84 | X14: ='[1]Rapport 5'!X15 -> 1210.99 | Y14: 164,635 | Z14: 6,495 | AA14: 3.9% | AB14: 197 | AC14: =1+(AB14/COUNT($AB$3:AB$319)*10) -> 7.214511041 | AD14: 7 | AE14: 1,084 | AF14: 26.1% | AG14: 313 | AH14: 10.87381703 | AI14: 10 | AJ14: 87 | AK14: 100.0% | AL14: 285 | AM14: 9.990536278 | AN14: 9 | AO14: 2,960 | AP14: 2.1% | AQ14: 60 | AR14: 2.892744479 | AS14: 2 | AT14: 255 | AU14: 4.8% | AV14: 177 | AW14: 6.583596215 | AX14: 6 | AY14: 0 | AZ14: 0.0% | BA14: 1 | BB14: 1.031545741 | BC14: 1 | BD14: 26 | BE14: 8.8% | BF14: 270 | BG14: 9.517350158 | BH14: 9 | BI14: 872 | BJ14: 11.3% | BK14: 192 | BL14: 7.056782334 | BM14: 7 | BN14: 1,211 | BO14: 34.1% | BP14: 317 | BQ14: 11 | BR14: 10 | BT14: 23 | BU14: -1
A15: ='[1]Rapport 5'!A16 -> 25 | B15: ='[1]Rapport 5'!B16 -> STRASBOURG ESPLANADE | C15: ='[1]Rapport 5'!C16 -> 4026 | D15: ='[1]Rapport 5'!D16 -> STRASBOURG DANUBE | E15: ='[1]Rapport 5'!E16 -> 5006 | F15: ='[1]Rapport 5'!F16 -> STRASBOURG | G15: ='[1]Rapport 5'!G16 -> 262 | H15: ='[1]Rapport 5'!H16 -> BAS RHIN | I15: ='[1]Rapport 5'!I16 -> 5911.25 | J15: ='[1]Rapport 5'!J16 -> 582.26 | K15: ='[1]Rapport 5'!K16 -> 0 | L15: ='[1]Rapport 5'!L16 -> 0 | M15: ='[1]Rapport 5'!M16 -> 96996.71 | N15: ='[1]Rapport 5'!N16 -> 3306.99 | O15: ='[1]Rapport 5'!O16 -> 2448 | P15: ='[1]Rapport 5'!P16 -> 152.5 | Q15: ='[1]Rapport 5'!Q16 -> 0 | R15: ='[1]Rapport 5'!R16 -> 0 | S15: ='[1]Rapport 5'!S16 -> 261 | T15: ='[1]Rapport 5'!T16 -> 0 | U15: ='[1]Rapport 5'!U16 -> 5537.86 | V15: ='[1]Rapport 5'!V16 -> 1231.33 | W15: ='[1]Rapport 5'!W16 -> 5353.49 | X15: ='[1]Rapport 5'!X16 -> 209.58 | Y15: 116,508 | Z15: 5,483 | AA15: 4.7% | AB15: 256 | AC15: =1+(AB15/COUNT($AB$3:AB$319)*10) -> 9.075709779 | AD15: 9 | AE15: 582 | AF15: 9.9% | AG15: 285 | AH15: 9.990536278 | AI15: 9 | AJ15: 0 | AK15: 0.0% | AL15: 1 | AM15: 1.031545741 | AN15: 1 | AO15: 3,307 | AP15: 3.4% | AQ15: 220 | AR15: 7.940063091 | AS15: 7 | AT15: 153 | AU15: 6.2% | AV15: 206 | AW15: 7.498422713 | AX15: 7 | AY15: 0 | AZ15: 0.0% | BA15: 1 | BB15: 1.031545741 | BC15: 1 | BD15: 0 | BE15: 0.0% | BF15: 1 | BG15: 1.031545741 | BH15: 1 | BI15: 1,231 | BJ15: 22.2% | BK15: 286 | BL15: 10.02208202 | BM15: 10 | BN15: 210 | BO15: 3.9% | BP15: 183 | BQ15: 6.772870662 | BR15: 6 | BT15: 24 | BU15: -1
A16: ='[1]Rapport 5'!A17 -> 26 | B16: ='[1]Rapport 5'!B17 -> STRASBOURG DANUBE | C16: ='[1]Rapport 5'!C17 -> 4026 | D16: ='[1]Rapport 5'!D17 -> STRASBOURG DANUBE | E16: ='[1]Rapport 5'!E17 -> 5006 | F16: ='[1]Rapport 5'!F17 -> STRASBOURG | G16: ='[1]Rapport 5'!G17 -> 262 | H16: ='[1]Rapport 5'!H17 -> BAS RHIN | I16: ='[1]Rapport 5'!I17 -> 6480.53 | J16: ='[1]Rapport 5'!J17 -> 440.27 | K16: ='[1]Rapport 5'!K17 -> 0 | L16: ='[1]Rapport 5'!L17 -> 32.92 | M16: ='[1]Rapport 5'!M17 -> 155546.68 | N16: ='[1]Rapport 5'!N17 -> 6004.16 | O16: ='[1]Rapport 5'!O17 -> 2773.5 | P16: ='[1]Rapport 5'!P17 -> 505 | Q16: ='[1]Rapport 5'!Q17 -> 0 | R16: ='[1]Rapport 5'!R17 -> 0 | S16: ='[1]Rapport 5'!S17 -> 595 | T16: ='[1]Rapport 5'!T17 -> 75 | U16: ='[1]Rapport 5'!U17 -> 12450.79 | V16: ='[1]Rapport 5'!V17 -> 1148.07 | W16: ='[1]Rapport 5'!W17 -> 3685.48 | X16: ='[1]Rapport 5'!X17 -> 490.29 | Y16: 181,532 | Z16: 8,696 | AA16: 4.8% | AB16: 263 | AC16: =1+(AB16/COUNT($AB$3:AB$319)*10) -> 9.296529968 | AD16: 9 | AE16: 440 | AF16: 6.8% | AG16: 250 | AH16: 8.886435331 | AI16: 8 | AJ16: 33 | AK16: 100.0% | AL16: 285 | AM16: 9.990536278 | AN16: 9 | AO16: 6,004 | AP16: 3.9% | AQ16: 255 | AR16: 9.044164038 | AS16: 9 | AT16: 505 | AU16: 18.2% | AV16: 290 | AW16: 10.14826498 | AX16: 10 | AY16: 0 | AZ16: 0.0% | BA16: 1 | BB16: 1.031545741 | BC16: 1 | BD16: 75 | BE16: 12.6% | BF16: 281 | BG16: 9.864353312 | BH16: 9 | BI16: 1,148 | BJ16: 9.2% | BK16: 158 | BL16: 5.984227129 | BM16: 5 | BN16: 490 | BO16: 13.3% | BP16: 299 | BQ16: 10.43217666 | BR16: 10 | BT16: 25 | BU16: -1
A17: ='[1]Rapport 5'!A18 -> 27 | B17: ='[1]Rapport 5'!B18 -> SCHILTIGHEIM CENTRE | C17: ='[1]Rapport 5'!C18 -> 4027 | D17: ='[1]Rapport 5'!D18 -> SCHILTIGHEIM CENTRE | E17: ='[1]Rapport 5'!E18 -> 5006 | F17: ='[1]Rapport 5'!F18 -> STRASBOURG | G17: ='[1]Rapport 5'!G18 -> 262 | H17: ='[1]Rapport 5'!H18 -> BAS RHIN | I17: ='[1]Rapport 5'!I18 -> 7082.7 | J17: ='[1]Rapport 5'!J18 -> 312.56 | K17: ='[1]Rapport 5'!K18 -> 0 | L17: ='[1]Rapport 5'!L18 -> 0 | M17: ='[1]Rapport 5'!M18 -> 250212.61 | N17: ='[1]Rapport 5'!N18 -> 8208.88 | O17: ='[1]Rapport 5'!O18 -> 4617 | P17: ='[1]Rapport 5'!P18 -> 680 | Q17: ='[1]Rapport 5'!Q18 -> 462.51 | R17: ='[1]Rapport 5'!R18 -> 0 | S17: ='[1]Rapport 5'!S18 -> 1295.67 | T17: ='[1]Rapport 5'!T18 -> 26 | U17: ='[1]Rapport 5'!U18 -> 15026.17 | V17: ='[1]Rapport 5'!V18 -> 825.3 | W17: ='[1]Rapport 5'!W18 -> 4719.61 | X17: ='[1]Rapport 5'!X18 -> 0 | Y17: 283,416 | Z17: 10,053 | AA17: 3.5% | AB17: 146 | AC17: =1+(AB17/COUNT($AB$3:AB$319)*10) -> 5.605678233 | AD17: 5 | AE17: 313 | AF17: 4.4% | AG17: 199 | AH17: 7.277602524 | AI17: 7 | AJ17: 0 | AK17: 0.0% | AL17: 1 | AM17: 1.031545741 | AN17: 1 | AO17: 8,209 | AP17: 3.3% | AQ17: 199 | AR17: 7.277602524 | AS17: 7 | AT17: 680 | AU17: 14.7% | AV17: 281 | AW17: 9.864353312 | AX17: 9 | AY17: 0 | AZ17: 0.0% | BA17: 1 | BB17: 1.031545741 | BC17: 1 | BD17: 26 | BE17: 2.0% | BF17: 221 | BG17: 7.971608833 | BH17: 7 | BI17: 825 | BJ17: 5.5% | BK17: 66 | BL17: 3.082018927 | BM17: 3 | BN17: 0 | BO17: 0.0% | BP17: 1 | BQ17: 1.031545741 | BR17: 1 | BT17: 26 | BU17: -1
A18: ='[1]Rapport 5'!A19 -> 28 | B18: ='[1]Rapport 5'!B19 -> BISCHHEIM | C18: ='[1]Rapport 5'!C19 -> 4028 | D18: ='[1]Rapport 5'!D19 -> BISCHHEIM | E18: ='[1]Rapport 5'!E19 -> 5006 | F18: ='[1]Rapport 5'!F19 -> STRASBOURG | G18: ='[1]Rapport 5'!G19 -> 262 | H18: ='[1]Rapport 5'!H19 -> BAS RHIN | I18: ='[1]Rapport 5'!I19 -> 6763.3 | J18: ='[1]Rapport 5'!J19 -> 229.61 | K18: ='[1]Rapport 5'!K19 -> 0 | L18: ='[1]Rapport 5'!L19 -> 0 | M18: ='[1]Rapport 5'!M19 -> 199486.3 | N18: ='[1]Rapport 5'!N19 -> 4407.98 | O18: ='[1]Rapport 5'!O19 -> 3967 | P18: ='[1]Rapport 5'!P19 -> 446 | Q18: ='[1]Rapport 5'!Q19 -> 0 | R18: ='[1]Rapport 5'!R19 -> 0 | S18: ='[1]Rapport 5'!S19 -> 479 | T18: ='[1]Rapport 5'!T19 -> 31 | U18: ='[1]Rapport 5'!U19 -> 12426.39 | V18: ='[1]Rapport 5'!V19 -> 1368.35 | W18: ='[1]Rapport 5'!W19 -> 8113.19 | X18: ='[1]Rapport 5'!X19 -> 216.61 | Y18: 231,235 | Z18: 6,700 | AA18: 2.9% | AB18: 77 | AC18: =1+(AB18/COUNT($AB$3:AB$319)*10) -> 3.429022082 | AD18: 3 | AE18: 230 | AF18: 3.4% | AG18: 151 | AH18: 5.76340694 | AI18: 5 | AJ18: 0 | AK18: 0.0% | AL18: 1 | AM18: 1.031545741 | AN18: 1 | AO18: 4,408 | AP18: 2.2% | AQ18: 79 | AR18: 3.492113565 | AS18: 3 | AT18: 446 | AU18: 11.2% | AV18: 264 | AW18: 9.32807571 | AX18: 9 | AY18: 0 | AZ18: 0.0% | BA18: 1 | BB18: 1.031545741 | BC18: 1 | BD18: 31 | BE18: 6.5% | BF18: 256 | BG18: 9.075709779 | BH18: 9 | BI18: 1,368 | BJ18: 11.0% | BK18: 187 | BL18: 6.899053628 | BM18: 6 | BN18: 217 | BO18: 2.7% | BP18: 127 | BQ18: 5.006309148 | BR18: 5 | BT18: 27 | BU18: -1
A19: ='[1]Rapport 5'!A20 -> 29 | B19: ='[1]Rapport 5'!B20 -> SCHILTIGHEIM KLEBER | C19: ='[1]Rapport 5'!C20 -> 4029 | D19: ='[1]Rapport 5'!D20 -> SCHILTIGHEIM KLEBER | E19: ='[1]Rapport 5'!E20 -> 5006 | F19: ='[1]Rapport 5'!F20 -> STRASBOURG | G19: ='[1]Rapport 5'!G20 -> 262 | H19: ='[1]Rapport 5'!H20 -> BAS RHIN | I19: ='[1]Rapport 5'!I20 -> 4108.87 | J19: ='[1]Rapport 5'!J20 -> 281.55 | K19: ='[1]Rapport 5'!K20 -> 0 | L19: ='[1]Rapport 5'!L20 -> 0 | M19: ='[1]Rapport 5'!M20 -> 137507.56 | N19: ='[1]Rapport 5'!N20 -> 7606.52 | O19: ='[1]Rapport 5'!O20 -> 2965.5 | P19: ='[1]Rapport 5'!P20 -> 90 | Q19: ='[1]Rapport 5'!Q20 -> 0 | R19: ='[1]Rapport 5'!R20 -> 0 | S19: ='[1]Rapport 5'!S20 -> 544.98 | T19: ='[1]Rapport 5'!T20 -> 57 | U19: ='[1]Rapport 5'!U20 -> 7633.2 | V19: ='[1]Rapport 5'!V20 -> 120 | W19: ='[1]Rapport 5'!W20 -> 2554.87 | X19: ='[1]Rapport 5'!X20 -> 60.63 | Y19: 155,315 | Z19: 8,216 | AA19: 5.3% | AB19: 285 | AC19: =1+(AB19/COUNT($AB$3:AB$319)*10) -> 9.990536278 | AD19: 9 | AE19: 282 | AF19: 6.9% | AG19: 252 | AH19: 8.949526814 | AI19: 8 | AJ19: 0 | AK19: 0.0% | AL19: 1 | AM19: 1.031545741 | AN19: 1 | AO19: 7,607 | AP19: 5.5% | AQ19: 308 | AR19: 10.71608833 | AS19: 10 | AT19: 90 | AU19: 3.0% | AV19: 133 | AW19: 5.195583596 | AX19: 5 | AY19: 0 | AZ19: 0.0% | BA19: 1 | BB19: 1.031545741 | BC19: 1 | BD19: 57 | BE19: 10.5% | BF19: 277 | BG19: 9.738170347 | BH19: 9 | BI19: 120 | BJ19: 1.6% | BK19: 14 | BL19: 1.441640379 | BM19: 1 | BN19: 61 | BO19: 2.4% | BP19: 110 | BQ19: 4.470031546 | BR19: 4 | BT19: 28 | BU19: -1
A20: ='[1]Rapport 5'!A21 -> 30 | B20: ='[1]Rapport 5'!B21 -> BRUMATH | C20: ='[1]Rapport 5'!C21 -> 4030 | D20: ='[1]Rapport 5'!D21 -> BRUMATH | E20: ='[1]Rapport 5'!E21 -> 5060 | F20: ='[1]Rapport 5'!F21 -> HAGUENAU | G20: ='[1]Rapport 5'!G21 -> 262 | H20: ='[1]Rapport 5'!H21 -> BAS RHIN | I20: ='[1]Rapport 5'!I21 -> 6629.83 | J20: ='[1]Rapport 5'!J21 -> 662.79 | K20: ='[1]Rapport 5'!K21 -> 0 | L20: ='[1]Rapport 5'!L21 -> 500.64 | M20: ='[1]Rapport 5'!M21 -> 295187.82 | N20: ='[1]Rapport 5'!N21 -> 10351.97 | O20: ='[1]Rapport 5'!O21 -> 13372.5 | P20: ='[1]Rapport 5'!P21 -> 519.46 | Q20: ='[1]Rapport 5'!Q21 -> 0 | R20: ='[1]Rapport 5'!R21 -> 0 | S20: ='[1]Rapport 5'!S21 -> 705.39 | T20: ='[1]Rapport 5'!T21 -> 13 | U20: ='[1]Rapport 5'!U21 -> 20928.51 | V20: ='[1]Rapport 5'!V21 -> 3245.99 | W20: ='[1]Rapport 5'!W21 -> 9368.76 | X20: ='[1]Rapport 5'!X21 -> 1161.41 | Y20: 346,193 | Z20: 16,455 | AA20: 4.8% | AB20: 261 | AC20: =1+(AB20/COUNT($AB$3:AB$319)*10) -> 9.233438486 | AD20: 9 | AE20: 663 | AF20: 10.0% | AG20: 287 | AH20: 10.05362776 | AI20: 10 | AJ20: 501 | AK20: 100.0% | AL20: 285 | AM20: 9.990536278 | AN20: 9 | AO20: 10,352 | AP20: 3.5% | AQ20: 227 | AR20: 8.160883281 | AS20: 8 | AT20: 519 | AU20: 3.9% | AV20: 152 | AW20: 5.794952681 | AX20: 5 | AY20: 0 | AZ20: 0.0% | BA20: 1 | BB20: 1.031545741 | BC20: 1 | BD20: 13 | BE20: 1.8% | BF20: 220 | BG20: 7.940063091 | BH20: 7 | BI20: 3,246 | BJ20: 15.5% | BK20: 237 | BL20: 8.476340694 | BM20: 8 | BN20: 1,161 | BO20: 12.4% | BP20: 292 | BQ20: 10.21135647 | BR20: 10 | BT20: 29 | BU20: -1
A21: ='[1]Rapport 5'!A22 -> 31 | B21: ='[1]Rapport 5'!B22 -> TRUCHTERSHEIM | C21: ='[1]Rapport 5'!C22 -> 4031 | D21: ='[1]Rapport 5'!D22 -> TRUCHTERSHEIM | E21: ='[1]Rapport 5'!E22 -> 5060 | F21: ='[1]Rapport 5'!F22 -> HAGUENAU | G21: ='[1]Rapport 5'!G22 -> 262 | H21: ='[1]Rapport 5'!H22 -> BAS RHIN | I21: ='[1]Rapport 5'!I22 -> 4420.86 | J21: ='[1]Rapport 5'!J22 -> 182.31 | K21: ='[1]Rapport 5'!K22 -> 0 | L21: ='[1]Rapport 5'!L22 -> 0 | M21: ='[1]Rapport 5'!M22 -> 136407.04 | N21: ='[1]Rapport 5'!N22 -> 6909.6 | O21: ='[1]Rapport 5'!O22 -> 2408.5 | P21: ='[1]Rapport 5'!P22 -> 519.5 | Q21: ='[1]Rapport 5'!Q22 -> 0 | R21: ='[1]Rapport 5'!R22 -> 0 | S21: ='[1]Rapport 5'!S22 -> 264 | T21: ='[1]Rapport 5'!T22 -> 101 | U21: ='[1]Rapport 5'!U22 -> 6109.23 | V21: ='[1]Rapport 5'!V22 -> 123.69 | W21: ='[1]Rapport 5'!W22 -> 5560.35 | X21: ='[1]Rapport 5'!X22 -> 189.8 | Y21: 155,170 | Z21: 8,026 | AA21: 5.2% | AB21: 280 | AC21: =1+(AB21/COUNT($AB$3:AB$319)*10) -> 9.832807571 | AD21: 9 | AE21: 182 | AF21: 4.1% | AG21: 188 | AH21: 6.930599369 | AI21: 6 | AJ21: 0 | AK21: 0.0% | AL21: 1 | AM21: 1.031545741 | AN21: 1 | AO21: 6,910 | AP21: 5.1% | AQ21: 303 | AR21: 10.55835962 | AS21: 10 | AT21: 520 | AU21: 21.6% | AV21: 301 | AW21: 10.49526814 | AX21: 10 | AY21: 0 | AZ21: 0.0% | BA21: 1 | BB21: 1.031545741 | BC21: 1 | BD21: 101 | BE21: 38.3% | BF21: 307 | BG21: 10.68454259 | BH21: 10 | BI21: 124 | BJ21: 2.0% | BK21: 18 | BL21: 1.567823344 | BM21: 1 | BN21: 190 | BO21: 3.4% | BP21: 151 | BQ21: 5.76340694 | BR21: 5 | BT21: 30 | BU21: -1
A22: ='[1]Rapport 5'!A23 -> 33 | B22: ='[1]Rapport 5'!B23 -> LA WANTZENAU | C22: ='[1]Rapport 5'!C23 -> 4020 | D22: ='[1]Rapport 5'!D23 -> STRASBOURG ROBERTSAU | E22: ='[1]Rapport 5'!E23 -> 5006 | F22: ='[1]Rapport 5'!F23 -> STRASBOURG | G22: ='[1]Rapport 5'!G23 -> 262 | H22: ='[1]Rapport 5'!H23 -> BAS RHIN | I22: ='[1]Rapport 5'!I23 -> 3286.84 | J22: ='[1]Rapport 5'!J23 -> 737.62 | K22: ='[1]Rapport 5'!K23 -> 0 | L22: ='[1]Rapport 5'!L23 -> 50 | M22: ='[1]Rapport 5'!M23 -> 104238.01 | N22: ='[1]Rapport 5'!N23 -> 2868.23 | O22: ='[1]Rapport 5'!O23 -> 2694.75 | P22: ='[1]Rapport 5'!P23 -> 200 | Q22: ='[1]Rapport 5'!Q23 -> 0 | R22: ='[1]Rapport 5'!R23 -> 0 | S22: ='[1]Rapport 5'!S23 -> 226.22 | T22: ='[1]Rapport 5'!T23 -> 0 | U22: ='[1]Rapport 5'!U23 -> 3388.3 | V22: ='[1]Rapport 5'!V23 -> 279 | W22: ='[1]Rapport 5'!W23 -> 4191.33 | X22: ='[1]Rapport 5'!X23 -> 67.2 | Y22: 118,025 | Z22: 4,202 | AA22: 3.6% | AB22: 147 | AC22: =1+(AB22/COUNT($AB$3:AB$319)*10) -> 5.637223975 | AD22: 5 | AE22: 738 | AF22: 22.4% | AG22: 310 | AH22: 10.77917981 | AI22: 10 | AJ22: 50 | AK22: 100.0% | AL22: 285 | AM22: 9.990536278 | AN22: 9 | AO22: 2,868 | AP22: 2.8% | AQ22: 137 | AR22: 5.321766562 | AS22: 5 | AT22: 200 | AU22: 7.4% | AV22: 226 | AW22: 8.129337539 | AX22: 8 | AY22: 0 | AZ22: 0.0% | BA22: 1 | BB22: 1.031545741 | BC22: 1 | BD22: 0 | BE22: 0.0% | BF22: 1 | BG22: 1.031545741 | BH22: 1 | BI22: 279 | BJ22: 8.2% | BK22: 132 | BL22: 5.164037855 | BM22: 5 | BN22: 67 | BO22: 1.6% | BP22: 77 | BQ22: 3.429022082 | BR22: 3 | BT22: 31 | BU22: -2
A23: ='[1]Rapport 5'!A24 -> 34 | B23: ='[1]Rapport 5'!B24 -> VENDENHEIM | C23: ='[1]Rapport 5'!C24 -> 4037 | D23: ='[1]Rapport 5'!D24 -> MUNDOLSHEIM | E23: ='[1]Rapport 5'!E24 -> 5006 | F23: ='[1]Rapport 5'!F24 -> STRASBOURG | G23: ='[1]Rapport 5'!G24 -> 262 | H23: ='[1]Rapport 5'!H24 -> BAS RHIN | I23: ='[1]Rapport 5'!I24 -> 3466.04 | J23: ='[1]Rapport 5'!J24 -> 657.23 | K23: ='[1]Rapport 5'!K24 -> 0 | L23: ='[1]Rapport 5'!L24 -> 0 | M23: ='[1]Rapport 5'!M24 -> 92928.03 | N23: ='[1]Rapport 5'!N24 -> 2911.53 | O23: ='[1]Rapport 5'!O24 -> 982 | P23: ='[1]Rapport 5'!P24 -> 200 | Q23: ='[1]Rapport 5'!Q24 -> 0 | R23: ='[1]Rapport 5'!R24 -> 0 | S23: ='[1]Rapport 5'!S24 -> 114 | T23: ='[1]Rapport 5'!T24 -> 0 | U23: ='[1]Rapport 5'!U24 -> 4835.82 | V23: ='[1]Rapport 5'!V24 -> 1281.05 | W23: ='[1]Rapport 5'!W24 -> 3406.93 | X23: ='[1]Rapport 5'!X24 -> 56 | Y23: 105,733 | Z23: 5,106 | AA23: 4.8% | AB23: 266 | AC23: =1+(AB23/COUNT($AB$3:AB$319)*10) -> 9.391167192 | AD23: 9 | AE23: 657 | AF23: 19.0% | AG23: 308 | AH23: 10.71608833 | AI23: 10 | AJ23: 0 | AK23: 0.0% | AL23: 1 | AM23: 1.031545741 | AN23: 1 | AO23: 2,912 | AP23: 3.1% | AQ23: 184 | AR23: 6.804416404 | AS23: 6 | AT23: 200 | AU23: 20.4% | AV23: 298 | AW23: 10.40063091 | AX23: 10 | AY23: 0 | AZ23: 0.0% | BA23: 1 | BB23: 1.031545741 | BC23: 1 | BD23: 0 | BE23: 0.0% | BF23: 1 | BG23: 1.031545741 | BH23: 1 | BI23: 1,281 | BJ23: 26.5% | BK23: 303 | BL23: 10.55835962 | BM23: 10 | BN23: 56 | BO23: 1.6% | BP23: 79 | BQ23: 3.492113565 | BR23: 3 | BT23: 33 | BU23: -1
A24: ='[1]Rapport 5'!A25 -> 37 | B24: ='[1]Rapport 5'!B25 -> MUNDOLSHEIM | C24: ='[1]Rapport 5'!C25 -> 4037 | D24: ='[1]Rapport 5'!D25 -> MUNDOLSHEIM | E24: ='[1]Rapport 5'!E25 -> 5006 | F24: ='[1]Rapport 5'!F25 -> STRASBOURG | G24: ='[1]Rapport 5'!G25 -> 262 | H24: ='[1]Rapport 5'!H25 -> BAS RHIN | I24: ='[1]Rapport 5'!I25 -> 3366.29 | J24: ='[1]Rapport 5'!J25 -> 175.33 | K24: ='[1]Rapport 5'!K25 -> 0 | L24: ='[1]Rapport 5'!L25 -> 0 | M24: ='[1]Rapport 5'!M25 -> 123794.59 | N24: ='[1]Rapport 5'!N25 -> 4011.5 | O24: ='[1]Rapport 5'!O25 -> 4119.5 | P24: ='[1]Rapport 5'!P25 -> 126 | Q24: ='[1]Rapport 5'!Q25 -> 0 | R24: ='[1]Rapport 5'!R25 -> 0 | S24: ='[1]Rapport 5'!S25 -> 93 | T24: ='[1]Rapport 5'!T25 -> 13 | U24: ='[1]Rapport 5'!U25 -> 4730.49 | V24: ='[1]Rapport 5'!V25 -> 687.52 | W24: ='[1]Rapport 5'!W25 -> 4129.41 | X24: ='[1]Rapport 5'!X25 -> 116.7 | Y24: 140,233 | Z24: 5,130 | AA24: 3.7% | AB24: 160 | AC24: =1+(AB24/COUNT($AB$3:AB$319)*10) -> 6.047318612 | AD24: 6 | AE24: 175 | AF24: 5.2% | AG24: 222 | AH24: 8.003154574 | AI24: 8 | AJ24: 0 | AK24: 0.0% | AL24: 1 | AM24: 1.031545741 | AN24: 1 | AO24: 4,012 | AP24: 3.2% | AQ24: 197 | AR24: 7.214511041 | AS24: 7 | AT24: 126 | AU24: 3.1% | AV24: 134 | AW24: 5.227129338 | AX24: 5 | AY24: 0 | AZ24: 0.0% | BA24: 1 | BB24: 1.031545741 | BC24: 1 | BD24: 13 | BE24: 14.0% | BF24: 288 | BG24: 10.0851735 | BH24: 10 | BI24: 688 | BJ24: 14.5% | BK24: 225 | BL24: 8.097791798 | BM24: 8 | BN24: 117 | BO24: 2.8% | BP24: 135 | BQ24: 5.258675079 | BR24: 5 | BT24: 34 | BU24: -3
A25: ='[1]Rapport 5'!A26 -> 38 | B25: ='[1]Rapport 5'!B26 -> OBERHAUSBERGEN | C25: ='[1]Rapport 5'!C26 -> 4038 | D25: ='[1]Rapport 5'!D26 -> OBERHAUSBERGEN | E25: ='[1]Rapport 5'!E26 -> 5006 | F25: ='[1]Rapport 5'!F26 -> STRASBOURG | G25: ='[1]Rapport 5'!G26 -> 262 | H25: ='[1]Rapport 5'!H26 -> BAS RHIN | I25: ='[1]Rapport 5'!I26 -> 7208.54 | J25: ='[1]Rapport 5'!J26 -> 209.8 | K25: ='[1]Rapport 5'!K26 -> 0 | L25: ='[1]Rapport 5'!L26 -> 0 | M25: ='[1]Rapport 5'!M26 -> 195108.72 | N25: ='[1]Rapport 5'!N26 -> 8595.31 | O25: ='[1]Rapport 5'!O26 -> 4357 | P25: ='[1]Rapport 5'!P26 -> 588 | Q25: ='[1]Rapport 5'!Q26 -> 0 | R25: ='[1]Rapport 5'!R26 -> 0 | S25: ='[1]Rapport 5'!S26 -> 1331.87 | T25: ='[1]Rapport 5'!T26 -> 13 | U25: ='[1]Rapport 5'!U26 -> 10764.29 | V25: ='[1]Rapport 5'!V26 -> 845.88 | W25: ='[1]Rapport 5'!W26 -> 7615.03 | X25: ='[1]Rapport 5'!X26 -> 806.06 | Y25: 226,385 | Z25: 11,058 | AA25: 4.9% | AB25: 269 | AC25: =1+(AB25/COUNT($AB$3:AB$319)*10) -> 9.485804416 | AD25: 9 | AE25: 210 | AF25: 2.9% | AG25: 120 | AH25: 4.785488959 | AI25: 4 | AJ25: 0 | AK25: 0.0% | AL25: 1 | AM25: 1.031545741 | AN25: 1 | AO25: 8,595 | AP25: 4.4% | AQ25: 284 | AR25: 9.958990536 | AS25: 9 | AT25: 588 | AU25: 13.5% | AV25: 279 | AW25: 9.80126183 | AX25: 9 | AY25: 0 | AZ25: 0.0% | BA25: 1 | BB25: 1.031545741 | BC25: 1 | BD25: 13 | BE25: 1.0% | BF25: 214 | BG25: 7.750788644 | BH25: 7 | BI25: 846 | BJ25: 7.9% | BK25: 123 | BL25: 4.880126183 | BM25: 4 | BN25: 806 | BO25: 10.6% | BP25: 284 | BQ25: 9.958990536 | BR25: 9 | BT25: 37 | BU25: -1
A26: ='[1]Rapport 5'!A27 -> 39 | B26: ='[1]Rapport 5'!B27 -> REICHSTETT | C26: ='[1]Rapport 5'!C27 -> 4039 | D26: ='[1]Rapport 5'!D27 -> REICHSTETT | E26: ='[1]Rapport 5'!E27 -> 5006 | F26: ='[1]Rapport 5'!F27 -> STRASBOURG | G26: ='[1]Rapport 5'!G27 -> 262 | H26: ='[1]Rapport 5'!H27 -> BAS RHIN | I26: ='[1]Rapport 5'!I27 -> 2648.25 | J26: ='[1]Rapport 5'!J27 -> 151.4 | K26: ='[1]Rapport 5'!K27 -> 0 | L26: ='[1]Rapport 5'!L27 -> 0 | M26: ='[1]Rapport 5'!M27 -> 74681.08 | N26: ='[1]Rapport 5'!N27 -> 3485.76 | O26: ='[1]Rapport 5'!O27 -> 2420.5 | P26: ='[1]Rapport 5'!P27 -> 121.15 | Q26: ='[1]Rapport 5'!Q27 -> 0 | R26: ='[1]Rapport 5'!R27 -> 0 | S26: ='[1]Rapport 5'!S27 -> 57 | T26: ='[1]Rapport 5'!T27 -> 0 | U26: ='[1]Rapport 5'!U27 -> 5528.95 | V26: ='[1]Rapport 5'!V27 -> 841.53 | W26: ='[1]Rapport 5'!W27 -> 2242.68 | X26: ='[1]Rapport 5'!X27 -> 28 | Y26: 87,578 | Z26: 4,628 | AA26: 5.3% | AB26: 284 | AC26: =1+(AB26/COUNT($AB$3:AB$319)*10) -> 9.958990536 | AD26: 9 | AE26: 151 | AF26: 5.7% | AG26: 235 | AH26: 8.413249211 | AI26: 8 | AJ26: 0 | AK26: 0.0% | AL26: 1 | AM26: 1.031545741 | AN26: 1 | AO26: 3,486 | AP26: 4.7% | AQ26: 296 | AR26: 10.33753943 | AS26: 10 | AT26: 121 | AU26: 5.0% | AV26: 183 | AW26: 6.772870662 | AX26: 6 | AY26: 0 | AZ26: 0.0% | BA26: 1 | BB26: 1.031545741 | BC26: 1 | BD26: 0 | BE26: 0.0% | BF26: 1 | BG26: 1.031545741 | BH26: 1 | BI26: 842 | BJ26: 15.2% | BK26: 235 | BL26: 8.413249211 | BM26: 8 | BN26: 28 | BO26: 1.2% | BP26: 61 | BQ26: 2.924290221 | BR26: 2 | BT26: 38 | BU26: -1
A27: ='[1]Rapport 5'!A28 -> 40 | B27: ='[1]Rapport 5'!B28 -> ECKBOLSHEIM | C27: ='[1]Rapport 5'!C28 -> 4038 | D27: ='[1]Rapport 5'!D28 -> OBERHAUSBERGEN | E27: ='[1]Rapport 5'!E28 -> 5006 | F27: ='[1]Rapport 5'!F28 -> STRASBOURG | G27: ='[1]Rapport 5'!G28 -> 262 | H27: ='[1]Rapport 5'!H28 -> BAS RHIN | I27: ='[1]Rapport 5'!I28 -> 3322.04 | J27: ='[1]Rapport 5'!J28 -> 549.42 | K27: ='[1]Rapport 5'!K28 -> 0 | L27: ='[1]Rapport 5'!L28 -> 80 | M27: ='[1]Rapport 5'!M28 -> 95454.91 | N27: ='[1]Rapport 5'!N28 -> 4149.28 | O27: ='[1]Rapport 5'!O28 -> 2672.5 | P27: ='[1]Rapport 5'!P28 -> 486.94 | Q27: ='[1]Rapport 5'!Q28 -> 0 | R27: ='[1]Rapport 5'!R28 -> 0 | S27: ='[1]Rapport 5'!S28 -> 349 | T27: ='[1]Rapport 5'!T28 -> 0 | U27: ='[1]Rapport 5'!U28 -> 4333.37 | V27: ='[1]Rapport 5'!V28 -> 449.12 | W27: ='[1]Rapport 5'!W28 -> 3486.95 | X27: ='[1]Rapport 5'!X28 -> 28 | Y27: 109,619 | Z27: 5,743 | AA27: 5.2% | AB27: 282 | AC27: =1+(AB27/COUNT($AB$3:AB$319)*10) -> 9.895899054 | AD27: 9 | AE27: 549 | AF27: 16.5% | AG27: 306 | AH27: 10.65299685 | AI27: 10 | AJ27: 80 | AK27: 100.0% | AL27: 285 | AM27: 9.990536278 | AN27: 9 | AO27: 4,149 | AP27: 4.3% | AQ27: 280 | AR27: 9.832807571 | AS27: 9 | AT27: 487 | AU27: 18.2% | AV27: 291 | AW27: 10.17981073 | AX27: 10 | AY27: 0 | AZ27: 0.0% | BA27: 1 | BB27: 1.031545741 | BC27: 1 | BD27: 0 | BE27: 0.0% | BF27: 1 | BG27: 1.031545741 | BH27: 1 | BI27: 449 | BJ27: 10.4% | BK27: 176 | BL27: 6.552050473 | BM27: 6 | BN27: 28 | BO27: 0.8% | BP27: 38 | BQ27: 2.19873817 | BR27: 2 | BT27: 39 | BU27: -1
A28: ='[1]Rapport 5'!A29 -> 41 | B28: ='[1]Rapport 5'!B29 -> HOERDT | C28: ='[1]Rapport 5'!C29 -> 4041 | D28: ='[1]Rapport 5'!D29 -> HOERDT | E28: ='[1]Rapport 5'!E29 -> 5060 | F28: ='[1]Rapport 5'!F29 -> HAGUENAU | G28: ='[1]Rapport 5'!G29 -> 262 | H28: ='[1]Rapport 5'!H29 -> BAS RHIN | I28: ='[1]Rapport 5'!I29 -> 6543.39 | J28: ='[1]Rapport 5'!J29 -> 92.43 | K28: ='[1]Rapport 5'!K29 -> 0 | L28: ='[1]Rapport 5'!L29 -> 131.5 | M28: ='[1]Rapport 5'!M29 -> 101066.64 | N28: ='[1]Rapport 5'!N29 -> 2332.9 | O28: ='[1]Rapport 5'!O29 -> 3673.5 | P28: ='[1]Rapport 5'!P29 -> 219 | Q28: ='[1]Rapport 5'!Q29 -> 0 | R28: ='[1]Rapport 5'!R29 -> 0 | S28: ='[1]Rapport 5'!S29 -> 157.06 | T28: ='[1]Rapport 5'!T29 -> 0 | U28: ='[1]Rapport 5'!U29 -> 5209.26 | V28: ='[1]Rapport 5'!V29 -> 605.57 | W28: ='[1]Rapport 5'!W29 -> 3523.64 | X28: ='[1]Rapport 5'!X29 -> 190.63 | Y28: 120,173 | Z28: 3,572 | AA28: 3.0% | AB28: 82 | AC28: =1+(AB28/COUNT($AB$3:AB$319)*10) -> 3.586750789 | AD28: 3 | AE28: 92 | AF28: 1.4% | AG28: 31 | AH28: 1.977917981 | AI28: 1 | AJ28: 132 | AK28: 100.0% | AL28: 285 | AM28: 9.990536278 | AN28: 9 | AO28: 2,333 | AP28: 2.3% | AQ28: 93 | AR28: 3.933753943 | AS28: 3 | AT28: 219 | AU28: 6.0% | AV28: 203 | AW28: 7.403785489 | AX28: 7 | AY28: 0 | AZ28: 0.0% | BA28: 1 | BB28: 1.031545741 | BC28: 1 | BD28: 0 | BE28: 0.0% | BF28: 1 | BG28: 1.031545741 | BH28: 1 | BI28: 606 | BJ28: 11.6% | BK28: 197 | BL28: 7.214511041 | BM28: 7 | BN28: 191 | BO28: 5.4% | BP28: 227 | BQ28: 8.160883281 | BR28: 8 | BT28: 40 | BU28: -1
A29: ='[1]Rapport 5'!A30 -> 43 | B29: ='[1]Rapport 5'!B30 -> STRASBOURG HALLES | C29: ='[1]Rapport 5'!C30 -> 4043 | D29: ='[1]Rapport 5'!D30 -> STRASBOURG HALLES | E29: ='[1]Rapport 5'!E30 -> 5006 | F29: ='[1]Rapport 5'!F30 -> STRASBOURG | G29: ='[1]Rapport 5'!G30 -> 262 | H29: ='[1]Rapport 5'!H30 -> BAS RHIN | I29: ='[1]Rapport 5'!I30 -> 9989.63 | J29: ='[1]Rapport 5'!J30 -> 3769.76 | K29: ='[1]Rapport 5'!K30 -> 0 | L29: ='[1]Rapport 5'!L30 -> 0 | M29: ='[1]Rapport 5'!M30 -> 387744.17 | N29: ='[1]Rapport 5'!N30 -> 23212.16 | O29: ='[1]Rapport 5'!O30 -> 9099 | P29: ='[1]Rapport 5'!P30 -> 809 | Q29: ='[1]Rapport 5'!Q30 -> 0 | R29: ='[1]Rapport 5'!R30 -> 0 | S29: ='[1]Rapport 5'!S30 -> 954 | T29: ='[1]Rapport 5'!T30 -> 44 | U29: ='[1]Rapport 5'!U30 -> 34881.53 | V29: ='[1]Rapport 5'!V30 -> 1900.62 | W29: ='[1]Rapport 5'!W30 -> 10431.08 | X29: ='[1]Rapport 5'!X30 -> 466.86 | Y29: 453,099 | Z29: 30,202 | AA29: 6.7% | AB29: 310 | AC29: =1+(AB29/COUNT($AB$3:AB$319)*10) -> 10.77917981 | AD29: 10 | AE29: 3,770 | AF29: 37.7% | AG29: 314 | AH29: 10.90536278 | AI29: 10 | AJ29: 0 | AK29: 0.0% | AL29: 1 | AM29: 1.031545741 | AN29: 1 | AO29: 23,212 | AP29: 6.0% | AQ29: 313 | AR29: 10.87381703 | AS29: 10 | AT29: 809 | AU29: 8.9% | AV29: 244 | AW29: 8.697160883 | AX29: 8 | AY29: 0 | AZ29: 0.0% | BA29: 1 | BB29: 1.031545741 | BC29: 1 | BD29: 44 | BE29: 4.6% | BF29: 241 | BG29: 8.602523659 | BH29: 8 | BI29: 1,901 | BJ29: 5.4% | BK29: 64 | BL29: 3.018927445 | BM29: 3 | BN29: 467 | BO29: 4.5% | BP29: 199 | BQ29: 7.277602524 | BR29: 7 | BT29: 41 | BU29: -2
A30: ='[1]Rapport 5'!A31 -> 45 | B30: ='[1]Rapport 5'!B31 -> STRASBOURG FRANCS BOURGEOIS | C30: ='[1]Rapport 5'!C31 -> 4045 | D30: ='[1]Rapport 5'!D31 -> STRASBOURG FRANCS BOURGEOIS | E30: ='[1]Rapport 5'!E31 -> 5006 | F30: ='[1]Rapport 5'!F31 -> STRASBOURG | G30: ='[1]Rapport 5'!G31 -> 262 | H30: ='[1]Rapport 5'!H31 -> BAS RHIN | I30: ='[1]Rapport 5'!I31 -> 4317.8 | J30: ='[1]Rapport 5'!J31 -> 596.95 | K30: ='[1]Rapport 5'!K31 -> 0 | L30: ='[1]Rapport 5'!L31 -> 282.33 | M30: ='[1]Rapport 5'!M31 -> 300078.21 | N30: ='[1]Rapport 5'!N31 -> 6921.34 | O30: ='[1]Rapport 5'!O31 -> 8061.8 | P30: ='[1]Rapport 5'!P31 -> 1048.63 | Q30: ='[1]Rapport 5'!Q31 -> 164.45 | R30: ='[1]Rapport 5'!R31 -> 0 | S30: ='[1]Rapport 5'!S31 -> 1526.5 | T30: ='[1]Rapport 5'!T31 -> 0 | U30: ='[1]Rapport 5'!U31 -> 16117 | V30: ='[1]Rapport 5'!V31 -> 447.68 | W30: ='[1]Rapport 5'!W31 -> 9411.09 | X30: ='[1]Rapport 5'!X31 -> 356.14 | Y30: 339,677 | Z30: 9,653 | AA30: 2.8% | AB30: 67 | AC30: =1+(AB30/COUNT($AB$3:AB$319)*10) -> 3.113564669 | AD30: 3 | AE30: 597 | AF30: 13.8% | AG30: 300 | AH30: 10.4637224 | AI30: 10 | AJ30: 282 | AK30: 100.0% | AL30: 285 | AM30: 9.990536278 | AN30: 9 | AO30: 6,921 | AP30: 2.3% | AQ30: 91 | AR30: 3.870662461 | AS30: 3 | AT30: 1,049 | AU30: 13.0% | AV30: 276 | AW30: 9.706624606 | AX30: 9 | AY30: 0 | AZ30: 0.0% | BA30: 1 | BB30: 1.031545741 | BC30: 1 | BD30: 0 | BE30: 0.0% | BF30: 1 | BG30: 1.031545741 | BH30: 1 | BI30: 448 | BJ30: 2.8% | BK30: 25 | BL30: 1.788643533 | BM30: 1 | BN30: 356 | BO30: 3.8% | BP30: 177 | BQ30: 6.583596215 | BR30: 6 | BT30: 43 | BU30: -2
A31: ='[1]Rapport 5'!A32 -> 47 | B31: ='[1]Rapport 5'!B32 -> STRASBOURG CRONENBOURG | C31: ='[1]Rapport 5'!C32 -> 4047 | D31: ='[1]Rapport 5'!D32 -> STRASBOURG CRONENBOURG | E31: ='[1]Rapport 5'!E32 -> 5006 | F31: ='[1]Rapport 5'!F32 -> STRASBOURG | G31: ='[1]Rapport 5'!G32 -> 262 | H31: ='[1]Rapport 5'!H32 -> BAS RHIN | I31: ='[1]Rapport 5'!I32 -> 9921.31 | J31: ='[1]Rapport 5'!J32 -> 285.71 | K31: ='[1]Rapport 5'!K32 -> 0 | L31: ='[1]Rapport 5'!L32 -> 514.44 | M31: ='[1]Rapport 5'!M32 -> 322272.18 | N31: ='[1]Rapport 5'!N32 -> 10797.86 | O31: ='[1]Rapport 5'!O32 -> 4141 | P31: ='[1]Rapport 5'!P32 -> 959 | Q31: ='[1]Rapport 5'!Q32 -> 0 | R31: ='[1]Rapport 5'!R32 -> 0 | S31: ='[1]Rapport 5'!S32 -> 1091.07 | T31: ='[1]Rapport 5'!T32 -> 0 | U31: ='[1]Rapport 5'!U32 -> 24004.36 | V31: ='[1]Rapport 5'!V32 -> 1785.43 | W31: ='[1]Rapport 5'!W32 -> 6475.12 | X31: ='[1]Rapport 5'!X32 -> 603.62 | Y31: 367,905 | Z31: 14,946 | AA31: 4.1% | AB31: 211 | AC31: =1+(AB31/COUNT($AB$3:AB$319)*10) -> 7.65615142 | AD31: 7 | AE31: 286 | AF31: 2.9% | AG31: 119 | AH31: 4.753943218 | AI31: 4 | AJ31: 514 | AK31: 100.0% | AL31: 285 | AM31: 9.990536278 | AN31: 9 | AO31: 10,798 | AP31: 3.4% | AQ31: 208 | AR31: 7.561514196 | AS31: 7 | AT31: 959 | AU31: 23.2% | AV31: 304 | AW31: 10.58990536 | AX31: 10 | AY31: 0 | AZ31: 0.0% | BA31: 1 | BB31: 1.031545741 | BC31: 1 | BD31: 0 | BE31: 0.0% | BF31: 1 | BG31: 1.031545741 | BH31: 1 | BI31: 1,785 | BJ31: 7.4% | BK31: 109 | BL31: 4.438485804 | BM31: 4 | BN31: 604 | BO31: 9.3% | BP31: 275 | BQ31: 9.675078864 | BR31: 9 | BT31: 45 | BU31: -2
A32: ='[1]Rapport 5'!A33 -> 48 | B32: ='[1]Rapport 5'!B33 -> STRASBOURG KOENIGSHOFFEN | C32: ='[1]Rapport 5'!C33 -> 4048 | D32: ='[1]Rapport 5'!D33 -> STRASBOURG KOENIGSHOFFEN | E32: ='[1]Rapport 5'!E33 -> 5006 | F32: ='[1]Rapport 5'!F33 -> STRASBOURG | G32: ='[1]Rapport 5'!G33 -> 262 | H32: ='[1]Rapport 5'!H33 -> BAS RHIN | I32: ='[1]Rapport 5'!I33 -> 5366.76 | J32: ='[1]Rapport 5'!J33 -> 38.55 | K32: ='[1]Rapport 5'!K33 -> 0 | L32: ='[1]Rapport 5'!L33 -> 0 | M32: ='[1]Rapport 5'!M33 -> 157424.42 | N32: ='[1]Rapport 5'!N33 -> 3229.84 | O32: ='[1]Rapport 5'!O33 -> 5015 | P32: ='[1]Rapport 5'!P33 -> 1750 | Q32: ='[1]Rapport 5'!Q33 -> 0 | R32: ='[1]Rapport 5'!R33 -> 0 | S32: ='[1]Rapport 5'!S33 -> 280 | T32: ='[1]Rapport 5'!T33 -> 0 | U32: ='[1]Rapport 5'!U33 -> 13098.75 | V32: ='[1]Rapport 5'!V33 -> 2389.57 | W32: ='[1]Rapport 5'!W33 -> 3559.68 | X32: ='[1]Rapport 5'!X33 -> 37.3 | Y32: 184,745 | Z32: 7,445 | AA32: 4.0% | AB32: 207 | AC32: =1+(AB32/COUNT($AB$3:AB$319)*10) -> 7.529968454 | AD32: 7 | AE32: 39 | AF32: 0.7% | AG32: 9 | AH32: 1.283911672 | AI32: 1 | AJ32: 0 | AK32: 0.0% | AL32: 1 | AM32: 1.031545741 | AN32: 1 | AO32: 3,230 | AP32: 2.1% | AQ32: 59 | AR32: 2.861198738 | AS32: 2 | AT32: 1,750 | AU32: 34.9% | AV32: 312 | AW32: 10.84227129 | AX32: 10 | AY32: 0 | AZ32: 0.0% | BA32: 1 | BB32: 1.031545741 | BC32: 1 | BD32: 0 | BE32: 0.0% | BF32: 1 | BG32: 1.031545741 | BH32: 1 | BI32: 2,390 | BJ32: 18.2% | BK32: 261 | BL32: 9.233438486 | BM32: 9 | BN32: 37 | BO32: 1.0% | BP32: 50 | BQ32: 2.577287066 | BR32: 2 | BT32: 47 | BU32: -1
A33: ='[1]Rapport 5'!A34 -> 50 | B33: ='[1]Rapport 5'!B34 -> STRASBOURG GARE | C33: ='[1]Rapport 5'!C34 -> 4043 | D33: ='[1]Rapport 5'!D34 -> STRASBOURG HALLES | E33: ='[1]Rapport 5'!E34 -> 5006 | F33: ='[1]Rapport 5'!F34 -> STRASBOURG | G33: ='[1]Rapport 5'!G34 -> 262 | H33: ='[1]Rapport 5'!H34 -> BAS RHIN | I33: ='[1]Rapport 5'!I34 -> 1418 | J33: ='[1]Rapport 5'!J34 -> 58.69 | K33: ='[1]Rapport 5'!K34 -> 0 | L33: ='[1]Rapport 5'!L34 -> 0 | M33: ='[1]Rapport 5'!M34 -> 29747.88 | N33: ='[1]Rapport 5'!N34 -> 1013.17 | O33: ='[1]Rapport 5'!O34 -> 178.5 | P33: ='[1]Rapport 5'!P34 -> 0 | Q33: ='[1]Rapport 5'!Q34 -> 0 | R33: ='[1]Rapport 5'!R34 -> 0 | S33: ='[1]Rapport 5'!S34 -> 79 | T33: ='[1]Rapport 5'!T34 -> 0 | U33: ='[1]Rapport 5'!U34 -> 2201.13 | V33: ='[1]Rapport 5'!V34 -> 390 | W33: ='[1]Rapport 5'!W34 -> 1619.33 | X33: ='[1]Rapport 5'!X34 -> 26 | Y33: 35,244 | Z33: 1,488 | AA33: 4.2% | AB33: 228 | AC33: =1+(AB33/COUNT($AB$3:AB$319)*10) -> 8.192429022 | AD33: 8 | AE33: =+J33 -> 59 | AF33: 4.1% | AG33: 189 | AH33: 6.96214511 | AI33: 6 | AJ33: 0 | AK33: 0.0% | AL33: 1 | AM33: 1.031545741 | AN33: 1 | AO33: 1,013 | AP33: 3.4% | AQ33: 219 | AR33: 7.90851735 | AS33: 7 | AT33: 0 | AU33: 0.0% | AV33: 1 | AW33: 1.031545741 | AX33: 1 | AY33: 0 | AZ33: 0.0% | BA33: 1 | BB33: 1.031545741 | BC33: 1 | BD33: 0 | BE33: 0.0% | BF33: 1 | BG33: 1.031545741 | BH33: 1 | BI33: 390 | BJ33: 17.7% | BK33: 255 | BL33: 9.044164038 | BM33: 9 | BN33: 26 | BO33: 1.6% | BP33: 78 | BQ33: 3.460567823 | BR33: 3 | BT33: 48 | BU33: -2
A34: ='[1]Rapport 5'!A35 -> 54 | B34: ='[1]Rapport 5'!B35 -> STRASBOURG MONTAGNE VERTE | C34: ='[1]Rapport 5'!C35 -> 4054 | D34: ='[1]Rapport 5'!D35 -> STRASBOURG MONTAGNE VERTE | E34: ='[1]Rapport 5'!E35 -> 5006 | F34: ='[1]Rapport 5'!F35 -> STRASBOURG | G34: ='[1]Rapport 5'!G35 -> 262 | H34: ='[1]Rapport 5'!H35 -> BAS RHIN | I34: ='[1]Rapport 5'!I35 -> 7831.85 | J34: ='[1]Rapport 5'!J35 -> 286.48 | K34: ='[1]Rapport 5'!K35 -> 0 | L34: ='[1]Rapport 5'!L35 -> 0 | M34: ='[1]Rapport 5'!M35 -> 187938.78 | N34: ='[1]Rapport 5'!N35 -> 3964.77 | O34: ='[1]Rapport 5'!O35 -> 6199 | P34: ='[1]Rapport 5'!P35 -> 359 | Q34: ='[1]Rapport 5'!Q35 -> 0 | R34: ='[1]Rapport 5'!R35 -> 0 | S34: ='[1]Rapport 5'!S35 -> 891 | T34: ='[1]Rapport 5'!T35 -> 18 | U34: ='[1]Rapport 5'!U35 -> 13318.2 | V34: ='[1]Rapport 5'!V35 -> 944.02 | W34: ='[1]Rapport 5'!W35 -> 5463.77 | X34: ='[1]Rapport 5'!X35 -> 10.85 | Y34: 221,643 | Z34: 5,583 | AA34: 2.5% | AB34: 46 | AC34: =1+(AB34/COUNT($AB$3:AB$319)*10) -> 2.451104101 | AD34: 2 | AE34: 286 | AF34: 3.7% | AG34: 166 | AH34: 6.23659306 | AI34: 6 | AJ34: 0 | AK34: 0.0% | AL34: 1 | AM34: 1.031545741 | AN34: 1 | AO34: 3,965 | AP34: 2.1% | AQ34: 64 | AR34: 3.018927445 | AS34: 3 | AT34: 359 | AU34: 5.8% | AV34: 200 | AW34: 7.309148265 | AX34: 7 | AY34: 0 | AZ34: 0.0% | BA34: 1 | BB34: 1.031545741 | BC34: 1 | BD34: 18 | BE34: 2.0% | BF34: 222 | BG34: 8.003154574 | BH34: 8 | BI34: 944 | BJ34: 7.1% | BK34: 98 | BL34: 4.09148265 | BM34: 4 | BN34: 11 | BO34: 0.2% | BP34: 14 | BQ34: 1.441640379 | BR34: 1 | BT34: 50 | BU34: -4
A35: ='[1]Rapport 5'!A36 -> 57 | B35: ='[1]Rapport 5'!B36 -> BISCHWILLER | C35: ='[1]Rapport 5'!C36 -> 4057 | D35: ='[1]Rapport 5'!D36 -> BISCHWILLER | E35: ='[1]Rapport 5'!E36 -> 5060 | F35: ='[1]Rapport 5'!F36 -> HAGUENAU | G35: ='[1]Rapport 5'!G36 -> 262 | H35: ='[1]Rapport 5'!H36 -> BAS RHIN | I35: ='[1]Rapport 5'!I36 -> 4174.22 | J35: ='[1]Rapport 5'!J36 -> 560.88 | K35: ='[1]Rapport 5'!K36 -> 0 | L35: ='[1]Rapport 5'!L36 -> 65.86 | M35: ='[1]Rapport 5'!M36 -> 170695.55 | N35: ='[1]Rapport 5'!N36 -> 2812.53 | O35: ='[1]Rapport 5'!O36 -> 7335.5 | P35: ='[1]Rapport 5'!P36 -> 1130 | Q35: ='[1]Rapport 5'!Q36 -> 0 | R35: ='[1]Rapport 5'!R36 -> 0 | S35: ='[1]Rapport 5'!S36 -> 166 | T35: ='[1]Rapport 5'!T36 -> 0 | U35: ='[1]Rapport 5'!U36 -> 15029.19 | V35: ='[1]Rapport 5'!V36 -> 1362.47 | W35: ='[1]Rapport 5'!W36 -> 4928.69 | X35: ='[1]Rapport 5'!X36 -> 77.5 | Y35: 202,329 | Z35: 6,009 | AA35: 3.0% | AB35: 81 | AC35: =1+(AB35/COUNT($AB$3:AB$319)*10) -> 3.555205047 | AD35: 3 | AE35: 561 | AF35: 13.4% | AG35: 299 | AH35: 10.43217666 | AI35: 10 | AJ35: 66 | AK35: 100.0% | AL35: 285 | AM35: 9.990536278 | AN35: 9 | AO35: 2,813 | AP35: 1.6% | AQ35: 30 | AR35: 1.94637224 | AS35: 1 | AT35: 1,130 | AU35: 15.4% | AV35: 285 | AW35: 9.990536278 | AX35: 9 | AY35: 0 | AZ35: 0.0% | BA35: 1 | BB35: 1.031545741 | BC35: 1 | BD35: 0 | BE35: 0.0% | BF35: 1 | BG35: 1.031545741 | BH35: 1 | BI35: 1,362 | BJ35: 9.1% | BK35: 150 | BL35: 5.731861199 | BM35: 5 | BN35: 78 | BO35: 1.6% | BP35: 73 | BQ35: 3.302839117 | BR35: 3 | BT35: 54 | BU35: -3
A36: ='[1]Rapport 5'!A37 -> 58 | B36: ='[1]Rapport 5'!B37 -> DRUSENHEIM | C36: ='[1]Rapport 5'!C37 -> 4057 | D36: ='[1]Rapport 5'!D37 -> BISCHWILLER | E36: ='[1]Rapport 5'!E37 -> 5060 | F36: ='[1]Rapport 5'!F37 -> HAGUENAU | G36: ='[1]Rapport 5'!G37 -> 262 | H36: ='[1]Rapport 5'!H37 -> BAS RHIN | I36: ='[1]Rapport 5'!I37 -> 2355.55 | J36: ='[1]Rapport 5'!J37 -> 581.42 | K36: ='[1]Rapport 5'!K37 -> 0 | L36: ='[1]Rapport 5'!L37 -> 0 | M36: ='[1]Rapport 5'!M37 -> 85039.46 | N36: ='[1]Rapport 5'!N37 -> 1839.9 | O36: ='[1]Rapport 5'!O37 -> 6502.5 | P36: ='[1]Rapport 5'!P37 -> 100 | Q36: ='[1]Rapport 5'!Q37 -> 0 | R36: ='[1]Rapport 5'!R37 -> 0 | S36: ='[1]Rapport 5'!S37 -> 194 | T36: ='[1]Rapport 5'!T37 -> 26 | U36: ='[1]Rapport 5'!U37 -> 3490.25 | V36: ='[1]Rapport 5'!V37 -> 211.5 | W36: ='[1]Rapport 5'!W37 -> 2441.67 | X36: ='[1]Rapport 5'!X37 -> 363.64 | Y36: 100,023 | Z36: 3,122 | AA36: 3.1% | AB36: 100 | AC36: =1+(AB36/COUNT($AB$3:AB$319)*10) -> 4.154574132 | AD36: 4 | AE36: 581 | AF36: 24.7% | AG36: 311 | AH36: 10.81072555 | AI36: 10 | AJ36: 0 | AK36: 0.0% | AL36: 1 | AM36: 1.031545741 | AN36: 1 | AO36: 1,840 | AP36: 2.2% | AQ36: 68 | AR36: 3.14511041 | AS36: 3 | AT36: 100 | AU36: 1.5% | AV36: 93 | AW36: 3.933753943 | AX36: 3 | AY36: 0 | AZ36: 0.0% | BA36: 1 | BB36: 1.031545741 | BC36: 1 | BD36: 26 | BE36: 13.4% | BF36: 285 | BG36: 9.990536278 | BH36: 9 | BI36: 212 | BJ36: 6.1% | BK36: 81 | BL36: 3.555205047 | BM36: 3 | BN36: 364 | BO36: 14.9% | BP36: 303 | BQ36: 10.55835962 | BR36: 10 | BT36: 57 | BU36: -1
A37: ='[1]Rapport 5'!A38 -> 60 | B37: ='[1]Rapport 5'!B38 -> HAGUENAU HOUBLON | C37: ='[1]Rapport 5'!C38 -> 4060 | D37: ='[1]Rapport 5'!D38 -> HAGUENAU HOUBLON | E37: ='[1]Rapport 5'!E38 -> 5060 | F37: ='[1]Rapport 5'!F38 -> HAGUENAU | G37: ='[1]Rapport 5'!G38 -> 262 | H37: ='[1]Rapport 5'!H38 -> BAS RHIN | I37: ='[1]Rapport 5'!I38 -> 10834.62 | J37: ='[1]Rapport 5'!J38 -> 771.17 | K37: ='[1]Rapport 5'!K38 -> 0 | L37: ='[1]Rapport 5'!L38 -> 0 | M37: ='[1]Rapport 5'!M38 -> 422746.63 | N37: ='[1]Rapport 5'!N38 -> 10513.84 | O37: ='[1]Rapport 5'!O38 -> 18230 | P37: ='[1]Rapport 5'!P38 -> 2052.48 | Q37: ='[1]Rapport 5'!Q38 -> 0 | R37: ='[1]Rapport 5'!R38 -> 0 | S37: ='[1]Rapport 5'!S38 -> 1455.19 | T37: ='[1]Rapport 5'!T38 -> 0 | U37: ='[1]Rapport 5'!U38 -> 27802.16 | V37: ='[1]Rapport 5'!V38 -> 3127.43 | W37: ='[1]Rapport 5'!W38 -> 11116.26 | X37: ='[1]Rapport 5'!X38 -> 524.89 | Y37: 492,185 | Z37: 16,990 | AA37: 3.5% | AB37: 139 | AC37: =1+(AB37/COUNT($AB$3:AB$319)*10) -> 5.384858044 | AD37: 5 | AE37: 771 | AF37: 7.1% | AG37: 256 | AH37: 9.075709779 | AI37: 9 | AJ37: 0 | AK37: 0.0% | AL37: 1 | AM37: 1.031545741 | AN37: 1 | AO37: 10,514 | AP37: 2.5% | AQ37: 107 | AR37: 4.375394322 | AS37: 4 | AT37: 2,052 | AU37: 11.3% | AV37: 265 | AW37: 9.359621451 | AX37: 9 | AY37: 0 | AZ37: 0.0% | BA37: 1 | BB37: 1.031545741 | BC37: 1 | BD37: 0 | BE37: 0.0% | BF37: 1 | BG37: 1.031545741 | BH37: 1 | BI37: 3,127 | BJ37: 11.2% | BK37: 190 | BL37: 6.993690852 | BM37: 6 | BN37: 525 | BO37: 4.7% | BP37: 204 | BQ37: 7.43533123 | BR37: 7 | BT37: 58 | BU37: -2
A38: ='[1]Rapport 5'!A39 -> 64 | B38: ='[1]Rapport 5'!B39 -> HAGUENAU MUSAU | C38: ='[1]Rapport 5'!C39 -> 4060 | D38: ='[1]Rapport 5'!D39 -> HAGUENAU HOUBLON | E38: ='[1]Rapport 5'!E39 -> 5060 | F38: ='[1]Rapport 5'!F39 -> HAGUENAU | G38: ='[1]Rapport 5'!G39 -> 262 | H38: ='[1]Rapport 5'!H39 -> BAS RHIN | I38: ='[1]Rapport 5'!I39 -> 1183.19 | J38: ='[1]Rapport 5'!J39 -> 226.55 | K38: ='[1]Rapport 5'!K39 -> 0 | L38: ='[1]Rapport 5'!L39 -> 0 | M38: ='[1]Rapport 5'!M39 -> 52741.63 | N38: ='[1]Rapport 5'!N39 -> 1255.03 | O38: ='[1]Rapport 5'!O39 -> 1652.5 | P38: ='[1]Rapport 5'!P39 -> 0 | Q38: ='[1]Rapport 5'!Q39 -> 0 | R38: ='[1]Rapport 5'!R39 -> 0 | S38: ='[1]Rapport 5'!S39 -> 114 | T38: ='[1]Rapport 5'!T39 -> 13 | U38: ='[1]Rapport 5'!U39 -> 3419.64 | V38: ='[1]Rapport 5'!V39 -> 407.02 | W38: ='[1]Rapport 5'!W39 -> 2907.25 | X38: ='[1]Rapport 5'!X39 -> 14 | Y38: 62,018 | Z38: 1,916 | AA38: 3.1% | AB38: 95 | AC38: =1+(AB38/COUNT($AB$3:AB$319)*10) -> 3.996845426 | AD38: 3 | AE38: 227 | AF38: 19.1% | AG38: 309 | AH38: 10.74763407 | AI38: 10 | AJ38: 0 | AK38: 0.0% | AL38: 1 | AM38: 1.031545741 | AN38: 1 | AO38: 1,255 | AP38: 2.4% | AQ38: 96 | AR38: 4.028391167 | AS38: 4 | AT38: 0 | AU38: 0.0% | AV38: 1 | AW38: 1.031545741 | AX38: 1 | AY38: 0 | AZ38: 0.0% | BA38: 1 | BB38: 1.031545741 | BC38: 1 | BD38: 13 | BE38: 11.4% | BF38: 280 | BG38: 9.832807571 | BH38: 9 | BI38: 407 | BJ38: 11.9% | BK38: 198 | BL38: 7.246056782 | BM38: 7 | BN38: 14 | BO38: 0.5% | BP38: 22 | BQ38: 1.694006309 | BR38: 1 | BT38: 59 | BU38: -5
A39: ='[1]Rapport 5'!A40 -> 66 | B39: ='[1]Rapport 5'!B40 -> NIEDERBRONN LES BAINS | C39: ='[1]Rapport 5'!C40 -> 4066 | D39: ='[1]Rapport 5'!D40 -> NIEDERBRONN LES BAINS | E39: ='[1]Rapport 5'!E40 -> 5060 | F39: ='[1]Rapport 5'!F40 -> HAGUENAU | G39: ='[1]Rapport 5'!G40 -> 262 | H39: ='[1]Rapport 5'!H40 -> BAS RHIN | I39: ='[1]Rapport 5'!I40 -> 2619.88 | J39: ='[1]Rapport 5'!J40 -> 79.95 | K39: ='[1]Rapport 5'!K40 -> 0 | L39: ='[1]Rapport 5'!L40 -> 0 | M39: ='[1]Rapport 5'!M40 -> 83421 | N39: ='[1]Rapport 5'!N40 -> 2381.1 | O39: ='[1]Rapport 5'!O40 -> 2860.5 | P39: ='[1]Rapport 5'!P40 -> 0 | Q39: ='[1]Rapport 5'!Q40 -> 0 | R39: ='[1]Rapport 5'!R40 -> 0 | S39: ='[1]Rapport 5'!S40 -> 248 | T39: ='[1]Rapport 5'!T40 -> 0 | U39: ='[1]Rapport 5'!U40 -> 5776.84 | V39: ='[1]Rapport 5'!V40 -> 1151.61 | W39: ='[1]Rapport 5'!W40 -> 4400.1 | X39: ='[1]Rapport 5'!X40 -> 535.27 | Y39: 99,326 | Z39: 4,148 | AA39: 4.2% | AB39: 223 | AC39: =1+(AB39/COUNT($AB$3:AB$319)*10) -> 8.034700315 | AD39: 8 | AE39: 80 | AF39: 3.1% | AG39: 131 | AH39: 5.132492114 | AI39: 5 | AJ39: 0 | AK39: 0.0% | AL39: 1 | AM39: 1.031545741 | AN39: 1 | AO39: 2,381 | AP39: 2.9% | AQ39: 151 | AR39: 5.76340694 | AS39: 5 | AT39: 0 | AU39: 0.0% | AV39: 1 | AW39: 1.031545741 | AX39: 1 | AY39: 0 | AZ39: 0.0% | BA39: 1 | BB39: 1.031545741 | BC39: 1 | BD39: 0 | BE39: 0.0% | BF39: 1 | BG39: 1.031545741 | BH39: 1 | BI39: 1,152 | BJ39: 19.9% | BK39: 270 | BL39: 9.517350158 | BM39: 9 | BN39: 535 | BO39: 12.2% | BP39: 288 | BQ39: 10.0851735 | BR39: 10 | BT39: 60 | BU39: -6
A40: ='[1]Rapport 5'!A41 -> 67 | B40: ='[1]Rapport 5'!B41 -> PFAFFENHOFFEN | C40: ='[1]Rapport 5'!C41 -> 4067 | D40: ='[1]Rapport 5'!D41 -> PFAFFENHOFFEN | E40: ='[1]Rapport 5'!E41 -> 5060 | F40: ='[1]Rapport 5'!F41 -> HAGUENAU | G40: ='[1]Rapport 5'!G41 -> 262 | H40: ='[1]Rapport 5'!H41 -> BAS RHIN | I40: ='[1]Rapport 5'!I41 -> 4477.53 | J40: ='[1]Rapport 5'!J41 -> 235.32 | K40: ='[1]Rapport 5'!K41 -> 0 | L40: ='[1]Rapport 5'!L41 -> 0 | M40: ='[1]Rapport 5'!M41 -> 144424.52 | N40: ='[1]Rapport 5'!N41 -> 4425.69 | O40: ='[1]Rapport 5'!O41 -> 5314.5 | P40: ='[1]Rapport 5'!P41 -> 238 | Q40: ='[1]Rapport 5'!Q41 -> 0 | R40: ='[1]Rapport 5'!R41 -> 0 | S40: ='[1]Rapport 5'!S41 -> 208 | T40: ='[1]Rapport 5'!T41 -> 13 | U40: ='[1]Rapport 5'!U41 -> 8779.51 | V40: ='[1]Rapport 5'!V41 -> 2055.99 | W40: ='[1]Rapport 5'!W41 -> 4402.08 | X40: ='[1]Rapport 5'!X41 -> 97.3 | Y40: 167,606 | Z40: 7,065 | AA40: 4.2% | AB40: 227 | AC40: =1+(AB40/COUNT($AB$3:AB$319)*10) -> 8.160883281 | AD40: 8 | AE40: 235 | AF40: 5.3% | AG40: 226 | AH40: 8.129337539 | AI40: 8 | AJ40: 0 | AK40: 0.0% | AL40: 1 | AM40: 1.031545741 | AN40: 1 | AO40: 4,426 | AP40: 3.1% | AQ40: 178 | AR40: 6.615141956 | AS40: 6 | AT40: 238 | AU40: 4.5% | AV40: 168 | AW40: 6.299684543 | AX40: 6 | AY40: 0 | AZ40: 0.0% | BA40: 1 | BB40: 1.031545741 | BC40: 1 | BD40: 13 | BE40: 6.3% | BF40: 254 | BG40: 9.012618297 | BH40: 9 | BI40: 2,056 | BJ40: 23.4% | BK40: 292 | BL40: 10.21135647 | BM40: 10 | BN40: 97 | BO40: 2.2% | BP40: 106 | BQ40: 4.34384858 | BR40: 4 | BT40: 64 | BU40: -3
A41: ='[1]Rapport 5'!A42 -> 68 | B41: ='[1]Rapport 5'!B42 -> REICHSHOFFEN | C41: ='[1]Rapport 5'!C42 -> 4066 | D41: ='[1]Rapport 5'!D42 -> NIEDERBRONN LES BAINS | E41: ='[1]Rapport 5'!E42 -> 5060 | F41: ='[1]Rapport 5'!F42 -> HAGUENAU | G41: ='[1]Rapport 5'!G42 -> 262 | H41: ='[1]Rapport 5'!H42 -> BAS RHIN | I41: ='[1]Rapport 5'!I42 -> 3496.21 | J41: ='[1]Rapport 5'!J42 -> 96.58 | K41: ='[1]Rapport 5'!K42 -> 0 | L41: ='[1]Rapport 5'!L42 -> 50 | M41: ='[1]Rapport 5'!M42 -> 84501.68 | N41: ='[1]Rapport 5'!N42 -> 1795.75 | O41: ='[1]Rapport 5'!O42 -> 3636.5 | P41: ='[1]Rapport 5'!P42 -> 42.5 | Q41: ='[1]Rapport 5'!Q42 -> 0 | R41: ='[1]Rapport 5'!R42 -> 0 | S41: ='[1]Rapport 5'!S42 -> 553 | T41: ='[1]Rapport 5'!T42 -> 0 | U41: ='[1]Rapport 5'!U42 -> 5855.31 | V41: ='[1]Rapport 5'!V42 -> 1318.38 | W41: ='[1]Rapport 5'!W42 -> 2777.65 | X41: ='[1]Rapport 5'!X42 -> 51.3 | Y41: 100,820 | Z41: 3,355 | AA41: 3.3% | AB41: 124 | AC41: =1+(AB41/COUNT($AB$3:AB$319)*10) -> 4.911671924 | AD41: 4 | AE41: 97 | AF41: 2.8% | AG41: 108 | AH41: 4.406940063 | AI41: 4 | AJ41: 50 | AK41: 100.0% | AL41: 285 | AM41: 9.990536278 | AN41: 9 | AO41: 1,796 | AP41: 2.1% | AQ41: 66 | AR41: 3.082018927 | AS41: 3 | AT41: 43 | AU41: 1.2% | AV41: 81 | AW41: 3.555205047 | AX41: 3 | AY41: 0 | AZ41: 0.0% | BA41: 1 | BB41: 1.031545741 | BC41: 1 | BD41: 0 | BE41: 0.0% | BF41: 1 | BG41: 1.031545741 | BH41: 1 | BI41: 1,318 | BJ41: 22.5% | BK41: 288 | BL41: 10.0851735 | BM41: 10 | BN41: 51 | BO41: 1.8% | BP41: 89 | BQ41: 3.807570978 | BR41: 3 | BT41: 65 | BU41: -3
A42: ='[1]Rapport 5'!A43 -> 70 | B42: ='[1]Rapport 5'!B43 -> GUNDERSHOFFEN | C42: ='[1]Rapport 5'!C43 -> 4066 | D42: ='[1]Rapport 5'!D43 -> NIEDERBRONN LES BAINS | E42: ='[1]Rapport 5'!E43 -> 5060 | F42: ='[1]Rapport 5'!F43 -> HAGUENAU | G42: ='[1]Rapport 5'!G43 -> 262 | H42: ='[1]Rapport 5'!H43 -> BAS RHIN | I42: ='[1]Rapport 5'!I43 -> 2276.12 | J42: ='[1]Rapport 5'!J43 -> 268.21 | K42: ='[1]Rapport 5'!K43 -> 0 | L42: ='[1]Rapport 5'!L43 -> 52.2 | M42: ='[1]Rapport 5'!M43 -> 72835.15 | N42: ='[1]Rapport 5'!N43 -> 2404.09 | O42: ='[1]Rapport 5'!O43 -> 4362 | P42: ='[1]Rapport 5'!P43 -> 0 | Q42: ='[1]Rapport 5'!Q43 -> 245.83 | R42: ='[1]Rapport 5'!R43 -> 0 | S42: ='[1]Rapport 5'!S43 -> 13 | T42: ='[1]Rapport 5'!T43 -> 0 | U42: ='[1]Rapport 5'!U43 -> 3769.32 | V42: ='[1]Rapport 5'!V43 -> 276.88 | W42: ='[1]Rapport 5'!W43 -> 2301.87 | X42: ='[1]Rapport 5'!X43 -> 180.36 | Y42: 85,803 | Z42: 3,182 | AA42: 3.7% | AB42: 168 | AC42: =1+(AB42/COUNT($AB$3:AB$319)*10) -> 6.299684543 | AD42: 6 | AE42: 268 | AF42: 11.8% | AG42: 296 | AH42: 10.33753943 | AI42: 10 | AJ42: 52 | AK42: 100.0% | AL42: 285 | AM42: 9.990536278 | AN42: 9 | AO42: 2,404 | AP42: 3.3% | AQ42: 201 | AR42: 7.340694006 | AS42: 7 | AT42: 0 | AU42: 0.0% | AV42: 1 | AW42: 1.031545741 | AX42: 1 | AY42: 0 | AZ42: 0.0% | BA42: 1 | BB42: 1.031545741 | BC42: 1 | BD42: 0 | BE42: 0.0% | BF42: 1 | BG42: 1.031545741 | BH42: 1 | BI42: 277 | BJ42: 7.3% | BK42: 107 | BL42: 4.375394322 | BM42: 4 | BN42: 180 | BO42: 7.8% | BP42: 263 | BQ42: 9.296529968 | BR42: 9 | BT42: 66 | BU42: -4
A43: ='[1]Rapport 5'!A44 -> 71 | B43: ='[1]Rapport 5'!B44 -> WISSEMBOURG | C43: ='[1]Rapport 5'!C44 -> 4071 | D43: ='[1]Rapport 5'!D44 -> WISSEMBOURG | E43: ='[1]Rapport 5'!E44 -> 5060 | F43: ='[1]Rapport 5'!F44 -> HAGUENAU | G43: ='[1]Rapport 5'!G44 -> 262 | H43: ='[1]Rapport 5'!H44 -> BAS RHIN | I43: ='[1]Rapport 5'!I44 -> 4870.89 | J43: ='[1]Rapport 5'!J44 -> 179.13 | K43: ='[1]Rapport 5'!K44 -> 0 | L43: ='[1]Rapport 5'!L44 -> 40 | M43: ='[1]Rapport 5'!M44 -> 182733.34 | N43: ='[1]Rapport 5'!N44 -> 4306.13 | O43: ='[1]Rapport 5'!O44 -> 5505.25 | P43: ='[1]Rapport 5'!P44 -> 496.66 | Q43: ='[1]Rapport 5'!Q44 -> 0 | R43: ='[1]Rapport 5'!R44 -> 0 | S43: ='[1]Rapport 5'!S44 -> 443.22 | T43: ='[1]Rapport 5'!T44 -> 0 | U43: ='[1]Rapport 5'!U44 -> 14265.82 | V43: ='[1]Rapport 5'!V44 -> 2552.33 | W43: ='[1]Rapport 5'!W44 -> 8177.43 | X43: ='[1]Rapport 5'!X44 -> 278.7 | Y43: 215,996 | Z43: 7,853 | AA43: 3.6% | AB43: 157 | AC43: =1+(AB43/COUNT($AB$3:AB$319)*10) -> 5.952681388 | AD43: 5 | AE43: 179 | AF43: 3.7% | AG43: 167 | AH43: 6.268138801 | AI43: 6 | AJ43: 40 | AK43: 100.0% | AL43: 285 | AM43: 9.990536278 | AN43: 9 | AO43: 4,306 | AP43: 2.4% | AQ43: 94 | AR43: 3.965299685 | AS43: 3 | AT43: 497 | AU43: 9.0% | AV43: 246 | AW43: 8.760252366 | AX43: 8 | AY43: 0 | AZ43: 0.0% | BA43: 1 | BB43: 1.031545741 | BC43: 1 | BD43: 0 | BE43: 0.0% | BF43: 1 | BG43: 1.031545741 | BH43: 1 | BI43: 2,552 | BJ43: 17.9% | BK43: 257 | BL43: 9.107255521 | BM43: 9 | BN43: 279 | BO43: 3.4% | BP43: 150 | BQ43: 5.731861199 | BR43: 5 | BT43: 67 | BU43: -4
A44: ='[1]Rapport 5'!A45 -> 73 | B44: ='[1]Rapport 5'!B45 -> SCHWEIGHOUSE SUR MODER | C44: ='[1]Rapport 5'!C45 -> 4060 | D44: ='[1]Rapport 5'!D45 -> HAGUENAU HOUBLON | E44: ='[1]Rapport 5'!E45 -> 5060 | F44: ='[1]Rapport 5'!F45 -> HAGUENAU | G44: ='[1]Rapport 5'!G45 -> 262 | H44: ='[1]Rapport 5'!H45 -> BAS RHIN | I44: ='[1]Rapport 5'!I45 -> 3470.27 | J44: ='[1]Rapport 5'!J45 -> 230.36 | K44: ='[1]Rapport 5'!K45 -> 0 | L44: ='[1]Rapport 5'!L45 -> 0 | M44: ='[1]Rapport 5'!M45 -> 90488.64 | N44: ='[1]Rapport 5'!N45 -> 1450.39 | O44: ='[1]Rapport 5'!O45 -> 2417.5 | P44: ='[1]Rapport 5'!P45 -> 242 | Q44: ='[1]Rapport 5'!Q45 -> 0 | R44: ='[1]Rapport 5'!R45 -> 0 | S44: ='[1]Rapport 5'!S45 -> 192 | T44: ='[1]Rapport 5'!T45 -> 0 | U44: ='[1]Rapport 5'!U45 -> 4953.03 | V44: ='[1]Rapport 5'!V45 -> 1313.74 | W44: ='[1]Rapport 5'!W45 -> 2700.33 | X44: ='[1]Rapport 5'!X45 -> 70 | Y44: 104,222 | Z44: 3,306 | AA44: 3.2% | AB44: 108 | AC44: =1+(AB44/COUNT($AB$3:AB$319)*10) -> 4.406940063 | AD44: 4 | AE44: 230 | AF44: 6.6% | AG44: 248 | AH44: 8.823343849 | AI44: 8 | AJ44: 0 | AK44: 0.0% | AL44: 1 | AM44: 1.031545741 | AN44: 1 | AO44: 1,450 | AP44: 1.6% | AQ44: 28 | AR44: 1.883280757 | AS44: 1 | AT44: 242 | AU44: 10.0% | AV44: 254 | AW44: 9.012618297 | AX44: 9 | AY44: 0 | AZ44: 0.0% | BA44: 1 | BB44: 1.031545741 | BC44: 1 | BD44: 0 | BE44: 0.0% | BF44: 1 | BG44: 1.031545741 | BH44: 1 | BI44: 1,314 | BJ44: 26.5% | BK44: 304 | BL44: 10.58990536 | BM44: 10 | BN44: 70 | BO44: 2.6% | BP44: 120 | BQ44: 4.785488959 | BR44: 4 | BT44: 68 | BU44: -5
A45: ='[1]Rapport 5'!A46 -> 74 | B45: ='[1]Rapport 5'!B46 -> SOUFFLENHEIM | C45: ='[1]Rapport 5'!C46 -> 4057 | D45: ='[1]Rapport 5'!D46 -> BISCHWILLER | E45: ='[1]Rapport 5'!E46 -> 5060 | F45: ='[1]Rapport 5'!F46 -> HAGUENAU | G45: ='[1]Rapport 5'!G46 -> 262 | H45: ='[1]Rapport 5'!H46 -> BAS RHIN | I45: ='[1]Rapport 5'!I46 -> 2110.73 | J45: ='[1]Rapport 5'!J46 -> 126.35 | K45: ='[1]Rapport 5'!K46 -> 0 | L45: ='[1]Rapport 5'!L46 -> 0 | M45: ='[1]Rapport 5'!M46 -> 70495.78 | N45: ='[1]Rapport 5'!N46 -> 1384.51 | O45: ='[1]Rapport 5'!O46 -> 2692 | P45: ='[1]Rapport 5'!P46 -> 150 | Q45: ='[1]Rapport 5'!Q46 -> 0 | R45: ='[1]Rapport 5'!R46 -> 0 | S45: ='[1]Rapport 5'!S46 -> 106 | T45: ='[1]Rapport 5'!T46 -> 0 | U45: ='[1]Rapport 5'!U46 -> 5143.23 | V45: ='[1]Rapport 5'!V46 -> 322.78 | W45: ='[1]Rapport 5'!W46 -> 2016.84 | X45: ='[1]Rapport 5'!X46 -> 91.03 | Y45: 82,565 | Z45: 2,075 | AA45: 2.5% | AB45: 45 | AC45: =1+(AB45/COUNT($AB$3:AB$319)*10) -> 2.41955836 | AD45: 2 | AE45: 126 | AF45: 6.0% | AG45: 240 | AH45: 8.570977918 | AI45: 8 | AJ45: 0 | AK45: 0.0% | AL45: 1 | AM45: 1.031545741 | AN45: 1 | AO45: 1,385 | AP45: 2.0% | AQ45: 53 | AR45: 2.67192429 | AS45: 2 | AT45: 150 | AU45: 5.6% | AV45: 197 | AW45: 7.214511041 | AX45: 7 | AY45: 0 | AZ45: 0.0% | BA45: 1 | BB45: 1.031545741 | BC45: 1 | BD45: 0 | BE45: 0.0% | BF45: 1 | BG45: 1.031545741 | BH45: 1 | BI45: 323 | BJ45: 6.3% | BK45: 87 | BL45: 3.744479495 | BM45: 3 | BN45: 91 | BO45: 4.5% | BP45: 200 | BQ45: 7.309148265 | BR45: 7 | BT45: 70 | BU45: -4
A46: ='[1]Rapport 5'!A47 -> 76 | B46: ='[1]Rapport 5'!B47 -> BETSCHDORF | C46: ='[1]Rapport 5'!C47 -> 4071 | D46: ='[1]Rapport 5'!D47 -> WISSEMBOURG | E46: ='[1]Rapport 5'!E47 -> 5060 | F46: ='[1]Rapport 5'!F47 -> HAGUENAU | G46: ='[1]Rapport 5'!G47 -> 262 | H46: ='[1]Rapport 5'!H47 -> BAS RHIN | I46: ='[1]Rapport 5'!I47 -> 1942.87 | J46: ='[1]Rapport 5'!J47 -> 154.56 | K46: ='[1]Rapport 5'!K47 -> 0 | L46: ='[1]Rapport 5'!L47 -> 0 | M46: ='[1]Rapport 5'!M47 -> 87815.25 | N46: ='[1]Rapport 5'!N47 -> 1307.33 | O46: ='[1]Rapport 5'!O47 -> 3825.5 | P46: ='[1]Rapport 5'!P47 -> 0 | Q46: ='[1]Rapport 5'!Q47 -> 0 | R46: ='[1]Rapport 5'!R47 -> 0 | S46: ='[1]Rapport 5'!S47 -> 26 | T46: ='[1]Rapport 5'!T47 -> 0 | U46: ='[1]Rapport 5'!U47 -> 3877.58 | V46: ='[1]Rapport 5'!V47 -> 400 | W46: ='[1]Rapport 5'!W47 -> 3280.87 | X46: ='[1]Rapport 5'!X47 -> 116.08 | Y46: 100,768 | Z46: 1,978 | AA46: 2.0% | AB46: 17 | AC46: =1+(AB46/COUNT($AB$3:AB$319)*10) -> 1.536277603 | AD46: 1 | AE46: 155 | AF46: 8.0% | AG46: 273 | AH46: 9.611987382 | AI46: 9 | AJ46: 0 | AK46: 0.0% | AL46: 1 | AM46: 1.031545741 | AN46: 1 | AO46: 1,307 | AP46: 1.5% | AQ46: 21 | AR46: 1.662460568 | AS46: 1 | AT46: 0 | AU46: 0.0% | AV46: 1 | AW46: 1.031545741 | AX46: 1 | AY46: 0 | AZ46: 0.0% | BA46: 1 | BB46: 1.031545741 | BC46: 1 | BD46: 0 | BE46: 0.0% | BF46: 1 | BG46: 1.031545741 | BH46: 1 | BI46: 400 | BJ46: 10.3% | BK46: 175 | BL46: 6.520504732 | BM46: 6 | BN46: 116 | BO46: 3.5% | BP46: 164 | BQ46: 6.173501577 | BR46: 6 | BT46: 71 | BU46: -5
A47: ='[1]Rapport 5'!A48 -> 77 | B47: ='[1]Rapport 5'!B48 -> SELTZ | C47: ='[1]Rapport 5'!C48 -> 4071 | D47: ='[1]Rapport 5'!D48 -> WISSEMBOURG | E47: ='[1]Rapport 5'!E48 -> 5060 | F47: ='[1]Rapport 5'!F48 -> HAGUENAU | G47: ='[1]Rapport 5'!G48 -> 262 | H47: ='[1]Rapport 5'!H48 -> BAS RHIN | I47: ='[1]Rapport 5'!I48 -> 4719.61 | J47: ='[1]Rapport 5'!J48 -> 133.66 | K47: ='[1]Rapport 5'!K48 -> 0 | L47: ='[1]Rapport 5'!L48 -> 0 | M47: ='[1]Rapport 5'!M48 -> 121424.8 | N47: ='[1]Rapport 5'!N48 -> 4074.97 | O47: ='[1]Rapport 5'!O48 -> 4882 | P47: ='[1]Rapport 5'!P48 -> 420 | Q47: ='[1]Rapport 5'!Q48 -> 0 | R47: ='[1]Rapport 5'!R48 -> 0 | S47: ='[1]Rapport 5'!S48 -> 392 | T47: ='[1]Rapport 5'!T48 -> 0 | U47: ='[1]Rapport 5'!U48 -> 5434.17 | V47: ='[1]Rapport 5'!V48 -> 498.17 | W47: ='[1]Rapport 5'!W48 -> 4554.49 | X47: ='[1]Rapport 5'!X48 -> 113.81 | Y47: 141,407 | Z47: 5,241 | AA47: 3.7% | AB47: 166 | AC47: =1+(AB47/COUNT($AB$3:AB$319)*10) -> 6.23659306 | AD47: 6 | AE47: 134 | AF47: 2.8% | AG47: 113 | AH47: 4.56466877 | AI47: 4 | AJ47: 0 | AK47: 0.0% | AL47: 1 | AM47: 1.031545741 | AN47: 1 | AO47: 4,075 | AP47: 3.4% | AQ47: 210 | AR47: 7.624605678 | AS47: 7 | AT47: 420 | AU47: 8.6% | AV47: 242 | AW47: 8.634069401 | AX47: 8 | AY47: 0 | AZ47: 0.0% | BA47: 1 | BB47: 1.031545741 | BC47: 1 | BD47: 0 | BE47: 0.0% | BF47: 1 | BG47: 1.031545741 | BH47: 1 | BI47: 498 | BJ47: 9.2% | BK47: 154 | BL47: 5.858044164 | BM47: 5 | BN47: 114 | BO47: 2.5% | BP47: 114 | BQ47: 4.596214511 | BR47: 4 | BT47: 73 | BU47: -4
A48: ='[1]Rapport 5'!A49 -> 79 | B48: ='[1]Rapport 5'!B49 -> SOULTZ SOUS FORETS | C48: ='[1]Rapport 5'!C49 -> 4079 | D48: ='[1]Rapport 5'!D49 -> SOULTZ SOUS FORETS | E48: ='[1]Rapport 5'!E49 -> 5060 | F48: ='[1]Rapport 5'!F49 -> HAGUENAU | G48: ='[1]Rapport 5'!G49 -> 262 | H48: ='[1]Rapport 5'!H49 -> BAS RHIN | I48: ='[1]Rapport 5'!I49 -> 2733.67 | J48: ='[1]Rapport 5'!J49 -> 210.28 | K48: ='[1]Rapport 5'!K49 -> 0 | L48: ='[1]Rapport 5'!L49 -> 0 | M48: ='[1]Rapport 5'!M49 -> 87918.97 | N48: ='[1]Rapport 5'!N49 -> 2826.34 | O48: ='[1]Rapport 5'!O49 -> 2986 | P48: ='[1]Rapport 5'!P49 -> 0 | Q48: ='[1]Rapport 5'!Q49 -> 0 | R48: ='[1]Rapport 5'!R49 -> 0 | S48: ='[1]Rapport 5'!S49 -> 70 | T48: ='[1]Rapport 5'!T49 -> 13 | U48: ='[1]Rapport 5'!U49 -> 2685.26 | V48: ='[1]Rapport 5'!V49 -> 503 | W48: ='[1]Rapport 5'!W49 -> 2201.29 | X48: ='[1]Rapport 5'!X49 -> 147.36 | Y48: 98,595 | Z48: 3,700 | AA48: 3.8% | AB48: 173 | AC48: =1+(AB48/COUNT($AB$3:AB$319)*10) -> 6.457413249 | AD48: 6 | AE48: 210 | AF48: 7.7% | AG48: 265 | AH48: 9.359621451 | AI48: 9 | AJ48: 0 | AK48: 0.0% | AL48: 1 | AM48: 1.031545741 | AN48: 1 | AO48: 2,826 | AP48: 3.2% | AQ48: 195 | AR48: 7.151419558 | AS48: 7 | AT48: 0 | AU48: 0.0% | AV48: 1 | AW48: 1.031545741 | AX48: 1 | AY48: 0 | AZ48: 0.0% | BA48: 1 | BB48: 1.031545741 | BC48: 1 | BD48: 13 | BE48: 18.6% | BF48: 299 | BG48: 10.43217666 | BH48: 10 | BI48: 503 | BJ48: 18.7% | BK48: 264 | BL48: 9.32807571 | BM48: 9 | BN48: 147 | BO48: 6.7% | BP48: 246 | BQ48: 8.760252366 | BR48: 8 | BT48: 74 | BU48: -5
A49: ='[1]Rapport 5'!A50 -> 80 | B49: ='[1]Rapport 5'!B50 -> WOERTH | C49: ='[1]Rapport 5'!C50 -> 4066 | D49: ='[1]Rapport 5'!D50 -> NIEDERBRONN LES BAINS | E49: ='[1]Rapport 5'!E50 -> 5060 | F49: ='[1]Rapport 5'!F50 -> HAGUENAU | G49: ='[1]Rapport 5'!G50 -> 262 | H49: ='[1]Rapport 5'!H50 -> BAS RHIN | I49: ='[1]Rapport 5'!I50 -> 3859.29 | J49: ='[1]Rapport 5'!J50 -> 197.29 | K49: ='[1]Rapport 5'!K50 -> 0 | L49: ='[1]Rapport 5'!L50 -> 0 | M49: ='[1]Rapport 5'!M50 -> 91885.46 | N49: ='[1]Rapport 5'!N50 -> 3766.02 | O49: ='[1]Rapport 5'!O50 -> 4885.5 | P49: ='[1]Rapport 5'!P50 -> 401.57 | Q49: ='[1]Rapport 5'!Q50 -> 0 | R49: ='[1]Rapport 5'!R50 -> 0 | S49: ='[1]Rapport 5'!S50 -> 26 | T49: ='[1]Rapport 5'!T50 -> 0 | U49: ='[1]Rapport 5'!U50 -> 6140.45 | V49: ='[1]Rapport 5'!V50 -> 166.84 | W49: ='[1]Rapport 5'!W50 -> 2504.71 | X49: ='[1]Rapport 5'!X50 -> 112 | Y49: 109,301 | Z49: 4,644 | AA49: 4.2% | AB49: 233 | AC49: =1+(AB49/COUNT($AB$3:AB$319)*10) -> 8.350157729 | AD49: 8 | AE49: 197 | AF49: 5.1% | AG49: 219 | AH49: 7.90851735 | AI49: 7 | AJ49: 0 | AK49: 0.0% | AL49: 1 | AM49: 1.031545741 | AN49: 1 | AO49: 3,766 | AP49: 4.1% | AQ49: 270 | AR49: 9.517350158 | AS49: 9 | AT49: 402 | AU49: 8.2% | AV49: 233 | AW49: 8.350157729 | AX49: 8 | AY49: 0 | AZ49: 0.0% | BA49: 1 | BB49: 1.031545741 | BC49: 1 | BD49: 0 | BE49: 0.0% | BF49: 1 | BG49: 1.031545741 | BH49: 1 | BI49: 167 | BJ49: 2.7% | BK49: 24 | BL49: 1.757097792 | BM49: 1 | BN49: 112 | BO49: 4.5% | BP49: 198 | BQ49: 7.246056782 | BR49: 7 | BT49: 76 | BU49: -4
A50: ='[1]Rapport 5'!A51 -> 82 | B50: ='[1]Rapport 5'!B51 -> BOUXWILLER | C50: ='[1]Rapport 5'!C51 -> 4082 | D50: ='[1]Rapport 5'!D51 -> BOUXWILLER | E50: ='[1]Rapport 5'!E51 -> 5060 | F50: ='[1]Rapport 5'!F51 -> HAGUENAU | G50: ='[1]Rapport 5'!G51 -> 262 | H50: ='[1]Rapport 5'!H51 -> BAS RHIN | I50: ='[1]Rapport 5'!I51 -> 7939.14 | J50: ='[1]Rapport 5'!J51 -> 211.99 | K50: ='[1]Rapport 5'!K51 -> 0 | L50: ='[1]Rapport 5'!L51 -> 0 | M50: ='[1]Rapport 5'!M51 -> 145329.98 | N50: ='[1]Rapport 5'!N51 -> 3203.21 | O50: ='[1]Rapport 5'!O51 -> 6946 | P50: ='[1]Rapport 5'!P51 -> 1242 | Q50: ='[1]Rapport 5'!Q51 -> 0 | R50: ='[1]Rapport 5'!R51 -> 0 | S50: ='[1]Rapport 5'!S51 -> 287 | T50: ='[1]Rapport 5'!T51 -> 44 | U50: ='[1]Rapport 5'!U51 -> 6308.87 | V50: ='[1]Rapport 5'!V51 -> 2013.35 | W50: ='[1]Rapport 5'!W51 -> 2993.45 | X50: ='[1]Rapport 5'!X51 -> 159.95 | Y50: 169,804 | Z50: 6,875 | AA50: 4.0% | AB50: 210 | AC50: =1+(AB50/COUNT($AB$3:AB$319)*10) -> 7.624605678 | AD50: 7 | AE50: 212 | AF50: 2.7% | AG50: 103 | AH50: 4.249211356 | AI50: 4 | AJ50: 0 | AK50: 0.0% | AL50: 1 | AM50: 1.031545741 | AN50: 1 | AO50: 3,203 | AP50: 2.2% | AQ50: 77 | AR50: 3.429022082 | AS50: 3 | AT50: 1,242 | AU50: 17.9% | AV50: 288 | AW50: 10.0851735 | AX50: 10 | AY50: 0 | AZ50: 0.0% | BA50: 1 | BB50: 1.031545741 | BC50: 1 | BD50: 44 | BE50: 15.3% | BF50: 293 | BG50: 10.24290221 | BH50: 10 | BI50: 2,013 | BJ50: 31.9% | BK50: 312 | BL50: 10.84227129 | BM50: 10 | BN50: 160 | BO50: 5.3% | BP50: 222 | BQ50: 8.003154574 | BR50: 8 | BT50: 77 | BU50: -5
A51: ='[1]Rapport 5'!A52 -> 85 | B51: ='[1]Rapport 5'!B52 -> INGWILLER | C51: ='[1]Rapport 5'!C52 -> 4085 | D51: ='[1]Rapport 5'!D52 -> INGWILLER | E51: ='[1]Rapport 5'!E52 -> 5060 | F51: ='[1]Rapport 5'!F52 -> HAGUENAU | G51: ='[1]Rapport 5'!G52 -> 262 | H51: ='[1]Rapport 5'!H52 -> BAS RHIN | I51: ='[1]Rapport 5'!I52 -> 7843.38 | J51: ='[1]Rapport 5'!J52 -> 661.35 | K51: ='[1]Rapport 5'!K52 -> 0 | L51: ='[1]Rapport 5'!L52 -> 0 | M51: ='[1]Rapport 5'!M52 -> 192738.31 | N51: ='[1]Rapport 5'!N52 -> 5515.92 | O51: ='[1]Rapport 5'!O52 -> 10993 | P51: ='[1]Rapport 5'!P52 -> 449 | Q51: ='[1]Rapport 5'!Q52 -> 0 | R51: ='[1]Rapport 5'!R52 -> 0 | S51: ='[1]Rapport 5'!S52 -> 855 | T51: ='[1]Rapport 5'!T52 -> 56.5 | U51: ='[1]Rapport 5'!U52 -> 12141.96 | V51: ='[1]Rapport 5'!V52 -> 3708.69 | W51: ='[1]Rapport 5'!W52 -> 6146.56 | X51: ='[1]Rapport 5'!X52 -> 987.43 | Y51: 230,718 | Z51: 11,379 | AA51: 4.9% | AB51: 273 | AC51: =1+(AB51/COUNT($AB$3:AB$319)*10) -> 9.611987382 | AD51: 9 | AE51: 661 | AF51: 8.4% | AG51: 277 | AH51: 9.738170347 | AI51: 9 | AJ51: 0 | AK51: 0.0% | AL51: 1 | AM51: 1.031545741 | AN51: 1 | AO51: 5,516 | AP51: 2.9% | AQ51: 153 | AR51: 5.826498423 | AS51: 5 | AT51: 449 | AU51: 4.1% | AV51: 159 | AW51: 6.015772871 | AX51: 6 | AY51: 0 | AZ51: 0.0% | BA51: 1 | BB51: 1.031545741 | BC51: 1 | BD51: 57 | BE51: 6.6% | BF51: 257 | BG51: 9.107255521 | BH51: 9 | BI51: 3,709 | BJ51: 30.5% | BK51: 310 | BL51: 10.77917981 | BM51: 10 | BN51: 987 | BO51: 16.1% | BP51: 306 | BQ51: 10.65299685 | BR51: 10 | BT51: 78 | BU51: -7
A52: ='[1]Rapport 5'!A53 -> 86 | B52: ='[1]Rapport 5'!B53 -> WINGEN SUR MODER | C52: ='[1]Rapport 5'!C53 -> 4085 | D52: ='[1]Rapport 5'!D53 -> INGWILLER | E52: ='[1]Rapport 5'!E53 -> 5060 | F52: ='[1]Rapport 5'!F53 -> HAGUENAU | G52: ='[1]Rapport 5'!G53 -> 262 | H52: ='[1]Rapport 5'!H53 -> BAS RHIN | I52: ='[1]Rapport 5'!I53 -> 0 | J52: ='[1]Rapport 5'!J53 -> 0 | K52: ='[1]Rapport 5'!K53 -> 0 | L52: ='[1]Rapport 5'!L53 -> 0 | M52: ='[1]Rapport 5'!M53 -> 103.6 | N52: ='[1]Rapport 5'!N53 -> 24 | O52: ='[1]Rapport 5'!O53 -> 0 | P52: ='[1]Rapport 5'!P53 -> 0 | Q52: ='[1]Rapport 5'!Q53 -> 0 | R52: ='[1]Rapport 5'!R53 -> 0 | S52: ='[1]Rapport 5'!S53 -> 0 | T52: ='[1]Rapport 5'!T53 -> 0 | U52: ='[1]Rapport 5'!U53 -> 0 | V52: ='[1]Rapport 5'!V53 -> 0 | W52: ='[1]Rapport 5'!W53 -> 0 | X52: ='[1]Rapport 5'!X53 -> 0 | Y52: 104 | Z52: 24 | AA52: 23.2% | AB52: 317 | AC52: =1+(AB52/COUNT($AB$3:AB$319)*10) -> 11 | AD52: 10 | AE52: 0 | AF52: 0.0% | AG52: 1 | AH52: 1.031545741 | AI52: 1 | AJ52: 0 | AK52: 0.0% | AL52: 1 | AM52: 1.031545741 | AN52: 1 | AO52: 24 | AP52: 23.2% | AQ52: 317 | AR52: 11 | AS52: 10 | AT52: 0 | AU52: 0.0% | AV52: 1 | AW52: 1.031545741 | AX52: 1 | AY52: 0 | AZ52: 0.0% | BA52: 1 | BB52: 1.031545741 | BC52: 1 | BD52: 0 | BE52: 0.0% | BF52: 1 | BG52: 1.031545741 | BH52: 1 | BI52: 0 | BJ52: 0.0% | BK52: 1 | BL52: 1.031545741 | BM52: 1 | BN52: 0 | BO52: 0.0% | BP52: 1 | BQ52: 1.031545741 | BR52: 1 | BT52: 79 | BU52: -7
A53: ='[1]Rapport 5'!A54 -> 87 | B53: ='[1]Rapport 5'!B54 -> SAVERNE | C53: ='[1]Rapport 5'!C54 -> 4087 | D53: ='[1]Rapport 5'!D54 -> SAVERNE | E53: ='[1]Rapport 5'!E54 -> 5060 | F53: ='[1]Rapport 5'!F54 -> HAGUENAU | G53: ='[1]Rapport 5'!G54 -> 262 | H53: ='[1]Rapport 5'!H54 -> BAS RHIN | I53: ='[1]Rapport 5'!I54 -> 13182.97 | J53: ='[1]Rapport 5'!J54 -> 1196.87 | K53: ='[1]Rapport 5'!K54 -> 0 | L53: ='[1]Rapport 5'!L54 -> 0 | M53: ='[1]Rapport 5'!M54 -> 403478.2 | N53: ='[1]Rapport 5'!N54 -> 18060.27 | O53: ='[1]Rapport 5'!O54 -> 13396 | P53: ='[1]Rapport 5'!P54 -> 4529.52 | Q53: ='[1]Rapport 5'!Q54 -> 191.67 | R53: ='[1]Rapport 5'!R54 -> 0 | S53: ='[1]Rapport 5'!S54 -> 1160.05 | T53: ='[1]Rapport 5'!T54 -> 13 | U53: ='[1]Rapport 5'!U54 -> 34095.41 | V53: ='[1]Rapport 5'!V54 -> 6112.86 | W53: ='[1]Rapport 5'!W54 -> 14633.74 | X53: ='[1]Rapport 5'!X54 -> 741.33 | Y53: 480,138 | Z53: 30,654 | AA53: 6.4% | AB53: 306 | AC53: =1+(AB53/COUNT($AB$3:AB$319)*10) -> 10.65299685 | AD53: 10 | AE53: 1,197 | AF53: 9.1% | AG53: 282 | AH53: 9.895899054 | AI53: 9 | AJ53: 0 | AK53: 0.0% | AL53: 1 | AM53: 1.031545741 | AN53: 1 | AO53: 18,060 | AP53: 4.5% | AQ53: 288 | AR53: 10.0851735 | AS53: 10 | AT53: 4,530 | AU53: 33.8% | AV53: 311 | AW53: 10.81072555 | AX53: 10 | AY53: 0 | AZ53: 0.0% | BA53: 1 | BB53: 1.031545741 | BC53: 1 | BD53: 13 | BE53: 1.1% | BF53: 215 | BG53: 7.782334385 | BH53: 7 | BI53: 6,113 | BJ53: 17.9% | BK53: 258 | BL53: 9.138801262 | BM53: 9 | BN53: 741 | BO53: 5.1% | BP53: 210 | BQ53: 7.624605678 | BR53: 7 | BT53: 80 | BU53: -7
A54: ='[1]Rapport 5'!A55 -> 92 | B54: ='[1]Rapport 5'!B55 -> HOCHFELDEN | C54: ='[1]Rapport 5'!C55 -> 4092 | D54: ='[1]Rapport 5'!D55 -> HOCHFELDEN | E54: ='[1]Rapport 5'!E55 -> 5060 | F54: ='[1]Rapport 5'!F55 -> HAGUENAU | G54: ='[1]Rapport 5'!G55 -> 262 | H54: ='[1]Rapport 5'!H55 -> BAS RHIN | I54: ='[1]Rapport 5'!I55 -> 4464.48 | J54: ='[1]Rapport 5'!J55 -> 132.78 | K54: ='[1]Rapport 5'!K55 -> 0 | L54: ='[1]Rapport 5'!L55 -> 0 | M54: ='[1]Rapport 5'!M55 -> 108834.82 | N54: ='[1]Rapport 5'!N55 -> 3390.61 | O54: ='[1]Rapport 5'!O55 -> 7589 | P54: ='[1]Rapport 5'!P55 -> 69 | Q54: ='[1]Rapport 5'!Q55 -> 0 | R54: ='[1]Rapport 5'!R55 -> 0 | S54: ='[1]Rapport 5'!S55 -> 424.79 | T54: ='[1]Rapport 5'!T55 -> 0 | U54: ='[1]Rapport 5'!U55 -> 6993.45 | V54: ='[1]Rapport 5'!V55 -> 1498.32 | W54: ='[1]Rapport 5'!W55 -> 2337.94 | X54: ='[1]Rapport 5'!X55 -> 0 | Y54: 130,644 | Z54: 5,091 | AA54: 3.9% | AB54: 190 | AC54: =1+(AB54/COUNT($AB$3:AB$319)*10) -> 6.993690852 | AD54: 6 | AE54: 133 | AF54: 3.0% | AG54: 129 | AH54: 5.069400631 | AI54: 5 | AJ54: 0 | AK54: 0.0% | AL54: 1 | AM54: 1.031545741 | AN54: 1 | AO54: 3,391 | AP54: 3.1% | AQ54: 182 | AR54: 6.741324921 | AS54: 6 | AT54: 69 | AU54: 0.9% | AV54: 75 | AW54: 3.365930599 | AX54: 3 | AY54: 0 | AZ54: 0.0% | BA54: 1 | BB54: 1.031545741 | BC54: 1 | BD54: 0 | BE54: 0.0% | BF54: 1 | BG54: 1.031545741 | BH54: 1 | BI54: 1,498 | BJ54: 21.4% | BK54: 282 | BL54: 9.895899054 | BM54: 9 | BN54: 0 | BO54: 0.0% | BP54: 1 | BQ54: 1.031545741 | BR54: 1 | BT54: 82 | BU54: -10
A55: ='[1]Rapport 5'!A57 -> 95 | B55: ='[1]Rapport 5'!B57 -> SARRE UNION | C55: ='[1]Rapport 5'!C57 -> 4095 | D55: ='[1]Rapport 5'!D57 -> SARRE UNION | E55: ='[1]Rapport 5'!E57 -> 5060 | F55: ='[1]Rapport 5'!F57 -> HAGUENAU | G55: ='[1]Rapport 5'!G57 -> 262 | H55: ='[1]Rapport 5'!H57 -> BAS RHIN | I55: ='[1]Rapport 5'!I57 -> 8340.13 | J55: ='[1]Rapport 5'!J57 -> 148.21 | K55: ='[1]Rapport 5'!K57 -> 0 | L55: ='[1]Rapport 5'!L57 -> 0 | M55: ='[1]Rapport 5'!M57 -> 214846.2 | N55: ='[1]Rapport 5'!N57 -> 4736.54 | O55: ='[1]Rapport 5'!O57 -> 5986.7 | P55: ='[1]Rapport 5'!P57 -> 300.7 | Q55: ='[1]Rapport 5'!Q57 -> 1427.43 | R55: ='[1]Rapport 5'!R57 -> 0 | S55: ='[1]Rapport 5'!S57 -> 108.04 | T55: ='[1]Rapport 5'!T57 -> 0 | U55: ='[1]Rapport 5'!U57 -> 14089.51 | V55: ='[1]Rapport 5'!V57 -> 2033.35 | W55: ='[1]Rapport 5'!W57 -> 7043.43 | X55: ='[1]Rapport 5'!X57 -> 418.42 | Y55: 251,841 | Z55: 7,637 | AA55: 3.0% | AB55: 86 | AC55: =1+(AB55/COUNT($AB$3:AB$319)*10) -> 3.712933754 | AD55: 3 | AE55: 148 | AF55: 1.8% | AG55: 45 | AH55: 2.41955836 | AI55: 2 | AJ55: 0 | AK55: 0.0% | AL55: 1 | AM55: 1.031545741 | AN55: 1 | AO55: 4,737 | AP55: 2.2% | AQ55: 78 | AR55: 3.460567823 | AS55: 3 | AT55: 301 | AU55: 5.0% | AV55: 184 | AW55: 6.804416404 | AX55: 6 | AY55: 0 | AZ55: 0.0% | BA55: 1 | BB55: 1.031545741 | BC55: 1 | BD55: 0 | BE55: 0.0% | BF55: 1 | BG55: 1.031545741 | BH55: 1 | BI55: 2,033 | BJ55: 14.4% | BK55: 222 | BL55: 8.003154574 | BM55: 8 | BN55: 418 | BO55: 5.9% | BP55: 234 | BQ55: 8.38170347 | BR55: 8 | BT55: 86 | BU55: -9
A56: ='[1]Rapport 5'!A58 -> 101 | B56: ='[1]Rapport 5'!B58 -> SELESTAT CENTRE | C56: ='[1]Rapport 5'!C58 -> 4101 | D56: ='[1]Rapport 5'!D58 -> SELESTAT CENTRE | E56: ='[1]Rapport 5'!E58 -> 5101 | F56: ='[1]Rapport 5'!F58 -> SELESTAT | G56: ='[1]Rapport 5'!G58 -> 262 | H56: ='[1]Rapport 5'!H58 -> BAS RHIN | I56: ='[1]Rapport 5'!I58 -> 10160.84 | J56: ='[1]Rapport 5'!J58 -> 1169.79 | K56: ='[1]Rapport 5'!K58 -> 0 | L56: ='[1]Rapport 5'!L58 -> 0 | M56: ='[1]Rapport 5'!M58 -> 442745.9 | N56: ='[1]Rapport 5'!N58 -> 10934.99 | O56: ='[1]Rapport 5'!O58 -> 20716.5 | P56: ='[1]Rapport 5'!P58 -> 821 | Q56: ='[1]Rapport 5'!Q58 -> 1538.06 | R56: ='[1]Rapport 5'!R58 -> 0 | S56: ='[1]Rapport 5'!S58 -> 1767.7 | T56: ='[1]Rapport 5'!T58 -> 44 | U56: ='[1]Rapport 5'!U58 -> 30226.59 | V56: ='[1]Rapport 5'!V58 -> 2634.76 | W56: ='[1]Rapport 5'!W58 -> 19276.75 | X56: ='[1]Rapport 5'!X58 -> 374.26 | Y56: 526,432 | Z56: 15,979 | AA56: 3.0% | AB56: 87 | AC56: =1+(AB56/COUNT($AB$3:AB$319)*10) -> 3.744479495 | AD56: 3 | AE56: 1,170 | AF56: 11.5% | AG56: 295 | AH56: 10.30599369 | AI56: 10 | AJ56: 0 | AK56: 0.0% | AL56: 1 | AM56: 1.031545741 | AN56: 1 | AO56: 10,935 | AP56: 2.5% | AQ56: 105 | AR56: 4.312302839 | AS56: 4 | AT56: 821 | AU56: 4.0% | AV56: 155 | AW56: 5.889589905 | AX56: 5 | AY56: 0 | AZ56: 0.0% | BA56: 1 | BB56: 1.031545741 | BC56: 1 | BD56: 44 | BE56: 2.5% | BF56: 226 | BG56: 8.129337539 | BH56: 8 | BI56: 2,635 | BJ56: 8.7% | BK56: 143 | BL56: 5.511041009 | BM56: 5 | BN56: 374 | BO56: 1.9% | BP56: 96 | BQ56: 4.028391167 | BR56: 4 | BT56: 87 | BU56: -14
A57: ='[1]Rapport 5'!A59 -> 104 | B57: ='[1]Rapport 5'!B59 -> ERSTEIN | C57: ='[1]Rapport 5'!C59 -> 4104 | D57: ='[1]Rapport 5'!D59 -> ERSTEIN | E57: ='[1]Rapport 5'!E59 -> 5101 | F57: ='[1]Rapport 5'!F59 -> SELESTAT | G57: ='[1]Rapport 5'!G59 -> 262 | H57: ='[1]Rapport 5'!H59 -> BAS RHIN | I57: ='[1]Rapport 5'!I59 -> 3885.62 | J57: ='[1]Rapport 5'!J59 -> 173.88 | K57: ='[1]Rapport 5'!K59 -> 0 | L57: ='[1]Rapport 5'!L59 -> 0 | M57: ='[1]Rapport 5'!M59 -> 213826.83 | N57: ='[1]Rapport 5'!N59 -> 4863.39 | O57: ='[1]Rapport 5'!O59 -> 5624.5 | P57: ='[1]Rapport 5'!P59 -> 537 | Q57: ='[1]Rapport 5'!Q59 -> 0 | R57: ='[1]Rapport 5'!R59 -> 0 | S57: ='[1]Rapport 5'!S59 -> 331 | T57: ='[1]Rapport 5'!T59 -> 0 | U57: ='[1]Rapport 5'!U59 -> 14551.8 | V57: ='[1]Rapport 5'!V59 -> 2743.94 | W57: ='[1]Rapport 5'!W59 -> 9271.12 | X57: ='[1]Rapport 5'!X59 -> 1649.01 | Y57: 247,491 | Z57: 9,967 | AA57: 4.0% | AB57: 205 | AC57: =1+(AB57/COUNT($AB$3:AB$319)*10) -> 7.466876972 | AD57: 7 | AE57: 174 | AF57: 4.5% | AG57: 202 | AH57: 7.372239748 | AI57: 7 | AJ57: 0 | AK57: 0.0% | AL57: 1 | AM57: 1.031545741 | AN57: 1 | AO57: 4,863 | AP57: 2.3% | AQ57: 88 | AR57: 3.776025237 | AS57: 3 | AT57: 537 | AU57: 9.5% | AV57: 252 | AW57: 8.949526814 | AX57: 8 | AY57: 0 | AZ57: 0.0% | BA57: 1 | BB57: 1.031545741 | BC57: 1 | BD57: 0 | BE57: 0.0% | BF57: 1 | BG57: 1.031545741 | BH57: 1 | BI57: 2,744 | BJ57: 18.9% | BK57: 265 | BL57: 9.359621451 | BM57: 9 | BN57: 1,649 | BO57: 17.8% | BP57: 310 | BQ57: 10.77917981 | BR57: 10 | BT57: 89 | BU57: -15
A58: ='[1]Rapport 5'!A60 -> 107 | B58: ='[1]Rapport 5'!B60 -> VILLE | C58: ='[1]Rapport 5'!C60 -> 4107 | D58: ='[1]Rapport 5'!D60 -> VILLE | E58: ='[1]Rapport 5'!E60 -> 5101 | F58: ='[1]Rapport 5'!F60 -> SELESTAT | G58: ='[1]Rapport 5'!G60 -> 262 | H58: ='[1]Rapport 5'!H60 -> BAS RHIN | I58: ='[1]Rapport 5'!I60 -> 2079.14 | J58: ='[1]Rapport 5'!J60 -> 59.77 | K58: ='[1]Rapport 5'!K60 -> 0 | L58: ='[1]Rapport 5'!L60 -> 0 | M58: ='[1]Rapport 5'!M60 -> 104355.62 | N58: ='[1]Rapport 5'!N60 -> 1843.36 | O58: ='[1]Rapport 5'!O60 -> 7515 | P58: ='[1]Rapport 5'!P60 -> 0 | Q58: ='[1]Rapport 5'!Q60 -> 0 | R58: ='[1]Rapport 5'!R60 -> 0 | S58: ='[1]Rapport 5'!S60 -> 139 | T58: ='[1]Rapport 5'!T60 -> 0 | U58: ='[1]Rapport 5'!U60 -> 7899.45 | V58: ='[1]Rapport 5'!V60 -> 1341.14 | W58: ='[1]Rapport 5'!W60 -> 4294.81 | X58: ='[1]Rapport 5'!X60 -> 111.28 | Y58: 126,283 | Z58: 3,356 | AA58: 2.7% | AB58: 56 | AC58: =1+(AB58/COUNT($AB$3:AB$319)*10) -> 2.766561514 | AD58: 2 | AE58: 60 | AF58: 2.9% | AG58: 118 | AH58: 4.722397476 | AI58: 4 | AJ58: 0 | AK58: 0.0% | AL58: 1 | AM58: 1.031545741 | AN58: 1 | AO58: 1,843 | AP58: 1.8% | AQ58: 40 | AR58: 2.261829653 | AS58: 2 | AT58: 0 | AU58: 0.0% | AV58: 1 | AW58: 1.031545741 | AX58: 1 | AY58: 0 | AZ58: 0.0% | BA58: 1 | BB58: 1.031545741 | BC58: 1 | BD58: 0 | BE58: 0.0% | BF58: 1 | BG58: 1.031545741 | BH58: 1 | BI58: 1,341 | BJ58: 17.0% | BK58: 248 | BL58: 8.823343849 | BM58: 8 | BN58: 111 | BO58: 2.6% | BP58: 119 | BQ58: 4.753943218 | BR58: 4 | BT58: 92 | BU58: -15
A59: ='[1]Rapport 5'!A61 -> 108 | B59: ='[1]Rapport 5'!B61 -> CHATENOIS | C59: ='[1]Rapport 5'!C61 -> 4101 | D59: ='[1]Rapport 5'!D61 -> SELESTAT CENTRE | E59: ='[1]Rapport 5'!E61 -> 5101 | F59: ='[1]Rapport 5'!F61 -> SELESTAT | G59: ='[1]Rapport 5'!G61 -> 262 | H59: ='[1]Rapport 5'!H61 -> BAS RHIN | I59: ='[1]Rapport 5'!I61 -> 1821.92 | J59: ='[1]Rapport 5'!J61 -> 87.47 | K59: ='[1]Rapport 5'!K61 -> 0 | L59: ='[1]Rapport 5'!L61 -> 0 | M59: ='[1]Rapport 5'!M61 -> 74906.77 | N59: ='[1]Rapport 5'!N61 -> 1681.45 | O59: ='[1]Rapport 5'!O61 -> 5246 | P59: ='[1]Rapport 5'!P61 -> 50 | Q59: ='[1]Rapport 5'!Q61 -> 0 | R59: ='[1]Rapport 5'!R61 -> 0 | S59: ='[1]Rapport 5'!S61 -> 382.42 | T59: ='[1]Rapport 5'!T61 -> 0 | U59: ='[1]Rapport 5'!U61 -> 2058.85 | V59: ='[1]Rapport 5'!V61 -> 902.54 | W59: ='[1]Rapport 5'!W61 -> 4035.79 | X59: ='[1]Rapport 5'!X61 -> 44.93 | Y59: 88,452 | Z59: 2,766 | AA59: 3.1% | AB59: 102 | AC59: =1+(AB59/COUNT($AB$3:AB$319)*10) -> 4.217665615 | AD59: 4 | AE59: 87 | AF59: 4.8% | AG59: 211 | AH59: 7.65615142 | AI59: 7 | AJ59: 0 | AK59: 0.0% | AL59: 1 | AM59: 1.031545741 | AN59: 1 | AO59: 1,681 | AP59: 2.2% | AQ59: 84 | AR59: 3.649842271 | AS59: 3 | AT59: 50 | AU59: 1.0% | AV59: 76 | AW59: 3.397476341 | AX59: 3 | AY59: 0 | AZ59: 0.0% | BA59: 1 | BB59: 1.031545741 | BC59: 1 | BD59: 0 | BE59: 0.0% | BF59: 1 | BG59: 1.031545741 | BH59: 1 | BI59: 903 | BJ59: 43.8% | BK59: 316 | BL59: 10.96845426 | BM59: 10 | BN59: 45 | BO59: 1.1% | BP59: 52 | BQ59: 2.640378549 | BR59: 2 | BT59: 93 | BU59: -15
A60: ='[1]Rapport 5'!A62 -> 109 | B60: ='[1]Rapport 5'!B62 -> MARCKOLSHEIM | C60: ='[1]Rapport 5'!C62 -> 4109 | D60: ='[1]Rapport 5'!D62 -> MARCKOLSHEIM | E60: ='[1]Rapport 5'!E62 -> 5101 | F60: ='[1]Rapport 5'!F62 -> SELESTAT | G60: ='[1]Rapport 5'!G62 -> 262 | H60: ='[1]Rapport 5'!H62 -> BAS RHIN | I60: ='[1]Rapport 5'!I62 -> 4885.46 | J60: ='[1]Rapport 5'!J62 -> 1847.17 | K60: ='[1]Rapport 5'!K62 -> 0 | L60: ='[1]Rapport 5'!L62 -> 0 | M60: ='[1]Rapport 5'!M62 -> 143131.84 | N60: ='[1]Rapport 5'!N62 -> 2369.8 | O60: ='[1]Rapport 5'!O62 -> 4984 | P60: ='[1]Rapport 5'!P62 -> 4262 | Q60: ='[1]Rapport 5'!Q62 -> 0 | R60: ='[1]Rapport 5'!R62 -> 0 | S60: ='[1]Rapport 5'!S62 -> 482 | T60: ='[1]Rapport 5'!T62 -> 0 | U60: ='[1]Rapport 5'!U62 -> 7822.35 | V60: ='[1]Rapport 5'!V62 -> 2120.37 | W60: ='[1]Rapport 5'!W62 -> 2884.54 | X60: ='[1]Rapport 5'!X62 -> 112.64 | Y60: 164,190 | Z60: 10,712 | AA60: 6.5% | AB60: 309 | AC60: =1+(AB60/COUNT($AB$3:AB$319)*10) -> 10.74763407 | AD60: 10 | AE60: 1,847 | AF60: 37.8% | AG60: 315 | AH60: 10.93690852 | AI60: 10 | AJ60: 0 | AK60: 0.0% | AL60: 1 | AM60: 1.031545741 | AN60: 1 | AO60: 2,370 | AP60: 1.7% | AQ60: 31 | AR60: 1.977917981 | AS60: 1 | AT60: 4,262 | AU60: 85.5% | AV60: 316 | AW60: 10.96845426 | AX60: 10 | AY60: 0 | AZ60: 0.0% | BA60: 1 | BB60: 1.031545741 | BC60: 1 | BD60: 0 | BE60: 0.0% | BF60: 1 | BG60: 1.031545741 | BH60: 1 | BI60: 2,120 | BJ60: 27.1% | BK60: 305 | BL60: 10.6214511 | BM60: 10 | BN60: 113 | BO60: 3.9% | BP60: 182 | BQ60: 6.741324921 | BR60: 6 | BT60: 95 | BU60: -14
A61: ='[1]Rapport 5'!A63 -> 111 | B61: ='[1]Rapport 5'!B63 -> BENFELD | C61: ='[1]Rapport 5'!C63 -> 4111 | D61: ='[1]Rapport 5'!D63 -> BENFELD | E61: ='[1]Rapport 5'!E63 -> 5101 | F61: ='[1]Rapport 5'!F63 -> SELESTAT | G61: ='[1]Rapport 5'!G63 -> 262 | H61: ='[1]Rapport 5'!H63 -> BAS RHIN | I61: ='[1]Rapport 5'!I63 -> 5168.43 | J61: ='[1]Rapport 5'!J63 -> 1986.36 | K61: ='[1]Rapport 5'!K63 -> 0 | L61: ='[1]Rapport 5'!L63 -> 0 | M61: ='[1]Rapport 5'!M63 -> 200837.03 | N61: ='[1]Rapport 5'!N63 -> 8322.8 | O61: ='[1]Rapport 5'!O63 -> 7463.5 | P61: ='[1]Rapport 5'!P63 -> 174.99 | Q61: ='[1]Rapport 5'!Q63 -> 0 | R61: ='[1]Rapport 5'!R63 -> 0 | S61: ='[1]Rapport 5'!S63 -> 311 | T61: ='[1]Rapport 5'!T63 -> 44 | U61: ='[1]Rapport 5'!U63 -> 12007.8 | V61: ='[1]Rapport 5'!V63 -> 3075.56 | W61: ='[1]Rapport 5'!W63 -> 7050.22 | X61: ='[1]Rapport 5'!X63 -> 242.45 | Y61: 232,838 | Z61: 13,846 | AA61: 5.9% | AB61: 300 | AC61: =1+(AB61/COUNT($AB$3:AB$319)*10) -> 10.4637224 | AD61: 10 | AE61: 1,986 | AF61: 38.4% | AG61: 316 | AH61: 10.96845426 | AI61: 10 | AJ61: 0 | AK61: 0.0% | AL61: 1 | AM61: 1.031545741 | AN61: 1 | AO61: 8,323 | AP61: 4.1% | AQ61: 274 | AR61: 9.643533123 | AS61: 9 | AT61: 175 | AU61: 2.3% | AV61: 113 | AW61: 4.56466877 | AX61: 4 | AY61: 0 | AZ61: 0.0% | BA61: 1 | BB61: 1.031545741 | BC61: 1 | BD61: 44 | BE61: 14.1% | BF61: 289 | BG61: 10.11671924 | BH61: 10 | BI61: 3,076 | BJ61: 25.6% | BK61: 301 | BL61: 10.49526814 | BM61: 10 | BN61: 242 | BO61: 3.4% | BP61: 154 | BQ61: 5.858044164 | BR61: 5 | BT61: 101 | BU61: -10
A62: ='[1]Rapport 5'!A64 -> 113 | B62: ='[1]Rapport 5'!B64 -> BARR | C62: ='[1]Rapport 5'!C64 -> 4113 | D62: ='[1]Rapport 5'!D64 -> BARR | E62: ='[1]Rapport 5'!E64 -> 5101 | F62: ='[1]Rapport 5'!F64 -> SELESTAT | G62: ='[1]Rapport 5'!G64 -> 262 | H62: ='[1]Rapport 5'!H64 -> BAS RHIN | I62: ='[1]Rapport 5'!I64 -> 3899.76 | J62: ='[1]Rapport 5'!J64 -> 119.83 | K62: ='[1]Rapport 5'!K64 -> 0 | L62: ='[1]Rapport 5'!L64 -> 0 | M62: ='[1]Rapport 5'!M64 -> 135188.07 | N62: ='[1]Rapport 5'!N64 -> 2092.93 | O62: ='[1]Rapport 5'!O64 -> 4206.5 | P62: ='[1]Rapport 5'!P64 -> 42.5 | Q62: ='[1]Rapport 5'!Q64 -> 0 | R62: ='[1]Rapport 5'!R64 -> 0 | S62: ='[1]Rapport 5'!S64 -> 665.6 | T62: ='[1]Rapport 5'!T64 -> 16.2 | U62: ='[1]Rapport 5'!U64 -> 7028.75 | V62: ='[1]Rapport 5'!V64 -> 941.44 | W62: ='[1]Rapport 5'!W64 -> 4917.3 | X62: ='[1]Rapport 5'!X64 -> 56 | Y62: 155,906 | Z62: 3,269 | AA62: 2.1% | AB62: 25 | AC62: =1+(AB62/COUNT($AB$3:AB$319)*10) -> 1.788643533 | AD62: 1 | AE62: 120 | AF62: 3.1% | AG62: 133 | AH62: 5.195583596 | AI62: 5 | AJ62: 0 | AK62: 0.0% | AL62: 1 | AM62: 1.031545741 | AN62: 1 | AO62: 2,093 | AP62: 1.5% | AQ62: 27 | AR62: 1.851735016 | AS62: 1 | AT62: 43 | AU62: 1.0% | AV62: 78 | AW62: 3.460567823 | AX62: 3 | AY62: 0 | AZ62: 0.0% | BA62: 1 | BB62: 1.031545741 | BC62: 1 | BD62: 16 | BE62: 2.4% | BF62: 225 | BG62: 8.097791798 | BH62: 8 | BI62: 941 | BJ62: 13.4% | BK62: 211 | BL62: 7.65615142 | BM62: 7 | BN62: 56 | BO62: 1.1% | BP62: 53 | BQ62: 2.67192429 | BR62: 2 | BT62: 104 | BU62: -9
A63: ='[1]Rapport 5'!A65 -> 116 | B63: ='[1]Rapport 5'!B65 -> MOLSHEIM | C63: ='[1]Rapport 5'!C65 -> 4116 | D63: ='[1]Rapport 5'!D65 -> MOLSHEIM | E63: ='[1]Rapport 5'!E65 -> 5101 | F63: ='[1]Rapport 5'!F65 -> SELESTAT | G63: ='[1]Rapport 5'!G65 -> 262 | H63: ='[1]Rapport 5'!H65 -> BAS RHIN | I63: ='[1]Rapport 5'!I65 -> 16585.46 | J63: ='[1]Rapport 5'!J65 -> 808.11 | K63: ='[1]Rapport 5'!K65 -> 0 | L63: ='[1]Rapport 5'!L65 -> 0 | M63: ='[1]Rapport 5'!M65 -> 287682.79 | N63: ='[1]Rapport 5'!N65 -> 11706.84 | O63: ='[1]Rapport 5'!O65 -> 10849.5 | P63: ='[1]Rapport 5'!P65 -> 828.29 | Q63: ='[1]Rapport 5'!Q65 -> 844.01 | R63: ='[1]Rapport 5'!R65 -> 0 | S63: ='[1]Rapport 5'!S65 -> 634.87 | T63: ='[1]Rapport 5'!T65 -> 44 | U63: ='[1]Rapport 5'!U65 -> 19559.55 | V63: ='[1]Rapport 5'!V65 -> 1098.17 | W63: ='[1]Rapport 5'!W65 -> 9663.32 | X63: ='[1]Rapport 5'!X65 -> 298.59 | Y63: 345,820 | Z63: 14,784 | AA63: 4.3% | AB63: 236 | AC63: =1+(AB63/COUNT($AB$3:AB$319)*10) -> 8.444794953 | AD63: 8 | AE63: 808 | AF63: 4.9% | AG63: 212 | AH63: 7.687697161 | AI63: 7 | AJ63: 0 | AK63: 0.0% | AL63: 1 | AM63: 1.031545741 | AN63: 1 | AO63: 11,707 | AP63: 4.1% | AQ63: 268 | AR63: 9.454258675 | AS63: 9 | AT63: 828 | AU63: 7.6% | AV63: 228 | AW63: 8.192429022 | AX63: 8 | AY63: 0 | AZ63: 0.0% | BA63: 1 | BB63: 1.031545741 | BC63: 1 | BD63: 44 | BE63: 6.9% | BF63: 262 | BG63: 9.264984227 | BH63: 9 | BI63: 1,098 | BJ63: 5.6% | BK63: 67 | BL63: 3.113564669 | BM63: 3 | BN63: 299 | BO63: 3.1% | BP63: 143 | BQ63: 5.511041009 | BR63: 5 | BT63: 107 | BU63: -9
A64: ='[1]Rapport 5'!A66 -> 119 | B64: ='[1]Rapport 5'!B66 -> OBERNAI | C64: ='[1]Rapport 5'!C66 -> 4119 | D64: ='[1]Rapport 5'!D66 -> OBERNAI | E64: ='[1]Rapport 5'!E66 -> 5101 | F64: ='[1]Rapport 5'!F66 -> SELESTAT | G64: ='[1]Rapport 5'!G66 -> 262 | H64: ='[1]Rapport 5'!H66 -> BAS RHIN | I64: ='[1]Rapport 5'!I66 -> 7533.44 | J64: ='[1]Rapport 5'!J66 -> 545.4 | K64: ='[1]Rapport 5'!K66 -> 0 | L64: ='[1]Rapport 5'!L66 -> 36.66 | M64: ='[1]Rapport 5'!M66 -> 256340.05 | N64: ='[1]Rapport 5'!N66 -> 6325.31 | O64: ='[1]Rapport 5'!O66 -> 9548 | P64: ='[1]Rapport 5'!P66 -> 644.5 | Q64: ='[1]Rapport 5'!Q66 -> 0 | R64: ='[1]Rapport 5'!R66 -> 0 | S64: ='[1]Rapport 5'!S66 -> 1362.5 | T64: ='[1]Rapport 5'!T66 -> 0 | U64: ='[1]Rapport 5'!U66 -> 17272.82 | V64: ='[1]Rapport 5'!V66 -> 1990.43 | W64: ='[1]Rapport 5'!W66 -> 11963.18 | X64: ='[1]Rapport 5'!X66 -> 261.8 | Y64: 304,020 | Z64: 9,804 | AA64: 3.2% | AB64: 114 | AC64: =1+(AB64/COUNT($AB$3:AB$319)*10) -> 4.596214511 | AD64: 4 | AE64: 545 | AF64: 7.2% | AG64: 258 | AH64: 9.138801262 | AI64: 9 | AJ64: 37 | AK64: 100.0% | AL64: 285 | AM64: 9.990536278 | AN64: 9 | AO64: 6,325 | AP64: 2.5% | AQ64: 104 | AR64: 4.280757098 | AS64: 4 | AT64: 645 | AU64: 6.8% | AV64: 215 | AW64: 7.782334385 | AX64: 7 | AY64: 0 | AZ64: 0.0% | BA64: 1 | BB64: 1.031545741 | BC64: 1 | BD64: 0 | BE64: 0.0% | BF64: 1 | BG64: 1.031545741 | BH64: 1 | BI64: 1,990 | BJ64: 11.5% | BK64: 196 | BL64: 7.1829653 | BM64: 7 | BN64: 262 | BO64: 2.2% | BP64: 104 | BQ64: 4.280757098 | BR64: 4 | BT64: 108 | BU64: -11
A65: ='[1]Rapport 5'!A67 -> 120 | B65: ='[1]Rapport 5'!B67 -> WASSELONNE | C65: ='[1]Rapport 5'!C67 -> 4120 | D65: ='[1]Rapport 5'!D67 -> WASSELONNE | E65: ='[1]Rapport 5'!E67 -> 5101 | F65: ='[1]Rapport 5'!F67 -> SELESTAT | G65: ='[1]Rapport 5'!G67 -> 262 | H65: ='[1]Rapport 5'!H67 -> BAS RHIN | I65: ='[1]Rapport 5'!I67 -> 7274.39 | J65: ='[1]Rapport 5'!J67 -> 835.96 | K65: ='[1]Rapport 5'!K67 -> 0 | L65: ='[1]Rapport 5'!L67 -> 136 | M65: ='[1]Rapport 5'!M67 -> 146080.1 | N65: ='[1]Rapport 5'!N67 -> 4998.51 | O65: ='[1]Rapport 5'!O67 -> 8744 | P65: ='[1]Rapport 5'!P67 -> 617 | Q65: ='[1]Rapport 5'!Q67 -> 0 | R65: ='[1]Rapport 5'!R67 -> 0 | S65: ='[1]Rapport 5'!S67 -> 241 | T65: ='[1]Rapport 5'!T67 -> 31 | U65: ='[1]Rapport 5'!U67 -> 11339.38 | V65: ='[1]Rapport 5'!V67 -> 2697.89 | W65: ='[1]Rapport 5'!W67 -> 4170.64 | X65: ='[1]Rapport 5'!X67 -> 65.3 | Y65: 177,850 | Z65: 9,382 | AA65: 5.3% | AB65: 283 | AC65: =1+(AB65/COUNT($AB$3:AB$319)*10) -> 9.927444795 | AD65: 9 | AE65: 836 | AF65: 11.5% | AG65: 294 | AH65: 10.27444795 | AI65: 10 | AJ65: 136 | AK65: 100.0% | AL65: 285 | AM65: 9.990536278 | AN65: 9 | AO65: 4,999 | AP65: 3.4% | AQ65: 221 | AR65: 7.971608833 | AS65: 7 | AT65: 617 | AU65: 7.1% | AV65: 220 | AW65: 7.940063091 | AX65: 7 | AY65: 0 | AZ65: 0.0% | BA65: 1 | BB65: 1.031545741 | BC65: 1 | BD65: 31 | BE65: 12.9% | BF65: 284 | BG65: 9.958990536 | BH65: 9 | BI65: 2,698 | BJ65: 23.8% | BK65: 294 | BL65: 10.27444795 | BM65: 10 | BN65: 65 | BO65: 1.6% | BP65: 72 | BQ65: 3.271293375 | BR65: 3 | BT65: 109 | BU65: -11
A66: ='[1]Rapport 5'!A68 -> 121 | B66: ='[1]Rapport 5'!B68 -> SCHIRMECK | C66: ='[1]Rapport 5'!C68 -> 4121 | D66: ='[1]Rapport 5'!D68 -> SCHIRMECK | E66: ='[1]Rapport 5'!E68 -> 5101 | F66: ='[1]Rapport 5'!F68 -> SELESTAT | G66: ='[1]Rapport 5'!G68 -> 262 | H66: ='[1]Rapport 5'!H68 -> BAS RHIN | I66: ='[1]Rapport 5'!I68 -> 5752.51 | J66: ='[1]Rapport 5'!J68 -> 133.42 | K66: ='[1]Rapport 5'!K68 -> 0 | L66: ='[1]Rapport 5'!L68 -> 0 | M66: ='[1]Rapport 5'!M68 -> 166847.51 | N66: ='[1]Rapport 5'!N68 -> 2817.61 | O66: ='[1]Rapport 5'!O68 -> 6261 | P66: ='[1]Rapport 5'!P68 -> 220 | Q66: ='[1]Rapport 5'!Q68 -> 0 | R66: ='[1]Rapport 5'!R68 -> 0 | S66: ='[1]Rapport 5'!S68 -> 540 | T66: ='[1]Rapport 5'!T68 -> 0 | U66: ='[1]Rapport 5'!U68 -> 10108.03 | V66: ='[1]Rapport 5'!V68 -> 1444.06 | W66: ='[1]Rapport 5'!W68 -> 2992.03 | X66: ='[1]Rapport 5'!X68 -> 133.42 | Y66: =+I66+K66+M66+O66+Q66+S66+U66+W66 -> 192,501 | Z66: =+J66+L66+N66+P66+R66+T66+V66+X66 -> 4,749 | AA66: =+Z66/Y66 -> 2.5% | AB66: 43 | AC66: =1+(AB66/COUNT($AB$3:AB$319)*10) -> 2.356466877 | AD66: =+IF(INT(AC66)=11,10,INT(AC66)) -> 2 | AE66: 133 | AF66: =+IF(ISERROR(AE66/I66),0,AE66/I66) -> 2.3% | AG66: 78 | AH66: 3.460567823 | AI66: 3 | AJ66: =+L66 -> 0 | AK66: =+IF(ISERROR(IF(AJ66=0,0,AJ66/K66)),1,IF(AJ66=0,0,AJ66/K66)) -> 0.0% | AL66: 1 | AM66: 1.031545741 | AN66: =+IF(INT(AM66)=11,10,INT(AM66)) -> 1 | AO66: =+N66 -> 2,818 | AP66: =+IF(ISERROR(IF(AO66=0,0,AO66/M66)),1,IF(AO66=0,0,AO66/M66)) -> 1.7% | AQ66: 33 | AR66: 2.041009464 | AS66: =+IF(INT(AR66)=11,10,INT(AR66)) -> 2 | AT66: 220 | AU66: 3.5% | AV66: 148 | AW66: 5.668769716 | AX66: 5 | AY66: 0 | AZ66: 0.0% | BA66: 1 | BB66: 1.031545741 | BC66: 1 | BD66: 0 | BE66: 0.0% | BF66: 1 | BG66: 1.031545741 | BH66: 1 | BI66: 1,444 | BJ66: 14.3% | BK66: 220 | BL66: 7.940063091 | BM66: 7 | BN66: 133 | BO66: 4.5% | BP66: 197 | BQ66: 7.214511041 | BR66: 7 | BT66: 110 | BU66: =+BT66-A66 -> -11
A67: ='[1]Rapport 5'!A69 -> 126 | B67: ='[1]Rapport 5'!B69 -> MUTZIG | C67: ='[1]Rapport 5'!C69 -> 4126 | D67: ='[1]Rapport 5'!D69 -> MUTZIG | E67: ='[1]Rapport 5'!E69 -> 5101 | F67: ='[1]Rapport 5'!F69 -> SELESTAT | G67: ='[1]Rapport 5'!G69 -> 262 | H67: ='[1]Rapport 5'!H69 -> BAS RHIN | I67: ='[1]Rapport 5'!I69 -> 7675.05 | J67: ='[1]Rapport 5'!J69 -> 462.18 | K67: ='[1]Rapport 5'!K69 -> 0 | L67: ='[1]Rapport 5'!L69 -> 0 | M67: ='[1]Rapport 5'!M69 -> 147553.21 | N67: ='[1]Rapport 5'!N69 -> 4218.34 | O67: ='[1]Rapport 5'!O69 -> 10104.5 | P67: ='[1]Rapport 5'!P69 -> 42 | Q67: ='[1]Rapport 5'!Q69 -> 0 | R67: ='[1]Rapport 5'!R69 -> 0 | S67: ='[1]Rapport 5'!S69 -> 88 | T67: ='[1]Rapport 5'!T69 -> 0 | U67: ='[1]Rapport 5'!U69 -> 7866.53 | V67: ='[1]Rapport 5'!V69 -> 1119.15 | W67: ='[1]Rapport 5'!W69 -> 3939.68 | X67: ='[1]Rapport 5'!X69 -> 121.3 | Y67: 177,227 | Z67: 5,963 | AA67: 3.4% | AB67: =RANK(AA67,$AA$3:$AA$319,1) -> 129 | AC67: =1+(AB67/COUNT($AB$3:AB$319)*10) -> 5.069400631 | AD67: 5 | AE67: 462 | AF67: 6.0% | AG67: =RANK(AF67,$AF$3:$AF$319,1) -> 241 | AH67: =1+(AG67/COUNT($AG$3:$AG$319)*10) -> 8.602523659 | AI67: =+IF(INT(AH67)=11,10,INT(AH67)) -> 8 | AJ67: 0 | AK67: 0.0% | AL67: =RANK(AK67,$AK$3:$AK$319,1) -> 1 | AM67: =1+(AL67/COUNT($AL$3:$AL$319)*10) -> 1.031545741 | AN67: 1 | AO67: 4,218 | AP67: 2.9% | AQ67: =RANK(AP67,$AP$3:$AP$319,1) -> 152 | AR67: =1+(AQ67/COUNT($AQ$3:$AQ$319)*10) -> 5.794952681 | AS67: 5 | AT67: =+P67 -> 42 | AU67: =+IF(ISERROR(IF(AT67=0,0,AT67/O67)),1,IF(AT67=0,0,AT67/O67)) -> 0.4% | AV67: =RANK(AU67,$AU$3:$AU$319,1) -> 58 | AW67: =1+(AV67/COUNT($AV$3:$AV$319)*10) -> 2.829652997 | AX67: =+IF(INT(AW67)=11,10,INT(AW67)) -> 2 | AY67: =+R67 -> 0 | AZ67: =+IF(ISERROR(IF(AY67=0,0,AY67/T67)),1,IF(AY67=0,0,AY67/T67)) -> 0.0% | BA67: =RANK(AZ67,$AZ$3:$AZ$319,1) -> 1 | BB67: =1+(BA67/COUNT($BA$3:$BA$319)*10) -> 1.031545741 | BC67: =+IF(INT(BB67)=11,10,INT(BB67)) -> 1 | BD67: =+T67 -> 0 | BE67: =+IF(ISERROR(IF(BD67=0,0,BD67/S67)),1,IF(BD67=0,0,BD67/S67)) -> 0.0% | BF67: =RANK(BE67,$BE$3:$BE$319,1) -> 1 | BG67: =1+(BF67/COUNT($BF$3:$BF$319)*10) -> 1.031545741 | BH67: =+IF(INT(BG67)=11,10,INT(BG67)) -> 1 | BI67: =+V67 -> 1,119 | BJ67: =+IF(ISERROR(IF(BI67=0,0,BI67/U67)),1,IF(BI67=0,0,BI67/U67)) -> 14.2% | BK67: =RANK(BJ67,$BJ$3:$BJ$319,1) -> 219 | BL67: =1+(BK67/COUNT($BK$3:$BK$319)*10) -> 7.90851735 | BM67: =+IF(INT(BL67)=11,10,INT(BL67)) -> 7 | BN67: =+X67 -> 121 | BO67: =+IF(ISERROR(IF(BN67=0,0,BN67/W67)),1,IF(BN67=0,0,BN67/W67)) -> 3.1% | BP67: =RANK(BO67,$BO$3:$BO$319,1) -> 142 | BQ67: =1+(BP67/COUNT($BP$3:$BP$319)*10) -> 5.479495268 | BR67: =+IF(INT(BQ67)=11,10,INT(BQ67)) -> 5 | BT67: 111 | BU67: -15
A68: ='[1]Rapport 5'!A70 -> 127 | B68: ='[1]Rapport 5'!B70 -> ROSHEIM | C68: ='[1]Rapport 5'!C70 -> 4127 | D68: ='[1]Rapport 5'!D70 -> ROSHEIM | E68: ='[1]Rapport 5'!E70 -> 5101 | F68: ='[1]Rapport 5'!F70 -> SELESTAT | G68: ='[1]Rapport 5'!G70 -> 262 | H68: ='[1]Rapport 5'!H70 -> BAS RHIN | I68: ='[1]Rapport 5'!I70 -> 2297.66 | J68: ='[1]Rapport 5'!J70 -> 194.37 | K68: ='[1]Rapport 5'!K70 -> 0 | L68: ='[1]Rapport 5'!L70 -> 0 | M68: ='[1]Rapport 5'!M70 -> 96541.42 | N68: ='[1]Rapport 5'!N70 -> 2475.84 | O68: ='[1]Rapport 5'!O70 -> 4645 | P68: ='[1]Rapport 5'!P70 -> 298.5 | Q68: ='[1]Rapport 5'!Q70 -> 0 | R68: ='[1]Rapport 5'!R70 -> 0 | S68: ='[1]Rapport 5'!S70 -> 303 | T68: ='[1]Rapport 5'!T70 -> 41 | U68: ='[1]Rapport 5'!U70 -> 4195.43 | V68: ='[1]Rapport 5'!V70 -> 906.91 | W68: ='[1]Rapport 5'!W70 -> 2410.36 | X68: ='[1]Rapport 5'!X70 -> 14 | Y68: 110,393 | Z68: 3,931 | AA68: 3.6% | AB68: 148 | AC68: =1+(AB68/COUNT($AB$3:AB$319)*10) -> 5.668769716 | AD68: 5 | AE68: 194 | AF68: 8.5% | AG68: 278 | AH68: 9.769716088 | AI68: 9 | AJ68: 0 | AK68: 0.0% | AL68: 1 | AM68: 1.031545741 | AN68: 1 | AO68: 2,476 | AP68: 2.6% | AQ68: 119 | AR68: 4.753943218 | AS68: 4 | AT68: 299 | AU68: 6.4% | AV68: 210 | AW68: 7.624605678 | AX68: 7 | AY68: 0 | AZ68: 0.0% | BA68: 1 | BB68: 1.031545741 | BC68: 1 | BD68: 41 | BE68: 13.5% | BF68: 286 | BG68: 10.02208202 | BH68: 10 | BI68: 907 | BJ68: 21.6% | BK68: 283 | BL68: 9.927444795 | BM68: 9 | BN68: 14 | BO68: 0.6% | BP68: 28 | BQ68: 1.883280757 | BR68: 1 | BT68: 113 | BU68: -14
A69: ='[1]Rapport 5'!A71 -> 129 | B69: ='[1]Rapport 5'!B71 -> MARLENHEIM | C69: ='[1]Rapport 5'!C71 -> 4120 | D69: ='[1]Rapport 5'!D71 -> WASSELONNE | E69: ='[1]Rapport 5'!E71 -> 5101 | F69: ='[1]Rapport 5'!F71 -> SELESTAT | G69: ='[1]Rapport 5'!G71 -> 262 | H69: ='[1]Rapport 5'!H71 -> BAS RHIN | I69: ='[1]Rapport 5'!I71 -> 4390.58 | J69: ='[1]Rapport 5'!J71 -> 116.23 | K69: ='[1]Rapport 5'!K71 -> 0 | L69: ='[1]Rapport 5'!L71 -> 0 | M69: ='[1]Rapport 5'!M71 -> 95727.75 | N69: ='[1]Rapport 5'!N71 -> 1834.23 | O69: ='[1]Rapport 5'!O71 -> 2716 | P69: ='[1]Rapport 5'!P71 -> 70 | Q69: ='[1]Rapport 5'!Q71 -> 0 | R69: ='[1]Rapport 5'!R71 -> 0 | S69: ='[1]Rapport 5'!S71 -> 314.23 | T69: ='[1]Rapport 5'!T71 -> 0 | U69: ='[1]Rapport 5'!U71 -> 4287.3 | V69: ='[1]Rapport 5'!V71 -> 366.28 | W69: ='[1]Rapport 5'!W71 -> 4000.59 | X69: ='[1]Rapport 5'!X71 -> 246.59 | Y69: 111,436 | Z69: 2,633 | AA69: 2.4% | AB69: 38 | AC69: =1+(AB69/COUNT($AB$3:AB$319)*10) -> 2.19873817 | AD69: 2 | AE69: 116 | AF69: 2.6% | AG69: 101 | AH69: 4.186119874 | AI69: 4 | AJ69: 0 | AK69: 0.0% | AL69: 1 | AM69: 1.031545741 | AN69: 1 | AO69: 1,834 | AP69: 1.9% | AQ69: 51 | AR69: 2.608832808 | AS69: 2 | AT69: 70 | AU69: 2.6% | AV69: 118 | AW69: 4.722397476 | AX69: 4 | AY69: 0 | AZ69: 0.0% | BA69: 1 | BB69: 1.031545741 | BC69: 1 | BD69: 0 | BE69: 0.0% | BF69: 1 | BG69: 1.031545741 | BH69: 1 | BI69: 366 | BJ69: 8.5% | BK69: 136 | BL69: 5.29022082 | BM69: 5 | BN69: 247 | BO69: 6.2% | BP69: 238 | BQ69: 8.507886435 | BR69: 8 | BT69: 116 | BU69: -13
A70: ='[1]Rapport 5'!A72 -> 130 | B70: ='[1]Rapport 5'!B72 -> COLMAR REPUBLIQUE | C70: ='[1]Rapport 5'!C72 -> 4130 | D70: ='[1]Rapport 5'!D72 -> COLMAR REPUBLIQUE | E70: ='[1]Rapport 5'!E72 -> 5130 | F70: ='[1]Rapport 5'!F72 -> COLMAR | G70: ='[1]Rapport 5'!G72 -> 264 | H70: ='[1]Rapport 5'!H72 -> HAUT RHIN | I70: ='[1]Rapport 5'!I72 -> 12648.39 | J70: ='[1]Rapport 5'!J72 -> 425.02 | K70: ='[1]Rapport 5'!K72 -> 0 | L70: ='[1]Rapport 5'!L72 -> 0 | M70: ='[1]Rapport 5'!M72 -> 386342.92 | N70: ='[1]Rapport 5'!N72 -> 9846.77 | O70: ='[1]Rapport 5'!O72 -> 15209 | P70: ='[1]Rapport 5'!P72 -> 1446.18 | Q70: ='[1]Rapport 5'!Q72 -> 0 | R70: ='[1]Rapport 5'!R72 -> 0 | S70: ='[1]Rapport 5'!S72 -> 938.16 | T70: ='[1]Rapport 5'!T72 -> 0 | U70: ='[1]Rapport 5'!U72 -> 51296.19 | V70: ='[1]Rapport 5'!V72 -> 3027.53 | W70: ='[1]Rapport 5'!W72 -> 25530.93 | X70: ='[1]Rapport 5'!X72 -> 1192.96 | Y70: 491,966 | Z70: 15,938 | AA70: 3.2% | AB70: 115 | AC70: =1+(AB70/COUNT($AB$3:AB$319)*10) -> 4.627760252 | AD70: 4 | AE70: 425 | AF70: 3.4% | AG70: 146 | AH70: 5.605678233 | AI70: 5 | AJ70: 0 | AK70: 0.0% | AL70: 1 | AM70: 1.031545741 | AN70: 1 | AO70: 9,847 | AP70: 2.5% | AQ70: 116 | AR70: 4.659305994 | AS70: 4 | AT70: 1,446 | AU70: 9.5% | AV70: 250 | AW70: 8.886435331 | AX70: 8 | AY70: 0 | AZ70: 0.0% | BA70: 1 | BB70: 1.031545741 | BC70: 1 | BD70: 0 | BE70: 0.0% | BF70: 1 | BG70: 1.031545741 | BH70: 1 | BI70: 3,028 | BJ70: 5.9% | BK70: 77 | BL70: 3.429022082 | BM70: 3 | BN70: 1,193 | BO70: 4.7% | BP70: 203 | BQ70: 7.403785489 | BR70: 7 | BT70: 119 | BU70: -11
A71: ='[1]Rapport 5'!A73 -> 132 | B71: ='[1]Rapport 5'!B73 -> COLMAR MARAICHERS | C71: ='[1]Rapport 5'!C73 -> 4132 | D71: ='[1]Rapport 5'!D73 -> COLMAR MARAICHERS | E71: ='[1]Rapport 5'!E73 -> 5130 | F71: ='[1]Rapport 5'!F73 -> COLMAR | G71: ='[1]Rapport 5'!G73 -> 264 | H71: ='[1]Rapport 5'!H73 -> HAUT RHIN | I71: ='[1]Rapport 5'!I73 -> 9322.96 | J71: ='[1]Rapport 5'!J73 -> 353.53 | K71: ='[1]Rapport 5'!K73 -> 0 | L71: ='[1]Rapport 5'!L73 -> 75.17 | M71: ='[1]Rapport 5'!M73 -> 266333.78 | N71: ='[1]Rapport 5'!N73 -> 6077.75 | O71: ='[1]Rapport 5'!O73 -> 7063.5 | P71: ='[1]Rapport 5'!P73 -> 326 | Q71: ='[1]Rapport 5'!Q73 -> 0 | R71: ='[1]Rapport 5'!R73 -> 0 | S71: ='[1]Rapport 5'!S73 -> 589.1 | T71: ='[1]Rapport 5'!T73 -> 26 | U71: ='[1]Rapport 5'!U73 -> 21849.21 | V71: ='[1]Rapport 5'!V73 -> 1427.58 | W71: ='[1]Rapport 5'!W73 -> 10643.18 | X71: ='[1]Rapport 5'!X73 -> 69.42 | Y71: 315,802 | Z71: 8,355 | AA71: 2.6% | AB71: 54 | AC71: =1+(AB71/COUNT($AB$3:AB$319)*10) -> 2.703470032 | AD71: 2 | AE71: 354 | AF71: 3.8% | AG71: 173 | AH71: 6.457413249 | AI71: 6 | AJ71: 75 | AK71: 100.0% | AL71: 285 | AM71: 9.990536278 | AN71: 9 | AO71: 6,078 | AP71: 2.3% | AQ71: 89 | AR71: 3.807570978 | AS71: 3 | AT71: 326 | AU71: 4.6% | AV71: 170 | AW71: 6.362776025 | AX71: 6 | AY71: 0 | AZ71: 0.0% | BA71: 1 | BB71: 1.031545741 | BC71: 1 | BD71: 26 | BE71: 4.4% | BF71: 239 | BG71: 8.539432177 | BH71: 8 | BI71: 1,428 | BJ71: 6.5% | BK71: 91 | BL71: 3.870662461 | BM71: 3 | BN71: 69 | BO71: 0.7% | BP71: 32 | BQ71: 2.009463722 | BR71: 2 | BT71: 120 | BU71: -12
A72: ='[1]Rapport 5'!A76 -> 135 | B72: ='[1]Rapport 5'!B76 -> COLMAR SAINTE MARIE | C72: ='[1]Rapport 5'!C76 -> 4135 | D72: ='[1]Rapport 5'!D76 -> COLMAR SAINTE MARIE | E72: ='[1]Rapport 5'!E76 -> 5130 | F72: ='[1]Rapport 5'!F76 -> COLMAR | G72: ='[1]Rapport 5'!G76 -> 264 | H72: ='[1]Rapport 5'!H76 -> HAUT RHIN | I72: ='[1]Rapport 5'!I76 -> 13083.89 | J72: ='[1]Rapport 5'!J76 -> 260.3 | K72: ='[1]Rapport 5'!K76 -> 0 | L72: ='[1]Rapport 5'!L76 -> 0 | M72: ='[1]Rapport 5'!M76 -> 425878.95 | N72: ='[1]Rapport 5'!N76 -> 11479.92 | O72: ='[1]Rapport 5'!O76 -> 8664.5 | P72: ='[1]Rapport 5'!P76 -> 205 | Q72: ='[1]Rapport 5'!Q76 -> 0 | R72: ='[1]Rapport 5'!R76 -> 0 | S72: ='[1]Rapport 5'!S76 -> 2626.05 | T72: ='[1]Rapport 5'!T76 -> 202 | U72: ='[1]Rapport 5'!U76 -> 31061.39 | V72: ='[1]Rapport 5'!V76 -> 3288.17 | W72: ='[1]Rapport 5'!W76 -> 10929.58 | X72: ='[1]Rapport 5'!X76 -> 205.2 | Y72: 492,244 | Z72: 15,641 | AA72: 3.2% | AB72: 109 | AC72: =1+(AB72/COUNT($AB$3:AB$319)*10) -> 4.438485804 | AD72: 4 | AE72: 260 | AF72: 2.0% | AG72: 58 | AH72: 2.829652997 | AI72: 2 | AJ72: 0 | AK72: 0.0% | AL72: 1 | AM72: 1.031545741 | AN72: 1 | AO72: 11,480 | AP72: 2.7% | AQ72: 131 | AR72: 5.132492114 | AS72: 5 | AT72: 205 | AU72: 2.4% | AV72: 114 | AW72: 4.596214511 | AX72: 4 | AY72: 0 | AZ72: 0.0% | BA72: 1 | BB72: 1.031545741 | BC72: 1 | BD72: 202 | BE72: 7.7% | BF72: 267 | BG72: 9.422712934 | BH72: 9 | BI72: 3,288 | BJ72: 10.6% | BK72: 178 | BL72: 6.615141956 | BM72: 6 | BN72: 205 | BO72: 1.9% | BP72: 91 | BQ72: 3.870662461 | BR72: 3 | BT72: 127 | BU72: -8
A73: ='[1]Rapport 5'!A77 -> 139 | B73: ='[1]Rapport 5'!B77 -> INGERSHEIM | C73: ='[1]Rapport 5'!C77 -> 4139 | D73: ='[1]Rapport 5'!D77 -> INGERSHEIM | E73: ='[1]Rapport 5'!E77 -> 5130 | F73: ='[1]Rapport 5'!F77 -> COLMAR | G73: ='[1]Rapport 5'!G77 -> 264 | H73: ='[1]Rapport 5'!H77 -> HAUT RHIN | I73: ='[1]Rapport 5'!I77 -> 7378.9 | J73: ='[1]Rapport 5'!J77 -> 346.22 | K73: ='[1]Rapport 5'!K77 -> 0 | L73: ='[1]Rapport 5'!L77 -> 1020.41 | M73: ='[1]Rapport 5'!M77 -> 212488.59 | N73: ='[1]Rapport 5'!N77 -> 5303.45 | O73: ='[1]Rapport 5'!O77 -> 6887.5 | P73: ='[1]Rapport 5'!P77 -> 327 | Q73: ='[1]Rapport 5'!Q77 -> 0 | R73: ='[1]Rapport 5'!R77 -> 0 | S73: ='[1]Rapport 5'!S77 -> 418.99 | T73: ='[1]Rapport 5'!T77 -> 0 | U73: ='[1]Rapport 5'!U77 -> 13139.28 | V73: ='[1]Rapport 5'!V77 -> 1973.5 | W73: ='[1]Rapport 5'!W77 -> 6099.25 | X73: ='[1]Rapport 5'!X77 -> 191.02 | Y73: 246,413 | Z73: 9,162 | AA73: 3.7% | AB73: 170 | AC73: =1+(AB73/COUNT($AB$3:AB$319)*10) -> 6.362776025 | AD73: 6 | AE73: 346 | AF73: 4.7% | AG73: 209 | AH73: 7.593059937 | AI73: 7 | AJ73: 1,020 | AK73: 100.0% | AL73: 285 | AM73: 9.990536278 | AN73: 9 | AO73: 5,303 | AP73: 2.5% | AQ73: 111 | AR73: 4.501577287 | AS73: 4 | AT73: 327 | AU73: 4.7% | AV73: 175 | AW73: 6.520504732 | AX73: 6 | AY73: 0 | AZ73: 0.0% | BA73: 1 | BB73: 1.031545741 | BC73: 1 | BD73: 0 | BE73: 0.0% | BF73: 1 | BG73: 1.031545741 | BH73: 1 | BI73: 1,974 | BJ73: 15.0% | BK73: 234 | BL73: 8.38170347 | BM73: 8 | BN73: 191 | BO73: 3.1% | BP73: 144 | BQ73: 5.542586751 | BR73: 5 | BT73: 129 | BU73: -10
A74: ='[1]Rapport 5'!A78 -> 140 | B74: ='[1]Rapport 5'!B78 -> WINTZENHEIM | C74: ='[1]Rapport 5'!C78 -> 4139 | D74: ='[1]Rapport 5'!D78 -> INGERSHEIM | E74: ='[1]Rapport 5'!E78 -> 5130 | F74: ='[1]Rapport 5'!F78 -> COLMAR | G74: ='[1]Rapport 5'!G78 -> 264 | H74: ='[1]Rapport 5'!H78 -> HAUT RHIN | I74: ='[1]Rapport 5'!I78 -> 5274.6 | J74: ='[1]Rapport 5'!J78 -> 137.71 | K74: ='[1]Rapport 5'!K78 -> 0 | L74: ='[1]Rapport 5'!L78 -> 228.62 | M74: ='[1]Rapport 5'!M78 -> 94045.95 | N74: ='[1]Rapport 5'!N78 -> 3190.45 | O74: ='[1]Rapport 5'!O78 -> 1831 | P74: ='[1]Rapport 5'!P78 -> 59.23 | Q74: ='[1]Rapport 5'!Q78 -> 0 | R74: ='[1]Rapport 5'!R78 -> 0 | S74: ='[1]Rapport 5'!S78 -> 91 | T74: ='[1]Rapport 5'!T78 -> 13 | U74: ='[1]Rapport 5'!U78 -> 8407.63 | V74: ='[1]Rapport 5'!V78 -> 411.67 | W74: ='[1]Rapport 5'!W78 -> 3446.45 | X74: ='[1]Rapport 5'!X78 -> 0 | Y74: 113,097 | Z74: 4,041 | AA74: 3.6% | AB74: 149 | AC74: =1+(AB74/COUNT($AB$3:AB$319)*10) -> 5.700315457 | AD74: 5 | AE74: 138 | AF74: 2.6% | AG74: 98 | AH74: 4.09148265 | AI74: 4 | AJ74: 229 | AK74: 100.0% | AL74: 285 | AM74: 9.990536278 | AN74: 9 | AO74: 3,190 | AP74: 3.4% | AQ74: 216 | AR74: 7.813880126 | AS74: 7 | AT74: 59 | AU74: 3.2% | AV74: 143 | AW74: 5.511041009 | AX74: 5 | AY74: 0 | AZ74: 0.0% | BA74: 1 | BB74: 1.031545741 | BC74: 1 | BD74: 13 | BE74: 14.3% | BF74: 291 | BG74: 10.17981073 | BH74: 10 | BI74: 412 | BJ74: 4.9% | BK74: 55 | BL74: 2.735015773 | BM74: 2 | BN74: 0 | BO74: 0.0% | BP74: 1 | BQ74: 1.031545741 | BR74: 1 | BT74: 130 | BU74: -10
A75: ='[1]Rapport 5'!A79 -> 141 | B75: ='[1]Rapport 5'!B79 -> HORBOURG WIHR | C75: ='[1]Rapport 5'!C79 -> 4141 | D75: ='[1]Rapport 5'!D79 -> HORBOURG WIHR | E75: ='[1]Rapport 5'!E79 -> 5130 | F75: ='[1]Rapport 5'!F79 -> COLMAR | G75: ='[1]Rapport 5'!G79 -> 264 | H75: ='[1]Rapport 5'!H79 -> HAUT RHIN | I75: ='[1]Rapport 5'!I79 -> 6283.86 | J75: ='[1]Rapport 5'!J79 -> 397.2 | K75: ='[1]Rapport 5'!K79 -> 0 | L75: ='[1]Rapport 5'!L79 -> 1042.18 | M75: ='[1]Rapport 5'!M79 -> 188223.63 | N75: ='[1]Rapport 5'!N79 -> 8577.85 | O75: ='[1]Rapport 5'!O79 -> 7155.5 | P75: ='[1]Rapport 5'!P79 -> 961.4 | Q75: ='[1]Rapport 5'!Q79 -> 0 | R75: ='[1]Rapport 5'!R79 -> 0 | S75: ='[1]Rapport 5'!S79 -> 1126.16 | T75: ='[1]Rapport 5'!T79 -> 13 | U75: ='[1]Rapport 5'!U79 -> 8319.9 | V75: ='[1]Rapport 5'!V79 -> 1415.39 | W75: ='[1]Rapport 5'!W79 -> 8546.63 | X75: ='[1]Rapport 5'!X79 -> 1688.27 | Y75: 219,656 | Z75: 14,095 | AA75: 6.4% | AB75: 307 | AC75: =1+(AB75/COUNT($AB$3:AB$319)*10) -> 10.68454259 | AD75: 10 | AE75: 397 | AF75: 6.3% | AG75: 246 | AH75: 8.760252366 | AI75: 8 | AJ75: 1,042 | AK75: 100.0% | AL75: 285 | AM75: 9.990536278 | AN75: 9 | AO75: 8,578 | AP75: 4.6% | AQ75: 293 | AR75: 10.24290221 | AS75: 10 | AT75: 961 | AU75: 13.4% | AV75: 278 | AW75: 9.769716088 | AX75: 9 | AY75: 0 | AZ75: 0.0% | BA75: 1 | BB75: 1.031545741 | BC75: 1 | BD75: 13 | BE75: 1.2% | BF75: 216 | BG75: 7.813880126 | BH75: 7 | BI75: 1,415 | BJ75: 17.0% | BK75: 249 | BL75: 8.85488959 | BM75: 8 | BN75: 1,688 | BO75: 19.8% | BP75: 312 | BQ75: 10.84227129 | BR75: 10 | BT75: 132 | BU75: -9
A76: ='[1]Rapport 5'!A80 -> 143 | B76: ='[1]Rapport 5'!B80 -> MUNSTER | C76: ='[1]Rapport 5'!C80 -> 4143 | D76: ='[1]Rapport 5'!D80 -> MUNSTER | E76: ='[1]Rapport 5'!E80 -> 5130 | F76: ='[1]Rapport 5'!F80 -> COLMAR | G76: ='[1]Rapport 5'!G80 -> 264 | H76: ='[1]Rapport 5'!H80 -> HAUT RHIN | I76: ='[1]Rapport 5'!I80 -> 7288.88 | J76: ='[1]Rapport 5'!J80 -> 311.98 | K76: ='[1]Rapport 5'!K80 -> 0 | L76: ='[1]Rapport 5'!L80 -> 0 | M76: ='[1]Rapport 5'!M80 -> 253585.25 | N76: ='[1]Rapport 5'!N80 -> 7270.97 | O76: ='[1]Rapport 5'!O80 -> 14088 | P76: ='[1]Rapport 5'!P80 -> 753 | Q76: ='[1]Rapport 5'!Q80 -> 0 | R76: ='[1]Rapport 5'!R80 -> 0 | S76: ='[1]Rapport 5'!S80 -> 740 | T76: ='[1]Rapport 5'!T80 -> 75 | U76: ='[1]Rapport 5'!U80 -> 10671.3 | V76: ='[1]Rapport 5'!V80 -> 1725.55 | W76: ='[1]Rapport 5'!W80 -> 8506.57 | X76: ='[1]Rapport 5'!X80 -> 163.33 | Y76: 294,880 | Z76: 10,300 | AA76: 3.5% | AB76: 140 | AC76: =1+(AB76/COUNT($AB$3:AB$319)*10) -> 5.416403785 | AD76: 5 | AE76: 312 | AF76: 4.3% | AG76: 196 | AH76: 7.1829653 | AI76: 7 | AJ76: 0 | AK76: 0.0% | AL76: 1 | AM76: 1.031545741 | AN76: 1 | AO76: 7,271 | AP76: 2.9% | AQ76: 157 | AR76: 5.952681388 | AS76: 5 | AT76: 753 | AU76: 5.3% | AV76: 192 | AW76: 7.056782334 | AX76: 7 | AY76: 0 | AZ76: 0.0% | BA76: 1 | BB76: 1.031545741 | BC76: 1 | BD76: 75 | BE76: 10.1% | BF76: 275 | BG76: 9.675078864 | BH76: 9 | BI76: 1,726 | BJ76: 16.2% | BK76: 242 | BL76: 8.634069401 | BM76: 8 | BN76: 163 | BO76: 1.9% | BP76: 92 | BQ76: 3.902208202 | BR76: 3 | BT76: 133 | BU76: -10
A77: ='[1]Rapport 5'!A81 -> 144 | B77: ='[1]Rapport 5'!B81 -> RIBEAUVILLE | C77: ='[1]Rapport 5'!C81 -> 4144 | D77: ='[1]Rapport 5'!D81 -> RIBEAUVILLE | E77: ='[1]Rapport 5'!E81 -> 5130 | F77: ='[1]Rapport 5'!F81 -> COLMAR | G77: ='[1]Rapport 5'!G81 -> 264 | H77: ='[1]Rapport 5'!H81 -> HAUT RHIN | I77: ='[1]Rapport 5'!I81 -> 3198.14 | J77: ='[1]Rapport 5'!J81 -> 235.74 | K77: ='[1]Rapport 5'!K81 -> 0 | L77: ='[1]Rapport 5'!L81 -> 0 | M77: ='[1]Rapport 5'!M81 -> 120681.98 | N77: ='[1]Rapport 5'!N81 -> 3032.76 | O77: ='[1]Rapport 5'!O81 -> 4819.2 | P77: ='[1]Rapport 5'!P81 -> 315.57 | Q77: ='[1]Rapport 5'!Q81 -> 0 | R77: ='[1]Rapport 5'!R81 -> 0 | S77: ='[1]Rapport 5'!S81 -> 39 | T77: ='[1]Rapport 5'!T81 -> 0 | U77: ='[1]Rapport 5'!U81 -> 7894.9 | V77: ='[1]Rapport 5'!V81 -> 479.23 | W77: ='[1]Rapport 5'!W81 -> 6852.52 | X77: ='[1]Rapport 5'!X81 -> 191.42 | Y77: 143,486 | Z77: 4,255 | AA77: 3.0% | AB77: 80 | AC77: =1+(AB77/COUNT($AB$3:AB$319)*10) -> 3.523659306 | AD77: 3 | AE77: 236 | AF77: 7.4% | AG77: 261 | AH77: 9.233438486 | AI77: 9 | AJ77: 0 | AK77: 0.0% | AL77: 1 | AM77: 1.031545741 | AN77: 1 | AO77: 3,033 | AP77: 2.5% | AQ77: 112 | AR77: 4.533123028 | AS77: 4 | AT77: 316 | AU77: 6.5% | AV77: 211 | AW77: 7.65615142 | AX77: 7 | AY77: 0 | AZ77: 0.0% | BA77: 1 | BB77: 1.031545741 | BC77: 1 | BD77: 0 | BE77: 0.0% | BF77: 1 | BG77: 1.031545741 | BH77: 1 | BI77: 479 | BJ77: 6.1% | BK77: 84 | BL77: 3.649842271 | BM77: 3 | BN77: 191 | BO77: 2.8% | BP77: 133 | BQ77: 5.195583596 | BR77: 5 | BT77: 134 | BU77: -10
A78: ='[1]Rapport 5'!A82 -> 147 | B78: ='[1]Rapport 5'!B82 -> GUEBWILLER | C78: ='[1]Rapport 5'!C82 -> 4147 | D78: ='[1]Rapport 5'!D82 -> GUEBWILLER | E78: ='[1]Rapport 5'!E82 -> 5130 | F78: ='[1]Rapport 5'!F82 -> COLMAR | G78: ='[1]Rapport 5'!G82 -> 264 | H78: ='[1]Rapport 5'!H82 -> HAUT RHIN | I78: ='[1]Rapport 5'!I82 -> 9284.02 | J78: ='[1]Rapport 5'!J82 -> 319.94 | K78: ='[1]Rapport 5'!K82 -> 0 | L78: ='[1]Rapport 5'!L82 -> 0 | M78: ='[1]Rapport 5'!M82 -> 192409.87 | N78: ='[1]Rapport 5'!N82 -> 4225.32 | O78: ='[1]Rapport 5'!O82 -> 4225 | P78: ='[1]Rapport 5'!P82 -> 260.02 | Q78: ='[1]Rapport 5'!Q82 -> 0 | R78: ='[1]Rapport 5'!R82 -> 0 | S78: ='[1]Rapport 5'!S82 -> 122 | T78: ='[1]Rapport 5'!T82 -> 0 | U78: ='[1]Rapport 5'!U82 -> 12884.21 | V78: ='[1]Rapport 5'!V82 -> 1380.19 | W78: ='[1]Rapport 5'!W82 -> 5568.39 | X78: ='[1]Rapport 5'!X82 -> 170.99 | Y78: 224,493 | Z78: 6,356 | AA78: 2.8% | AB78: 66 | AC78: =1+(AB78/COUNT($AB$3:AB$319)*10) -> 3.082018927 | AD78: 3 | AE78: 320 | AF78: 3.4% | AG78: 156 | AH78: 5.921135647 | AI78: 5 | AJ78: 0 | AK78: 0.0% | AL78: 1 | AM78: 1.031545741 | AN78: 1 | AO78: 4,225 | AP78: 2.2% | AQ78: 74 | AR78: 3.334384858 | AS78: 3 | AT78: 260 | AU78: 6.2% | AV78: 205 | AW78: 7.466876972 | AX78: 7 | AY78: 0 | AZ78: 0.0% | BA78: 1 | BB78: 1.031545741 | BC78: 1 | BD78: 0 | BE78: 0.0% | BF78: 1 | BG78: 1.031545741 | BH78: 1 | BI78: 1,380 | BJ78: 10.7% | BK78: 179 | BL78: 6.646687697 | BM78: 6 | BN78: 171 | BO78: 3.1% | BP78: 141 | BQ78: 5.447949527 | BR78: 5 | BT78: 135 | BU78: -12
A79: ='[1]Rapport 5'!A83 -> 148 | B79: ='[1]Rapport 5'!B83 -> ORBEY | C79: ='[1]Rapport 5'!C83 -> 4148 | D79: ='[1]Rapport 5'!D83 -> ORBEY | E79: ='[1]Rapport 5'!E83 -> 5130 | F79: ='[1]Rapport 5'!F83 -> COLMAR | G79: ='[1]Rapport 5'!G83 -> 264 | H79: ='[1]Rapport 5'!H83 -> HAUT RHIN | I79: ='[1]Rapport 5'!I83 -> 3078.86 | J79: ='[1]Rapport 5'!J83 -> 212.78 | K79: ='[1]Rapport 5'!K83 -> 0 | L79: ='[1]Rapport 5'!L83 -> 0 | M79: ='[1]Rapport 5'!M83 -> 147494.84 | N79: ='[1]Rapport 5'!N83 -> 4615.27 | O79: ='[1]Rapport 5'!O83 -> 3587.5 | P79: ='[1]Rapport 5'!P83 -> 335 | Q79: ='[1]Rapport 5'!Q83 -> 0 | R79: ='[1]Rapport 5'!R83 -> 0 | S79: ='[1]Rapport 5'!S83 -> 230 | T79: ='[1]Rapport 5'!T83 -> 0 | U79: ='[1]Rapport 5'!U83 -> 10570.7 | V79: ='[1]Rapport 5'!V83 -> 1046.3 | W79: ='[1]Rapport 5'!W83 -> 4291.63 | X79: ='[1]Rapport 5'!X83 -> 162.6 | Y79: 169,254 | Z79: 6,372 | AA79: 3.8% | AB79: 177 | AC79: =1+(AB79/COUNT($AB$3:AB$319)*10) -> 6.583596215 | AD79: 6 | AE79: 213 | AF79: 6.9% | AG79: 253 | AH79: 8.981072555 | AI79: 8 | AJ79: 0 | AK79: 0.0% | AL79: 1 | AM79: 1.031545741 | AN79: 1 | AO79: 4,615 | AP79: 3.1% | AQ79: 183 | AR79: 6.772870662 | AS79: 6 | AT79: 335 | AU79: 9.3% | AV79: 248 | AW79: 8.823343849 | AX79: 8 | AY79: 0 | AZ79: 0.0% | BA79: 1 | BB79: 1.031545741 | BC79: 1 | BD79: 0 | BE79: 0.0% | BF79: 1 | BG79: 1.031545741 | BH79: 1 | BI79: 1,046 | BJ79: 9.9% | BK79: 167 | BL79: 6.268138801 | BM79: 6 | BN79: 163 | BO79: 3.8% | BP79: 178 | BQ79: 6.615141956 | BR79: 6 | BT79: 139 | BU79: -9
A80: ='[1]Rapport 5'!A84 -> 152 | B80: ='[1]Rapport 5'!B84 -> KAYSERSBERG | C80: ='[1]Rapport 5'!C84 -> 4148 | D80: ='[1]Rapport 5'!D84 -> ORBEY | E80: ='[1]Rapport 5'!E84 -> 5130 | F80: ='[1]Rapport 5'!F84 -> COLMAR | G80: ='[1]Rapport 5'!G84 -> 264 | H80: ='[1]Rapport 5'!H84 -> HAUT RHIN | I80: ='[1]Rapport 5'!I84 -> 1306.68 | J80: ='[1]Rapport 5'!J84 -> 96.31 | K80: ='[1]Rapport 5'!K84 -> 0 | L80: ='[1]Rapport 5'!L84 -> 0 | M80: ='[1]Rapport 5'!M84 -> 68819.36 | N80: ='[1]Rapport 5'!N84 -> 2421.28 | O80: ='[1]Rapport 5'!O84 -> 2562.5 | P80: ='[1]Rapport 5'!P84 -> 0 | Q80: ='[1]Rapport 5'!Q84 -> 0 | R80: ='[1]Rapport 5'!R84 -> 0 | S80: ='[1]Rapport 5'!S84 -> 49 | T80: ='[1]Rapport 5'!T84 -> 0 | U80: ='[1]Rapport 5'!U84 -> 4101.82 | V80: ='[1]Rapport 5'!V84 -> 782.9 | W80: ='[1]Rapport 5'!W84 -> 2429.53 | X80: ='[1]Rapport 5'!X84 -> 28 | Y80: 79,269 | Z80: 3,328 | AA80: 4.2% | AB80: 226 | AC80: =1+(AB80/COUNT($AB$3:AB$319)*10) -> 8.129337539 | AD80: 8 | AE80: =+J80 -> 96 | AF80: 7.4% | AG80: 260 | AH80: 9.201892744 | AI80: 9 | AJ80: 0 | AK80: 0.0% | AL80: 1 | AM80: 1.031545741 | AN80: 1 | AO80: 2,421 | AP80: 3.5% | AQ80: 231 | AR80: 8.287066246 | AS80: 8 | AT80: 0 | AU80: 0.0% | AV80: 1 | AW80: 1.031545741 | AX80: 1 | AY80: 0 | AZ80: 0.0% | BA80: 1 | BB80: 1.031545741 | BC80: 1 | BD80: 0 | BE80: 0.0% | BF80: 1 | BG80: 1.031545741 | BH80: 1 | BI80: 783 | BJ80: 19.1% | BK80: 266 | BL80: 9.391167192 | BM80: 9 | BN80: 28 | BO80: 1.2% | BP80: 55 | BQ80: 2.735015773 | BR80: 2 | BT80: 140 | BU80: -12
A81: ='[1]Rapport 5'!A85 -> 153 | B81: ='[1]Rapport 5'!B85 -> ROUFFACH | C81: ='[1]Rapport 5'!C85 -> 4153 | D81: ='[1]Rapport 5'!D85 -> ROUFFACH | E81: ='[1]Rapport 5'!E85 -> 5130 | F81: ='[1]Rapport 5'!F85 -> COLMAR | G81: ='[1]Rapport 5'!G85 -> 264 | H81: ='[1]Rapport 5'!H85 -> HAUT RHIN | I81: ='[1]Rapport 5'!I85 -> 6253.36 | J81: ='[1]Rapport 5'!J85 -> 381.16 | K81: ='[1]Rapport 5'!K85 -> 0 | L81: ='[1]Rapport 5'!L85 -> 0 | M81: ='[1]Rapport 5'!M85 -> 131337.72 | N81: ='[1]Rapport 5'!N85 -> 4442.89 | O81: ='[1]Rapport 5'!O85 -> 6235 | P81: ='[1]Rapport 5'!P85 -> 38 | Q81: ='[1]Rapport 5'!Q85 -> 0 | R81: ='[1]Rapport 5'!R85 -> 0 | S81: ='[1]Rapport 5'!S85 -> 608 | T81: ='[1]Rapport 5'!T85 -> 0 | U81: ='[1]Rapport 5'!U85 -> 9857.04 | V81: ='[1]Rapport 5'!V85 -> 946.62 | W81: ='[1]Rapport 5'!W85 -> 4730.81 | X81: ='[1]Rapport 5'!X85 -> 609.07 | Y81: 159,022 | Z81: 6,418 | AA81: 4.0% | AB81: 208 | AC81: =1+(AB81/COUNT($AB$3:AB$319)*10) -> 7.561514196 | AD81: 7 | AE81: 381 | AF81: 6.1% | AG81: 243 | AH81: 8.665615142 | AI81: 8 | AJ81: 0 | AK81: 0.0% | AL81: 1 | AM81: 1.031545741 | AN81: 1 | AO81: 4,443 | AP81: 3.4% | AQ81: 213 | AR81: 7.719242902 | AS81: 7 | AT81: 38 | AU81: 0.6% | AV81: 65 | AW81: 3.050473186 | AX81: 3 | AY81: 0 | AZ81: 0.0% | BA81: 1 | BB81: 1.031545741 | BC81: 1 | BD81: 0 | BE81: 0.0% | BF81: 1 | BG81: 1.031545741 | BH81: 1 | BI81: 947 | BJ81: 9.6% | BK81: 162 | BL81: 6.110410095 | BM81: 6 | BN81: 609 | BO81: 12.9% | BP81: 295 | BQ81: 10.30599369 | BR81: 10 | BT81: 141 | BU81: -12
A82: ='[1]Rapport 5'!A86 -> 156 | B82: ='[1]Rapport 5'!B86 -> SOULTZMATT | C82: ='[1]Rapport 5'!C86 -> 4153 | D82: ='[1]Rapport 5'!D86 -> ROUFFACH | E82: ='[1]Rapport 5'!E86 -> 5130 | F82: ='[1]Rapport 5'!F86 -> COLMAR | G82: ='[1]Rapport 5'!G86 -> 264 | H82: ='[1]Rapport 5'!H86 -> HAUT RHIN | I82: ='[1]Rapport 5'!I86 -> 2672.7 | J82: ='[1]Rapport 5'!J86 -> 141.28 | K82: ='[1]Rapport 5'!K86 -> 0 | L82: ='[1]Rapport 5'!L86 -> 0 | M82: ='[1]Rapport 5'!M86 -> 38163.7 | N82: ='[1]Rapport 5'!N86 -> 1712.48 | O82: ='[1]Rapport 5'!O86 -> 1025 | P82: ='[1]Rapport 5'!P86 -> 0 | Q82: ='[1]Rapport 5'!Q86 -> 0 | R82: ='[1]Rapport 5'!R86 -> 0 | S82: ='[1]Rapport 5'!S86 -> 98.6 | T82: ='[1]Rapport 5'!T86 -> 0 | U82: ='[1]Rapport 5'!U86 -> 1590.56 | V82: ='[1]Rapport 5'!V86 -> 392.5 | W82: ='[1]Rapport 5'!W86 -> 1656.49 | X82: ='[1]Rapport 5'!X86 -> 28 | Y82: 45,207 | Z82: 2,274 | AA82: 5.0% | AB82: 279 | AC82: =1+(AB82/COUNT($AB$3:AB$319)*10) -> 9.80126183 | AD82: 9 | AE82: 141 | AF82: 5.3% | AG82: 227 | AH82: 8.160883281 | AI82: 8 | AJ82: 0 | AK82: 0.0% | AL82: 1 | AM82: 1.031545741 | AN82: 1 | AO82: 1,712 | AP82: 4.5% | AQ82: 289 | AR82: 10.11671924 | AS82: 10 | AT82: 0 | AU82: 0.0% | AV82: 1 | AW82: 1.031545741 | AX82: 1 | AY82: 0 | AZ82: 0.0% | BA82: 1 | BB82: 1.031545741 | BC82: 1 | BD82: 0 | BE82: 0.0% | BF82: 1 | BG82: 1.031545741 | BH82: 1 | BI82: 393 | BJ82: 24.7% | BK82: 295 | BL82: 10.30599369 | BM82: 10 | BN82: 28 | BO82: 1.7% | BP82: 82 | BQ82: 3.586750789 | BR82: 3 | BT82: 143 | BU82: -13
A83: ='[1]Rapport 5'!A87 -> 157 | B83: ='[1]Rapport 5'!B87 -> NEUF BRISACH | C83: ='[1]Rapport 5'!C87 -> 4157 | D83: ='[1]Rapport 5'!D87 -> NEUF BRISACH | E83: ='[1]Rapport 5'!E87 -> 5130 | F83: ='[1]Rapport 5'!F87 -> COLMAR | G83: ='[1]Rapport 5'!G87 -> 264 | H83: ='[1]Rapport 5'!H87 -> HAUT RHIN | I83: ='[1]Rapport 5'!I87 -> 6909 | J83: ='[1]Rapport 5'!J87 -> 267.76 | K83: ='[1]Rapport 5'!K87 -> 0 | L83: ='[1]Rapport 5'!L87 -> 0 | M83: ='[1]Rapport 5'!M87 -> 179938.86 | N83: ='[1]Rapport 5'!N87 -> 3466.6 | O83: ='[1]Rapport 5'!O87 -> 6965 | P83: ='[1]Rapport 5'!P87 -> 822 | Q83: ='[1]Rapport 5'!Q87 -> 0 | R83: ='[1]Rapport 5'!R87 -> 0 | S83: ='[1]Rapport 5'!S87 -> 101 | T83: ='[1]Rapport 5'!T87 -> 0 | U83: ='[1]Rapport 5'!U87 -> 8500.22 | V83: ='[1]Rapport 5'!V87 -> 2371.69 | W83: ='[1]Rapport 5'!W87 -> 8017.1 | X83: ='[1]Rapport 5'!X87 -> 65.3 | Y83: 210,431 | Z83: 6,993 | AA83: 3.3% | AB83: 122 | AC83: =1+(AB83/COUNT($AB$3:AB$319)*10) -> 4.848580442 | AD83: 4 | AE83: 268 | AF83: 3.9% | AG83: 175 | AH83: 6.520504732 | AI83: 6 | AJ83: 0 | AK83: 0.0% | AL83: 1 | AM83: 1.031545741 | AN83: 1 | AO83: 3,467 | AP83: 1.9% | AQ83: 52 | AR83: 2.640378549 | AS83: 2 | AT83: 822 | AU83: 11.8% | AV83: 269 | AW83: 9.485804416 | AX83: 9 | AY83: 0 | AZ83: 0.0% | BA83: 1 | BB83: 1.031545741 | BC83: 1 | BD83: 0 | BE83: 0.0% | BF83: 1 | BG83: 1.031545741 | BH83: 1 | BI83: 2,372 | BJ83: 27.9% | BK83: 308 | BL83: 10.71608833 | BM83: 10 | BN83: 65 | BO83: 0.8% | BP83: 39 | BQ83: 2.230283912 | BR83: 2 | BT83: 144 | BU83: -13
A84: ='[1]Rapport 5'!A88 -> 159 | B84: ='[1]Rapport 5'!B88 -> MUNTZENHEIM | C84: ='[1]Rapport 5'!C88 -> 4141 | D84: ='[1]Rapport 5'!D88 -> HORBOURG WIHR | E84: ='[1]Rapport 5'!E88 -> 5130 | F84: ='[1]Rapport 5'!F88 -> COLMAR | G84: ='[1]Rapport 5'!G88 -> 264 | H84: ='[1]Rapport 5'!H88 -> HAUT RHIN | I84: ='[1]Rapport 5'!I88 -> 4380.84 | J84: ='[1]Rapport 5'!J88 -> 221 | K84: ='[1]Rapport 5'!K88 -> 0 | L84: ='[1]Rapport 5'!L88 -> 0 | M84: ='[1]Rapport 5'!M88 -> 104939.41 | N84: ='[1]Rapport 5'!N88 -> 4832.27 | O84: ='[1]Rapport 5'!O88 -> 3747 | P84: ='[1]Rapport 5'!P88 -> 1133.5 | Q84: ='[1]Rapport 5'!Q88 -> 0 | R84: ='[1]Rapport 5'!R88 -> 0 | S84: ='[1]Rapport 5'!S88 -> 39 | T84: ='[1]Rapport 5'!T88 -> 0 | U84: ='[1]Rapport 5'!U88 -> 3836.26 | V84: ='[1]Rapport 5'!V88 -> 371.24 | W84: ='[1]Rapport 5'!W88 -> 2154.6 | X84: ='[1]Rapport 5'!X88 -> 12 | Y84: 119,097 | Z84: 6,570 | AA84: 5.5% | AB84: 289 | AC84: =1+(AB84/COUNT($AB$3:AB$319)*10) -> 10.11671924 | AD84: 10 | AE84: 221 | AF84: 5.0% | AG84: 215 | AH84: 7.782334385 | AI84: 7 | AJ84: 0 | AK84: 0.0% | AL84: 1 | AM84: 1.031545741 | AN84: 1 | AO84: 4,832 | AP84: 4.6% | AQ84: 294 | AR84: 10.27444795 | AS84: 10 | AT84: 1,134 | AU84: 30.3% | AV84: 309 | AW84: 10.74763407 | AX84: 10 | AY84: 0 | AZ84: 0.0% | BA84: 1 | BB84: 1.031545741 | BC84: 1 | BD84: 0 | BE84: 0.0% | BF84: 1 | BG84: 1.031545741 | BH84: 1 | BI84: 371 | BJ84: 9.7% | BK84: 164 | BL84: 6.173501577 | BM84: 6 | BN84: 12 | BO84: 0.6% | BP84: 25 | BQ84: 1.788643533 | BR84: 1 | BT84: 147 | BU84: -12
A85: ='[1]Rapport 5'!A89 -> 160 | B85: ='[1]Rapport 5'!B89 -> SOULTZ | C85: ='[1]Rapport 5'!C89 -> 4147 | D85: ='[1]Rapport 5'!D89 -> GUEBWILLER | E85: ='[1]Rapport 5'!E89 -> 5130 | F85: ='[1]Rapport 5'!F89 -> COLMAR | G85: ='[1]Rapport 5'!G89 -> 264 | H85: ='[1]Rapport 5'!H89 -> HAUT RHIN | I85: ='[1]Rapport 5'!I89 -> 4571.11 | J85: ='[1]Rapport 5'!J89 -> 253.23 | K85: ='[1]Rapport 5'!K89 -> 0 | L85: ='[1]Rapport 5'!L89 -> 0 | M85: ='[1]Rapport 5'!M89 -> 102335.46 | N85: ='[1]Rapport 5'!N89 -> 4161.84 | O85: ='[1]Rapport 5'!O89 -> 3639.5 | P85: ='[1]Rapport 5'!P89 -> 388.02 | Q85: ='[1]Rapport 5'!Q89 -> 0 | R85: ='[1]Rapport 5'!R89 -> 0 | S85: ='[1]Rapport 5'!S89 -> 127 | T85: ='[1]Rapport 5'!T89 -> 26 | U85: ='[1]Rapport 5'!U89 -> 4404.01 | V85: ='[1]Rapport 5'!V89 -> 450 | W85: ='[1]Rapport 5'!W89 -> 3189.28 | X85: ='[1]Rapport 5'!X89 -> 317.81 | Y85: 118,266 | Z85: 5,597 | AA85: 4.7% | AB85: 259 | AC85: =1+(AB85/COUNT($AB$3:AB$319)*10) -> 9.170347003 | AD85: 9 | AE85: 253 | AF85: 5.5% | AG85: 229 | AH85: 8.223974763 | AI85: 8 | AJ85: 0 | AK85: 0.0% | AL85: 1 | AM85: 1.031545741 | AN85: 1 | AO85: 4,162 | AP85: 4.1% | AQ85: 267 | AR85: 9.422712934 | AS85: 9 | AT85: 388 | AU85: 10.7% | AV85: 257 | AW85: 9.107255521 | AX85: 9 | AY85: 0 | AZ85: 0.0% | BA85: 1 | BB85: 1.031545741 | BC85: 1 | BD85: 26 | BE85: 20.5% | BF85: 303 | BG85: 10.55835962 | BH85: 10 | BI85: 450 | BJ85: 10.2% | BK85: 172 | BL85: 6.425867508 | BM85: 6 | BN85: 318 | BO85: 10.0% | BP85: 279 | BQ85: 9.80126183 | BR85: 9 | BT85: 148 | BU85: -12
A86: ='[1]Rapport 5'!A90 -> 162 | B86: ='[1]Rapport 5'!B90 -> ENSISHEIM | C86: ='[1]Rapport 5'!C90 -> 4162 | D86: ='[1]Rapport 5'!D90 -> ENSISHEIM | E86: ='[1]Rapport 5'!E90 -> 5130 | F86: ='[1]Rapport 5'!F90 -> COLMAR | G86: ='[1]Rapport 5'!G90 -> 264 | H86: ='[1]Rapport 5'!H90 -> HAUT RHIN | I86: ='[1]Rapport 5'!I90 -> 8200.67 | J86: ='[1]Rapport 5'!J90 -> 278.38 | K86: ='[1]Rapport 5'!K90 -> 0 | L86: ='[1]Rapport 5'!L90 -> 0 | M86: ='[1]Rapport 5'!M90 -> 169175.1 | N86: ='[1]Rapport 5'!N90 -> 4696.67 | O86: ='[1]Rapport 5'!O90 -> 3499.5 | P86: ='[1]Rapport 5'!P90 -> 144 | Q86: ='[1]Rapport 5'!Q90 -> 0 | R86: ='[1]Rapport 5'!R90 -> 0 | S86: ='[1]Rapport 5'!S90 -> 393 | T86: ='[1]Rapport 5'!T90 -> 44 | U86: ='[1]Rapport 5'!U90 -> 6163.17 | V86: ='[1]Rapport 5'!V90 -> 1793.28 | W86: ='[1]Rapport 5'!W90 -> 3749.34 | X86: ='[1]Rapport 5'!X90 -> 0 | Y86: 191,181 | Z86: 6,956 | AA86: 3.6% | AB86: 158 | AC86: =1+(AB86/COUNT($AB$3:AB$319)*10) -> 5.984227129 | AD86: 5 | AE86: 278 | AF86: 3.4% | AG86: 150 | AH86: 5.731861199 | AI86: 5 | AJ86: 0 | AK86: 0.0% | AL86: 1 | AM86: 1.031545741 | AN86: 1 | AO86: 4,697 | AP86: 2.8% | AQ86: 141 | AR86: 5.447949527 | AS86: 5 | AT86: 144 | AU86: 4.1% | AV86: 160 | AW86: 6.047318612 | AX86: 6 | AY86: 0 | AZ86: 0.0% | BA86: 1 | BB86: 1.031545741 | BC86: 1 | BD86: 44 | BE86: 11.2% | BF86: 279 | BG86: 9.80126183 | BH86: 9 | BI86: 1,793 | BJ86: 29.1% | BK86: 309 | BL86: 10.74763407 | BM86: 10 | BN86: 0 | BO86: 0.0% | BP86: 1 | BQ86: 1.031545741 | BR86: 1 | BT86: 152 | BU86: -10
A87: ='[1]Rapport 5'!A91 -> 163 | B87: ='[1]Rapport 5'!B91 -> PULVERSHEIM | C87: ='[1]Rapport 5'!C91 -> 4162 | D87: ='[1]Rapport 5'!D91 -> ENSISHEIM | E87: ='[1]Rapport 5'!E91 -> 5130 | F87: ='[1]Rapport 5'!F91 -> COLMAR | G87: ='[1]Rapport 5'!G91 -> 264 | H87: ='[1]Rapport 5'!H91 -> HAUT RHIN | I87: ='[1]Rapport 5'!I91 -> 2116.99 | J87: ='[1]Rapport 5'!J91 -> 74.95 | K87: ='[1]Rapport 5'!K91 -> 0 | L87: ='[1]Rapport 5'!L91 -> 0 | M87: ='[1]Rapport 5'!M91 -> 39073.12 | N87: ='[1]Rapport 5'!N91 -> 943.28 | O87: ='[1]Rapport 5'!O91 -> 542 | P87: ='[1]Rapport 5'!P91 -> 0 | Q87: ='[1]Rapport 5'!Q91 -> 0 | R87: ='[1]Rapport 5'!R91 -> 0 | S87: ='[1]Rapport 5'!S91 -> 46 | T87: ='[1]Rapport 5'!T91 -> 0 | U87: ='[1]Rapport 5'!U91 -> 1877.81 | V87: ='[1]Rapport 5'!V91 -> 0 | W87: ='[1]Rapport 5'!W91 -> 2379.59 | X87: ='[1]Rapport 5'!X91 -> 0 | Y87: 46,036 | Z87: 1,018 | AA87: 2.2% | AB87: 30 | AC87: =1+(AB87/COUNT($AB$3:AB$319)*10) -> 1.94637224 | AD87: 1 | AE87: 75 | AF87: 3.5% | AG87: 164 | AH87: 6.173501577 | AI87: 6 | AJ87: 0 | AK87: 0.0% | AL87: 1 | AM87: 1.031545741 | AN87: 1 | AO87: 943 | AP87: 2.4% | AQ87: 98 | AR87: 4.09148265 | AS87: 4 | AT87: 0 | AU87: 0.0% | AV87: 1 | AW87: 1.031545741 | AX87: 1 | AY87: 0 | AZ87: 0.0% | BA87: 1 | BB87: 1.031545741 | BC87: 1 | BD87: 0 | BE87: 0.0% | BF87: 1 | BG87: 1.031545741 | BH87: 1 | BI87: 0 | BJ87: 0.0% | BK87: 1 | BL87: 1.031545741 | BM87: 1 | BN87: 0 | BO87: 0.0% | BP87: 1 | BQ87: 1.031545741 | BR87: 1 | BT87: 153 | BU87: -10
A88: ='[1]Rapport 5'!A92 -> 164 | B88: ='[1]Rapport 5'!B92 -> SAINTE MARIE AUX MINES | C88: ='[1]Rapport 5'!C92 -> 4144 | D88: ='[1]Rapport 5'!D92 -> RIBEAUVILLE | E88: ='[1]Rapport 5'!E92 -> 5130 | F88: ='[1]Rapport 5'!F92 -> COLMAR | G88: ='[1]Rapport 5'!G92 -> 264 | H88: ='[1]Rapport 5'!H92 -> HAUT RHIN | I88: ='[1]Rapport 5'!I92 -> 5676.97 | J88: ='[1]Rapport 5'!J92 -> 113.08 | K88: ='[1]Rapport 5'!K92 -> 0 | L88: ='[1]Rapport 5'!L92 -> 114.2 | M88: ='[1]Rapport 5'!M92 -> 130931.73 | N88: ='[1]Rapport 5'!N92 -> 2488.25 | O88: ='[1]Rapport 5'!O92 -> 3615.5 | P88: ='[1]Rapport 5'!P92 -> 305 | Q88: ='[1]Rapport 5'!Q92 -> 0 | R88: ='[1]Rapport 5'!R92 -> 0 | S88: ='[1]Rapport 5'!S92 -> 137 | T88: ='[1]Rapport 5'!T92 -> 0 | U88: ='[1]Rapport 5'!U92 -> 9499.55 | V88: ='[1]Rapport 5'!V92 -> 1082.5 | W88: ='[1]Rapport 5'!W92 -> 4520.54 | X88: ='[1]Rapport 5'!X92 -> 62.68 | Y88: =+I88+K88+M88+O88+Q88+S88+U88+W88 -> 154,381 | Z88: =+J88+L88+N88+P88+R88+T88+V88+X88 -> 4,166 | AA88: =+Z88/Y88 -> 2.7% | AB88: =RANK(AA88,$AA$3:$AA$319,1) -> 58 | AC88: =1+(AB88/COUNT($AB$3:AB$319)*10) -> 2.829652997 | AD88: =+IF(INT(AC88)=11,10,INT(AC88)) -> 2 | AE88: =+J88 -> 113 | AF88: =+IF(ISERROR(AE88/I88),0,AE88/I88) -> 2.0% | AG88: =RANK(AF88,$AF$3:$AF$319,1) -> 59 | AH88: =1+(AG88/COUNT($AG$3:$AG$319)*10) -> 2.861198738 | AI88: =+IF(INT(AH88)=11,10,INT(AH88)) -> 2 | AJ88: =+L88 -> 114 | AK88: =+IF(ISERROR(IF(AJ88=0,0,AJ88/K88)),1,IF(AJ88=0,0,AJ88/K88)) -> 100.0% | AL88: =RANK(AK88,$AK$3:$AK$319,1) -> 285 | AM88: =1+(AL88/COUNT($AL$3:$AL$319)*10) -> 9.990536278 | AN88: =+IF(INT(AM88)=11,10,INT(AM88)) -> 9 | AO88: =+N88 -> 2,488 | AP88: =+IF(ISERROR(IF(AO88=0,0,AO88/M88)),1,IF(AO88=0,0,AO88/M88)) -> 1.9% | AQ88: =RANK(AP88,$AP$3:$AP$319,1) -> 49 | AR88: =1+(AQ88/COUNT($AQ$3:$AQ$319)*10) -> 2.545741325 | AS88: =+IF(INT(AR88)=11,10,INT(AR88)) -> 2 | AT88: =+P88 -> 305 | AU88: =+IF(ISERROR(IF(AT88=0,0,AT88/O88)),1,IF(AT88=0,0,AT88/O88)) -> 8.4% | AV88: =RANK(AU88,$AU$3:$AU$319,1) -> 239 | AW88: =1+(AV88/COUNT($AV$3:$AV$319)*10) -> 8.539432177 | AX88: =+IF(INT(AW88)=11,10,INT(AW88)) -> 8 | AY88: =+R88 -> 0 | AZ88: =+IF(ISERROR(IF(AY88=0,0,AY88/T88)),1,IF(AY88=0,0,AY88/T88)) -> 0.0% | BA88: =RANK(AZ88,$AZ$3:$AZ$319,1) -> 1 | BB88: =1+(BA88/COUNT($BA$3:$BA$319)*10) -> 1.031545741 | BC88: =+IF(INT(BB88)=11,10,INT(BB88)) -> 1 | BD88: =+T88 -> 0 | BE88: =+IF(ISERROR(IF(BD88=0,0,BD88/S88)),1,IF(BD88=0,0,BD88/S88)) -> 0.0% | BF88: =RANK(BE88,$BE$3:$BE$319,1) -> 1 | BG88: =1+(BF88/COUNT($BF$3:$BF$319)*10) -> 1.031545741 | BH88: =+IF(INT(BG88)=11,10,INT(BG88)) -> 1 | BI88: =+V88 -> 1,083 | BJ88: =+IF(ISERROR(IF(BI88=0,0,BI88/U88)),1,IF(BI88=0,0,BI88/U88)) -> 11.4% | BK88: =RANK(BJ88,$BJ$3:$BJ$319,1) -> 193 | BL88: =1+(BK88/COUNT($BK$3:$BK$319)*10) -> 7.088328076 | BM88: =+IF(INT(BL88)=11,10,INT(BL88)) -> 7 | BN88: =+X88 -> 63 | BO88: =+IF(ISERROR(IF(BN88=0,0,BN88/W88)),1,IF(BN88=0,0,BN88/W88)) -> 1.4% | BP88: =RANK(BO88,$BO$3:$BO$319,1) -> 65 | BQ88: =1+(BP88/COUNT($BP$3:$BP$319)*10) -> 3.050473186 | BR88: =+IF(INT(BQ88)=11,10,INT(BQ88)) -> 3 | BT88: 153 | BU88: =+BT88-A88 -> -11
A89: ='[1]Rapport 5'!A93 -> 170 | B89: ='[1]Rapport 5'!B93 -> MULHOUSE REUNION | C89: ='[1]Rapport 5'!C93 -> 4170 | D89: ='[1]Rapport 5'!D93 -> MULHOUSE REUNION | E89: ='[1]Rapport 5'!E93 -> 5169 | F89: ='[1]Rapport 5'!F93 -> MULHOUSE | G89: ='[1]Rapport 5'!G93 -> 264 | H89: ='[1]Rapport 5'!H93 -> HAUT RHIN | I89: ='[1]Rapport 5'!I93 -> 30247.55 | J89: ='[1]Rapport 5'!J93 -> 735.56 | K89: ='[1]Rapport 5'!K93 -> 0 | L89: ='[1]Rapport 5'!L93 -> 160 | M89: ='[1]Rapport 5'!M93 -> 604412.9 | N89: ='[1]Rapport 5'!N93 -> 14812.85 | O89: ='[1]Rapport 5'!O93 -> 18290.5 | P89: ='[1]Rapport 5'!P93 -> 856.84 | Q89: ='[1]Rapport 5'!Q93 -> 119.62 | R89: ='[1]Rapport 5'!R93 -> 0 | S89: ='[1]Rapport 5'!S93 -> 3457.11 | T89: ='[1]Rapport 5'!T93 -> 306.14 | U89: ='[1]Rapport 5'!U93 -> 56597.54 | V89: ='[1]Rapport 5'!V93 -> 2415.55 | W89: ='[1]Rapport 5'!W93 -> 18076.53 | X89: ='[1]Rapport 5'!X93 -> 627.43 | Y89: 731,202 | Z89: 19,914 | AA89: 2.7% | AB89: 61 | AC89: =1+(AB89/COUNT($AB$3:AB$319)*10) -> 2.924290221 | AD89: 2 | AE89: 736 | AF89: 2.4% | AG89: 86 | AH89: 3.712933754 | AI89: 3 | AJ89: 160 | AK89: 100.0% | AL89: 285 | AM89: 9.990536278 | AN89: 9 | AO89: 14,813 | AP89: 2.5% | AQ89: 101 | AR89: 4.186119874 | AS89: 4 | AT89: 857 | AU89: 4.7% | AV89: 172 | AW89: 6.425867508 | AX89: 6 | AY89: 0 | AZ89: 0.0% | BA89: 1 | BB89: 1.031545741 | BC89: 1 | BD89: 306 | BE89: 8.9% | BF89: 271 | BG89: 9.548895899 | BH89: 9 | BI89: 2,416 | BJ89: 4.3% | BK89: 42 | BL89: 2.324921136 | BM89: 2 | BN89: 627 | BO89: 3.5% | BP89: 157 | BQ89: 5.952681388 | BR89: 5 | BT89: 156 | BU89: -14
A90: ='[1]Rapport 5'!A95 -> 174 | B90: ='[1]Rapport 5'!B95 -> MULHOUSE DORNACH | C90: ='[1]Rapport 5'!C95 -> 4174 | D90: ='[1]Rapport 5'!D95 -> MULHOUSE DORNACH | E90: ='[1]Rapport 5'!E95 -> 5169 | F90: ='[1]Rapport 5'!F95 -> MULHOUSE | G90: ='[1]Rapport 5'!G95 -> 264 | H90: ='[1]Rapport 5'!H95 -> HAUT RHIN | I90: ='[1]Rapport 5'!I95 -> 9475.01 | J90: ='[1]Rapport 5'!J95 -> 239.98 | K90: ='[1]Rapport 5'!K95 -> 0 | L90: ='[1]Rapport 5'!L95 -> 0 | M90: ='[1]Rapport 5'!M95 -> 209809.19 | N90: ='[1]Rapport 5'!N95 -> 6532.53 | O90: ='[1]Rapport 5'!O95 -> 4859 | P90: ='[1]Rapport 5'!P95 -> 238.5 | Q90: ='[1]Rapport 5'!Q95 -> 0 | R90: ='[1]Rapport 5'!R95 -> 0 | S90: ='[1]Rapport 5'!S95 -> 711.78 | T90: ='[1]Rapport 5'!T95 -> 26 | U90: ='[1]Rapport 5'!U95 -> 14476.48 | V90: ='[1]Rapport 5'!V95 -> 1572.03 | W90: ='[1]Rapport 5'!W95 -> 4503.05 | X90: ='[1]Rapport 5'!X95 -> 198.66 | Y90: =+I90+K90+M90+O90+Q90+S90+U90+W90 -> 243,835 | Z90: =+J90+L90+N90+P90+R90+T90+V90+X90 -> 8,808 | AA90: =+Z90/Y90 -> 3.6% | AB90: =RANK(AA90,$AA$3:$AA$319,1) -> 155 | AC90: =1+(AB90/COUNT($AB$3:AB$319)*10) -> 5.889589905 | AD90: =+IF(INT(AC90)=11,10,INT(AC90)) -> 5 | AE90: =+J90 -> 240 | AF90: =+IF(ISERROR(AE90/I90),0,AE90/I90) -> 2.5% | AG90: =RANK(AF90,$AF$3:$AF$319,1) -> 94 | AH90: =1+(AG90/COUNT($AG$3:$AG$319)*10) -> 3.965299685 | AI90: =+IF(INT(AH90)=11,10,INT(AH90)) -> 3 | AJ90: =+L90 -> 0 | AK90: =+IF(ISERROR(IF(AJ90=0,0,AJ90/K90)),1,IF(AJ90=0,0,AJ90/K90)) -> 0.0% | AL90: =RANK(AK90,$AK$3:$AK$319,1) -> 1 | AM90: =1+(AL90/COUNT($AL$3:$AL$319)*10) -> 1.031545741 | AN90: =+IF(INT(AM90)=11,10,INT(AM90)) -> 1 | AO90: =+N90 -> 6,533 | AP90: =+IF(ISERROR(IF(AO90=0,0,AO90/M90)),1,IF(AO90=0,0,AO90/M90)) -> 3.1% | AQ90: =RANK(AP90,$AP$3:$AP$319,1) -> 181 | AR90: =1+(AQ90/COUNT($AQ$3:$AQ$319)*10) -> 6.70977918 | AS90: =+IF(INT(AR90)=11,10,INT(AR90)) -> 6 | AT90: =+P90 -> 239 | AU90: =+IF(ISERROR(IF(AT90=0,0,AT90/O90)),1,IF(AT90=0,0,AT90/O90)) -> 4.9% | AV90: =RANK(AU90,$AU$3:$AU$319,1) -> 178 | AW90: =1+(AV90/COUNT($AV$3:$AV$319)*10) -> 6.615141956 | AX90: =+IF(INT(AW90)=11,10,INT(AW90)) -> 6 | AY90: =+R90 -> 0 | AZ90: =+IF(ISERROR(IF(AY90=0,0,AY90/T90)),1,IF(AY90=0,0,AY90/T90)) -> 0.0% | BA90: =RANK(AZ90,$AZ$3:$AZ$319,1) -> 1 | BB90: =1+(BA90/COUNT($BA$3:$BA$319)*10) -> 1.031545741 | BC90: =+IF(INT(BB90)=11,10,INT(BB90)) -> 1 | BD90: =+T90 -> 26 | BE90: =+IF(ISERROR(IF(BD90=0,0,BD90/S90)),1,IF(BD90=0,0,BD90/S90)) -> 3.7% | BF90: =RANK(BE90,$BE$3:$BE$319,1) -> 235 | BG90: =1+(BF90/COUNT($BF$3:$BF$319)*10) -> 8.413249211 | BH90: =+IF(INT(BG90)=11,10,INT(BG90)) -> 8 | BI90: =+V90 -> 1,572 | BJ90: =+IF(ISERROR(IF(BI90=0,0,BI90/U90)),1,IF(BI90=0,0,BI90/U90)) -> 10.9% | BK90: =RANK(BJ90,$BJ$3:$BJ$319,1) -> 181 | BL90: =1+(BK90/COUNT($BK$3:$BK$319)*10) -> 6.70977918 | BM90: =+IF(INT(BL90)=11,10,INT(BL90)) -> 6 | BN90: =+X90 -> 199 | BO90: =+IF(ISERROR(IF(BN90=0,0,BN90/W90)),1,IF(BN90=0,0,BN90/W90)) -> 4.4% | BP90: =RANK(BO90,$BO$3:$BO$319,1) -> 193 | BQ90: =1+(BP90/COUNT($BP$3:$BP$319)*10) -> 7.088328076 | BR90: =+IF(INT(BQ90)=11,10,INT(BQ90)) -> 7 | BT90: 160 | BU90: =+BT90-A90 -> -14
A91: ='[1]Rapport 5'!A96 -> 178 | B91: ='[1]Rapport 5'!B96 -> SAINT LOUIS | C91: ='[1]Rapport 5'!C96 -> 4178 | D91: ='[1]Rapport 5'!D96 -> SAINT LOUIS | E91: ='[1]Rapport 5'!E96 -> 5169 | F91: ='[1]Rapport 5'!F96 -> MULHOUSE | G91: ='[1]Rapport 5'!G96 -> 264 | H91: ='[1]Rapport 5'!H96 -> HAUT RHIN | I91: ='[1]Rapport 5'!I96 -> 14556.46 | J91: ='[1]Rapport 5'!J96 -> 1085.61 | K91: ='[1]Rapport 5'!K96 -> 0 | L91: ='[1]Rapport 5'!L96 -> 0 | M91: ='[1]Rapport 5'!M96 -> 335122.17 | N91: ='[1]Rapport 5'!N96 -> 6871.68 | O91: ='[1]Rapport 5'!O96 -> 6313 | P91: ='[1]Rapport 5'!P96 -> 171.7 | Q91: ='[1]Rapport 5'!Q96 -> 0 | R91: ='[1]Rapport 5'!R96 -> 0 | S91: ='[1]Rapport 5'!S96 -> 1709.72 | T91: ='[1]Rapport 5'!T96 -> 113.4 | U91: ='[1]Rapport 5'!U96 -> 24096.53 | V91: ='[1]Rapport 5'!V96 -> 1368.01 | W91: ='[1]Rapport 5'!W96 -> 9678.72 | X91: ='[1]Rapport 5'!X96 -> 28 | Y91: 391,477 | Z91: 9,638 | AA91: 2.5% | AB91: 42 | AC91: =1+(AB91/COUNT($AB$3:AB$319)*10) -> 2.324921136 | AD91: 2 | AE91: 1,086 | AF91: 7.5% | AG91: 263 | AH91: 9.296529968 | AI91: 9 | AJ91: 0 | AK91: 0.0% | AL91: 1 | AM91: 1.031545741 | AN91: 1 | AO91: 6,872 | AP91: 2.1% | AQ91: 58 | AR91: 2.829652997 | AS91: 2 | AT91: 172 | AU91: 2.7% | AV91: 120 | AW91: 4.785488959 | AX91: 4 | AY91: 0 | AZ91: 0.0% | BA91: 1 | BB91: 1.031545741 | BC91: 1 | BD91: 113 | BE91: 6.6% | BF91: 258 | BG91: 9.138801262 | BH91: 9 | BI91: 1,368 | BJ91: 5.7% | BK91: 68 | BL91: 3.14511041 | BM91: 3 | BN91: 28 | BO91: 0.3% | BP91: 20 | BQ91: 1.630914826 | BR91: 1 | BT91: 160 | BU91: -18
A92: ='[1]Rapport 5'!A97 -> 179 | B92: ='[1]Rapport 5'!B97 -> SIERENTZ | C92: ='[1]Rapport 5'!C97 -> 4178 | D92: ='[1]Rapport 5'!D97 -> SAINT LOUIS | E92: ='[1]Rapport 5'!E97 -> 5169 | F92: ='[1]Rapport 5'!F97 -> MULHOUSE | G92: ='[1]Rapport 5'!G97 -> 264 | H92: ='[1]Rapport 5'!H97 -> HAUT RHIN | I92: ='[1]Rapport 5'!I97 -> 4062.57 | J92: ='[1]Rapport 5'!J97 -> 419.12 | K92: ='[1]Rapport 5'!K97 -> 0 | L92: ='[1]Rapport 5'!L97 -> 55 | M92: ='[1]Rapport 5'!M97 -> 95836.26 | N92: ='[1]Rapport 5'!N97 -> 2747.07 | O92: ='[1]Rapport 5'!O97 -> 2103.5 | P92: ='[1]Rapport 5'!P97 -> 28.5 | Q92: ='[1]Rapport 5'!Q97 -> 0 | R92: ='[1]Rapport 5'!R97 -> 0 | S92: ='[1]Rapport 5'!S97 -> 871.24 | T92: ='[1]Rapport 5'!T97 -> 0 | U92: ='[1]Rapport 5'!U97 -> 6169.34 | V92: ='[1]Rapport 5'!V97 -> 549 | W92: ='[1]Rapport 5'!W97 -> 3573.75 | X92: ='[1]Rapport 5'!X97 -> 74.3 | Y92: 112,617 | Z92: 3,873 | AA92: 3.4% | AB92: 137 | AC92: =1+(AB92/COUNT($AB$3:AB$319)*10) -> 5.321766562 | AD92: 5 | AE92: 419 | AF92: 10.3% | AG92: 290 | AH92: 10.14826498 | AI92: 10 | AJ92: 55 | AK92: 100.0% | AL92: 285 | AM92: 9.990536278 | AN92: 9 | AO92: 2,747 | AP92: 2.9% | AQ92: 155 | AR92: 5.889589905 | AS92: 5 | AT92: 29 | AU92: 1.4% | AV92: 85 | AW92: 3.681388013 | AX92: 3 | AY92: 0 | AZ92: 0.0% | BA92: 1 | BB92: 1.031545741 | BC92: 1 | BD92: 0 | BE92: 0.0% | BF92: 1 | BG92: 1.031545741 | BH92: 1 | BI92: 549 | BJ92: 8.9% | BK92: 146 | BL92: 5.605678233 | BM92: 5 | BN92: 74 | BO92: 2.1% | BP92: 102 | BQ92: 4.217665615 | BR92: 4 | BT92: 162 | BU92: -17
A93: ='[1]Rapport 5'!A98 -> 180 | B93: ='[1]Rapport 5'!B98 -> RIEDISHEIM | C93: ='[1]Rapport 5'!C98 -> 4180 | D93: ='[1]Rapport 5'!D98 -> RIEDISHEIM | E93: ='[1]Rapport 5'!E98 -> 5169 | F93: ='[1]Rapport 5'!F98 -> MULHOUSE | G93: ='[1]Rapport 5'!G98 -> 264 | H93: ='[1]Rapport 5'!H98 -> HAUT RHIN | I93: ='[1]Rapport 5'!I98 -> 5175.2 | J93: ='[1]Rapport 5'!J98 -> 282.46 | K93: ='[1]Rapport 5'!K98 -> 0 | L93: ='[1]Rapport 5'!L98 -> 128.97 | M93: ='[1]Rapport 5'!M98 -> 157847.54 | N93: ='[1]Rapport 5'!N98 -> 5290.58 | O93: ='[1]Rapport 5'!O98 -> 3883.5 | P93: ='[1]Rapport 5'!P98 -> 348 | Q93: ='[1]Rapport 5'!Q98 -> 0 | R93: ='[1]Rapport 5'!R98 -> 0 | S93: ='[1]Rapport 5'!S98 -> 1547.41 | T93: ='[1]Rapport 5'!T98 -> 13 | U93: ='[1]Rapport 5'!U98 -> 10199.2 | V93: ='[1]Rapport 5'!V98 -> 877.55 | W93: ='[1]Rapport 5'!W98 -> 8341.36 | X93: ='[1]Rapport 5'!X98 -> 590.2 | Y93: 186,994 | Z93: 7,531 | AA93: 4.0% | AB93: 204 | AC93: =1+(AB93/COUNT($AB$3:AB$319)*10) -> 7.43533123 | AD93: 7 | AE93: 282 | AF93: 5.5% | AG93: 228 | AH93: 8.192429022 | AI93: 8 | AJ93: 129 | AK93: 100.0% | AL93: 285 | AM93: 9.990536278 | AN93: 9 | AO93: 5,291 | AP93: 3.4% | AQ93: 209 | AR93: 7.593059937 | AS93: 7 | AT93: 348 | AU93: 9.0% | AV93: 245 | AW93: 8.728706625 | AX93: 8 | AY93: 0 | AZ93: 0.0% | BA93: 1 | BB93: 1.031545741 | BC93: 1 | BD93: 13 | BE93: 0.8% | BF93: 212 | BG93: 7.687697161 | BH93: 7 | BI93: 878 | BJ93: 8.6% | BK93: 137 | BL93: 5.321766562 | BM93: 5 | BN93: 590 | BO93: 7.1% | BP93: 249 | BQ93: 8.85488959 | BR93: 8 | BT93: 163 | BU93: -17
A94: ='[1]Rapport 5'!A99 -> 181 | B94: ='[1]Rapport 5'!B99 -> WITTELSHEIM | C94: ='[1]Rapport 5'!C99 -> 4181 | D94: ='[1]Rapport 5'!D99 -> WITTELSHEIM | E94: ='[1]Rapport 5'!E99 -> 5169 | F94: ='[1]Rapport 5'!F99 -> MULHOUSE | G94: ='[1]Rapport 5'!G99 -> 264 | H94: ='[1]Rapport 5'!H99 -> HAUT RHIN | I94: ='[1]Rapport 5'!I99 -> 10162.37 | J94: ='[1]Rapport 5'!J99 -> 353.73 | K94: ='[1]Rapport 5'!K99 -> 0 | L94: ='[1]Rapport 5'!L99 -> 0 | M94: ='[1]Rapport 5'!M99 -> 219515.07 | N94: ='[1]Rapport 5'!N99 -> 7448.2 | O94: ='[1]Rapport 5'!O99 -> 6698.5 | P94: ='[1]Rapport 5'!P99 -> 471 | Q94: ='[1]Rapport 5'!Q99 -> 0 | R94: ='[1]Rapport 5'!R99 -> 0 | S94: ='[1]Rapport 5'!S99 -> 158 | T94: ='[1]Rapport 5'!T99 -> 0 | U94: ='[1]Rapport 5'!U99 -> 10403.58 | V94: ='[1]Rapport 5'!V99 -> 1063.68 | W94: ='[1]Rapport 5'!W99 -> 3967.14 | X94: ='[1]Rapport 5'!X99 -> 271.49 | Y94: 250,905 | Z94: 9,608 | AA94: 3.8% | AB94: 184 | AC94: =1+(AB94/COUNT($AB$3:AB$319)*10) -> 6.804416404 | AD94: 6 | AE94: 354 | AF94: 3.5% | AG94: 160 | AH94: 6.047318612 | AI94: 6 | AJ94: 0 | AK94: 0.0% | AL94: 1 | AM94: 1.031545741 | AN94: 1 | AO94: 7,448 | AP94: 3.4% | AQ94: 217 | AR94: 7.845425868 | AS94: 7 | AT94: 471 | AU94: 7.0% | AV94: 218 | AW94: 7.876971609 | AX94: 7 | AY94: 0 | AZ94: 0.0% | BA94: 1 | BB94: 1.031545741 | BC94: 1 | BD94: 0 | BE94: 0.0% | BF94: 1 | BG94: 1.031545741 | BH94: 1 | BI94: 1,064 | BJ94: 10.2% | BK94: 173 | BL94: 6.457413249 | BM94: 6 | BN94: 271 | BO94: 6.8% | BP94: 247 | BQ94: 8.791798107 | BR94: 8 | BT94: 164 | BU94: -17
A95: ='[1]Rapport 5'!A100 -> 183 | B95: ='[1]Rapport 5'!B100 -> WITTENHEIM | C95: ='[1]Rapport 5'!C100 -> 4183 | D95: ='[1]Rapport 5'!D100 -> WITTENHEIM | E95: ='[1]Rapport 5'!E100 -> 5169 | F95: ='[1]Rapport 5'!F100 -> MULHOUSE | G95: ='[1]Rapport 5'!G100 -> 264 | H95: ='[1]Rapport 5'!H100 -> HAUT RHIN | I95: ='[1]Rapport 5'!I100 -> 4540.34 | J95: ='[1]Rapport 5'!J100 -> 62.51 | K95: ='[1]Rapport 5'!K100 -> 0 | L95: ='[1]Rapport 5'!L100 -> 0 | M95: ='[1]Rapport 5'!M100 -> 139436.27 | N95: ='[1]Rapport 5'!N100 -> 1584.56 | O95: ='[1]Rapport 5'!O100 -> 5697 | P95: ='[1]Rapport 5'!P100 -> 0 | Q95: ='[1]Rapport 5'!Q100 -> 0 | R95: ='[1]Rapport 5'!R100 -> 0 | S95: ='[1]Rapport 5'!S100 -> 337 | T95: ='[1]Rapport 5'!T100 -> 0 | U95: ='[1]Rapport 5'!U100 -> 5377.44 | V95: ='[1]Rapport 5'!V100 -> 785.85 | W95: ='[1]Rapport 5'!W100 -> 4639.4 | X95: ='[1]Rapport 5'!X100 -> 13.06 | Y95: 160,027 | Z95: 2,446 | AA95: 1.5% | AB95: 7 | AC95: =1+(AB95/COUNT($AB$3:AB$319)*10) -> 1.220820189 | AD95: 1 | AE95: =+J95 -> 63 | AF95: 1.4% | AG95: 28 | AH95: 1.883280757 | AI95: 1 | AJ95: 0 | AK95: 0.0% | AL95: 1 | AM95: 1.031545741 | AN95: 1 | AO95: 1,585 | AP95: 1.1% | AQ95: 5 | AR95: 1.157728707 | AS95: 1 | AT95: 0 | AU95: 0.0% | AV95: 1 | AW95: 1.031545741 | AX95: 1 | AY95: 0 | AZ95: 0.0% | BA95: 1 | BB95: 1.031545741 | BC95: 1 | BD95: 0 | BE95: 0.0% | BF95: 1 | BG95: 1.031545741 | BH95: 1 | BI95: 786 | BJ95: 14.6% | BK95: 228 | BL95: 8.192429022 | BM95: 8 | BN95: 13 | BO95: 0.3% | BP95: 19 | BQ95: 1.599369085 | BR95: 1 | BT95: 167 | BU95: -16
A96: ='[1]Rapport 5'!A101 -> 184 | B96: ='[1]Rapport 5'!B101 -> ILLZACH | C96: ='[1]Rapport 5'!C101 -> 4183 | D96: ='[1]Rapport 5'!D101 -> WITTENHEIM | E96: ='[1]Rapport 5'!E101 -> 5169 | F96: ='[1]Rapport 5'!F101 -> MULHOUSE | G96: ='[1]Rapport 5'!G101 -> 264 | H96: ='[1]Rapport 5'!H101 -> HAUT RHIN | I96: ='[1]Rapport 5'!I101 -> 7730.58 | J96: ='[1]Rapport 5'!J101 -> 263.29 | K96: ='[1]Rapport 5'!K101 -> 0 | L96: ='[1]Rapport 5'!L101 -> 0 | M96: ='[1]Rapport 5'!M101 -> 184717.42 | N96: ='[1]Rapport 5'!N101 -> 2351.95 | O96: ='[1]Rapport 5'!O101 -> 3915 | P96: ='[1]Rapport 5'!P101 -> 198.5 | Q96: ='[1]Rapport 5'!Q101 -> 0 | R96: ='[1]Rapport 5'!R101 -> 0 | S96: ='[1]Rapport 5'!S101 -> 782.74 | T96: ='[1]Rapport 5'!T101 -> 0 | U96: ='[1]Rapport 5'!U101 -> 8657.07 | V96: ='[1]Rapport 5'!V101 -> 691.85 | W96: ='[1]Rapport 5'!W101 -> 4645.06 | X96: ='[1]Rapport 5'!X101 -> 86.21 | Y96: 210,448 | Z96: 3,592 | AA96: 1.7% | AB96: 10 | AC96: =1+(AB96/COUNT($AB$3:AB$319)*10) -> 1.315457413 | AD96: 1 | AE96: 263 | AF96: 3.4% | AG96: 155 | AH96: 5.889589905 | AI96: 5 | AJ96: 0 | AK96: 0.0% | AL96: 1 | AM96: 1.031545741 | AN96: 1 | AO96: 2,352 | AP96: 1.3% | AQ96: 9 | AR96: 1.283911672 | AS96: 1 | AT96: 199 | AU96: 5.1% | AV96: 186 | AW96: 6.867507886 | AX96: 6 | AY96: 0 | AZ96: 0.0% | BA96: 1 | BB96: 1.031545741 | BC96: 1 | BD96: 0 | BE96: 0.0% | BF96: 1 | BG96: 1.031545741 | BH96: 1 | BI96: 692 | BJ96: 8.0% | BK96: 125 | BL96: 4.943217666 | BM96: 4 | BN96: 86 | BO96: 1.9% | BP96: 90 | BQ96: 3.839116719 | BR96: 3 | BT96: 169 | BU96: -15
A97: ='[1]Rapport 5'!A102 -> 185 | B97: ='[1]Rapport 5'!B102 -> RIXHEIM | C97: ='[1]Rapport 5'!C102 -> 4185 | D97: ='[1]Rapport 5'!D102 -> RIXHEIM | E97: ='[1]Rapport 5'!E102 -> 5169 | F97: ='[1]Rapport 5'!F102 -> MULHOUSE | G97: ='[1]Rapport 5'!G102 -> 264 | H97: ='[1]Rapport 5'!H102 -> HAUT RHIN | I97: ='[1]Rapport 5'!I102 -> 9157.7 | J97: ='[1]Rapport 5'!J102 -> 5605.34 | K97: ='[1]Rapport 5'!K102 -> 0 | L97: ='[1]Rapport 5'!L102 -> 0 | M97: ='[1]Rapport 5'!M102 -> 170206.03 | N97: ='[1]Rapport 5'!N102 -> 3043.87 | O97: ='[1]Rapport 5'!O102 -> 7397 | P97: ='[1]Rapport 5'!P102 -> 117.5 | Q97: ='[1]Rapport 5'!Q102 -> 0 | R97: ='[1]Rapport 5'!R102 -> 0 | S97: ='[1]Rapport 5'!S102 -> 460.48 | T97: ='[1]Rapport 5'!T102 -> 0 | U97: ='[1]Rapport 5'!U102 -> 9539.69 | V97: ='[1]Rapport 5'!V102 -> 50 | W97: ='[1]Rapport 5'!W102 -> 5699.04 | X97: ='[1]Rapport 5'!X102 -> 37.3 | Y97: 202,460 | Z97: 8,854 | AA97: 4.4% | AB97: 243 | AC97: =1+(AB97/COUNT($AB$3:AB$319)*10) -> 8.665615142 | AD97: 8 | AE97: 5,605 | AF97: 61.2% | AG97: 317 | AH97: 11 | AI97: 10 | AJ97: 0 | AK97: 0.0% | AL97: 1 | AM97: 1.031545741 | AN97: 1 | AO97: 3,044 | AP97: 1.8% | AQ97: 42 | AR97: 2.324921136 | AS97: 2 | AT97: 118 | AU97: 1.6% | AV97: 95 | AW97: 3.996845426 | AX97: 3 | AY97: 0 | AZ97: 0.0% | BA97: 1 | BB97: 1.031545741 | BC97: 1 | BD97: 0 | BE97: 0.0% | BF97: 1 | BG97: 1.031545741 | BH97: 1 | BI97: 50 | BJ97: 0.5% | BK97: 8 | BL97: 1.252365931 | BM97: 1 | BN97: 37 | BO97: 0.7% | BP97: 33 | BQ97: 2.041009464 | BR97: 2 | BT97: 170 | BU97: -15
A98: ='[1]Rapport 5'!A103 -> 186 | B98: ='[1]Rapport 5'!B103 -> BRUNSTATT | C98: ='[1]Rapport 5'!C103 -> 4174 | D98: ='[1]Rapport 5'!D103 -> MULHOUSE DORNACH | E98: ='[1]Rapport 5'!E103 -> 5169 | F98: ='[1]Rapport 5'!F103 -> MULHOUSE | G98: ='[1]Rapport 5'!G103 -> 264 | H98: ='[1]Rapport 5'!H103 -> HAUT RHIN | I98: ='[1]Rapport 5'!I103 -> 4628.12 | J98: ='[1]Rapport 5'!J103 -> 162.23 | K98: ='[1]Rapport 5'!K103 -> 0 | L98: ='[1]Rapport 5'!L103 -> 15 | M98: ='[1]Rapport 5'!M103 -> 121304.23 | N98: ='[1]Rapport 5'!N103 -> 4064.01 | O98: ='[1]Rapport 5'!O103 -> 4751.5 | P98: ='[1]Rapport 5'!P103 -> 160 | Q98: ='[1]Rapport 5'!Q103 -> 0 | R98: ='[1]Rapport 5'!R103 -> 0 | S98: ='[1]Rapport 5'!S103 -> 928.76 | T98: ='[1]Rapport 5'!T103 -> 0 | U98: ='[1]Rapport 5'!U103 -> 7828.93 | V98: ='[1]Rapport 5'!V103 -> 703.42 | W98: ='[1]Rapport 5'!W103 -> 5055.74 | X98: ='[1]Rapport 5'!X103 -> 372.24 | Y98: 144,497 | Z98: 5,477 | AA98: 3.8% | AB98: 182 | AC98: =1+(AB98/COUNT($AB$3:AB$319)*10) -> 6.741324921 | AD98: 6 | AE98: 162 | AF98: 3.5% | AG98: 162 | AH98: 6.110410095 | AI98: 6 | AJ98: 15 | AK98: 100.0% | AL98: 285 | AM98: 9.990536278 | AN98: 9 | AO98: 4,064 | AP98: 3.4% | AQ98: 207 | AR98: 7.529968454 | AS98: 7 | AT98: 160 | AU98: 3.4% | AV98: 145 | AW98: 5.574132492 | AX98: 5 | AY98: 0 | AZ98: 0.0% | BA98: 1 | BB98: 1.031545741 | BC98: 1 | BD98: 0 | BE98: 0.0% | BF98: 1 | BG98: 1.031545741 | BH98: 1 | BI98: 703 | BJ98: 9.0% | BK98: 149 | BL98: 5.700315457 | BM98: 5 | BN98: 372 | BO98: 7.4% | BP98: 257 | BQ98: 9.107255521 | BR98: 9 | BT98: 174 | BU98: -12
A99: ='[1]Rapport 5'!A104 -> 188 | B99: ='[1]Rapport 5'!B104 -> PFASTATT | C99: ='[1]Rapport 5'!C104 -> 4188 | D99: ='[1]Rapport 5'!D104 -> PFASTATT | E99: ='[1]Rapport 5'!E104 -> 5169 | F99: ='[1]Rapport 5'!F104 -> MULHOUSE | G99: ='[1]Rapport 5'!G104 -> 264 | H99: ='[1]Rapport 5'!H104 -> HAUT RHIN | I99: ='[1]Rapport 5'!I104 -> 11079.36 | J99: ='[1]Rapport 5'!J104 -> 569.77 | K99: ='[1]Rapport 5'!K104 -> 0 | L99: ='[1]Rapport 5'!L104 -> 0 | M99: ='[1]Rapport 5'!M104 -> 211472.93 | N99: ='[1]Rapport 5'!N104 -> 10536.3 | O99: ='[1]Rapport 5'!O104 -> 3911.5 | P99: ='[1]Rapport 5'!P104 -> 1645.92 | Q99: ='[1]Rapport 5'!Q104 -> 0 | R99: ='[1]Rapport 5'!R104 -> 0 | S99: ='[1]Rapport 5'!S104 -> 1084.1 | T99: ='[1]Rapport 5'!T104 -> 32.76 | U99: ='[1]Rapport 5'!U104 -> 16358.98 | V99: ='[1]Rapport 5'!V104 -> 1553.12 | W99: ='[1]Rapport 5'!W104 -> 5935.29 | X99: ='[1]Rapport 5'!X104 -> 177.3 | Y99: 249,842 | Z99: 14,515 | AA99: 5.8% | AB99: 298 | AC99: =1+(AB99/COUNT($AB$3:AB$319)*10) -> 10.40063091 | AD99: 10 | AE99: 570 | AF99: 5.1% | AG99: 220 | AH99: 7.940063091 | AI99: 7 | AJ99: 0 | AK99: 0.0% | AL99: 1 | AM99: 1.031545741 | AN99: 1 | AO99: 10,536 | AP99: 5.0% | AQ99: 300 | AR99: 10.4637224 | AS99: 10 | AT99: 1,646 | AU99: 42.1% | AV99: 313 | AW99: 10.87381703 | AX99: 10 | AY99: 0 | AZ99: 0.0% | BA99: 1 | BB99: 1.031545741 | BC99: 1 | BD99: 33 | BE99: 3.0% | BF99: 230 | BG99: 8.255520505 | BH99: 8 | BI99: 1,553 | BJ99: 9.5% | BK99: 160 | BL99: 6.047318612 | BM99: 6 | BN99: 177 | BO99: 3.0% | BP99: 139 | BQ99: 5.384858044 | BR99: 5 | BT99: 178 | BU99: -10
A100: ='[1]Rapport 5'!A105 -> 189 | B100: ='[1]Rapport 5'!B105 -> ALTKIRCH | C100: ='[1]Rapport 5'!C105 -> 4189 | D100: ='[1]Rapport 5'!D105 -> ALTKIRCH | E100: ='[1]Rapport 5'!E105 -> 5169 | F100: ='[1]Rapport 5'!F105 -> MULHOUSE | G100: ='[1]Rapport 5'!G105 -> 264 | H100: ='[1]Rapport 5'!H105 -> HAUT RHIN | I100: ='[1]Rapport 5'!I105 -> 7245.27 | J100: ='[1]Rapport 5'!J105 -> 567.06 | K100: ='[1]Rapport 5'!K105 -> 0 | L100: ='[1]Rapport 5'!L105 -> 0 | M100: ='[1]Rapport 5'!M105 -> 159399.13 | N100: ='[1]Rapport 5'!N105 -> 7753.02 | O100: ='[1]Rapport 5'!O105 -> 3607 | P100: ='[1]Rapport 5'!P105 -> 303.54 | Q100: ='[1]Rapport 5'!Q105 -> 0 | R100: ='[1]Rapport 5'!R105 -> 0 | S100: ='[1]Rapport 5'!S105 -> 370.56 | T100: ='[1]Rapport 5'!T105 -> 150 | U100: ='[1]Rapport 5'!U105 -> 12389.31 | V100: ='[1]Rapport 5'!V105 -> 2303.63 | W100: ='[1]Rapport 5'!W105 -> 9453.67 | X100: ='[1]Rapport 5'!X105 -> 2360.33 | Y100: 192,465 | Z100: 13,438 | AA100: 7.0% | AB100: 314 | AC100: =1+(AB100/COUNT($AB$3:AB$319)*10) -> 10.90536278 | AD100: 10 | AE100: 567 | AF100: 7.8% | AG100: 269 | AH100: 9.485804416 | AI100: 9 | AJ100: 0 | AK100: 0.0% | AL100: 1 | AM100: 1.031545741 | AN100: 1 | AO100: 7,753 | AP100: 4.9% | AQ100: 297 | AR100: 10.36908517 | AS100: 10 | AT100: 304 | AU100: 8.4% | AV100: 236 | AW100: 8.444794953 | AX100: 8 | AY100: 0 | AZ100: 0.0% | BA100: 1 | BB100: 1.031545741 | BC100: 1 | BD100: 150 | BE100: 40.5% | BF100: 308 | BG100: 10.71608833 | BH100: 10 | BI100: 2,304 | BJ100: 18.6% | BK100: 263 | BL100: 9.296529968 | BM100: 9 | BN100: 2,360 | BO100: 25.0% | BP100: 315 | BQ100: 10.93690852 | BR100: 10 | BT100: 179 | BU100: -10
A101: ='[1]Rapport 5'!A106 -> 191 | B101: ='[1]Rapport 5'!B106 -> FERRETTE | C101: ='[1]Rapport 5'!C106 -> 4189 | D101: ='[1]Rapport 5'!D106 -> ALTKIRCH | E101: ='[1]Rapport 5'!E106 -> 5169 | F101: ='[1]Rapport 5'!F106 -> MULHOUSE | G101: ='[1]Rapport 5'!G106 -> 264 | H101: ='[1]Rapport 5'!H106 -> HAUT RHIN | I101: ='[1]Rapport 5'!I106 -> 3860.98 | J101: ='[1]Rapport 5'!J106 -> 95.05 | K101: ='[1]Rapport 5'!K106 -> 0 | L101: ='[1]Rapport 5'!L106 -> 0 | M101: ='[1]Rapport 5'!M106 -> 48300.81 | N101: ='[1]Rapport 5'!N106 -> 1639.35 | O101: ='[1]Rapport 5'!O106 -> 3641 | P101: ='[1]Rapport 5'!P106 -> 0 | Q101: ='[1]Rapport 5'!Q106 -> 0 | R101: ='[1]Rapport 5'!R106 -> 0 | S101: ='[1]Rapport 5'!S106 -> 226.77 | T101: ='[1]Rapport 5'!T106 -> 0 | U101: ='[1]Rapport 5'!U106 -> 3021.36 | V101: ='[1]Rapport 5'!V106 -> 125.55 | W101: ='[1]Rapport 5'!W106 -> 1468.31 | X101: ='[1]Rapport 5'!X106 -> 359.54 | Y101: 60,519 | Z101: 2,219 | AA101: 3.7% | AB101: 163 | AC101: =1+(AB101/COUNT($AB$3:AB$319)*10) -> 6.141955836 | AD101: 6 | AE101: 95 | AF101: 2.5% | AG101: 90 | AH101: 3.839116719 | AI101: 3 | AJ101: 0 | AK101: 0.0% | AL101: 1 | AM101: 1.031545741 | AN101: 1 | AO101: 1,639 | AP101: 3.4% | AQ101: 218 | AR101: 7.876971609 | AS101: 7 | AT101: 0 | AU101: 0.0% | AV101: 1 | AW101: 1.031545741 | AX101: 1 | AY101: 0 | AZ101: 0.0% | BA101: 1 | BB101: 1.031545741 | BC101: 1 | BD101: 0 | BE101: 0.0% | BF101: 1 | BG101: 1.031545741 | BH101: 1 | BI101: 126 | BJ101: 4.2% | BK101: 41 | BL101: 2.293375394 | BM101: 2 | BN101: 360 | BO101: 24.5% | BP101: 313 | BQ101: 10.87381703 | BR101: 10 | BT101: 180 | BU101: -11
A102: ='[1]Rapport 5'!A107 -> 192 | B102: ='[1]Rapport 5'!B107 -> SEPPOIS LE BAS | C102: ='[1]Rapport 5'!C107 -> 4189 | D102: ='[1]Rapport 5'!D107 -> ALTKIRCH | E102: ='[1]Rapport 5'!E107 -> 5169 | F102: ='[1]Rapport 5'!F107 -> MULHOUSE | G102: ='[1]Rapport 5'!G107 -> 264 | H102: ='[1]Rapport 5'!H107 -> HAUT RHIN | I102: ='[1]Rapport 5'!I107 -> 4331.82 | J102: ='[1]Rapport 5'!J107 -> 46.39 | K102: ='[1]Rapport 5'!K107 -> 0 | L102: ='[1]Rapport 5'!L107 -> 0 | M102: ='[1]Rapport 5'!M107 -> 55640 | N102: ='[1]Rapport 5'!N107 -> 615.93 | O102: ='[1]Rapport 5'!O107 -> 3973 | P102: ='[1]Rapport 5'!P107 -> 0 | Q102: ='[1]Rapport 5'!Q107 -> 0 | R102: ='[1]Rapport 5'!R107 -> 0 | S102: ='[1]Rapport 5'!S107 -> 205 | T102: ='[1]Rapport 5'!T107 -> 0 | U102: ='[1]Rapport 5'!U107 -> 3090.68 | V102: ='[1]Rapport 5'!V107 -> 110 | W102: ='[1]Rapport 5'!W107 -> 952.17 | X102: ='[1]Rapport 5'!X107 -> 0 | Y102: 68,193 | Z102: 772 | AA102: 1.1% | AB102: 2 | AC102: =1+(AB102/COUNT($AB$3:AB$319)*10) -> 1.063091483 | AD102: 1 | AE102: 46 | AF102: 1.1% | AG102: 19 | AH102: 1.599369085 | AI102: 1 | AJ102: 0 | AK102: 0.0% | AL102: 1 | AM102: 1.031545741 | AN102: 1 | AO102: 616 | AP102: 1.1% | AQ102: 4 | AR102: 1.126182965 | AS102: 1 | AT102: 0 | AU102: 0.0% | AV102: 1 | AW102: 1.031545741 | AX102: 1 | AY102: 0 | AZ102: 0.0% | BA102: 1 | BB102: 1.031545741 | BC102: 1 | BD102: 0 | BE102: 0.0% | BF102: 1 | BG102: 1.031545741 | BH102: 1 | BI102: 110 | BJ102: 3.6% | BK102: 32 | BL102: 2.009463722 | BM102: 2 | BN102: 0 | BO102: 0.0% | BP102: 1 | BQ102: 1.031545741 | BR102: 1 | BT102: 181 | BU102: -11
A103: ='[1]Rapport 5'!A108 -> 193 | B103: ='[1]Rapport 5'!B108 -> DANNEMARIE | C103: ='[1]Rapport 5'!C108 -> 4189 | D103: ='[1]Rapport 5'!D108 -> ALTKIRCH | E103: ='[1]Rapport 5'!E108 -> 5169 | F103: ='[1]Rapport 5'!F108 -> MULHOUSE | G103: ='[1]Rapport 5'!G108 -> 264 | H103: ='[1]Rapport 5'!H108 -> HAUT RHIN | I103: ='[1]Rapport 5'!I108 -> 6592.68 | J103: ='[1]Rapport 5'!J108 -> 212.45 | K103: ='[1]Rapport 5'!K108 -> 0 | L103: ='[1]Rapport 5'!L108 -> 0 | M103: ='[1]Rapport 5'!M108 -> 117009.15 | N103: ='[1]Rapport 5'!N108 -> 5323.21 | O103: ='[1]Rapport 5'!O108 -> 3847 | P103: ='[1]Rapport 5'!P108 -> 1839 | Q103: ='[1]Rapport 5'!Q108 -> 0 | R103: ='[1]Rapport 5'!R108 -> 0 | S103: ='[1]Rapport 5'!S108 -> 104.22 | T103: ='[1]Rapport 5'!T108 -> 0 | U103: ='[1]Rapport 5'!U108 -> 6319.1 | V103: ='[1]Rapport 5'!V108 -> 638.32 | W103: ='[1]Rapport 5'!W108 -> 3558.19 | X103: ='[1]Rapport 5'!X108 -> 361.15 | Y103: 137,430 | Z103: 8,374 | AA103: 6.1% | AB103: 304 | AC103: =1+(AB103/COUNT($AB$3:AB$319)*10) -> 10.58990536 | AD103: 10 | AE103: 212 | AF103: 3.2% | AG103: 140 | AH103: 5.416403785 | AI103: 5 | AJ103: 0 | AK103: 0.0% | AL103: 1 | AM103: 1.031545741 | AN103: 1 | AO103: 5,323 | AP103: 4.5% | AQ103: 292 | AR103: 10.21135647 | AS103: 10 | AT103: 1,839 | AU103: 47.8% | AV103: 315 | AW103: 10.93690852 | AX103: 10 | AY103: 0 | AZ103: 0.0% | BA103: 1 | BB103: 1.031545741 | BC103: 1 | BD103: 0 | BE103: 0.0% | BF103: 1 | BG103: 1.031545741 | BH103: 1 | BI103: 638 | BJ103: 10.1% | BK103: 169 | BL103: 6.331230284 | BM103: 6 | BN103: 361 | BO103: 10.1% | BP103: 282 | BQ103: 9.895899054 | BR103: 9 | BT103: 183 | BU103: -10
A104: ='[1]Rapport 5'!A109 -> 194 | B104: ='[1]Rapport 5'!B109 -> THANN | C104: ='[1]Rapport 5'!C109 -> 4194 | D104: ='[1]Rapport 5'!D109 -> THANN | E104: ='[1]Rapport 5'!E109 -> 5169 | F104: ='[1]Rapport 5'!F109 -> MULHOUSE | G104: ='[1]Rapport 5'!G109 -> 264 | H104: ='[1]Rapport 5'!H109 -> HAUT RHIN | I104: ='[1]Rapport 5'!I109 -> 11077.83 | J104: ='[1]Rapport 5'!J109 -> 465.03 | K104: ='[1]Rapport 5'!K109 -> 0 | L104: ='[1]Rapport 5'!L109 -> 0 | M104: ='[1]Rapport 5'!M109 -> 244587.15 | N104: ='[1]Rapport 5'!N109 -> 11080.89 | O104: ='[1]Rapport 5'!O109 -> 10404 | P104: ='[1]Rapport 5'!P109 -> 1548.91 | Q104: ='[1]Rapport 5'!Q109 -> 0 | R104: ='[1]Rapport 5'!R109 -> 0 | S104: ='[1]Rapport 5'!S109 -> 1031.51 | T104: ='[1]Rapport 5'!T109 -> 18.25 | U104: ='[1]Rapport 5'!U109 -> 24456.77 | V104: ='[1]Rapport 5'!V109 -> 2964.86 | W104: ='[1]Rapport 5'!W109 -> 7231.12 | X104: ='[1]Rapport 5'!X109 -> 514.76 | Y104: 298,788 | Z104: 16,593 | AA104: 5.6% | AB104: 291 | AC104: =1+(AB104/COUNT($AB$3:AB$319)*10) -> 10.17981073 | AD104: 10 | AE104: 465 | AF104: 4.2% | AG104: 193 | AH104: 7.088328076 | AI104: 7 | AJ104: 0 | AK104: 0.0% | AL104: 1 | AM104: 1.031545741 | AN104: 1 | AO104: 11,081 | AP104: 4.5% | AQ104: 291 | AR104: 10.17981073 | AS104: 10 | AT104: 1,549 | AU104: 14.9% | AV104: 282 | AW104: 9.895899054 | AX104: 9 | AY104: 0 | AZ104: 0.0% | BA104: 1 | BB104: 1.031545741 | BC104: 1 | BD104: 18 | BE104: 1.8% | BF104: 219 | BG104: 7.90851735 | BH104: 7 | BI104: 2,965 | BJ104: 12.1% | BK104: 200 | BL104: 7.309148265 | BM104: 7 | BN104: 515 | BO104: 7.1% | BP104: 251 | BQ104: 8.917981073 | BR104: 8 | BT104: 184 | BU104: -10
A105: ='[1]Rapport 5'!A110 -> 195 | B105: ='[1]Rapport 5'!B110 -> CERNAY | C105: ='[1]Rapport 5'!C110 -> 4194 | D105: ='[1]Rapport 5'!D110 -> THANN | E105: ='[1]Rapport 5'!E110 -> 5169 | F105: ='[1]Rapport 5'!F110 -> MULHOUSE | G105: ='[1]Rapport 5'!G110 -> 264 | H105: ='[1]Rapport 5'!H110 -> HAUT RHIN | I105: ='[1]Rapport 5'!I110 -> 9006.88 | J105: ='[1]Rapport 5'!J110 -> 115.26 | K105: ='[1]Rapport 5'!K110 -> 0 | L105: ='[1]Rapport 5'!L110 -> 0 | M105: ='[1]Rapport 5'!M110 -> 190065.34 | N105: ='[1]Rapport 5'!N110 -> 4145.48 | O105: ='[1]Rapport 5'!O110 -> 5029 | P105: ='[1]Rapport 5'!P110 -> 395 | Q105: ='[1]Rapport 5'!Q110 -> 0 | R105: ='[1]Rapport 5'!R110 -> 0 | S105: ='[1]Rapport 5'!S110 -> 948.64 | T105: ='[1]Rapport 5'!T110 -> 51.07 | U105: ='[1]Rapport 5'!U110 -> 11243.07 | V105: ='[1]Rapport 5'!V110 -> 249.71 | W105: ='[1]Rapport 5'!W110 -> 4098.99 | X105: ='[1]Rapport 5'!X110 -> 37.3 | Y105: 220,392 | Z105: 4,994 | AA105: 2.3% | AB105: 33 | AC105: =1+(AB105/COUNT($AB$3:AB$319)*10) -> 2.041009464 | AD105: 2 | AE105: 115 | AF105: 1.3% | AG105: 24 | AH105: 1.757097792 | AI105: 1 | AJ105: 0 | AK105: 0.0% | AL105: 1 | AM105: 1.031545741 | AN105: 1 | AO105: 4,145 | AP105: 2.2% | AQ105: 72 | AR105: 3.271293375 | AS105: 3 | AT105: 395 | AU105: 7.9% | AV105: 229 | AW105: 8.223974763 | AX105: 8 | AY105: 0 | AZ105: 0.0% | BA105: 1 | BB105: 1.031545741 | BC105: 1 | BD105: 51 | BE105: 5.4% | BF105: 248 | BG105: 8.823343849 | BH105: 8 | BI105: 250 | BJ105: 2.2% | BK105: 21 | BL105: 1.662460568 | BM105: 1 | BN105: 37 | BO105: 0.9% | BP105: 45 | BQ105: 2.41955836 | BR105: 2 | BT105: 185 | BU105: -10
A106: ='[1]Rapport 5'!A111 -> 196 | B106: ='[1]Rapport 5'!B111 -> MASEVAUX | C106: ='[1]Rapport 5'!C111 -> 4194 | D106: ='[1]Rapport 5'!D111 -> THANN | E106: ='[1]Rapport 5'!E111 -> 5169 | F106: ='[1]Rapport 5'!F111 -> MULHOUSE | G106: ='[1]Rapport 5'!G111 -> 264 | H106: ='[1]Rapport 5'!H111 -> HAUT RHIN | I106: ='[1]Rapport 5'!I111 -> 6324.21 | J106: ='[1]Rapport 5'!J111 -> 172.77 | K106: ='[1]Rapport 5'!K111 -> 0 | L106: ='[1]Rapport 5'!L111 -> 0 | M106: ='[1]Rapport 5'!M111 -> 102783.97 | N106: ='[1]Rapport 5'!N111 -> 3604.56 | O106: ='[1]Rapport 5'!O111 -> 3990 | P106: ='[1]Rapport 5'!P111 -> 0 | Q106: ='[1]Rapport 5'!Q111 -> 0 | R106: ='[1]Rapport 5'!R111 -> 0 | S106: ='[1]Rapport 5'!S111 -> 70 | T106: ='[1]Rapport 5'!T111 -> 0 | U106: ='[1]Rapport 5'!U111 -> 8551.71 | V106: ='[1]Rapport 5'!V111 -> 1152.43 | W106: ='[1]Rapport 5'!W111 -> 2605.68 | X106: ='[1]Rapport 5'!X111 -> 484.5 | Y106: 124,326 | Z106: 5,414 | AA106: 4.4% | AB106: 241 | AC106: =1+(AB106/COUNT($AB$3:AB$319)*10) -> 8.602523659 | AD106: 8 | AE106: =+J106 -> 173 | AF106: 2.7% | AG106: 105 | AH106: 4.312302839 | AI106: 4 | AJ106: 0 | AK106: 0.0% | AL106: 1 | AM106: 1.031545741 | AN106: 1 | AO106: 3,605 | AP106: 3.5% | AQ106: 228 | AR106: 8.192429022 | AS106: 8 | AT106: 0 | AU106: 0.0% | AV106: 1 | AW106: 1.031545741 | AX106: 1 | AY106: 0 | AZ106: 0.0% | BA106: 1 | BB106: 1.031545741 | BC106: 1 | BD106: 0 | BE106: 0.0% | BF106: 1 | BG106: 1.031545741 | BH106: 1 | BI106: 1,152 | BJ106: 13.5% | BK106: 212 | BL106: 7.687697161 | BM106: 7 | BN106: 485 | BO106: 18.6% | BP106: 311 | BQ106: 10.81072555 | BR106: 10 | BT106: 186 | BU106: -10
A107: ='[1]Rapport 5'!A112 -> 198 | B107: ='[1]Rapport 5'!B112 -> SAINT AMARIN | C107: ='[1]Rapport 5'!C112 -> 4194 | D107: ='[1]Rapport 5'!D112 -> THANN | E107: ='[1]Rapport 5'!E112 -> 5169 | F107: ='[1]Rapport 5'!F112 -> MULHOUSE | G107: ='[1]Rapport 5'!G112 -> 264 | H107: ='[1]Rapport 5'!H112 -> HAUT RHIN | I107: ='[1]Rapport 5'!I112 -> 2586.38 | J107: ='[1]Rapport 5'!J112 -> 205.54 | K107: ='[1]Rapport 5'!K112 -> 0 | L107: ='[1]Rapport 5'!L112 -> 0 | M107: ='[1]Rapport 5'!M112 -> 87411.42 | N107: ='[1]Rapport 5'!N112 -> 2916.49 | O107: ='[1]Rapport 5'!O112 -> 5013.75 | P107: ='[1]Rapport 5'!P112 -> 0 | Q107: ='[1]Rapport 5'!Q112 -> 0 | R107: ='[1]Rapport 5'!R112 -> 0 | S107: ='[1]Rapport 5'!S112 -> 70 | T107: ='[1]Rapport 5'!T112 -> 0 | U107: ='[1]Rapport 5'!U112 -> 5448 | V107: ='[1]Rapport 5'!V112 -> 284 | W107: ='[1]Rapport 5'!W112 -> 2406.62 | X107: ='[1]Rapport 5'!X112 -> 56 | Y107: 102,936 | Z107: 3,462 | AA107: 3.4% | AB107: 128 | AC107: =1+(AB107/COUNT($AB$3:AB$319)*10) -> 5.03785489 | AD107: 5 | AE107: 206 | AF107: 7.9% | AG107: 272 | AH107: 9.58044164 | AI107: 9 | AJ107: 0 | AK107: 0.0% | AL107: 1 | AM107: 1.031545741 | AN107: 1 | AO107: 2,916 | AP107: 3.3% | AQ107: 204 | AR107: 7.43533123 | AS107: 7 | AT107: 0 | AU107: 0.0% | AV107: 1 | AW107: 1.031545741 | AX107: 1 | AY107: 0 | AZ107: 0.0% | BA107: 1 | BB107: 1.031545741 | BC107: 1 | BD107: 0 | BE107: 0.0% | BF107: 1 | BG107: 1.031545741 | BH107: 1 | BI107: 284 | BJ107: 5.2% | BK107: 62 | BL107: 2.955835962 | BM107: 2 | BN107: 56 | BO107: 2.3% | BP107: 109 | BQ107: 4.438485804 | BR107: 4 | BT107: 187 | BU107: -11
A108: ='[1]Rapport 5'!A113 -> 5800 | B108: ='[1]Rapport 5'!B113 -> EXPERTS DIRECT | C108: ='[1]Rapport 5'!C113 -> 405800 | D108: ='[1]Rapport 5'!D113 -> EXPERTS DIRECT | E108: ='[1]Rapport 5'!E113 -> 5800 | F108: ='[1]Rapport 5'!F113 -> EXPERTS DIRECT | G108: ='[1]Rapport 5'!G113 -> 269 | H108: ='[1]Rapport 5'!H113 -> BANQUE DIGITALE | I108: ='[1]Rapport 5'!I113 -> 145832.47 | J108: ='[1]Rapport 5'!J113 -> 2912.13 | K108: ='[1]Rapport 5'!K113 -> 0 | L108: ='[1]Rapport 5'!L113 -> 60 | M108: ='[1]Rapport 5'!M113 -> 1367672.87 | N108: ='[1]Rapport 5'!N113 -> 20139.03 | O108: ='[1]Rapport 5'!O113 -> 4261 | P108: ='[1]Rapport 5'!P113 -> 0 | Q108: ='[1]Rapport 5'!Q113 -> 0 | R108: ='[1]Rapport 5'!R113 -> 0 | S108: ='[1]Rapport 5'!S113 -> 1383 | T108: ='[1]Rapport 5'!T113 -> 0 | U108: ='[1]Rapport 5'!U113 -> 156500.24 | V108: ='[1]Rapport 5'!V113 -> 1640.02 | W108: ='[1]Rapport 5'!W113 -> 2523.76 | X108: ='[1]Rapport 5'!X113 -> 0 | Y108: 1,678,173 | Z108: 24,751 | AA108: 1.5% | AB108: 6 | AC108: =1+(AB108/COUNT($AB$3:AB$319)*10) -> 1.189274448 | AD108: 1 | AE108: 2,912 | AF108: 2.0% | AG108: 60 | AH108: 2.892744479 | AI108: 2 | AJ108: 60 | AK108: 100.0% | AL108: 285 | AM108: 9.990536278 | AN108: 9 | AO108: 20,139 | AP108: 1.5% | AQ108: 19 | AR108: 1.599369085 | AS108: 1 | AT108: 0 | AU108: 0.0% | AV108: 1 | AW108: 1.031545741 | AX108: 1 | AY108: 0 | AZ108: 0.0% | BA108: 1 | BB108: 1.031545741 | BC108: 1 | BD108: 0 | BE108: 0.0% | BF108: 1 | BG108: 1.031545741 | BH108: 1 | BI108: 1,640 | BJ108: 1.0% | BK108: 11 | BL108: 1.347003155 | BM108: 1 | BN108: 0 | BO108: 0.0% | BP108: 1 | BQ108: 1.031545741 | BR108: 1 | BT108: 188 | BU108: -5612
A109: ='[1]Rapport 5'!A114 -> 8801 | B109: ='[1]Rapport 5'!B114 -> CHARLEVILLE JEAN JAURES | C109: ='[1]Rapport 5'!C114 -> 408801 | D109: ='[1]Rapport 5'!D114 -> CHARLEVILLE JEAN JAURES | E109: ='[1]Rapport 5'!E114 -> 2 | F109: ='[1]Rapport 5'!F114 -> CHARLEVILLE MEZIERES | G109: ='[1]Rapport 5'!G114 -> 30 | H109: ='[1]Rapport 5'!H114 -> MARNE ARDENNES | I109: ='[1]Rapport 5'!I114 -> 17645.91 | J109: ='[1]Rapport 5'!J114 -> 920.42 | K109: ='[1]Rapport 5'!K114 -> 0 | L109: ='[1]Rapport 5'!L114 -> 0 | M109: ='[1]Rapport 5'!M114 -> 450141.75 | N109: ='[1]Rapport 5'!N114 -> 16197.76 | O109: ='[1]Rapport 5'!O114 -> 16695 | P109: ='[1]Rapport 5'!P114 -> 980.27 | Q109: ='[1]Rapport 5'!Q114 -> 236.49 | R109: ='[1]Rapport 5'!R114 -> 0 | S109: ='[1]Rapport 5'!S114 -> 725.52 | T109: ='[1]Rapport 5'!T114 -> 26 | U109: ='[1]Rapport 5'!U114 -> 47689.02 | V109: ='[1]Rapport 5'!V114 -> 3509.59 | W109: ='[1]Rapport 5'!W114 -> 19660.77 | X109: ='[1]Rapport 5'!X114 -> 632.75 | Y109: 552,794 | Z109: 22,267 | AA109: 4.0% | AB109: 206 | AC109: =1+(AB109/COUNT($AB$3:AB$319)*10) -> 7.498422713 | AD109: 7 | AE109: 920 | AF109: 5.2% | AG109: 223 | AH109: 8.034700315 | AI109: 8 | AJ109: 0 | AK109: 0.0% | AL109: 1 | AM109: 1.031545741 | AN109: 1 | AO109: 16,198 | AP109: 3.6% | AQ109: 238 | AR109: 8.507886435 | AS109: 8 | AT109: 980 | AU109: 5.9% | AV109: 202 | AW109: 7.372239748 | AX109: 7 | AY109: 0 | AZ109: 0.0% | BA109: 1 | BB109: 1.031545741 | BC109: 1 | BD109: 26 | BE109: 3.6% | BF109: 233 | BG109: 8.350157729 | BH109: 8 | BI109: 3,510 | BJ109: 7.4% | BK109: 108 | BL109: 4.406940063 | BM109: 4 | BN109: 633 | BO109: 3.2% | BP109: 146 | BQ109: 5.605678233 | BR109: 5 | BT109: 189 | BU109: -8612
A110: ='[1]Rapport 5'!A115 -> 8802 | B110: ='[1]Rapport 5'!B115 -> CHARLEVILLE NEVERS | C110: ='[1]Rapport 5'!C115 -> 508802 | D110: ='[1]Rapport 5'!D115 -> CHARLEVILLE NEVERS | E110: ='[1]Rapport 5'!E115 -> 2 | F110: ='[1]Rapport 5'!F115 -> CHARLEVILLE MEZIERES | G110: ='[1]Rapport 5'!G115 -> 30 | H110: ='[1]Rapport 5'!H115 -> MARNE ARDENNES | I110: ='[1]Rapport 5'!I115 -> 8040.02 | J110: ='[1]Rapport 5'!J115 -> 349.24 | K110: ='[1]Rapport 5'!K115 -> 0 | L110: ='[1]Rapport 5'!L115 -> 0 | M110: ='[1]Rapport 5'!M115 -> 139438.05 | N110: ='[1]Rapport 5'!N115 -> 3808.27 | O110: ='[1]Rapport 5'!O115 -> 9604 | P110: ='[1]Rapport 5'!P115 -> 28.5 | Q110: ='[1]Rapport 5'!Q115 -> 0 | R110: ='[1]Rapport 5'!R115 -> 0 | S110: ='[1]Rapport 5'!S115 -> 153 | T110: ='[1]Rapport 5'!T115 -> 31 | U110: ='[1]Rapport 5'!U115 -> 9704.17 | V110: ='[1]Rapport 5'!V115 -> 711.44 | W110: ='[1]Rapport 5'!W115 -> 4899.31 | X110: ='[1]Rapport 5'!X115 -> 37.3 | Y110: 171,839 | Z110: 4,966 | AA110: 2.9% | AB110: 75 | AC110: =1+(AB110/COUNT($AB$3:AB$319)*10) -> 3.365930599 | AD110: 3 | AE110: 349 | AF110: 4.3% | AG110: 197 | AH110: 7.214511041 | AI110: 7 | AJ110: 0 | AK110: 0.0% | AL110: 1 | AM110: 1.031545741 | AN110: 1 | AO110: 3,808 | AP110: 2.7% | AQ110: 135 | AR110: 5.258675079 | AS110: 5 | AT110: 29 | AU110: 0.3% | AV110: 53 | AW110: 2.67192429 | AX110: 2 | AY110: 0 | AZ110: 0.0% | BA110: 1 | BB110: 1.031545741 | BC110: 1 | BD110: 31 | BE110: 20.3% | BF110: 302 | BG110: 10.52681388 | BH110: 10 | BI110: 711 | BJ110: 7.3% | BK110: 106 | BL110: 4.34384858 | BM110: 4 | BN110: 37 | BO110: 0.8% | BP110: 36 | BQ110: 2.135646688 | BR110: 2 | BT110: 191 | BU110: -8611
A111: ='[1]Rapport 5'!A116 -> 8806 | B111: ='[1]Rapport 5'!B116 -> SEDAN | C111: ='[1]Rapport 5'!C116 -> 408806 | D111: ='[1]Rapport 5'!D116 -> SEDAN | E111: ='[1]Rapport 5'!E116 -> 2 | F111: ='[1]Rapport 5'!F116 -> CHARLEVILLE MEZIERES | G111: ='[1]Rapport 5'!G116 -> 30 | H111: ='[1]Rapport 5'!H116 -> MARNE ARDENNES | I111: ='[1]Rapport 5'!I116 -> 17432.97 | J111: ='[1]Rapport 5'!J116 -> 710.34 | K111: ='[1]Rapport 5'!K116 -> 0 | L111: ='[1]Rapport 5'!L116 -> 0 | M111: ='[1]Rapport 5'!M116 -> 433573 | N111: ='[1]Rapport 5'!N116 -> 12428.95 | O111: ='[1]Rapport 5'!O116 -> 13896.75 | P111: ='[1]Rapport 5'!P116 -> 617.5 | Q111: ='[1]Rapport 5'!Q116 -> 0 | R111: ='[1]Rapport 5'!R116 -> 0 | S111: ='[1]Rapport 5'!S116 -> 386 | T111: ='[1]Rapport 5'!T116 -> 0 | U111: ='[1]Rapport 5'!U116 -> 39408.79 | V111: ='[1]Rapport 5'!V116 -> 5570.26 | W111: ='[1]Rapport 5'!W116 -> 16767.97 | X111: ='[1]Rapport 5'!X116 -> 567.15 | Y111: 521,465 | Z111: 19,894 | AA111: 3.8% | AB111: 183 | AC111: =1+(AB111/COUNT($AB$3:AB$319)*10) -> 6.772870662 | AD111: 6 | AE111: 710 | AF111: 4.1% | AG111: 186 | AH111: 6.867507886 | AI111: 6 | AJ111: 0 | AK111: 0.0% | AL111: 1 | AM111: 1.031545741 | AN111: 1 | AO111: 12,429 | AP111: 2.9% | AQ111: 156 | AR111: 5.921135647 | AS111: 5 | AT111: 618 | AU111: 4.4% | AV111: 165 | AW111: 6.205047319 | AX111: 6 | AY111: 0 | AZ111: 0.0% | BA111: 1 | BB111: 1.031545741 | BC111: 1 | BD111: 0 | BE111: 0.0% | BF111: 1 | BG111: 1.031545741 | BH111: 1 | BI111: 5,570 | BJ111: 14.1% | BK111: 216 | BL111: 7.813880126 | BM111: 7 | BN111: 567 | BO111: 3.4% | BP111: 149 | BQ111: 5.700315457 | BR111: 5 | BT111: 192 | BU111: -8614
A112: ='[1]Rapport 5'!A117 -> 8815 | B112: ='[1]Rapport 5'!B117 -> CARIGNAN | C112: ='[1]Rapport 5'!C117 -> 508815 | D112: ='[1]Rapport 5'!D117 -> CARIGNAN | E112: ='[1]Rapport 5'!E117 -> 2 | F112: ='[1]Rapport 5'!F117 -> CHARLEVILLE MEZIERES | G112: ='[1]Rapport 5'!G117 -> 30 | H112: ='[1]Rapport 5'!H117 -> MARNE ARDENNES | I112: ='[1]Rapport 5'!I117 -> 8220.61 | J112: ='[1]Rapport 5'!J117 -> 151.13 | K112: ='[1]Rapport 5'!K117 -> 0 | L112: ='[1]Rapport 5'!L117 -> 0 | M112: ='[1]Rapport 5'!M117 -> 159887.2 | N112: ='[1]Rapport 5'!N117 -> 2957.9 | O112: ='[1]Rapport 5'!O117 -> 5664.5 | P112: ='[1]Rapport 5'!P117 -> 0 | Q112: ='[1]Rapport 5'!Q117 -> 0 | R112: ='[1]Rapport 5'!R117 -> 0 | S112: ='[1]Rapport 5'!S117 -> 127.5 | T112: ='[1]Rapport 5'!T117 -> 0 | U112: ='[1]Rapport 5'!U117 -> 11148.47 | V112: ='[1]Rapport 5'!V117 -> 798.81 | W112: ='[1]Rapport 5'!W117 -> 3686.97 | X112: ='[1]Rapport 5'!X117 -> 37.3 | Y112: 188,735 | Z112: 3,945 | AA112: 2.1% | AB112: 24 | AC112: =1+(AB112/COUNT($AB$3:AB$319)*10) -> 1.757097792 | AD112: 1 | AE112: 151 | AF112: 1.8% | AG112: 48 | AH112: 2.514195584 | AI112: 2 | AJ112: 0 | AK112: 0.0% | AL112: 1 | AM112: 1.031545741 | AN112: 1 | AO112: 2,958 | AP112: 1.8% | AQ112: 46 | AR112: 2.451104101 | AS112: 2 | AT112: 0 | AU112: 0.0% | AV112: 1 | AW112: 1.031545741 | AX112: 1 | AY112: 0 | AZ112: 0.0% | BA112: 1 | BB112: 1.031545741 | BC112: 1 | BD112: 0 | BE112: 0.0% | BF112: 1 | BG112: 1.031545741 | BH112: 1 | BI112: 799 | BJ112: 7.2% | BK112: 101 | BL112: 4.186119874 | BM112: 4 | BN112: 37 | BO112: 1.0% | BP112: 49 | BQ112: 2.545741325 | BR112: 2 | BT112: 193 | BU112: -8622
A113: ='[1]Rapport 5'!A118 -> 8817 | B113: ='[1]Rapport 5'!B118 -> CHARLEVILLE MOHON | C113: ='[1]Rapport 5'!C118 -> 508817 | D113: ='[1]Rapport 5'!D118 -> CHARLEVILLE MOHON | E113: ='[1]Rapport 5'!E118 -> 2 | F113: ='[1]Rapport 5'!F118 -> CHARLEVILLE MEZIERES | G113: ='[1]Rapport 5'!G118 -> 30 | H113: ='[1]Rapport 5'!H118 -> MARNE ARDENNES | I113: ='[1]Rapport 5'!I118 -> 7659.9 | J113: ='[1]Rapport 5'!J118 -> 977.99 | K113: ='[1]Rapport 5'!K118 -> 0 | L113: ='[1]Rapport 5'!L118 -> 0 | M113: ='[1]Rapport 5'!M118 -> 154007.58 | N113: ='[1]Rapport 5'!N118 -> 2334.62 | O113: ='[1]Rapport 5'!O118 -> 3061.5 | P113: ='[1]Rapport 5'!P118 -> 0 | Q113: ='[1]Rapport 5'!Q118 -> 0 | R113: ='[1]Rapport 5'!R118 -> 0 | S113: ='[1]Rapport 5'!S118 -> 13 | T113: ='[1]Rapport 5'!T118 -> 0 | U113: ='[1]Rapport 5'!U118 -> 11307.48 | V113: ='[1]Rapport 5'!V118 -> 467.57 | W113: ='[1]Rapport 5'!W118 -> 2669.64 | X113: ='[1]Rapport 5'!X118 -> 102.6 | Y113: 178,719 | Z113: 3,883 | AA113: 2.2% | AB113: 27 | AC113: =1+(AB113/COUNT($AB$3:AB$319)*10) -> 1.851735016 | AD113: 1 | AE113: 978 | AF113: 12.8% | AG113: 297 | AH113: 10.36908517 | AI113: 10 | AJ113: 0 | AK113: 0.0% | AL113: 1 | AM113: 1.031545741 | AN113: 1 | AO113: 2,335 | AP113: 1.5% | AQ113: 24 | AR113: 1.757097792 | AS113: 1 | AT113: 0 | AU113: 0.0% | AV113: 1 | AW113: 1.031545741 | AX113: 1 | AY113: 0 | AZ113: 0.0% | BA113: 1 | BB113: 1.031545741 | BC113: 1 | BD113: 0 | BE113: 0.0% | BF113: 1 | BG113: 1.031545741 | BH113: 1 | BI113: 468 | BJ113: 4.1% | BK113: 40 | BL113: 2.261829653 | BM113: 2 | BN113: 103 | BO113: 3.8% | BP113: 180 | BQ113: 6.678233438 | BR113: 6 | BT113: 194 | BU113: -8623
A114: ='[1]Rapport 5'!A119 -> 8819 | B114: ='[1]Rapport 5'!B119 -> MOUZON | C114: ='[1]Rapport 5'!C119 -> 508819 | D114: ='[1]Rapport 5'!D119 -> MOUZON | E114: ='[1]Rapport 5'!E119 -> 2 | F114: ='[1]Rapport 5'!F119 -> CHARLEVILLE MEZIERES | G114: ='[1]Rapport 5'!G119 -> 30 | H114: ='[1]Rapport 5'!H119 -> MARNE ARDENNES | I114: ='[1]Rapport 5'!I119 -> 8887.08 | J114: ='[1]Rapport 5'!J119 -> 744.52 | K114: ='[1]Rapport 5'!K119 -> 0 | L114: ='[1]Rapport 5'!L119 -> 0 | M114: ='[1]Rapport 5'!M119 -> 121506.49 | N114: ='[1]Rapport 5'!N119 -> 4334.52 | O114: ='[1]Rapport 5'!O119 -> 2290.5 | P114: ='[1]Rapport 5'!P119 -> 42.5 | Q114: ='[1]Rapport 5'!Q119 -> 0 | R114: ='[1]Rapport 5'!R119 -> 0 | S114: ='[1]Rapport 5'!S119 -> 156 | T114: ='[1]Rapport 5'!T119 -> 104 | U114: ='[1]Rapport 5'!U119 -> 6726.79 | V114: ='[1]Rapport 5'!V119 -> 994.85 | W114: ='[1]Rapport 5'!W119 -> 4111.39 | X114: ='[1]Rapport 5'!X119 -> 60 | Y114: 143,678 | Z114: 6,280 | AA114: 4.4% | AB114: 242 | AC114: =1+(AB114/COUNT($AB$3:AB$319)*10) -> 8.634069401 | AD114: 8 | AE114: 745 | AF114: 8.4% | AG114: 275 | AH114: 9.675078864 | AI114: 9 | AJ114: 0 | AK114: 0.0% | AL114: 1 | AM114: 1.031545741 | AN114: 1 | AO114: 4,335 | AP114: 3.6% | AQ114: 234 | AR114: 8.38170347 | AS114: 8 | AT114: 43 | AU114: 1.9% | AV114: 102 | AW114: 4.217665615 | AX114: 4 | AY114: 0 | AZ114: 0.0% | BA114: 1 | BB114: 1.031545741 | BC114: 1 | BD114: 104 | BE114: 66.7% | BF114: 314 | BG114: 10.90536278 | BH114: 10 | BI114: 995 | BJ114: 14.8% | BK114: 233 | BL114: 8.350157729 | BM114: 8 | BN114: 60 | BO114: 1.5% | BP114: 67 | BQ114: 3.113564669 | BR114: 3 | BT114: 195 | BU114: -8624
A115: ='[1]Rapport 5'!A120 -> 8820 | B115: ='[1]Rapport 5'!B120 -> VOUZIERS | C115: ='[1]Rapport 5'!C120 -> 508820 | D115: ='[1]Rapport 5'!D120 -> VOUZIERS | E115: ='[1]Rapport 5'!E120 -> 2 | F115: ='[1]Rapport 5'!F120 -> CHARLEVILLE MEZIERES | G115: ='[1]Rapport 5'!G120 -> 30 | H115: ='[1]Rapport 5'!H120 -> MARNE ARDENNES | I115: ='[1]Rapport 5'!I120 -> 6530.98 | J115: ='[1]Rapport 5'!J120 -> 332.01 | K115: ='[1]Rapport 5'!K120 -> 0 | L115: ='[1]Rapport 5'!L120 -> 0 | M115: ='[1]Rapport 5'!M120 -> 127706.01 | N115: ='[1]Rapport 5'!N120 -> 4668.42 | O115: ='[1]Rapport 5'!O120 -> 5642 | P115: ='[1]Rapport 5'!P120 -> 164.5 | Q115: ='[1]Rapport 5'!Q120 -> 0 | R115: ='[1]Rapport 5'!R120 -> 0 | S115: ='[1]Rapport 5'!S120 -> 0 | T115: ='[1]Rapport 5'!T120 -> 0 | U115: ='[1]Rapport 5'!U120 -> 7886.15 | V115: ='[1]Rapport 5'!V120 -> 1718.13 | W115: ='[1]Rapport 5'!W120 -> 6005.57 | X115: ='[1]Rapport 5'!X120 -> 334.26 | Y115: 153,771 | Z115: 7,217 | AA115: 4.7% | AB115: 255 | AC115: =1+(AB115/COUNT($AB$3:AB$319)*10) -> 9.044164038 | AD115: 9 | AE115: 332 | AF115: 5.1% | AG115: 218 | AH115: 7.876971609 | AI115: 7 | AJ115: 0 | AK115: 0.0% | AL115: 1 | AM115: 1.031545741 | AN115: 1 | AO115: 4,668 | AP115: 3.7% | AQ115: 243 | AR115: 8.665615142 | AS115: 8 | AT115: 165 | AU115: 2.9% | AV115: 129 | AW115: 5.069400631 | AX115: 5 | AY115: 0 | AZ115: 0.0% | BA115: 1 | BB115: 1.031545741 | BC115: 1 | BD115: 0 | BE115: 0.0% | BF115: 1 | BG115: 1.031545741 | BH115: 1 | BI115: 1,718 | BJ115: 21.8% | BK115: 284 | BL115: 9.958990536 | BM115: 9 | BN115: 334 | BO115: 5.6% | BP115: 229 | BQ115: 8.223974763 | BR115: 8 | BT115: 196 | BU115: -8624
A116: ='[1]Rapport 5'!A121 -> 8822 | B116: ='[1]Rapport 5'!B121 -> CHARLEVILLE MEZIERES | C116: ='[1]Rapport 5'!C121 -> 408822 | D116: ='[1]Rapport 5'!D121 -> CHARLEVILLE MEZIERES | E116: ='[1]Rapport 5'!E121 -> 2 | F116: ='[1]Rapport 5'!F121 -> CHARLEVILLE MEZIERES | G116: ='[1]Rapport 5'!G121 -> 30 | H116: ='[1]Rapport 5'!H121 -> MARNE ARDENNES | I116: ='[1]Rapport 5'!I121 -> 9673.91 | J116: ='[1]Rapport 5'!J121 -> 404.19 | K116: ='[1]Rapport 5'!K121 -> 0 | L116: ='[1]Rapport 5'!L121 -> 0 | M116: ='[1]Rapport 5'!M121 -> 202073.38 | N116: ='[1]Rapport 5'!N121 -> 5667.92 | O116: ='[1]Rapport 5'!O121 -> 6363 | P116: ='[1]Rapport 5'!P121 -> 0 | Q116: ='[1]Rapport 5'!Q121 -> 0 | R116: ='[1]Rapport 5'!R121 -> 0 | S116: ='[1]Rapport 5'!S121 -> 171 | T116: ='[1]Rapport 5'!T121 -> 0 | U116: ='[1]Rapport 5'!U121 -> 15259.34 | V116: ='[1]Rapport 5'!V121 -> 2635.98 | W116: ='[1]Rapport 5'!W121 -> 5570.49 | X116: ='[1]Rapport 5'!X121 -> 333.73 | Y116: 239,111 | Z116: 9,042 | AA116: 3.8% | AB116: 178 | AC116: =1+(AB116/COUNT($AB$3:AB$319)*10) -> 6.615141956 | AD116: 6 | AE116: =+J116 -> 404 | AF116: 4.2% | AG116: 192 | AH116: 7.056782334 | AI116: 7 | AJ116: 0 | AK116: 0.0% | AL116: 1 | AM116: 1.031545741 | AN116: 1 | AO116: 5,668 | AP116: 2.8% | AQ116: 144 | AR116: 5.542586751 | AS116: 5 | AT116: 0 | AU116: 0.0% | AV116: 1 | AW116: 1.031545741 | AX116: 1 | AY116: 0 | AZ116: 0.0% | BA116: 1 | BB116: 1.031545741 | BC116: 1 | BD116: 0 | BE116: 0.0% | BF116: 1 | BG116: 1.031545741 | BH116: 1 | BI116: 2,636 | BJ116: 17.3% | BK116: 254 | BL116: 9.012618297 | BM116: 9 | BN116: 334 | BO116: 6.0% | BP116: 235 | BQ116: 8.413249211 | BR116: 8 | BT116: 198 | BU116: -8624
A117: ='[1]Rapport 5'!A122 -> 8833 | B117: ='[1]Rapport 5'!B122 -> VILLERS SEMEUSE CORA | C117: ='[1]Rapport 5'!C122 -> 508833 | D117: ='[1]Rapport 5'!D122 -> VILLERS SEMEUSE CORA | E117: ='[1]Rapport 5'!E122 -> 2 | F117: ='[1]Rapport 5'!F122 -> CHARLEVILLE MEZIERES | G117: ='[1]Rapport 5'!G122 -> 30 | H117: ='[1]Rapport 5'!H122 -> MARNE ARDENNES | I117: ='[1]Rapport 5'!I122 -> 12204.06 | J117: ='[1]Rapport 5'!J122 -> 638.05 | K117: ='[1]Rapport 5'!K122 -> 0 | L117: ='[1]Rapport 5'!L122 -> 0 | M117: ='[1]Rapport 5'!M122 -> 221201.72 | N117: ='[1]Rapport 5'!N122 -> 6716.47 | O117: ='[1]Rapport 5'!O122 -> 8585.5 | P117: ='[1]Rapport 5'!P122 -> 42 | Q117: ='[1]Rapport 5'!Q122 -> 0 | R117: ='[1]Rapport 5'!R122 -> 0 | S117: ='[1]Rapport 5'!S122 -> 278 | T117: ='[1]Rapport 5'!T122 -> 0 | U117: ='[1]Rapport 5'!U122 -> 10072.03 | V117: ='[1]Rapport 5'!V122 -> 453.72 | W117: ='[1]Rapport 5'!W122 -> 4260.71 | X117: ='[1]Rapport 5'!X122 -> 168.09 | Y117: 256,602 | Z117: 8,018 | AA117: 3.1% | AB117: 101 | AC117: =1+(AB117/COUNT($AB$3:AB$319)*10) -> 4.186119874 | AD117: 4 | AE117: =+J117 -> 638 | AF117: 5.2% | AG117: 225 | AH117: 8.097791798 | AI117: 8 | AJ117: 0 | AK117: 0.0% | AL117: 1 | AM117: 1.031545741 | AN117: 1 | AO117: 6,716 | AP117: 3.0% | AQ117: 175 | AR117: 6.520504732 | AS117: 6 | AT117: 42 | AU117: 0.5% | AV117: 61 | AW117: 2.924290221 | AX117: 2 | AY117: 0 | AZ117: 0.0% | BA117: 1 | BB117: 1.031545741 | BC117: 1 | BD117: 0 | BE117: 0.0% | BF117: 1 | BG117: 1.031545741 | BH117: 1 | BI117: 454 | BJ117: 4.5% | BK117: 45 | BL117: 2.41955836 | BM117: 2 | BN117: 168 | BO117: 3.9% | BP117: 184 | BQ117: 6.804416404 | BR117: 6 | BT117: 5800 | BU117: -3033
A118: ='[1]Rapport 5'!A123 -> 8839 | B118: ='[1]Rapport 5'!B123 -> GIVET | C118: ='[1]Rapport 5'!C123 -> 508839 | D118: ='[1]Rapport 5'!D123 -> GIVET | E118: ='[1]Rapport 5'!E123 -> 2 | F118: ='[1]Rapport 5'!F123 -> CHARLEVILLE MEZIERES | G118: ='[1]Rapport 5'!G123 -> 30 | H118: ='[1]Rapport 5'!H123 -> MARNE ARDENNES | I118: ='[1]Rapport 5'!I123 -> 5411.55 | J118: ='[1]Rapport 5'!J123 -> 150.19 | K118: ='[1]Rapport 5'!K123 -> 0 | L118: ='[1]Rapport 5'!L123 -> 0 | M118: ='[1]Rapport 5'!M123 -> 135723 | N118: ='[1]Rapport 5'!N123 -> 4353.2 | O118: ='[1]Rapport 5'!O123 -> 6984.25 | P118: ='[1]Rapport 5'!P123 -> 57 | Q118: ='[1]Rapport 5'!Q123 -> 0 | R118: ='[1]Rapport 5'!R123 -> 0 | S118: ='[1]Rapport 5'!S123 -> 31 | T118: ='[1]Rapport 5'!T123 -> 0 | U118: ='[1]Rapport 5'!U123 -> 8595.6 | V118: ='[1]Rapport 5'!V123 -> 669.39 | W118: ='[1]Rapport 5'!W123 -> 4764.71 | X118: ='[1]Rapport 5'!X123 -> 28 | Y118: 161,510 | Z118: 5,258 | AA118: 3.3% | AB118: 117 | AC118: =1+(AB118/COUNT($AB$3:AB$319)*10) -> 4.690851735 | AD118: 4 | AE118: =+J118 -> 150 | AF118: 2.8% | AG118: 110 | AH118: 4.470031546 | AI118: 4 | AJ118: 0 | AK118: 0.0% | AL118: 1 | AM118: 1.031545741 | AN118: 1 | AO118: 4,353 | AP118: 3.2% | AQ118: 193 | AR118: 7.088328076 | AS118: 7 | AT118: 57 | AU118: 0.8% | AV118: 73 | AW118: 3.302839117 | AX118: 3 | AY118: 0 | AZ118: 0.0% | BA118: 1 | BB118: 1.031545741 | BC118: 1 | BD118: 0 | BE118: 0.0% | BF118: 1 | BG118: 1.031545741 | BH118: 1 | BI118: 669 | BJ118: 7.8% | BK118: 120 | BL118: 4.785488959 | BM118: 4 | BN118: 28 | BO118: 0.6% | BP118: 29 | BQ118: 1.914826498 | BR118: 1 | BT118: 8801 | BU118: -38
A119: ='[1]Rapport 5'!A124 -> 8840 | B119: ='[1]Rapport 5'!B124 -> RETHEL | C119: ='[1]Rapport 5'!C124 -> 408840 | D119: ='[1]Rapport 5'!D124 -> RETHEL | E119: ='[1]Rapport 5'!E124 -> 2 | F119: ='[1]Rapport 5'!F124 -> CHARLEVILLE MEZIERES | G119: ='[1]Rapport 5'!G124 -> 30 | H119: ='[1]Rapport 5'!H124 -> MARNE ARDENNES | I119: ='[1]Rapport 5'!I124 -> 10936.17 | J119: ='[1]Rapport 5'!J124 -> 234.54 | K119: ='[1]Rapport 5'!K124 -> 0 | L119: ='[1]Rapport 5'!L124 -> 51 | M119: ='[1]Rapport 5'!M124 -> 254729.28 | N119: ='[1]Rapport 5'!N124 -> 4687.93 | O119: ='[1]Rapport 5'!O124 -> 4988.5 | P119: ='[1]Rapport 5'!P124 -> 140 | Q119: ='[1]Rapport 5'!Q124 -> 0 | R119: ='[1]Rapport 5'!R124 -> 0 | S119: ='[1]Rapport 5'!S124 -> 180 | T119: ='[1]Rapport 5'!T124 -> 0 | U119: ='[1]Rapport 5'!U124 -> 17058.93 | V119: ='[1]Rapport 5'!V124 -> 2416.94 | W119: ='[1]Rapport 5'!W124 -> 10255.92 | X119: ='[1]Rapport 5'!X124 -> 98.65 | Y119: 298,149 | Z119: 7,629 | AA119: 2.6% | AB119: 49 | AC119: =1+(AB119/COUNT($AB$3:AB$319)*10) -> 2.545741325 | AD119: 2 | AE119: 235 | AF119: 2.1% | AG119: 68 | AH119: 3.14511041 | AI119: 3 | AJ119: 51 | AK119: 100.0% | AL119: 285 | AM119: 9.990536278 | AN119: 9 | AO119: 4,688 | AP119: 1.8% | AQ119: 44 | AR119: 2.388012618 | AS119: 2 | AT119: 140 | AU119: 2.8% | AV119: 122 | AW119: 4.848580442 | AX119: 4 | AY119: 0 | AZ119: 0.0% | BA119: 1 | BB119: 1.031545741 | BC119: 1 | BD119: 0 | BE119: 0.0% | BF119: 1 | BG119: 1.031545741 | BH119: 1 | BI119: 2,417 | BJ119: 14.2% | BK119: 217 | BL119: 7.845425868 | BM119: 7 | BN119: 99 | BO119: 1.0% | BP119: 47 | BQ119: 2.482649842 | BR119: 2 | BT119: 8802 | BU119: -38
A120: ='[1]Rapport 5'!A125 -> 8860 | B120: ='[1]Rapport 5'!B125 -> ROCROI | C120: ='[1]Rapport 5'!C125 -> 508860 | D120: ='[1]Rapport 5'!D125 -> ROCROI | E120: ='[1]Rapport 5'!E125 -> 2 | F120: ='[1]Rapport 5'!F125 -> CHARLEVILLE MEZIERES | G120: ='[1]Rapport 5'!G125 -> 30 | H120: ='[1]Rapport 5'!H125 -> MARNE ARDENNES | I120: ='[1]Rapport 5'!I125 -> 8810.98 | J120: ='[1]Rapport 5'!J125 -> 215.46 | K120: ='[1]Rapport 5'!K125 -> 0 | L120: ='[1]Rapport 5'!L125 -> 0 | M120: ='[1]Rapport 5'!M125 -> 158296.58 | N120: ='[1]Rapport 5'!N125 -> 2249.37 | O120: ='[1]Rapport 5'!O125 -> 4622.5 | P120: ='[1]Rapport 5'!P125 -> 180 | Q120: ='[1]Rapport 5'!Q125 -> 0 | R120: ='[1]Rapport 5'!R125 -> 0 | S120: ='[1]Rapport 5'!S125 -> 53 | T120: ='[1]Rapport 5'!T125 -> 0 | U120: ='[1]Rapport 5'!U125 -> 11217.94 | V120: ='[1]Rapport 5'!V125 -> 349.59 | W120: ='[1]Rapport 5'!W125 -> 6217.45 | X120: ='[1]Rapport 5'!X125 -> 795.1 | Y120: 189,218 | Z120: 3,790 | AA120: 2.0% | AB120: 18 | AC120: =1+(AB120/COUNT($AB$3:AB$319)*10) -> 1.567823344 | AD120: 1 | AE120: 215 | AF120: 2.4% | AG120: 87 | AH120: 3.744479495 | AI120: 3 | AJ120: 0 | AK120: 0.0% | AL120: 1 | AM120: 1.031545741 | AN120: 1 | AO120: 2,249 | AP120: 1.4% | AQ120: 16 | AR120: 1.504731861 | AS120: 1 | AT120: 180 | AU120: 3.9% | AV120: 153 | AW120: 5.826498423 | AX120: 5 | AY120: 0 | AZ120: 0.0% | BA120: 1 | BB120: 1.031545741 | BC120: 1 | BD120: 0 | BE120: 0.0% | BF120: 1 | BG120: 1.031545741 | BH120: 1 | BI120: 350 | BJ120: 3.1% | BK120: 28 | BL120: 1.883280757 | BM120: 1 | BN120: 795 | BO120: 12.8% | BP120: 294 | BQ120: 10.27444795 | BR120: 10 | BT120: 8806 | BU120: -54
A121: ='[1]Rapport 5'!A126 -> 8862 | B121: ='[1]Rapport 5'!B126 -> REVIN | C121: ='[1]Rapport 5'!C126 -> 408862 | D121: ='[1]Rapport 5'!D126 -> REVIN | E121: ='[1]Rapport 5'!E126 -> 2 | F121: ='[1]Rapport 5'!F126 -> CHARLEVILLE MEZIERES | G121: ='[1]Rapport 5'!G126 -> 30 | H121: ='[1]Rapport 5'!H126 -> MARNE ARDENNES | I121: ='[1]Rapport 5'!I126 -> 11547.61 | J121: ='[1]Rapport 5'!J126 -> 112.49 | K121: ='[1]Rapport 5'!K126 -> 0 | L121: ='[1]Rapport 5'!L126 -> 0 | M121: ='[1]Rapport 5'!M126 -> 203391.89 | N121: ='[1]Rapport 5'!N126 -> 6091.56 | O121: ='[1]Rapport 5'!O126 -> 5746 | P121: ='[1]Rapport 5'!P126 -> 42 | Q121: ='[1]Rapport 5'!Q126 -> 0 | R121: ='[1]Rapport 5'!R126 -> 0 | S121: ='[1]Rapport 5'!S126 -> 1140.62 | T121: ='[1]Rapport 5'!T126 -> 0 | U121: ='[1]Rapport 5'!U126 -> 18444.14 | V121: ='[1]Rapport 5'!V126 -> 1491.65 | W121: ='[1]Rapport 5'!W126 -> 6578.05 | X121: ='[1]Rapport 5'!X126 -> 56 | Y121: 246,848 | Z121: 7,794 | AA121: 3.2% | AB121: 106 | AC121: =1+(AB121/COUNT($AB$3:AB$319)*10) -> 4.34384858 | AD121: 4 | AE121: 112 | AF121: 1.0% | AG121: 17 | AH121: 1.536277603 | AI121: 1 | AJ121: 0 | AK121: 0.0% | AL121: 1 | AM121: 1.031545741 | AN121: 1 | AO121: 6,092 | AP121: 3.0% | AQ121: 170 | AR121: 6.362776025 | AS121: 6 | AT121: 42 | AU121: 0.7% | AV121: 71 | AW121: 3.239747634 | AX121: 3 | AY121: 0 | AZ121: 0.0% | BA121: 1 | BB121: 1.031545741 | BC121: 1 | BD121: 0 | BE121: 0.0% | BF121: 1 | BG121: 1.031545741 | BH121: 1 | BI121: 1,492 | BJ121: 8.1% | BK121: 127 | BL121: 5.006309148 | BM121: 5 | BN121: 56 | BO121: 0.9% | BP121: 41 | BQ121: 2.293375394 | BR121: 2 | BT121: 8814 | BU121: -48
A122: ='[1]Rapport 5'!A127 -> 10510 | B122: ='[1]Rapport 5'!B127 -> TROYES GAMBETTA | C122: ='[1]Rapport 5'!C127 -> 410510 | D122: ='[1]Rapport 5'!D127 -> TROYES GAMBETTA | E122: ='[1]Rapport 5'!E127 -> 14 | F122: ='[1]Rapport 5'!F127 -> TROYES | G122: ='[1]Rapport 5'!G127 -> 50 | H122: ='[1]Rapport 5'!H127 -> AUBE HAUTE MARNE | I122: ='[1]Rapport 5'!I127 -> 29573.19 | J122: ='[1]Rapport 5'!J127 -> 840.19 | K122: ='[1]Rapport 5'!K127 -> 0 | L122: ='[1]Rapport 5'!L127 -> 21.55 | M122: ='[1]Rapport 5'!M127 -> 443130.68 | N122: ='[1]Rapport 5'!N127 -> 11056.88 | O122: ='[1]Rapport 5'!O127 -> 16086 | P122: ='[1]Rapport 5'!P127 -> 1350.5 | Q122: ='[1]Rapport 5'!Q127 -> 0 | R122: ='[1]Rapport 5'!R127 -> 0 | S122: ='[1]Rapport 5'!S127 -> 942.92 | T122: ='[1]Rapport 5'!T127 -> 0 | U122: ='[1]Rapport 5'!U127 -> 67669.82 | V122: ='[1]Rapport 5'!V127 -> 3967.75 | W122: ='[1]Rapport 5'!W127 -> 19109.31 | X122: ='[1]Rapport 5'!X127 -> 713.09 | Y122: 576,512 | Z122: 17,950 | AA122: 3.1% | AB122: 99 | AC122: =1+(AB122/COUNT($AB$3:AB$319)*10) -> 4.123028391 | AD122: 4 | AE122: 840 | AF122: 2.8% | AG122: 115 | AH122: 4.627760252 | AI122: 4 | AJ122: 22 | AK122: 100.0% | AL122: 285 | AM122: 9.990536278 | AN122: 9 | AO122: 11,057 | AP122: 2.5% | AQ122: 110 | AR122: 4.470031546 | AS122: 4 | AT122: 1,351 | AU122: 8.4% | AV122: 235 | AW122: 8.413249211 | AX122: 8 | AY122: 0 | AZ122: 0.0% | BA122: 1 | BB122: 1.031545741 | BC122: 1 | BD122: 0 | BE122: 0.0% | BF122: 1 | BG122: 1.031545741 | BH122: 1 | BI122: 3,968 | BJ122: 5.9% | BK122: 75 | BL122: 3.365930599 | BM122: 3 | BN122: 713 | BO122: 3.7% | BP122: 175 | BQ122: 6.520504732 | BR122: 6 | BT122: 8815 | BU122: -1695
A123: ='[1]Rapport 5'!A128 -> 10511 | B123: ='[1]Rapport 5'!B128 -> TROYES BROSSOLETTE | C123: ='[1]Rapport 5'!C128 -> 510511 | D123: ='[1]Rapport 5'!D128 -> TROYES BROSSOLETTE | E123: ='[1]Rapport 5'!E128 -> 14 | F123: ='[1]Rapport 5'!F128 -> TROYES | G123: ='[1]Rapport 5'!G128 -> 50 | H123: ='[1]Rapport 5'!H128 -> AUBE HAUTE MARNE | I123: ='[1]Rapport 5'!I128 -> 4330.59 | J123: ='[1]Rapport 5'!J128 -> 243.75 | K123: ='[1]Rapport 5'!K128 -> 0 | L123: ='[1]Rapport 5'!L128 -> 0 | M123: ='[1]Rapport 5'!M128 -> 115453.41 | N123: ='[1]Rapport 5'!N128 -> 3838.4 | O123: ='[1]Rapport 5'!O128 -> 5365 | P123: ='[1]Rapport 5'!P128 -> 170 | Q123: ='[1]Rapport 5'!Q128 -> 0 | R123: ='[1]Rapport 5'!R128 -> 0 | S123: ='[1]Rapport 5'!S128 -> 117 | T123: ='[1]Rapport 5'!T128 -> 0 | U123: ='[1]Rapport 5'!U128 -> 13690.74 | V123: ='[1]Rapport 5'!V128 -> 517.15 | W123: ='[1]Rapport 5'!W128 -> 3795.18 | X123: ='[1]Rapport 5'!X128 -> 155.93 | Y123: 142,752 | Z123: 4,925 | AA123: 3.5% | AB123: 138 | AC123: =1+(AB123/COUNT($AB$3:AB$319)*10) -> 5.353312303 | AD123: 5 | AE123: 244 | AF123: 5.6% | AG123: 232 | AH123: 8.318611987 | AI123: 8 | AJ123: 0 | AK123: 0.0% | AL123: 1 | AM123: 1.031545741 | AN123: 1 | AO123: 3,838 | AP123: 3.3% | AQ123: 203 | AR123: 7.403785489 | AS123: 7 | AT123: 170 | AU123: 3.2% | AV123: 139 | AW123: 5.384858044 | AX123: 5 | AY123: 0 | AZ123: 0.0% | BA123: 1 | BB123: 1.031545741 | BC123: 1 | BD123: 0 | BE123: 0.0% | BF123: 1 | BG123: 1.031545741 | BH123: 1 | BI123: 517 | BJ123: 3.8% | BK123: 37 | BL123: 2.167192429 | BM123: 2 | BN123: 156 | BO123: 4.1% | BP123: 187 | BQ123: 6.899053628 | BR123: 6 | BT123: 8817 | BU123: -1694
A124: ='[1]Rapport 5'!A129 -> 10512 | B124: ='[1]Rapport 5'!B129 -> TROYES ZOLA | C124: ='[1]Rapport 5'!C129 -> 410512 | D124: ='[1]Rapport 5'!D129 -> TROYES ZOLA | E124: ='[1]Rapport 5'!E129 -> 14 | F124: ='[1]Rapport 5'!F129 -> TROYES | G124: ='[1]Rapport 5'!G129 -> 50 | H124: ='[1]Rapport 5'!H129 -> AUBE HAUTE MARNE | I124: ='[1]Rapport 5'!I129 -> 15876.98 | J124: ='[1]Rapport 5'!J129 -> 449.67 | K124: ='[1]Rapport 5'!K129 -> 0 | L124: ='[1]Rapport 5'!L129 -> 0 | M124: ='[1]Rapport 5'!M129 -> 249349.32 | N124: ='[1]Rapport 5'!N129 -> 6779.64 | O124: ='[1]Rapport 5'!O129 -> 7156 | P124: ='[1]Rapport 5'!P129 -> 219 | Q124: ='[1]Rapport 5'!Q129 -> 0 | R124: ='[1]Rapport 5'!R129 -> 0 | S124: ='[1]Rapport 5'!S129 -> 405 | T124: ='[1]Rapport 5'!T129 -> 36 | U124: ='[1]Rapport 5'!U129 -> 19617.6 | V124: ='[1]Rapport 5'!V129 -> 928.02 | W124: ='[1]Rapport 5'!W129 -> 6352.28 | X124: ='[1]Rapport 5'!X129 -> 124.42 | Y124: 298,757 | Z124: 8,537 | AA124: 2.9% | AB124: 69 | AC124: =1+(AB124/COUNT($AB$3:AB$319)*10) -> 3.176656151 | AD124: 3 | AE124: 450 | AF124: 2.8% | AG124: 114 | AH124: 4.596214511 | AI124: 4 | AJ124: 0 | AK124: 0.0% | AL124: 1 | AM124: 1.031545741 | AN124: 1 | AO124: 6,780 | AP124: 2.7% | AQ124: 134 | AR124: 5.227129338 | AS124: 5 | AT124: 219 | AU124: 3.1% | AV124: 135 | AW124: 5.258675079 | AX124: 5 | AY124: 0 | AZ124: 0.0% | BA124: 1 | BB124: 1.031545741 | BC124: 1 | BD124: 36 | BE124: 8.9% | BF124: 272 | BG124: 9.58044164 | BH124: 9 | BI124: 928 | BJ124: 4.7% | BK124: 53 | BL124: 2.67192429 | BM124: 2 | BN124: 124 | BO124: 2.0% | BP124: 97 | BQ124: 4.059936909 | BR124: 4 | BT124: 8819 | BU124: -1693
A125: ='[1]Rapport 5'!A130 -> 10513 | B125: ='[1]Rapport 5'!B130 -> TROYES 1ER MAI | C125: ='[1]Rapport 5'!C130 -> 510513 | D125: ='[1]Rapport 5'!D130 -> TROYES 1ER MAI | E125: ='[1]Rapport 5'!E130 -> 14 | F125: ='[1]Rapport 5'!F130 -> TROYES | G125: ='[1]Rapport 5'!G130 -> 50 | H125: ='[1]Rapport 5'!H130 -> AUBE HAUTE MARNE | I125: ='[1]Rapport 5'!I130 -> 12748.18 | J125: ='[1]Rapport 5'!J130 -> 419.32 | K125: ='[1]Rapport 5'!K130 -> 0 | L125: ='[1]Rapport 5'!L130 -> 0 | M125: ='[1]Rapport 5'!M130 -> 223850.3 | N125: ='[1]Rapport 5'!N130 -> 6303.3 | O125: ='[1]Rapport 5'!O130 -> 6701 | P125: ='[1]Rapport 5'!P130 -> 0 | Q125: ='[1]Rapport 5'!Q130 -> 0 | R125: ='[1]Rapport 5'!R130 -> 0 | S125: ='[1]Rapport 5'!S130 -> 296 | T125: ='[1]Rapport 5'!T130 -> 0 | U125: ='[1]Rapport 5'!U130 -> 22129.31 | V125: ='[1]Rapport 5'!V130 -> 684.2 | W125: ='[1]Rapport 5'!W130 -> 5259.64 | X125: ='[1]Rapport 5'!X130 -> 57.31 | Y125: 270,984 | Z125: =+J125+L125+N125+P125+R125+T125+V125+X125 -> 7,464 | AA125: =+Z125/Y125 -> 2.8% | AB125: 63 | AC125: =1+(AB125/COUNT($AB$3:AB$319)*10) -> 2.987381703 | AD125: 2 | AE125: 419 | AF125: 3.3% | AG125: 143 | AH125: 5.511041009 | AI125: 5 | AJ125: 0 | AK125: 0.0% | AL125: 1 | AM125: 1.031545741 | AN125: 1 | AO125: 6,303 | AP125: 2.8% | AQ125: 147 | AR125: 5.637223975 | AS125: 5 | AT125: 0 | AU125: 0.0% | AV125: 1 | AW125: 1.031545741 | AX125: 1 | AY125: 0 | AZ125: 0.0% | BA125: 1 | BB125: 1.031545741 | BC125: 1 | BD125: 0 | BE125: 0.0% | BF125: 1 | BG125: 1.031545741 | BH125: 1 | BI125: 684 | BJ125: 3.1% | BK125: 27 | BL125: 1.851735016 | BM125: 1 | BN125: 57 | BO125: 1.1% | BP125: 51 | BQ125: 2.608832808 | BR125: 2 | BT125: 8820 | BU125: -1693
A126: ='[1]Rapport 5'!A131 -> 10520 | B126: ='[1]Rapport 5'!B131 -> SAINT ANDRE LES VERGERS | C126: ='[1]Rapport 5'!C131 -> 510520 | D126: ='[1]Rapport 5'!D131 -> SAINT ANDRE LES VERGERS | E126: ='[1]Rapport 5'!E131 -> 14 | F126: ='[1]Rapport 5'!F131 -> TROYES | G126: ='[1]Rapport 5'!G131 -> 50 | H126: ='[1]Rapport 5'!H131 -> AUBE HAUTE MARNE | I126: ='[1]Rapport 5'!I131 -> 10186.95 | J126: ='[1]Rapport 5'!J131 -> 224.2 | K126: ='[1]Rapport 5'!K131 -> 0 | L126: ='[1]Rapport 5'!L131 -> 0 | M126: ='[1]Rapport 5'!M131 -> 202069.14 | N126: ='[1]Rapport 5'!N131 -> 5590.72 | O126: ='[1]Rapport 5'!O131 -> 10262 | P126: ='[1]Rapport 5'!P131 -> 160 | Q126: ='[1]Rapport 5'!Q131 -> 0 | R126: ='[1]Rapport 5'!R131 -> 0 | S126: ='[1]Rapport 5'!S131 -> 307 | T126: ='[1]Rapport 5'!T131 -> 18 | U126: ='[1]Rapport 5'!U131 -> 18680.56 | V126: ='[1]Rapport 5'!V131 -> 946.78 | W126: ='[1]Rapport 5'!W131 -> 10570.17 | X126: ='[1]Rapport 5'!X131 -> 300.68 | Y126: 252,076 | Z126: 7,240 | AA126: 2.9% | AB126: 71 | AC126: =1+(AB126/COUNT($AB$3:AB$319)*10) -> 3.239747634 | AD126: =+IF(INT(AC126)=11,10,INT(AC126)) -> 3 | AE126: 224 | AF126: 2.2% | AG126: 73 | AH126: 3.302839117 | AI126: 3 | AJ126: 0 | AK126: 0.0% | AL126: 1 | AM126: 1.031545741 | AN126: 1 | AO126: 5,591 | AP126: 2.8% | AQ126: 139 | AR126: 5.384858044 | AS126: 5 | AT126: 160 | AU126: 1.6% | AV126: 94 | AW126: 3.965299685 | AX126: 3 | AY126: 0 | AZ126: 0.0% | BA126: 1 | BB126: 1.031545741 | BC126: 1 | BD126: 18 | BE126: 5.9% | BF126: 250 | BG126: 8.886435331 | BH126: 8 | BI126: 947 | BJ126: 5.1% | BK126: 58 | BL126: 2.829652997 | BM126: 2 | BN126: 301 | BO126: 2.8% | BP126: 137 | BQ126: 5.321766562 | BR126: 5 | BT126: 8822 | BU126: -1698
A127: ='[1]Rapport 5'!A132 -> 10521 | B127: ='[1]Rapport 5'!B132 -> SAINTE SAVINE | C127: ='[1]Rapport 5'!C132 -> 410521 | D127: ='[1]Rapport 5'!D132 -> SAINTE SAVINE | E127: ='[1]Rapport 5'!E132 -> 14 | F127: ='[1]Rapport 5'!F132 -> TROYES | G127: ='[1]Rapport 5'!G132 -> 50 | H127: ='[1]Rapport 5'!H132 -> AUBE HAUTE MARNE | I127: ='[1]Rapport 5'!I132 -> 11458.25 | J127: ='[1]Rapport 5'!J132 -> 477.27 | K127: ='[1]Rapport 5'!K132 -> 0 | L127: ='[1]Rapport 5'!L132 -> 0 | M127: ='[1]Rapport 5'!M132 -> 251987.44 | N127: ='[1]Rapport 5'!N132 -> 9205.96 | O127: ='[1]Rapport 5'!O132 -> 7645 | P127: ='[1]Rapport 5'!P132 -> 853 | Q127: ='[1]Rapport 5'!Q132 -> 0 | R127: ='[1]Rapport 5'!R132 -> 0 | S127: ='[1]Rapport 5'!S132 -> 85 | T127: ='[1]Rapport 5'!T132 -> 0 | U127: ='[1]Rapport 5'!U132 -> 19423.05 | V127: ='[1]Rapport 5'!V132 -> 1419.69 | W127: ='[1]Rapport 5'!W132 -> 10881.58 | X127: ='[1]Rapport 5'!X132 -> 822.29 | Y127: =+I127+K127+M127+O127+Q127+S127+U127+W127 -> 301,480 | Z127: 12,778 | AA127: 4.2% | AB127: 231 | AC127: =1+(AB127/COUNT($AB$3:AB$319)*10) -> 8.287066246 | AD127: 8 | AE127: 477 | AF127: =+IF(ISERROR(AE127/I127),0,AE127/I127) -> 4.2% | AG127: 191 | AH127: 7.025236593 | AI127: =+IF(INT(AH127)=11,10,INT(AH127)) -> 7 | AJ127: =+L127 -> 0 | AK127: =+IF(ISERROR(IF(AJ127=0,0,AJ127/K127)),1,IF(AJ127=0,0,AJ127/K127)) -> 0.0% | AL127: 1 | AM127: 1.031545741 | AN127: =+IF(INT(AM127)=11,10,INT(AM127)) -> 1 | AO127: =+N127 -> 9,206 | AP127: =+IF(ISERROR(IF(AO127=0,0,AO127/M127)),1,IF(AO127=0,0,AO127/M127)) -> 3.7% | AQ127: 242 | AR127: 8.634069401 | AS127: =+IF(INT(AR127)=11,10,INT(AR127)) -> 8 | AT127: 853 | AU127: 11.2% | AV127: 263 | AW127: 9.296529968 | AX127: 9 | AY127: 0 | AZ127: 0.0% | BA127: 1 | BB127: 1.031545741 | BC127: 1 | BD127: 0 | BE127: 0.0% | BF127: 1 | BG127: 1.031545741 | BH127: 1 | BI127: 1,420 | BJ127: 7.3% | BK127: 105 | BL127: 4.312302839 | BM127: 4 | BN127: 822 | BO127: 7.6% | BP127: 262 | BQ127: 9.264984227 | BR127: 9 | BT127: 8833 | BU127: =+BT127-A127 -> -1688
A128: ='[1]Rapport 5'!A133 -> 10522 | B128: ='[1]Rapport 5'!B133 -> TROYES CHARTREUX | C128: ='[1]Rapport 5'!C133 -> 510522 | D128: ='[1]Rapport 5'!D133 -> TROYES CHARTREUX | E128: ='[1]Rapport 5'!E133 -> 14 | F128: ='[1]Rapport 5'!F133 -> TROYES | G128: ='[1]Rapport 5'!G133 -> 50 | H128: ='[1]Rapport 5'!H133 -> AUBE HAUTE MARNE | I128: ='[1]Rapport 5'!I133 -> 7686.71 | J128: ='[1]Rapport 5'!J133 -> 352.26 | K128: ='[1]Rapport 5'!K133 -> 0 | L128: ='[1]Rapport 5'!L133 -> 0 | M128: ='[1]Rapport 5'!M133 -> 142489.36 | N128: ='[1]Rapport 5'!N133 -> 5736.38 | O128: ='[1]Rapport 5'!O133 -> 4167.5 | P128: ='[1]Rapport 5'!P133 -> 50 | Q128: ='[1]Rapport 5'!Q133 -> 0 | R128: ='[1]Rapport 5'!R133 -> 0 | S128: ='[1]Rapport 5'!S133 -> 92 | T128: ='[1]Rapport 5'!T133 -> 0 | U128: ='[1]Rapport 5'!U133 -> 14541.53 | V128: ='[1]Rapport 5'!V133 -> 625.39 | W128: ='[1]Rapport 5'!W133 -> 4644.74 | X128: ='[1]Rapport 5'!X133 -> 56 | Y128: 173,622 | Z128: 6,820 | AA128: 3.9% | AB128: 193 | AC128: =1+(AB128/COUNT($AB$3:AB$319)*10) -> 7.088328076 | AD128: 7 | AE128: 352 | AF128: 4.6% | AG128: 206 | AH128: 7.498422713 | AI128: 7 | AJ128: 0 | AK128: 0.0% | AL128: 1 | AM128: 1.031545741 | AN128: 1 | AO128: 5,736 | AP128: 4.0% | AQ128: 263 | AR128: 9.296529968 | AS128: 9 | AT128: =+P128 -> 50 | AU128: =+IF(ISERROR(IF(AT128=0,0,AT128/O128)),1,IF(AT128=0,0,AT128/O128)) -> 1.2% | AV128: 83 | AW128: 3.61829653 | AX128: =+IF(INT(AW128)=11,10,INT(AW128)) -> 3 | AY128: =+R128 -> 0 | AZ128: =+IF(ISERROR(IF(AY128=0,0,AY128/T128)),1,IF(AY128=0,0,AY128/T128)) -> 0.0% | BA128: 1 | BB128: 1.031545741 | BC128: =+IF(INT(BB128)=11,10,INT(BB128)) -> 1 | BD128: =+T128 -> 0 | BE128: =+IF(ISERROR(IF(BD128=0,0,BD128/S128)),1,IF(BD128=0,0,BD128/S128)) -> 0.0% | BF128: 1 | BG128: 1.031545741 | BH128: =+IF(INT(BG128)=11,10,INT(BG128)) -> 1 | BI128: =+V128 -> 625 | BJ128: =+IF(ISERROR(IF(BI128=0,0,BI128/U128)),1,IF(BI128=0,0,BI128/U128)) -> 4.3% | BK128: 43 | BL128: 2.356466877 | BM128: =+IF(INT(BL128)=11,10,INT(BL128)) -> 2 | BN128: =+X128 -> 56 | BO128: =+IF(ISERROR(IF(BN128=0,0,BN128/W128)),1,IF(BN128=0,0,BN128/W128)) -> 1.2% | BP128: 58 | BQ128: 2.829652997 | BR128: =+IF(INT(BQ128)=11,10,INT(BQ128)) -> 2 | BT128: 8839 | BU128: -1683
A129: ='[1]Rapport 5'!A134 -> 10523 | B129: ='[1]Rapport 5'!B134 -> LA CHAPELLE ST LUC | C129: ='[1]Rapport 5'!C134 -> 510523 | D129: ='[1]Rapport 5'!D134 -> LA CHAPELLE ST LUC | E129: ='[1]Rapport 5'!E134 -> 14 | F129: ='[1]Rapport 5'!F134 -> TROYES | G129: ='[1]Rapport 5'!G134 -> 50 | H129: ='[1]Rapport 5'!H134 -> AUBE HAUTE MARNE | I129: ='[1]Rapport 5'!I134 -> 14339.01 | J129: ='[1]Rapport 5'!J134 -> 673.8 | K129: ='[1]Rapport 5'!K134 -> 0 | L129: ='[1]Rapport 5'!L134 -> 0 | M129: ='[1]Rapport 5'!M134 -> 222926.22 | N129: ='[1]Rapport 5'!N134 -> 8101.19 | O129: ='[1]Rapport 5'!O134 -> 3286 | P129: ='[1]Rapport 5'!P134 -> 38 | Q129: ='[1]Rapport 5'!Q134 -> 0 | R129: ='[1]Rapport 5'!R134 -> 0 | S129: ='[1]Rapport 5'!S134 -> 585.74 | T129: ='[1]Rapport 5'!T134 -> 0 | U129: ='[1]Rapport 5'!U134 -> 23283.33 | V129: ='[1]Rapport 5'!V134 -> 587.87 | W129: ='[1]Rapport 5'!W134 -> 5546.59 | X129: ='[1]Rapport 5'!X134 -> 107.19 | Y129: 269,967 | Z129: 9,508 | AA129: 3.5% | AB129: 142 | AC129: =1+(AB129/COUNT($AB$3:AB$319)*10) -> 5.479495268 | AD129: 5 | AE129: 674 | AF129: 4.7% | AG129: 210 | AH129: 7.624605678 | AI129: 7 | AJ129: 0 | AK129: 0.0% | AL129: 1 | AM129: 1.031545741 | AN129: 1 | AO129: 8,101 | AP129: 3.6% | AQ129: 240 | AR129: 8.570977918 | AS129: 8 | AT129: 38 | AU129: 1.2% | AV129: 79 | AW129: 3.492113565 | AX129: 3 | AY129: 0 | AZ129: 0.0% | BA129: 1 | BB129: 1.031545741 | BC129: 1 | BD129: 0 | BE129: 0.0% | BF129: 1 | BG129: 1.031545741 | BH129: 1 | BI129: 588 | BJ129: 2.5% | BK129: 22 | BL129: 1.694006309 | BM129: 1 | BN129: 107 | BO129: 1.9% | BP129: 93 | BQ129: 3.933753943 | BR129: 3 | BT129: 8840 | BU129: -1683
